Workbook

Sheet Data
N2: set's bottom's baseline in portmap | U2: 1=domed 2=flat 3=conical | Y2: H=1 R=2
N3: Main | O3: Aux | R3: head vol | U3: new type | V3: old type | W3: new flat | X3: old flat | Y3: new | Z3: old
N4: TRUE | O4: FALSE | P4: =IF(AND(N4=FALSE,O4=FALSE),"ERROR",IF(AND(N4=TRUE,O4=TRUE),"ERROR",IF(N4=TRUE,"Main","Aux"))) -> Main | R4: FALSE | U4: 1 | V4: 3 | W4: FALSE | X4: TRUE | Y4: 1 | Z4: 1
C10: Engine Data | I10: Power | N10: Timing | P10: Angle.A | R10: Time.Area | T10: S.T.A. | W10: JanBros 2-stroke 1.2
M11: Exhaust | N11: New | O11: Old | P11: New | Q11: Old | R11: New | S11: Old | T11: New | U11: Old
E12: New | F12: Old | J12: New | K12: Old | M12: Main | N12: =IF( 'Exhaust New'!$J$4=0,"",'Exhaust New'!$E$23) -> 202.2862979 | O12: =IF( 'Exhaust Old'!$J$4=0,"",'Exhaust Old'!$E$23) -> 202.2862979 | P12: =IF(N12="","",'Exhaust New'!$AP$14) -> 117679.9212 | Q12: =IF(O12="","", 'Exhaust Old'!$AP$14) -> 117679.9212 | R12: =IF(N12="","",P12/$E$20) -> 9.401607508 | S12: =IF(O12="","",Q12/$F$20) -> 9.401607508 | T12: =IF($N12="","",$R12/($E$14+$E$15)*1000) -> 70.46253159 | U12: =IF(O12="","",S12/($F$14+$F$15)*1000) -> 70.46253159
C13: Compression Ratio | E13: =(E15+E14)/E15 -> 15.49675342 | F13: =(F15+F14)/F15 -> 15.49675342 | I13: BHP | J13: =J15*E20*E14/448227 -> 54.89802238 | K13: =K15*F20*F14/448227 -> 54.89802238 | M13: Aux | N13: =IF( 'Exhaust New'!$N$4=0,"",'Exhaust New'!$E$24) -> 194.0693945 | O13: =IF( 'Exhaust Old'!$N$4=0,"",'Exhaust Old'!$E$24) -> 194.0693945 | P13: =IF(N13="","",ABS( 'Exhaust New'!$AT$14)) -> 61023.49939 | Q13: =IF(O13="","",ABS( 'Exhaust Old'!$AT$14)) -> 61023.49939 | R13: =IF(N13="","",P13/$E$20) -> 4.875249612 | S13: =IF(O13="","",Q13/$F$20) -> 4.875249612 | T13: =IF($N13="","",$R13/($E$14+$E$15)*1000) -> 36.5386908 | U13: =IF(O13="","",S13/($F$14+$F$15)*1000) -> 36.5386908
C14: Swept Volume | E14: =(PI()*(E16/2)^2)*E17/1000 -> 124.8170469 | F14: =(PI()*(F16/2)^2)*F17/1000 -> 124.8170469 | G14: cc | I14: kW | J14: =J13/1.341 -> 40.93812258 | K14: =K13/1.341 -> 40.93812258 | M14: Exh total | N14: =IF(AND(N12="",N13=""),"",MAX($N$12:$N$13)) -> 202.2862979 | O14: =IF(AND(O12="",O13=""),"",MAX($O$12:$O$13)) -> 202.2862979 | P14: =IF( 'Exhaust New'!$N$4=0,$P$12,IF( 'Exhaust New'!$J$4=0,$P$13,$P$12+$P$13)) -> 178703.4206 | Q14: =IF( 'Exhaust Old'!$N$4=0,$Q$12,IF( 'Exhaust Old'!$J$4=0,$Q$13,$Q$12+$Q$13)) -> 178703.4206 | R14: =IF(N14="","",P14/$E$20) -> 14.27685712 | S14: =IF(O14="","",Q14/$F$20) -> 14.27685712 | T14: =IF($N14="","",$R14/($E$14+$E$15)*1000) -> 107.0012224 | U14: =IF(O14="","",S14/($F$14+$F$15)*1000) -> 107.0012224 | AM14: half bore | AN14: =E16/2 -> 27 | AO14: =F16/2 -> 27
C15: Head Volume | E15: =IF(R4=TRUE,Head!K9,Data!E33) -> 8.61 | F15: 8.61 | G15: cc | I15: BMEP | J15: ='Exhaust New'!D40 -> 15.75 | K15: ='Exhaust Old'!E40 -> 15.75 | M15: Blowd.
C16: Bore | E16: 54 | F16: 54 | G16: mm | M16: Main | N16: =IF( OR('Exhaust New'!$J$4=0,N24=""),"",( N$12-N$24)/2) -> 35.03108262 | O16: =IF( OR('Exhaust Old'!$J$4=0,O24=""),"",( O$12-O$24)/2) -> 35.03108262 | P16: =IF(N16="","", 'Exhaust New'!$AW$14) -> 8155.978438 | Q16: =IF(O16="","", 'Exhaust Old'!$AW$14) -> 8155.978438 | R16: =IF(N16="","",P16/$E$20) -> 0.6515921098 | S16: =IF(O16="","",Q16/$F$20) -> 0.6515921098 | T16: =IF($N16="","",$R16/($E$14+$E$15)*1000) -> 4.88350844 | U16: =IF(O16="","",S16/($F$14+$F$15)*1000) -> 4.88350844 | W16: Port Area's
C17: Stroke | E17: 54.5 | F17: 54.5 | G17: mm | M17: Aux | N17: =IF(OR('Exhaust New'!$N$4=0,N24=""),"",($N$13-$N$24)/2) -> 30.92263095 | O17: =IF(OR('Exhaust Old'!$N$4=0,O24=""),"",($O$13-$O$24)/2) -> 30.92263095 | P17: =IF(N17="","",ABS( 'Exhaust New'!$AX$14)) -> 6409.3444 | Q17: =IF(O17="","",ABS( 'Exhaust Old'!$AX$14)) -> 6409.3444 | R17: =IF(N17="","",P17/$E$20) -> 0.5120511624 | S17: =IF(O17="","",Q17/$F$20) -> 0.5120511624 | T17: =IF($N17="","",$R17/($E$14+$E$15)*1000) -> 3.837686393 | U17: =IF(O17="","",S17/($F$14+$F$15)*1000) -> 3.837686393 | W17: effective flow | AN17: new | AO17: old
C18: Conrod | E18: 120 | F18: 120 | G18: mm | M18: Bd total | N18: =IF(AND(N16="",N17=""),"",(N14-N24)/2) -> 35.03108262 | O18: =IF(AND(O16="",O17=""),"",(O14-O24)/2) -> 35.03108262 | P18: =IF(N18="","",IF( 'Exhaust New'!$N$4=0,$P$16,IF( 'Exhaust New'!$J$4=0,$P$17,$P$16+$P$17))) -> 14565.32284 | Q18: =IF(O18="","",IF( 'Exhaust Old'!$N$4=0,$Q$16,IF( 'Exhaust Old'!$J$4=0,$Q$17,$Q$16+$Q$17))) -> 14565.32284 | R18: =IF(N18="","",P18/$E$20) -> 1.163643272 | S18: =IF(O18="","",Q18/$F$20) -> 1.163643272 | T18: =IF($N18="","",$R18/($E$14+$E$15)*1000) -> 8.721194833 | U18: =IF(O18="","",S18/($F$14+$F$15)*1000) -> 8.721194833 | X18: New | Y18: Old | AK18: Top Cyl - Crank Center | AN18: =E18+E17/2+W51+E25+AN23 -> 167.95 | AO18: =F18+F17/2+Y51+F25+AO23 -> 167.95
C19: RPM max power | E19: 13000 | F19: 13000 | G19: rpm | I19: Ports ° | M19: Transfer | W19: Main Exh | X19: =IF( 'Exhaust New'!$J$4=0,"",'Exhaust New'!$BI$205) -> 948.7897545 | Y19: =IF( 'Exhaust Old'!$J$4=0,"",'Exhaust Old'!$BI$205) -> 948.7897545 | AK19: TDC - Crank center | AN19: =E17/2+E18+W51+AN23 -> 167.25 | AO19: =F17/2+F18+Y51+AO23 -> 167.25
C20: RPM max torque | E20: 12517 | F20: 12517 | G20: rpm | M20: A | N20: =IF('Transfer New'!$D$4=0,"",'Transfer New'!$U$13) -> 130.1812178 | O20: =IF('Transfer Old'!$D$4=0,"",'Transfer Old'!$U$13) -> 130.1812178 | P20: =IF(N20="","",'Transfer New'!$AX$12) -> 42708.7866 | Q20: =IF(O20="","",'Transfer Old'!$AX$12) -> 42708.7866 | R20: =IF(N20="","",P20/$E$20) -> 3.412062523 | S20: =IF(O20="","",Q20/$F$20) -> 3.412062523 | T20: =IF($N20="","",$R20/($E$14+$E$15)*1000) -> 25.57249524 | U20: =IF(O20="","",S20/($F$14+$F$15)*1000) -> 25.57249524 | W20: Aux Exh | X20: =IF( 'Exhaust New'!$N$4=0,"",'Exhaust New'!$BI$210) -> 367.7015845 | Y20: =IF( 'Exhaust Old'!$N$4=0,"",'Exhaust Old'!$BI$210) -> 367.7015845 | AK20: Top Crankcase - Crank Center | AN20: =AN18-E21-AN23 -> 77.45 | AO20: =AO18-F21-AO23 -> 77.45
C21: Cylinder Height | E21: 90.5 | F21: 90.5 | G21: mm | J21: New | K21: Old | M21: B | N21: =IF('Transfer New'!$E$4=0,"",'Transfer New'!$V$13) -> 132.2241326 | O21: =IF('Transfer Old'!$E$4=0,"",'Transfer Old'!$V$13) -> 132.2241326 | P21: =IF(N21="","",'Transfer New'!$BB$12) -> 56303.49303 | Q21: =IF(O21="","",'Transfer Old'!$BB$12) -> 56303.49303 | R21: =IF(N21="","",P21/$E$20) -> 4.498161942 | S21: =IF(O21="","",Q21/$F$20) -> 4.498161942 | T21: =IF($N21="","",$R21/($E$14+$E$15)*1000) -> 33.71251966 | U21: =IF(O21="","",S21/($F$14+$F$15)*1000) -> 33.71251966 | W21: Total Exh | X21: =IF(N14="","",'Exhaust New'!BI214) -> 1316.491339 | Y21: =IF(O14="","",'Exhaust Old'!BI214) -> 1316.491339 | AK21: Piston BDC - Top Crankcase | AN21: =AN18-E17-E25-AN20 -> 35.3 | AO21: =AO18-F17-F25-AO20 -> 35.3
C22: Cylinder Base Gaskett | E22: 0 | F22: 0 | G22: mm | I22: Positional leading | M22: C | N22: =IF('Transfer New'!$F$4=0,"",'Transfer New'!$W$13) ->  | O22: =IF('Transfer Old'!$F$4=0,"",'Transfer Old'!$W$13) ->  | P22: =IF(N22="","",'Transfer New'!$BF$12) ->  | Q22: =IF(O22="","",'Transfer Old'!$BF$12) ->  | R22: =IF(N22="","",P22/$E$20) ->  | S22: =IF(O22="","",Q22/$F$20) ->  | T22: =IF($N22="","",$R22/($E$14+$E$15)*1000) ->  | U22: =IF(O22="","",S22/($F$14+$F$15)*1000) ->  | W22: Main Bd | X22: =IF(N16="","",'Exhaust New'!BD516) -> 492.1391906 | Y22: =IF(O16="","",'Exhaust Old'!BD516) -> 492.1391906 | AK22: Deck - BDC | AN22: =E25+E17 -> 55.2 | AO22: =F25+F17 -> 55.2
C23: Spacer under Cylinder | E23: 0 | F23: 0 | G23: mm | I23: Main | J23: =IF('Exhaust New'!J4=0,"",'Exhaust New'!BK263*360/'Exhaust New'!$BP$292/2) -> 45.51831372 | K23: =IF('Exhaust Old'!J4=0,"",'Exhaust Old'!BK263*360/'Exhaust Old'!$BP$292/2) -> 45.51831372 | M23: D | N23: =IF('Transfer New'!$G$4=0,"",'Transfer New'!$X$13) -> 132.2241326 | O23: =IF('Transfer Old'!$G$4=0,"",'Transfer Old'!$X$13) -> 132.2241326 | P23: =IF(N23="","",'Transfer New'!$BJ$12) -> 11476.8706 | Q23: =IF(O23="","",'Transfer Old'!$BJ$12) -> 11476.8706 | R23: =IF(N23="","",P23/$E$20) -> 0.9169026604 | S23: =IF(O23="","",Q23/$F$20) -> 0.9169026604 | T23: =IF($N23="","",$R23/($E$14+$E$15)*1000) -> 6.871939997 | U23: =IF(O23="","",S23/($F$14+$F$15)*1000) -> 6.871939997 | W23: Aux Bd | X23: =IF(N17="","",'Exhaust New'!BE516) -> 360.0884896 | Y23: =IF(O17="","",'Exhaust Old'!BE516) -> 360.0884896 | AK23: Spacer/gasketts under cyl | AN23: =E22+E23+E24 -> 0 | AO23: =F22+F23+F24 -> 0
C24: Spacer Gaskett | E24: 0 | F24: 0 | G24: mm | I24: Aux | J24: =IF('Exhaust New'!$N$4=0,"",('Exhaust New'!E29+'Exhaust New'!BO263)*360/'Exhaust New'!BP292) -> 89.7633879 | K24: =IF('Exhaust Old'!$N$4=0,"",('Exhaust Old'!E29+'Exhaust Old'!BO263)*360/'Exhaust Old'!BP292) -> 89.7633879 | M24: Total | N24: =IF(SUM('Transfer New'!$D$13:$L$32)=0,"",MAX($N$20:$N$23)) -> 132.2241326 | O24: =IF(SUM('Transfer Old'!$D$13:$L$32)=0,"",MAX($O$20:$O$23)) -> 132.2241326 | P24: =IF($N$24="","",SUM($P$20:$P$23)) -> 110489.1502 | Q24: =IF($O$24="","",SUM($Q$20:$Q$23)) -> 110489.1502 | R24: =IF(N24="","",P24/$E$20) -> 8.827127125 | S24: =IF(O24="","",Q24/$F$20) -> 8.827127125 | T24: =IF($N24="","",$R24/($E$14+$E$15)*1000) -> 66.15695489 | U24: =IF(O24="","",S24/($F$14+$F$15)*1000) -> 66.15695489 | W24: Total Bd | X24: =IF(N18="","",'Exhaust New'!BF516) -> 852.2276802 | Y24: =IF(O18="","",'Exhaust Old'!BF516) -> 852.2276802 | AK24: change factor old vs new : | AP24: =+F17/2+F18-F22-F23-F24+Y51-E17/2-E18+E22+E23+E24-W51 -> 0
C25: Deckheight | E25: =IF(SUM(J23:J28)="","",F25-F21+E21+AP24+F17/2-E17/2) -> 0.7 | F25: 0.7 | I25: A | J25: =IF('Transfer New'!$D$4=0,"",'Transfer New'!AA217*360/'Transfer New'!$AR$192) -> 44.13897088 | K25: =IF('Transfer Old'!$D$4=0,"",'Transfer Old'!AA$217*360/'Transfer Old'!$AR$192) -> 44.13897088 | W25: A | X25: =IF('Transfer New'!$D$4=0,"",'Transfer New'!$BP$192) -> 531.0350529 | Y25: =IF('Transfer Old'!$D$4=0,"",'Transfer Old'!$BP$192) -> 531.0350529
I26: B | J26: =IF('Transfer New'!$E$4=0,"",'Transfer New'!AF217*360/'Transfer New'!$AR$192) -> 105.4666756 | K26: =IF('Transfer Old'!$E$4=0,"",'Transfer Old'!AF$217*360/'Transfer Old'!$AR$192) -> 105.4666756 | W26: B | X26: =IF('Transfer New'!$E$4=0,"",'Transfer New'!$BP$197) -> 659.7414727 | Y26: =IF('Transfer Old'!$E$4=0,"",'Transfer Old'!$BP$197) -> 659.7414727
C27: Re-Scaling an Engine : target RPM | I27: C | J27: =IF('Transfer New'!$F$4=0,"",'Transfer New'!AK217*360/'Transfer New'!$AR$192) ->  | K27: =IF('Transfer Old'!$F$4=0,"",'Transfer Old'!AK$217*360/'Transfer Old'!$AR$192) ->  | W27: C | X27: =IF('Transfer New'!$F$4=0,"",'Transfer New'!$BP$202) ->  | Y27: =IF('Transfer Old'!$F$4=0,"",'Transfer Old'!$BP$202) -> 
C28: Mean Piston Speed | E28: =2*E17/1000*E19/60 -> 23.61666667 | F28: =2*F17/1000*F19/60 -> 23.61666667 | G28: m/s | I28: D | J28: =IF('Transfer New'!$G$4=0,"",'Transfer New'!AP217*360/'Transfer New'!$AR$192) -> 180 | K28: =IF('Transfer Old'!$G$4=0,"",'Transfer Old'!AP$217*360/'Transfer Old'!$AR$192) -> 180 | W28: D | X28: =IF('Transfer New'!$G$4=0,"",'Transfer New'!$BP$207) -> 131.486988 | Y28: =IF('Transfer Old'!$G$4=0,"",'Transfer Old'!$BP$207) -> 131.486988 | AK28: STA targets | AN28: STA
C29: RPM | E29: =F17/E17*F19 -> 13000 | I29: Positional trailing | W29: Total Tr | X29: =IF(N24="","",SUM(X25:X28)) -> 1322.263514 | Y29: =IF(O24="","",SUM(Y25:Y28)) -> 1322.263514 | AN29: new | AO29: old
I30: Aux | J30: =IF('Exhaust New'!$N$4=0,"",('Exhaust New'!E29-'Exhaust New'!BQ263)*360/'Exhaust New'!BP292) -> 50.08075543 | K30: =IF('Exhaust Old'!$N$4=0,"",('Exhaust Old'!E29-'Exhaust Old'!BQ263)*360/'Exhaust Old'!BP292) -> 50.08075543 | AK30: Soft | AM30: Bd | AN30: =(1.2015*J15-2.1714)/2 -> 8.3761125 | AO30: =(1.2015*K15-2.1714)/2 -> 8.3761125
I31: A | J31: =IF('Transfer New'!$D$4=0,"",'Transfer New'!AB216*360/'Transfer New'!$AR$192) -> 102.2835768 | K31: =IF('Transfer Old'!$D$4=0,"",'Transfer Old'!AB$216*360/'Transfer Old'!$AR$192) -> 102.2835768 | AK31: Engine | AM31: Tr | AN31: =(4.9353*J15+50.114)/2 -> 63.9224875 | AO31: =(4.9353*K15+50.114)/2 -> 63.9224875
C32: Head Volume | E32: if not : | I32: B | J32: =IF('Transfer New'!$E$4=0,"",'Transfer New'!AG216*360/'Transfer New'!$AR$192) -> 159.7915629 | K32: =IF('Transfer Old'!$E$4=0,"",'Transfer Old'!AG$216*360/'Transfer Old'!$AR$192) -> 159.7915629
C33: New | E33: 8.61 | G33: cc | I33: C | J33: =IF('Transfer New'!$F$4=0,"",'Transfer New'!AL216*360/'Transfer New'!$AR$192) ->  | K33: =IF('Transfer Old'!$F$4=0,"",'Transfer Old'!AL$216*360/'Transfer Old'!$AR$192) ->  | W33: minimal bridge width
I34: D | J34: =IF('Transfer New'!$G$4=0,"",'Transfer New'!AQ216*360/'Transfer New'!$AR$192) -> 180 | K34: =IF('Transfer Old'!$G$4=0,"",'Transfer Old'!AQ$216*360/'Transfer Old'!$AR$192) -> 180 | X34: new | Y34: old | AK34: Mota | AM34: Bd | AN34: =(1.0383*J15+0.5384)/2 -> 8.4458125 | AO34: =(1.0383*K15+0.5384)/2 -> 8.4458125
C35: Port Data | I35: Positional center | W35: Main Ex | X35: 3 | Y35: 3 | AM35: Tr | AN35: =(5.9181*J15+26.06)/2 -> 59.6350375 | AO35: =(5.9181*K15+26.06)/2 -> 59.6350375
G36: mm | I36: Aux | J36: =IF('Exhaust New'!$N$4=0,"",(J24-J30)/2+J30) -> 69.92207167 | K36: =IF('Exhaust Old'!$N$4=0,"",(K24-K30)/2+K30) -> 69.92207167 | W36: Doubl Ex | X36: 3 | Y36: 3
C37: Deck - Main bottom | E37: =IF('Exhaust New'!$J$4=0,"",$AN$22-'Exhaust New'!BV306+$AP$24-$AN$23) -> 55.2 | F37: 55 | I37: A | J37: =IF('Transfer New'!$D$4=0,"",(J31-J25)/2+J25) -> 73.21127382 | K37: =IF('Transfer Old'!$D$4=0,"",(K31-K25)/2+K25) -> 73.21127382 | W37: Transfer | X37: 1.5 | Y37: 1.5 | AK37: TZ | AM37: Tr | AN37: =(5.657*J15+34.649)/2 -> 61.873375 | AO37: =(5.657*K15+34.649)/2 -> 61.873375
C38: Deck - Aux bottom | E38: =IF('Exhaust New'!$N$4=0,"",$AN$22-'Exhaust New'!BW306+$AP$24-$AN$23) -> 42.2 | F38: 43.2 | I38: B | J38: =IF('Transfer New'!$E$4=0,"",(J32-J26)/2+J26) -> 132.6291192 | K38: =IF('Transfer Old'!$E$4=0,"",(K32-K26)/2+K26) -> 132.6291192
C39: Deck - A bottom | E39: =IF('Transfer New'!$D$4=0,"",$AN$22-'Transfer New'!AM249+$AP$24-$AN$23) -> 55.2 | F39: 55.2 | I39: C | J39: =IF('Transfer New'!$F$4=0,"",(J33-J27)/2+J27) ->  | K39: =IF('Transfer Old'!$F$4=0,"",(K33-K27)/2+K27) -> 
C40: Deck - B bottom | E40: =IF('Transfer New'!$E$4=0,"",$AN$22-'Transfer New'!$AO$249+$AP$24-$AN$23) -> 55.2 | F40: 55.2 | I40: D | J40: =IF('Transfer New'!$G$4=0,"",(J34-J28)/2+J28) -> 180 | K40: =IF('Transfer Old'!$G$4=0,"",(K34-K28)/2+K28) -> 180 | AK40: Blair | AM40: Bd | AN40: =(J15-1.75)/0.8187/2 -> 8.550140467 | AO40: =(K15-1.75)/0.8187/2 -> 8.550140467
C41: Deck - C bottom | E41: =IF('Transfer New'!$F$4=0,"",$AN$22-'Transfer New'!$AP$249+$AP$24-$AN$23) ->  | F41: 55.2 | I41: Port width in ° | AM41: Tr min | AN41: =(J15-0.128)/0.0587/4 -> 66.53321976 | AO41: =(K15-0.128)/0.0587/4 -> 66.53321976
C42: Deck - D bottom | E42: =IF('Transfer New'!$G$4=0,"",$AN$22-'Transfer New'!$AQ$249+$AP$24-$AN$23) -> 55.2 | F42: 55.2 | I42: Main | J42: =IF('Exhaust New'!$J$4=0,"",2*J$23) -> 91.03662745 | K42: =IF('Exhaust Old'!$J$4=0,"",2*K$23) -> 91.03662745 | AL42: average | AM42: Bd | AN42: =(AN30+AN34+AN40)/3 -> 8.457355156 | AO42: =(AO30+AO34+AO40)/3 -> 8.457355156
C43: Deck - Main Open | E43: =IF('Exhaust New'!$J$4=0,"",AN$22-'Exhaust New'!BV307) -> 25.7 | F43: =IF('Exhaust Old'!$J$4=0,"",F$37-'Exhaust Old'!$BV$308-'Exhaust Old'!$T$51) -> 25.5 | I43: Aux | J43: =IF('Exhaust New'!$N$4=0,"",J$24-J$30) -> 39.68263248 | K43: =IF('Exhaust Old'!$N$4=0,"",K$24-K$30) -> 39.68263248 | AM43: Tr | AN43: =(AN31+AN35+AN41)/3 -> 63.36358159 | AO43: =(AO31+AO35+AO41)/3 -> 63.36358159
C44: Deck - Aux Open | E44: =IF('Exhaust New'!$J$4=0,"",AN$22-'Exhaust New'!BW307) -> 27.7 | F44: =IF('Exhaust Old'!$N$4=0,"",F$38-'Exhaust Old'!$BW$308-'Exhaust Old'!$W$51) -> 28.7 | I44: A | J44: =IF('Transfer New'!$D$4=0,"",J$31-J$25) -> 58.14460588 | K44: =IF('Transfer Old'!$D$4=0,"",K$31-K$25) -> 58.14460588 | V44: PISTON | AM44: Bd | AN44: =AN42*1.031 -> 8.719533165 | AO44: =AO42*1.031 -> 8.719533165
C45: Deck - A Open | E45: =IF('Transfer New'!$D$4=0,"",AN$22-'Transfer New'!$AM$250) -> 42 | F45: =IF('Transfer Old'!$D$4=0,"",AO$22-'Transfer Old'!$AM$250) -> 42 | I45: B | J45: =IF('Transfer New'!$E$4=0,"",J$32-J$26) -> 54.32488724 | K45: =IF('Transfer Old'!$E$4=0,"",K$32-K$26) -> 54.32488724 | W45: New | Y45: Old | AL45: correction factor | AM45: Tr | AN45: =AN43*1.0442 -> 66.16425189 | AO45: =AO43*1.0442 -> 66.16425189
C46: Deck - B Open | E46: =IF('Transfer New'!$E$4=0,"",AN$22-'Transfer New'!$AO$250) -> 41.6 | F46: =IF('Transfer Old'!$E$4=0,"",AO$22-'Transfer Old'!$AO$250) -> 41.6 | I46: C | J46: =IF('Transfer New'!$F$4=0,"",J$33-J$27) ->  | K46: =IF('Transfer Old'!$F$4=0,"",K$33-K$27) ->  | V46: select | X46: select
C47: Deck - C Open | E47: =IF('Transfer New'!$F$4=0,"",AN$22-'Transfer New'!$AP$250) ->  | F47: =IF('Transfer Old'!$F$4=0,"",AO$22-'Transfer Old'!$AP$250) ->  | I47: D | J47: =IF('Transfer New'!$G$4=0,"",J$34-J$28) -> 0 | K47: =IF('Transfer Old'!$G$4=0,"",K$34-K$28) -> 0 | V47: piston | X47: piston
C48: Deck - D Open | E48: =IF('Transfer New'!$G$4=0,"",AN$22-'Transfer New'!$AQ$250) -> 41.6 | F48: =IF('Transfer Old'!$G$4=0,"",AO22-'Transfer Old'!$AQ$250) -> 41.6 | I48: Open ATDC | V48: type | X48: type | AN48: new | AO48: old
C49: Main bottom vs BDC | E49: =IF('Exhaust New'!$J$4=0,"",AN$22-E43-'Exhaust New'!BV308) -> 0 | F49: =IF('Exhaust Old'!$J$4=0,"",AO$22-F43-'Exhaust Old'!$BV$308) -> 0.2 | I49: Main | J49: =IF('Exhaust New'!$J$4=0,"",DEGREES(ACOS(((E$17/2)^2-E$18^2+(E$18+E$17/2-($E$17-'Exhaust New'!$BI$263))^2)/(2*E$17/2*(E$18+E$17/2-($E$17-'Exhaust New'!$BI$263)))))) -> 78.85685107 | K49: =IF('Exhaust Old'!$J$4=0,"",DEGREES(ACOS(((F$17/2)^2-F$18^2+(F$18+F$17/2-($F$17-'Exhaust Old'!$BI$263))^2)/(2*F$17/2*(F$18+F$17/2-($F$17-'Exhaust Old'!$BI$263)))))) -> 78.85685107 | M49: portmap baseline | V49: Top | X49: Top | AK49: buttons | AL49: Radius/Height | AN49: =Y4 -> 1 | AO49: =Y4 -> 1
C50: Aux bottom vs BDC | E50: =IF('Exhaust New'!$N$4=0,"",AN$22-E44-'Exhaust New'!BW308) -> 13 | F50: =IF('Exhaust Old'!$N$4=0,"",AO$22-F44-'Exhaust Old'!$AQ$520) -> 12 | I50: Aux | J50: =IF('Exhaust New'!$N$4=0,"",DEGREES(ACOS((($E$17/2)^2-$E$18^2+($E$18+$E$17/2-($E$17-'Exhaust New'!$BM$263))^2)/(2*$E$17/2*($E$18+$E$17/2-($E$17-'Exhaust New'!$BM$263)))))) -> 82.96530274 | K50: =IF('Exhaust Old'!$N$4=0,"",DEGREES(ACOS((($F$17/2)^2-$F$18^2+($F$18+$F$17/2-($F$17-'Exhaust Old'!$BM$263))^2)/(2*$F$17/2*($F$18+$F$17/2-($F$17-'Exhaust Old'!$BM$263)))))) -> 82.96530274 | M50: determinned by | V50: =IF(U4=2,"",IF(W4=TRUE,"Dia Flat Top","")) ->  | W50: 30 | X50: =IF(V4=2,"",IF(X4=TRUE,"Dia Flat Top","")) -> Dia Flat Top | Y50: 30 | AK50: entered | AL50: data | AN50: =W53 -> 2 | AO50: =Y53 -> 2
C51: A bottom vs BDC | E51: =IF('Transfer New'!$D$4=0,"",AN$22-E45-'Transfer New'!$AM$251) -> 3.552713679e-15 | F51: =IF('Transfer Old'!$D$4=0,"",AO$22-F45-'Transfer Old'!$AM$251) -> 3.552713679e-15 | I51: A | J51: =IF('Transfer New'!$D$4=0,"",DEGREES(ACOS(((E$17/2)^2-E$18^2+(E$18+E$17/2-($E$17-'Transfer New'!$AA$156))^2)/(2*E$17/2*(E$18+E$17/2-($E$17-'Transfer New'!$AA$156)))))) -> 114.9093911 | K51: =IF('Transfer Old'!$D$4=0,"",DEGREES(ACOS(((F$17/2)^2-F$18^2+(F$18+F$17/2-($F$17-'Transfer Old'!$AA$156))^2)/(2*F$17/2*(F$18+F$17/2-($F$17-'Transfer Old'!$AA$156)))))) -> 114.9093911 | S51: new | T51: old | V51: Crown Height | W51: 20 | X51: Crown Height | Y51: 20 | AK51: calc. | AL51: height | AN51: =AN50-SQRT(AN50^2-AN14^2) ->  | AO51: =AO50-SQRT(AO50^2-AO14^2) -> 
C52: B bottom vs BDC | E52: =IF('Transfer New'!$E$4=0,"",AN$22-E46-'Transfer New'!$AO$251) -> 1.776356839e-15 | F52: =IF('Transfer Old'!$E$4=0,"",AO$22-F46-'Transfer Old'!$AO$251) -> 1.776356839e-15 | I52: B | J52: =IF('Transfer New'!$E$4=0,"",DEGREES(ACOS(((E$17/2)^2-E$18^2+(E$18+E$17/2-($E$17-'Transfer New'!$AG$156))^2)/(2*E$17/2*(E$18+E$17/2-($E$17-'Transfer New'!$AG$156)))))) -> 113.8879337 | K52: =IF('Transfer Old'!$E$4=0,"",DEGREES(ACOS(((F$17/2)^2-F$18^2+(F$18+F$17/2-($F$17-'Transfer Old'!$AF$156))^2)/(2*F$17/2*(F$18+F$17/2-($F$17-'Transfer Old'!$AF$156)))))) -> 113.8879337 | P52: Top Cyl - Crank Center | S52: =AN18 -> 167.95 | T52: =AO18 -> 167.95 | V52: =IF(U4=1,"Dome","") -> Dome | X52: =IF(V4=1,"Dome","") ->  | AL52: radius | AN52: =(AN50^2+$AN$14^2)/(2*AN50) -> 183.25 | AO52: =IF(Y53<0.1,"",(AO50^2+$AO$14^2)/(2*AO50)) -> 183.25
C53: C bottom vs BDC | E53: =IF('Transfer New'!$F$4=0,"",AN$22-E47-'Transfer New'!$AP$251) ->  | F53: =IF('Transfer Old'!$F$4=0,"",AO$22-F47-'Transfer Old'!$AP$251) ->  | I53: C | J53: =IF('Transfer New'!$F$4=0,"",DEGREES(ACOS(((E$17/2)^2-E$18^2+(E$18+E$17/2-($E$17-'Transfer New'!$AK$156))^2)/(2*E$17/2*(E$18+E$17/2-($E$17-'Transfer New'!$AK$156)))))) ->  | K53: =IF('Transfer Old'!$F$4=0,"",DEGREES(ACOS(((F$17/2)^2-F$18^2+(F$18+F$17/2-($F$17-'Transfer Old'!$AJ$156))^2)/(2*F$17/2*(F$18+F$17/2-($F$17-'Transfer Old'!$AJ$156)))))) ->  | P53: Top Crankcase - Crank Center | S53: =AN20 -> 77.45 | T53: 77.45 | V53: =IF(U4=1,IF(Y4=2,"Dome Radius","Dome Height"),IF(U4=3,"Cone Height","")) -> Dome Height | W53: 2 | X53: =IF(V4=1,IF(Z4=2,"Dome Radius","Dome Height"),IF(V4=3,"Cone Height","")) -> Cone Height | Y53: 2
C54: D bottom vs BDC | E54: =IF('Transfer New'!$G$4=0,"",AN$22-E48-'Transfer New'!$AQ$251) -> 1.776356839e-15 | F54: =IF('Transfer Old'!$G$4=0,"",AO$22-F48-'Transfer Old'!$AQ$251) -> 1.776356839e-15 | I54: D | J54: =IF('Transfer New'!$G$4=0,"",DEGREES(ACOS(((E$17/2)^2-E$18^2+(E$18+E$17/2-($E$17-'Transfer New'!$AO$156))^2)/(2*E$17/2*(E$18+E$17/2-($E$17-'Transfer New'!$AO$156)))))) -> 113.8879337 | K54: =IF('Transfer Old'!$G$4=0,"",DEGREES(ACOS(((F$17/2)^2-F$18^2+(F$18+F$17/2-($F$17-'Transfer Old'!$AO$156))^2)/(2*F$17/2*(F$18+F$17/2-($F$17-'Transfer Old'!$AO$156)))))) -> 113.8879337 | P54: Piston BDC - Top Crankcase | S54: 35.3 | T54: 35.3 | V54: =IF(U4=1,IF(Y4=1,"Dome Radius","Dome Height"),IF(U4=3,"Cone Angle","")) -> Dome Radius | W54: =IF(W4=FALSE,IF(U4=3,AN64,IF(U4=1,IF(Y4=1,AN60,AN59),IF(U4=3,IF(Y4=1,AN64,""),""))),IF(U4=3,AN64,IF(U4=1,IF(Y4=1,AN62,AN61),IF(U4=3,IF(Y4=1,AN63,""),"")))) -> 183.25 | X54: =IF(V4=1,IF(Z4=1,"Dome Radius","Dome Height"),IF(V4=3,"Cone Angle","")) -> Cone Angle | Y54: =IF(X4=FALSE,IF(V4=3,AO64,IF(V4=1,IF(Z4=1,AO60,AO59),IF(V4=3,IF(Z4=1,AO64,""),""))),IF(V4=3,AO64,IF(V4=1,IF(Z4=1,AO62,AO61),IF(V4=3,IF(Z4=1,AO63,""),"")))) -> 9.462322208
AN56: new | AO56: old
AM57: crown H | AN57: =W51 -> 20 | AO57: =Y51 -> 20
AK58: piston | AM58: dia flat | AN58: =IF(W4=TRUE,W50,"") ->  | AO58: =IF(X4=TRUE,Y50,"") -> 30
AK59: d | AL59: normal | AM59: height | AN59: =IF(Y4=1,W53,W53-SQRT(W53^2-AN14^2)) -> 2 | AO59: =IF(Z4=1,Y53,Y53-SQRT(Y53^2-AO14^2)) -> 2
AK60: o | AM60: radius | AN60: =IF(Y4=2,W53,(W53^2+$AN$14^2)/(2*W53)) -> 183.25 | AO60: =IF(Z4=2,Y53,(Y53^2+$AO$14^2)/(2*Y53)) -> 183.25
AK61: m | AL61: flat top | AM61: height | AN61: =IF(Y4=1,W53,SQRT(W53^2-(W50/2)^2)-SQRT(W53^2-AN14^2)) -> 2 | AO61: =IF(Z4=1,Y53,SQRT(Y53^2-(Y50/2)^2)-SQRT(Y53^2-AO14^2)) -> 2
AK62: e | AM62: radius | AN62: =IF(Y4=2,W53,SQRT(AN14^2+((AN14^2-(W50/2)^2-W53^2)/(2*W53))^2)) -> 127.8827588 | AO62: =IF(Z4=2,Y53,SQRT(AO14^2+((AO14^2-(Y50/2)^2-Y53^2)/(2*Y53))^2)) -> 127.8827588
AK63: cone | AM63: height | AN63: =W53 -> 2 | AO63: =IF(V4=3,Y53,"") -> 2
AM64: angle | AN64: =IF(W4=FALSE,ATAN(W53/AN14)*180/PI(),ATAN(W53/(AN14-W50/2))*180/PI()) -> 4.236394799 | AO64: =IF(X4=FALSE,ATAN(Y53/AO14)*180/PI(),ATAN(Y53/(AO14-Y50/2))*180/PI()) -> 9.462322208
D80: RSA | G80: KR1s
D81: New | E81: Old | G81: New | H81: Old | J81: New | K81: Old | M81: New | N81: Old | P81: New | Q81: Old | S81: New | T81: Old | V81: New | W81: Old
C82: Head Vol | E82: 8.61
C83: Bore | D83: 66.2 | E83: 54
C84: Stroke | D84: 72 | E84: 54.5
C85: Conrod | D85: 125 | E85: 120
C86: RPM max BHP | D86: 9840 | E86: 13000
C87: RPM max Nm | D87: 9000 | E87: 12517
C88: Cyl Height | D88: 99.45 | E88: 90.5
C89: Cyl Gaskett | D89: 0.2 | E89: 0.2
C90: Spacer Cyl | D90: 18.35 | E90: 0
C91: Spacer Gaskett | D91: 0.2 | E91: 0
C92: Deckheight | E92: 0.7
C94: Head vol | D94: 8.61
C96: Deckheight | E96: 55.2
C97: Deck - Main bottom | E97: 43.2
C98: Deck - Aux bottom | E98: 55.2
C99: Deck - A bottom | E99: 55.2
C100: Deck - B bottom | E100: 55.2 | Z100: =IF(B300=1," co p y r i g h t J a n B r o s","") -> 
C101: Deck - C bottom | E101: 55.2
C102: Deck - D bottom | E102: 55.2
D104: new | E104: old
C105: Main Ex | D105: 3 | E105: 3
C106: Doubl Ex | D106: 3 | E106: 3
C107: Transfer | D107: 1.5 | E107: 1.5
C109: Dia Flat Top | D109: 30
C110: Crown Height | D110: 25
C111: Dome
C112: Dome Height | D112: 2
C113: Dome Radius | D113: 220.8200537
K200: =IF(B300=1," co p y r i g h t J a n B r o s","") -> 

Sheet Exhaust New
A1: 1 | C1: 3 | D1: 4 | E1: 5 | F1: 6 | G1: 7 | H1: 8 | I1: 9 | J1: 10 | K1: 11 | L1: 12 | M1: 13 | N1: 14 | O1: 15 | P1: 16 | Q1: 17 | R1: 18 | S1: 19 | T1: 20 | U1: 21 | V1: 22 | W1: 23 | X1: 24 | Y1: 25 | Z1: 26 | AA1: 27 | AB1: 28 | AC1: 29 | AD1: 30 | AE1: 31 | AF1: 32 | AG1: 33 | AH1: 34 | AI1: 35 | AJ1: 36 | AK1: 37 | AL1: 38 | AM1: 39 | AN1: 40 | AO1: 41 | AP1: 42 | AQ1: 43 | AR1: 44 | AS1: 45 | AT1: 46 | AU1: 47 | AV1: 48 | AW1: 49 | AX1: 50 | AY1: 51 | AZ1: 52 | BA1: 53 | BB1: 54 | BC1: 55 | BD1: 56 | BE1: 57 | BF1: 58 | BG1: 59 | BH1: 60 | BI1: 61 | BJ1: 62 | BK1: 63 | BL1: 64 | BM1: 65 | BN1: 66 | BO1: 67 | BP1: 68 | BQ1: 69 | BR1: 70 | BS1: 71 | BT1: 72 | BU1: 73 | BV1: 74 | BW1: 75 | BX1: 76 | BY1: 77 | BZ1: 78 | CA1: 79 | CB1: 80 | CC1: 81 | CD1: 82 | CE1: 83 | CF1: 84 | CG1: 85 | CH1: 86 | CI1: 87 | CJ1: 88 | CK1: 89 | CL1: 90 | CM1: 91 | CN1: 92 | CO1: 93 | CP1: 94 | CQ1: 95 | CR1: 96 | CS1: 97 | CT1: 98 | CU1: 99 | CV1: 100 | CW1: 101 | CX1: 102 | CY1: 103 | CZ1: 104 | DA1: 105 | DB1: 106 | DC1: 107 | DD1: 108 | DE1: 109 | DF1: 110 | DG1: 111 | DH1: 112 | DI1: 113 | DJ1: 114 | DK1: 115 | DL1: 116 | DM1: 117 | DN1: 118 | DO1: 119 | DP1: 120 | DQ1: 121 | DR1: 122 | DS1: 123 | DT1: 124 | DU1: 125 | DV1: 126 | DW1: 127 | DX1: 128 | DY1: 129 | DZ1: 130 | EA1: 131 | EB1: 132 | EC1: 133 | ED1: 134 | EE1: 135 | EF1: 136 | EG1: 137 | EH1: 138 | EI1: 139 | EJ1: 140 | EK1: 141 | EL1: 142 | EM1: 143 | EN1: 144 | EO1: 145 | EP1: 146 | EQ1: 147 | ER1: 148 | ES1: 149 | ET1: 150 | EU1: 151 | EV1: 152 | EW1: 153 | EX1: 154 | EY1: 155 | EZ1: 156 | FA1: 157 | FB1: 158 | FC1: 159 | FD1: 160 | FE1: 161 | FF1: 162 | FG1: 163 | FH1: 164 | FI1: 165 | FJ1: 166 | FK1: 167 | FL1: 168 | FM1: 169 | FN1: 170 | FO1: 171 | FP1: 172 | FQ1: 173 | FR1: 174 | FS1: 175 | FT1: 176 | FU1: 177 | FV1: 178 | FW1: 179 | FX1: 180 | FY1: 181 | FZ1: 182 | GA1: 183 | GB1: 184 | GC1: 185 | GD1: 186 | GE1: 187 | GF1: 188 | GG1: 189 | GH1: 190 | GI1: 191 | GJ1: 192 | GK1: 193 | GL1: 194 | GM1: 195 | GN1: 196 | GO1: 197 | GP1: 198 | GQ1: 199 | GR1: 200 | GS1: 201 | GT1: 202 | GU1: 203 | GV1: 204 | GW1: 205 | GX1: 206 | GY1: 207 | GZ1: 208 | HA1: 209 | HB1: 210 | HC1: 211 | HD1: 212 | HE1: 213 | HF1: 214 | HG1: 215 | HH1: 216 | HI1: 217 | HJ1: 218 | HK1: 219 | HL1: 220 | HM1: 221 | HN1: 222 | HO1: 223 | HP1: 224 | HQ1: 225 | HR1: 226 | HS1: 227 | HT1: 228 | HU1: 229 | HV1: 230 | HW1: 231 | HX1: 232 | HY1: 233 | HZ1: 234 | IA1: 235 | IB1: 236 | IC1: 237 | ID1: 238 | IE1: 239 | IF1: 240 | IG1: 241 | IH1: 242 | II1: 243 | IJ1: 244 | IK1: 245 | IL1: 246 | IM1: 247 | IN1: 248 | IO1: 249 | IP1: 250 | IQ1: 251 | IR1: 252 | IS1: 253 | IT1: 254 | IU1: 255 | IV1: 256 | IW1: 257 | IX1: 258 | IY1: 259 | IZ1: 260 | JA1: 261 | JB1: 262 | JC1: 263 | JD1: 264 | JE1: 265 | JF1: 266 | JG1: 267 | JH1: 268 | JI1: 269 | JJ1: 270 | JK1: 271 | JL1: 272 | JM1: 273 | JN1: 274 | JO1: 275 | JP1: 276 | JQ1: 277 | JR1: 278 | JS1: 279 | JT1: 280 | JU1: 281 | JV1: 282 | JW1: 283 | JX1: 284 | JY1: 285 | JZ1: 286 | KA1: 287 | KB1: 288 | KC1: 289 | KD1: 290 | KE1: 291 | KF1: 292 | KG1: 293 | KH1: 294 | KI1: 295 | KJ1: 296 | KK1: 297 | KL1: 298 | KM1: 299 | KN1: 300 | KO1: 301 | KP1: 302 | KQ1: 303 | KR1: 304 | KS1: 305 | KT1: 306 | KU1: 307 | KV1: 308 | KW1: 309 | KX1: 310 | KY1: 311 | KZ1: 312 | LA1: 313 | LB1: 314 | LC1: 315 | LD1: 316 | LE1: 317 | LF1: 318 | LG1: 319 | LH1: 320 | LI1: 321 | LJ1: 322 | LK1: 323 | LL1: 324 | LM1: 325 | LN1: 326 | LO1: 327 | LP1: 328 | LQ1: 329 | LR1: 330 | LS1: 331 | LT1: 332 | LU1: 333 | LV1: 334 | LW1: 335 | LX1: 336 | LY1: 337 | LZ1: 338 | MA1: 339 | MB1: 340 | MC1: 341 | MD1: 342 | ME1: 343 | MF1: 344 | MG1: 345 | MH1: 346 | MI1: 347 | MJ1: 348 | MK1: 349 | ML1: 350 | MM1: 351 | MN1: 352 | MO1: 353 | MP1: 354 | MQ1: 355 | MR1: 356 | MS1: 357 | MT1: 358 | MU1: 359 | MV1: 360 | MW1: 361 | MX1: 362 | MY1: 363 | MZ1: 364 | NA1: 365 | NB1: 366 | NC1: 367 | ND1: 368 | NE1: 369 | NF1: 370 | NG1: 371 | NH1: 372 | NI1: 373 | NJ1: 374 | NK1: 375 | NL1: 376 | NM1: 377 | NN1: 378 | NO1: 379 | NP1: 380 | NQ1: 381 | NR1: 382 | NS1: 383 | NT1: 384 | NU1: 385 | NV1: 386 | NW1: 387 | NX1: 388 | NY1: 389 | NZ1: 390 | OA1: 391 | OB1: 392 | OC1: 393 | OD1: 394 | OE1: 395 | OF1: 396 | OG1: 397 | OH1: 398 | OI1: 399 | OJ1: 400 | OK1: 401 | OL1: 402 | OM1: 403 | ON1: 404 | OO1: 405 | OP1: 406 | OQ1: 407 | OR1: 408 | OS1: 409 | OT1: 410 | OU1: 411 | OV1: 412 | OW1: 413 | OX1: 414 | OY1: 415 | OZ1: 416 | PA1: 417 | PB1: 418 | PC1: 419 | PD1: 420 | PE1: 421 | PF1: 422 | PG1: 423 | PH1: 424 | PI1: 425 | PJ1: 426 | PK1: 427 | PL1: 428 | PM1: 429 | PN1: 430 | PO1: 431 | PP1: 432 | PQ1: 433 | PR1: 434 | PS1: 435 | PT1: 436 | PU1: 437 | PV1: 438 | PW1: 439 | PX1: 440 | PY1: 441 | PZ1: 442 | QA1: 443 | QB1: 444 | QC1: 445 | QD1: 446 | QE1: 447 | QF1: 448 | QG1: 449 | QH1: 450 | QI1: 451 | QJ1: 452 | QK1: 453 | QL1: 454 | QM1: 455 | QN1: 456 | QO1: 457 | QP1: 458 | QQ1: 459 | QR1: 460 | QS1: 461 | QT1: 462 | QU1: 463 | QV1: 464 | QW1: 465 | QX1: 466 | QY1: 467 | QZ1: 468 | RA1: 469 | RB1: 470 | RC1: 471 | RD1: 472 | RE1: 473 | RF1: 474 | RG1: 475 | RH1: 476 | RI1: 477 | RJ1: 478 | RK1: 479 | RL1: 480 | RM1: 481 | RN1: 482 | RO1: 483 | RP1: 484 | RQ1: 485 | RR1: 486 | RS1: 487 | RT1: 488 | RU1: 489 | RV1: 490 | RW1: 491 | RX1: 492 | RY1: 493 | RZ1: 494 | SA1: 495 | SB1: 496 | SC1: 497 | SD1: 498 | SE1: 499 | SF1: 500 | SG1: 501 | SH1: 502 | SI1: 503 | SJ1: 504 | SK1: 505 | SL1: 506 | SM1: 507 | SN1: 508 | SO1: 509 | SP1: 510 | SQ1: 511 | SR1: 512 | SS1: 513 | ST1: 514 | SU1: 515 | SV1: 516 | SW1: 517 | SX1: 518 | SY1: 519 | SZ1: 520 | TA1: 521 | TB1: 522 | TC1: 523 | TD1: 524 | TE1: 525 | TF1: 526 | TG1: 527 | TH1: 528 | TI1: 529 | TJ1: 530 | TK1: 531 | TL1: 532 | TM1: 533 | TN1: 534 | TO1: 535 | TP1: 536 | TQ1: 537 | TR1: 538 | TS1: 539 | TT1: 540 | TU1: 541 | TV1: 542 | TW1: 543 | TX1: 544 | TY1: 545 | TZ1: 546 | UA1: 547 | UB1: 548 | UC1: 549 | UD1: 550 | UE1: 551 | UF1: 552 | UG1: 553 | UH1: 554 | UI1: 555 | UJ1: 556 | UK1: 557 | UL1: 558 | UM1: 559 | UN1: 560 | UO1: 561 | UP1: 562 | UQ1: 563 | UR1: 564
A2: 2
A3: 3 | C3: nr of Exh ports | E3: show old ports | G3: show safe roof | J3: # Main port | N3: # Auxh port | Q3: show Tr ports
A4: 4 | C4: =IF(J4=0,2,IF($N$4=0,1,3)) -> 3 | E4: FALSE | G4: FALSE | J4: =IF(SUM(V15:V49)=0,0,1) -> 1 | N4: =IF(SUM(Y15:Z49)=0,0,2) -> 2 | Q4: TRUE
A5: 5
A6: 6
A7: 7
A8: 8
A9: 9
A10: 10 | C10: Engine Data | U10: New Port Map Data | AJ10: calc. A.A | AM10: Main Exh | AR10: Aux Exh | AV10: Blowdown | BG10: port width steps
A11: 11 | C11: Bore | E11: =Data!E16 -> 54 | F11: mm | AQ11: H BBDC | AW11: Main | AX11: Aux | BG11: H mm steps BBDC | BI11: 0 | BJ11: 0.1 | BK11: 0.2 | BL11: 0.3 | BM11: 0.4 | BN11: 0.5 | BO11: 0.6 | BP11: 0.7 | BQ11: 0.8 | BR11: 0.9 | BS11: 1 | BT11: 1.1 | BU11: 1.2 | BV11: 1.3 | BW11: 1.4 | BX11: 1.5 | BY11: 1.6 | BZ11: 1.7 | CA11: 1.8 | CB11: 1.9 | CC11: 2 | CD11: 2.1 | CE11: 2.2 | CF11: 2.3 | CG11: 2.4 | CH11: 2.5 | CI11: 2.6 | CJ11: 2.7 | CK11: 2.8 | CL11: 2.9 | CM11: 3 | CN11: 3.1 | CO11: 3.2 | CP11: 3.3 | CQ11: 3.4 | CR11: 3.5 | CS11: 3.6 | CT11: 3.7 | CU11: 3.8 | CV11: 3.9 | CW11: 4 | CX11: 4.1 | CY11: 4.2 | CZ11: 4.3 | DA11: 4.4 | DB11: 4.5 | DC11: 4.6 | DD11: 4.7 | DE11: 4.8 | DF11: 4.9 | DG11: 5 | DH11: 5.1 | DI11: 5.2 | DJ11: 5.3 | DK11: 5.4 | DL11: 5.5 | DM11: 5.6 | DN11: 5.7 | DO11: 5.8 | DP11: 5.9 | DQ11: 6 | DR11: 6.1 | DS11: 6.2 | DT11: 6.3 | DU11: 6.4 | DV11: 6.5 | DW11: 6.6 | DX11: 6.7 | DY11: 6.8 | DZ11: 6.9 | EA11: 7 | EB11: 7.1 | EC11: 7.2 | ED11: 7.3 | EE11: 7.4 | EF11: 7.5 | EG11: 7.6 | EH11: 7.7 | EI11: 7.8 | EJ11: 7.9 | EK11: 8 | EL11: 8.1 | EM11: 8.2 | EN11: 8.3 | EO11: 8.4 | EP11: 8.5 | EQ11: 8.6 | ER11: 8.7 | ES11: 8.8 | ET11: 8.9 | EU11: 9 | EV11: 9.1 | EW11: 9.2 | EX11: 9.3 | EY11: 9.4 | EZ11: 9.5 | FA11: 9.6 | FB11: 9.7 | FC11: 9.8 | FD11: 9.9 | FE11: 10 | FF11: 10.1 | FG11: 10.2 | FH11: 10.3 | FI11: 10.4 | FJ11: 10.5 | FK11: 10.6 | FL11: 10.7 | FM11: 10.8 | FN11: 10.9 | FO11: 11 | FP11: 11.1 | FQ11: 11.2 | FR11: 11.3 | FS11: 11.4 | FT11: 11.5 | FU11: 11.6 | FV11: 11.7 | FW11: 11.8 | FX11: 11.9 | FY11: 12 | FZ11: 12.1 | GA11: 12.2 | GB11: 12.3 | GC11: 12.4 | GD11: 12.5 | GE11: 12.6 | GF11: 12.7 | GG11: 12.8 | GH11: 12.9 | GI11: 13 | GJ11: 13.1 | GK11: 13.2 | GL11: 13.3 | GM11: 13.4 | GN11: 13.5 | GO11: 13.6 | GP11: 13.7 | GQ11: 13.8 | GR11: 13.9 | GS11: 14 | GT11: 14.1 | GU11: 14.2 | GV11: 14.3 | GW11: 14.4 | GX11: 14.5 | GY11: 14.6 | GZ11: 14.7 | HA11: 14.8 | HB11: 14.9 | HC11: 15 | HD11: 15.1 | HE11: 15.2 | HF11: 15.3 | HG11: 15.4 | HH11: 15.5 | HI11: 15.6 | HJ11: 15.7 | HK11: 15.8 | HL11: 15.9 | HM11: 16 | HN11: 16.1 | HO11: 16.2 | HP11: 16.3 | HQ11: 16.4 | HR11: 16.5 | HS11: 16.6 | HT11: 16.7 | HU11: 16.8 | HV11: 16.9 | HW11: 17 | HX11: 17.1 | HY11: 17.2 | HZ11: 17.3 | IA11: 17.4 | IB11: 17.5 | IC11: 17.6 | ID11: 17.7 | IE11: 17.8 | IF11: 17.9 | IG11: 18 | IH11: 18.1 | II11: 18.2 | IJ11: 18.3 | IK11: 18.4 | IL11: 18.5 | IM11: 18.6 | IN11: 18.7 | IO11: 18.8 | IP11: 18.9 | IQ11: 19 | IR11: 19.1 | IS11: 19.2 | IT11: 19.3 | IU11: 19.4 | IV11: 19.5 | IW11: 19.6 | IX11: 19.7 | IY11: 19.8 | IZ11: 19.9 | JA11: 20 | JB11: 20.1 | JC11: 20.2 | JD11: 20.3 | JE11: 20.4 | JF11: 20.5 | JG11: 20.6 | JH11: 20.7 | JI11: 20.8 | JJ11: 20.9 | JK11: 21 | JL11: 21.1 | JM11: 21.2 | JN11: 21.3 | JO11: 21.4 | JP11: 21.5 | JQ11: 21.6 | JR11: 21.7 | JS11: 21.8 | JT11: 21.9 | JU11: 22 | JV11: 22.1 | JW11: 22.2 | JX11: 22.3 | JY11: 22.4 | JZ11: 22.5 | KA11: 22.6 | KB11: 22.7 | KC11: 22.8 | KD11: 22.9 | KE11: 23 | KF11: 23.1 | KG11: 23.2 | KH11: 23.3 | KI11: 23.4 | KJ11: 23.5 | KK11: 23.6 | KL11: 23.7 | KM11: 23.8 | KN11: 23.9 | KO11: 24 | KP11: 24.1 | KQ11: 24.2 | KR11: 24.3 | KS11: 24.4 | KT11: 24.5 | KU11: 24.6 | KV11: 24.7 | KW11: 24.8 | KX11: 24.9 | KY11: 25 | KZ11: 25.1 | LA11: 25.2 | LB11: 25.3 | LC11: 25.4 | LD11: 25.5 | LE11: 25.6 | LF11: 25.7 | LG11: 25.8 | LH11: 25.9 | LI11: 26 | LJ11: 26.1 | LK11: 26.2 | LL11: 26.3 | LM11: 26.4 | LN11: 26.5 | LO11: 26.6 | LP11: 26.7 | LQ11: 26.8 | LR11: 26.9 | LS11: 27 | LT11: 27.1 | LU11: 27.2 | LV11: 27.3 | LW11: 27.4 | LX11: 27.5 | LY11: 27.6 | LZ11: 27.7 | MA11: 27.8 | MB11: 27.9 | MC11: 28 | MD11: 28.1 | ME11: 28.2 | MF11: 28.3 | MG11: 28.4 | MH11: 28.5 | MI11: 28.6 | MJ11: 28.7 | MK11: 28.8 | ML11: 28.9 | MM11: 29 | MN11: 29.1 | MO11: 29.2 | MP11: 29.3 | MQ11: 29.4 | MR11: 29.5 | MS11: 29.6 | MT11: 29.7 | MU11: 29.8 | MV11: 29.9 | MW11: 30 | MX11: 30.1 | MY11: 30.2 | MZ11: 30.3 | NA11: 30.4 | NB11: 30.5 | NC11: 30.6 | ND11: 30.7 | NE11: 30.8 | NF11: 30.9 | NG11: 31 | NH11: 31.1 | NI11: 31.2 | NJ11: 31.3 | NK11: 31.4 | NL11: 31.5 | NM11: 31.6 | NN11: 31.7 | NO11: 31.8 | NP11: 31.9 | NQ11: 32 | NR11: 32.1 | NS11: 32.2 | NT11: 32.3 | NU11: 32.4 | NV11: 32.5 | NW11: 32.6 | NX11: 32.7 | NY11: 32.8 | NZ11: 32.9 | OA11: 33 | OB11: 33.1 | OC11: 33.2 | OD11: 33.3 | OE11: 33.4 | OF11: 33.5 | OG11: 33.6 | OH11: 33.7 | OI11: 33.8 | OJ11: 33.9 | OK11: 34 | OL11: 34.1 | OM11: 34.2 | ON11: 34.3 | OO11: 34.4 | OP11: 34.5 | OQ11: 34.6 | OR11: 34.7 | OS11: 34.8 | OT11: 34.9 | OU11: 35 | OV11: 35.1 | OW11: 35.2 | OX11: 35.3 | OY11: 35.4 | OZ11: 35.5 | PA11: 35.6 | PB11: 35.7 | PC11: 35.8 | PD11: 35.9 | PE11: 36 | PF11: 36.1 | PG11: 36.2 | PH11: 36.3 | PI11: 36.4 | PJ11: 36.5 | PK11: 36.6 | PL11: 36.7 | PM11: 36.8 | PN11: 36.9 | PO11: 37 | PP11: 37.1 | PQ11: 37.2 | PR11: 37.3 | PS11: 37.4 | PT11: 37.5 | PU11: 37.6 | PV11: 37.7 | PW11: 37.8 | PX11: 37.9 | PY11: 38 | PZ11: 38.1 | QA11: 38.2 | QB11: 38.3 | QC11: 38.4 | QD11: 38.5 | QE11: 38.6 | QF11: 38.7 | QG11: 38.8 | QH11: 38.9 | QI11: 39 | QJ11: 39.1 | QK11: 39.2 | QL11: 39.3 | QM11: 39.4 | QN11: 39.5 | QO11: 39.6 | QP11: 39.7 | QQ11: 39.8 | QR11: 39.9 | QS11: 40 | QT11: 40.1 | QU11: 40.2 | QV11: 40.3 | QW11: 40.4 | QX11: 40.5 | QY11: 40.6 | QZ11: 40.7 | RA11: 40.8 | RB11: 40.9 | RC11: 41 | RD11: 41.1 | RE11: 41.2 | RF11: 41.3 | RG11: 41.4 | RH11: 41.5 | RI11: 41.6 | RJ11: 41.7 | RK11: 41.8 | RL11: 41.9 | RM11: 42 | RN11: 42.1 | RO11: 42.2 | RP11: 42.3 | RQ11: 42.4 | RR11: 42.5 | RS11: 42.6 | RT11: 42.7 | RU11: 42.8 | RV11: 42.9 | RW11: 43 | RX11: 43.1 | RY11: 43.2 | RZ11: 43.3 | SA11: 43.4 | SB11: 43.5 | SC11: 43.6 | SD11: 43.7 | SE11: 43.8 | SF11: 43.9 | SG11: 44 | SH11: 44.1 | SI11: 44.2 | SJ11: 44.3 | SK11: 44.4 | SL11: 44.5 | SM11: 44.6 | SN11: 44.7 | SO11: 44.8 | SP11: 44.9 | SQ11: 45 | SR11: 45.1 | SS11: 45.2 | ST11: 45.3 | SU11: 45.4 | SV11: 45.5 | SW11: 45.6 | SX11: 45.7 | SY11: 45.8 | SZ11: 45.9 | TA11: 46 | TB11: 46.1 | TC11: 46.2 | TD11: 46.3 | TE11: 46.4 | TF11: 46.5 | TG11: 46.6 | TH11: 46.7 | TI11: 46.8 | TJ11: 46.9 | TK11: 47 | TL11: 47.1 | TM11: 47.2 | TN11: 47.3 | TO11: 47.4 | TP11: 47.5 | TQ11: 47.6 | TR11: 47.7 | TS11: 47.8 | TT11: 47.9 | TU11: 48 | TV11: 48.1 | TW11: 48.2 | TX11: 48.3 | TY11: 48.4 | TZ11: 48.5 | UA11: 48.6 | UB11: 48.7 | UC11: 48.8 | UD11: 48.9 | UE11: 49 | UF11: 49.1 | UG11: 49.2 | UH11: 49.3 | UI11: 49.4 | UJ11: 49.5 | UK11: 49.6 | UL11: 49.7 | UM11: 49.8 | UN11: 49.9 | UO11: 50
A12: 12 | C12: Stroke | E12: =Data!E17 -> 54.5 | F12: mm | U12: Main | X12: Auxiliary | AJ12: mm | AK12: ° | AL12: ° | AM12: max H | AN12: H | AO12: port | AP12: A.A | AQ12: min H | AR12: =BM265 -> 13 | AS12: port | AT12: A.A | AW12: A.A | AX12: A.A | AZ12: mm | BB12: Bridge
A13: 13 | C13: Connecting rod lenght | E13: =Data!E18 -> 120 | F13: mm | AJ13: piston | AK13: ATDC | AL13: piston to | AM13: BBDC | AN13: step | AO13: flow W | AP13: °mm^2 | AQ13: max H | AR13: =BM263 -> 27.5 | AS13: flow W | AT13: °mm^2 | AU13: Bd duration | AV13: Exh ° open | AW13: °mm^2 | AX13: °mm^2 | BB13: width | BD13: Bd port area | BG13: Main W | BI13: =IF($BI227=BI$11,$BK227,0) -> 0 | BJ13: 0 | BK13: 0 | BL13: 0 | BM13: 0 | BN13: 0 | BO13: 0 | BP13: 0 | BQ13: 0 | BR13: 0 | BS13: 0 | BT13: 0 | BU13: 0 | BV13: 0 | BW13: 0 | BX13: 0 | BY13: 0 | BZ13: 0 | CA13: 0 | CB13: 0 | CC13: 0 | CD13: 0 | CE13: 0 | CF13: 0 | CG13: 0 | CH13: 0 | CI13: 0 | CJ13: 0 | CK13: 0 | CL13: 0 | CM13: 0 | CN13: 0 | CO13: 0 | CP13: 0 | CQ13: 0 | CR13: 0 | CS13: 0 | CT13: 0 | CU13: 0 | CV13: 0 | CW13: 0 | CX13: 0 | CY13: 0 | CZ13: 0 | DA13: 0 | DB13: 0 | DC13: 0 | DD13: 0 | DE13: 0 | DF13: 0 | DG13: 0 | DH13: 0 | DI13: 0 | DJ13: 0 | DK13: 0 | DL13: 0 | DM13: 0 | DN13: 0 | DO13: 0 | DP13: 0 | DQ13: 0 | DR13: 0 | DS13: 0 | DT13: 0 | DU13: =IF($BI227=DU$11,$BK227,0) -> 0 | DV13: 0 | DW13: 0 | DX13: 0 | DY13: 0 | DZ13: 0 | EA13: 0 | EB13: 0 | EC13: 0 | ED13: 0 | EE13: 0 | EF13: 0 | EG13: 0 | EH13: 0 | EI13: 0 | EJ13: 0 | EK13: 0 | EL13: 0 | EM13: 0 | EN13: 0 | EO13: 0 | EP13: 0 | EQ13: 0 | ER13: 0 | ES13: 0 | ET13: 0 | EU13: 0 | EV13: 0 | EW13: 0 | EX13: 0 | EY13: 0 | EZ13: 0 | FA13: 0 | FB13: 0 | FC13: 0 | FD13: 0 | FE13: 0 | FF13: 0 | FG13: 0 | FH13: 0 | FI13: 0 | FJ13: 0 | FK13: 0 | FL13: 0 | FM13: 0 | FN13: 0 | FO13: 0 | FP13: 0 | FQ13: 0 | FR13: 0 | FS13: 0 | FT13: 0 | FU13: 0 | FV13: 0 | FW13: 0 | FX13: 0 | FY13: 0 | FZ13: 0 | GA13: 0 | GB13: 0 | GC13: 0 | GD13: 0 | GE13: 0 | GF13: 0 | GG13: =IF($BI227=GG$11,$BK227,0) -> 0 | GH13: 0 | GI13: 0 | GJ13: 0 | GK13: 0 | GL13: 0 | GM13: 0 | GN13: 0 | GO13: 0 | GP13: 0 | GQ13: 0 | GR13: 0 | GS13: 0 | GT13: 0 | GU13: 0 | GV13: 0 | GW13: 0 | GX13: 0 | GY13: 0 | GZ13: 0 | HA13: 0 | HB13: 0 | HC13: 0 | HD13: 0 | HE13: 0 | HF13: 0 | HG13: 0 | HH13: 0 | HI13: 0 | HJ13: 0 | HK13: 0 | HL13: 0 | HM13: 0 | HN13: 0 | HO13: 0 | HP13: 0 | HQ13: 0 | HR13: 0 | HS13: 0 | HT13: 0 | HU13: 0 | HV13: 0 | HW13: 0 | HX13: 0 | HY13: 0 | HZ13: 0 | IA13: 0 | IB13: 0 | IC13: 0 | ID13: 0 | IE13: 0 | IF13: 0 | IG13: 0 | IH13: 0 | II13: 0 | IJ13: 0 | IK13: 0 | IL13: 0 | IM13: 0 | IN13: 0 | IO13: 0 | IP13: 0 | IQ13: 0 | IR13: 0 | IS13: =IF($BI227=IS$11,$BK227,0) -> 0 | IT13: 0 | IU13: 0 | IV13: 0 | IW13: 0 | IX13: 0 | IY13: 0 | IZ13: 0 | JA13: 0 | JB13: 0 | JC13: 0 | JD13: 0 | JE13: 0 | JF13: 0 | JG13: 0 | JH13: 0 | JI13: 0 | JJ13: 0 | JK13: 0 | JL13: 0 | JM13: 0 | JN13: 0 | JO13: 0 | JP13: 0 | JQ13: 0 | JR13: 0 | JS13: 0 | JT13: 0 | JU13: 0 | JV13: 0 | JW13: 0 | JX13: 0 | JY13: 0 | JZ13: 0 | KA13: 0 | KB13: 0 | KC13: 0 | KD13: 0 | KE13: 0 | KF13: 0 | KG13: 0 | KH13: 0 | KI13: 0 | KJ13: 0 | KK13: 0 | KL13: 0 | KM13: 0 | KN13: 0 | KO13: 0 | KP13: 0 | KQ13: 0 | KR13: 0 | KS13: 0 | KT13: 0 | KU13: 0 | KV13: 0 | KW13: 0 | KX13: 0 | KY13: 0 | KZ13: 0 | LA13: 0 | LB13: 0 | LC13: 0 | LD13: 0 | LE13: =IF($BI227=LE$11,$BK227,0) -> 0 | LF13: 0 | LG13: 0 | LH13: 0 | LI13: 0 | LJ13: 0 | LK13: 0 | LL13: 0 | LM13: 0 | LN13: 0 | LO13: 0 | LP13: 0 | LQ13: 0 | LR13: 0 | LS13: 0 | LT13: 0 | LU13: 0 | LV13: 0 | LW13: 0 | LX13: 0 | LY13: 0 | LZ13: 0 | MA13: 0 | MB13: 0 | MC13: 0 | MD13: 0 | ME13: 0 | MF13: 0 | MG13: 0 | MH13: 0 | MI13: 0 | MJ13: 0 | MK13: 0 | ML13: 0 | MM13: 0 | MN13: 0 | MO13: 0 | MP13: 0 | MQ13: 0 | MR13: 0 | MS13: 0 | MT13: 0 | MU13: 0 | MV13: 0 | MW13: 0 | MX13: 0 | MY13: 0 | MZ13: 0 | NA13: 0 | NB13: 0 | NC13: 0 | ND13: 0 | NE13: 0 | NF13: 0 | NG13: 0 | NH13: 0 | NI13: 0 | NJ13: 0 | NK13: 0 | NL13: 0 | NM13: 0 | NN13: 0 | NO13: 0 | NP13: 0 | NQ13: =IF($BI227=NQ$11,$BK227,0) -> 0 | NR13: 0 | NS13: 0 | NT13: 0 | NU13: 0 | NV13: 0 | NW13: 0 | NX13: 0 | NY13: 0 | NZ13: 0 | OA13: 0 | OB13: 0 | OC13: 0 | OD13: 0 | OE13: 0 | OF13: 0 | OG13: 0 | OH13: 0 | OI13: 0 | OJ13: 0 | OK13: 0 | OL13: 0 | OM13: 0 | ON13: 0 | OO13: 0 | OP13: 0 | OQ13: 0 | OR13: 0 | OS13: 0 | OT13: 0 | OU13: 0 | OV13: 0 | OW13: 0 | OX13: 0 | OY13: 0 | OZ13: 0 | PA13: 0 | PB13: 0 | PC13: 0 | PD13: 0 | PE13: 0 | PF13: 0 | PG13: 0 | PH13: 0 | PI13: 0 | PJ13: 0 | PK13: 0 | PL13: 0 | PM13: 0 | PN13: 0 | PO13: 0 | PP13: 0 | PQ13: 0 | PR13: 0 | PS13: 0 | PT13: 0 | PU13: 0 | PV13: 0 | PW13: 0 | PX13: 0 | PY13: 0 | PZ13: 0 | QA13: 0 | QB13: 0 | QC13: =IF($BI227=QC$11,$BK227,0) -> 0 | QD13: 0 | QE13: 0 | QF13: 0 | QG13: 0 | QH13: 0 | QI13: 0 | QJ13: 0 | QK13: 0 | QL13: 0 | QM13: 0 | QN13: 0 | QO13: 0 | QP13: 0 | QQ13: 0 | QR13: 0 | QS13: 0 | QT13: 0 | QU13: 0 | QV13: 0 | QW13: 0 | QX13: 0 | QY13: 0 | QZ13: 0 | RA13: 0 | RB13: 0 | RC13: 0 | RD13: 0 | RE13: 0 | RF13: 0 | RG13: 0 | RH13: 0 | RI13: 0 | RJ13: 0 | RK13: 0 | RL13: 0 | RM13: 0 | RN13: 0 | RO13: 0 | RP13: 0 | RQ13: 0 | RR13: 0 | RS13: 0 | RT13: 0 | RU13: 0 | RV13: 0 | RW13: 0 | RX13: 0 | RY13: 0 | RZ13: 0 | SA13: 0 | SB13: 0 | SC13: 0 | SD13: 0 | SE13: 0 | SF13: 0 | SG13: 0 | SH13: 0 | SI13: 0 | SJ13: 0 | SK13: 0 | SL13: 0 | SM13: 0 | SN13: 0 | SO13: =IF($BI227=SO$11,$BK227,0) -> 0 | SP13: 0 | SQ13: 0 | SR13: 0 | SS13: 0 | ST13: 0 | SU13: 0 | SV13: 0 | SW13: 0 | SX13: 0 | SY13: 0 | SZ13: 0 | TA13: 0 | TB13: 0 | TC13: 0 | TD13: 0 | TE13: 0 | TF13: 0 | TG13: 0 | TH13: 0 | TI13: 0 | TJ13: 0 | TK13: 0 | TL13: 0 | TM13: 0 | TN13: 0 | TO13: 0 | TP13: 0 | TQ13: 0 | TR13: 0 | TS13: 0 | TT13: 0 | TU13: 0 | TV13: 0 | TW13: 0 | TX13: 0 | TY13: 0 | TZ13: 0 | UA13: 0 | UB13: 0 | UC13: 0 | UD13: 0 | UE13: 0 | UF13: 0 | UG13: 0 | UH13: 0 | UI13: 0 | UJ13: 0 | UK13: 0 | UL13: 0 | UM13: 0 | UN13: 0 | UO13: 0
A14: 14 | C14: RPM max torque | E14: =Data!E20 -> 12517 | F14: rpm | U14: Height | V14: Width | X14: Height | Y14: Width In | Z14: Width Out | AJ14: ATDC | AL14: BDC | AM14: =BI263 -> 29.5 | AN14: mm | AO14: mm | AP14: =SUM(AP15:AP515) -> 117679.9212 | AR14: Hstep mm | AS14: mm | AT14: =SUM(AT15:AT515)*2 -> 61023.49939 | AU14: ° BBDC | AV14: before Tr O | AW14: =IF(J4=0,0,SUM(AW15:AW515)) -> 8155.978438 | AX14: =IF($N$4=0,0,SUM(AX15:AX515)) -> 6409.3444 | AZ14: Aux W | BA14: Main W | BB14: Main-Aux | BD14: Main | BE14: Aux | BI14: =IF($BI228=BI$11,$BK228,0) -> 0 | BJ14: 0 | BK14: 0 | BL14: 0 | BM14: 0 | BN14: 0 | BO14: 0 | BP14: 0 | BQ14: 0 | BR14: 0 | BS14: 0 | BT14: 0 | BU14: 0 | BV14: 0 | BW14: 0 | BX14: 0 | BY14: 0 | BZ14: 0 | CA14: 0 | CB14: 0 | CC14: 0 | CD14: 0 | CE14: 0 | CF14: 0 | CG14: 0 | CH14: 0 | CI14: 0 | CJ14: 0 | CK14: 0 | CL14: 0 | CM14: 0 | CN14: 0 | CO14: 0 | CP14: 0 | CQ14: 0 | CR14: 0 | CS14: 0 | CT14: 0 | CU14: 0 | CV14: 0 | CW14: 0 | CX14: 0 | CY14: 0 | CZ14: 0 | DA14: 0 | DB14: 0 | DC14: 0 | DD14: 0 | DE14: 0 | DF14: 0 | DG14: 0 | DH14: 0 | DI14: 0 | DJ14: 0 | DK14: 0 | DL14: 0 | DM14: 0 | DN14: 0 | DO14: 0 | DP14: 0 | DQ14: 0 | DR14: 0 | DS14: 0 | DT14: 0 | DU14: =IF($BI228=DU$11,$BK228,0) -> 0 | DV14: 0 | DW14: 0 | DX14: 0 | DY14: 0 | DZ14: 0 | EA14: 0 | EB14: 0 | EC14: 0 | ED14: 0 | EE14: 0 | EF14: 0 | EG14: 0 | EH14: 0 | EI14: 0 | EJ14: 0 | EK14: 0 | EL14: 0 | EM14: 0 | EN14: 0 | EO14: 0 | EP14: 0 | EQ14: 0 | ER14: 0 | ES14: 0 | ET14: 0 | EU14: 0 | EV14: 0 | EW14: 0 | EX14: 0 | EY14: 0 | EZ14: 0 | FA14: 0 | FB14: 0 | FC14: 0 | FD14: 0 | FE14: 0 | FF14: 0 | FG14: 0 | FH14: 0 | FI14: 0 | FJ14: 0 | FK14: 0 | FL14: 0 | FM14: 0 | FN14: 0 | FO14: 0 | FP14: 0 | FQ14: 0 | FR14: 0 | FS14: 0 | FT14: 0 | FU14: 0 | FV14: 0 | FW14: 0 | FX14: 0 | FY14: 0 | FZ14: 0 | GA14: 0 | GB14: 0 | GC14: 0 | GD14: 0 | GE14: 0 | GF14: 0 | GG14: =IF($BI228=GG$11,$BK228,0) -> 0 | GH14: 0 | GI14: 0 | GJ14: 0 | GK14: 0 | GL14: 0 | GM14: 0 | GN14: 0 | GO14: 0 | GP14: 0 | GQ14: 0 | GR14: 0 | GS14: 0 | GT14: 0 | GU14: 0 | GV14: 0 | GW14: 0 | GX14: 0 | GY14: 0 | GZ14: 0 | HA14: 0 | HB14: 0 | HC14: 0 | HD14: 0 | HE14: 0 | HF14: 0 | HG14: 0 | HH14: 0 | HI14: 0 | HJ14: 0 | HK14: 0 | HL14: 0 | HM14: 0 | HN14: 0 | HO14: 0 | HP14: 0 | HQ14: 0 | HR14: 0 | HS14: 0 | HT14: 0 | HU14: 0 | HV14: 0 | HW14: 0 | HX14: 0 | HY14: 0 | HZ14: 0 | IA14: 0 | IB14: 0 | IC14: 0 | ID14: 0 | IE14: 0 | IF14: 0 | IG14: 0 | IH14: 0 | II14: 0 | IJ14: 0 | IK14: 0 | IL14: 0 | IM14: 0 | IN14: 0 | IO14: 0 | IP14: 0 | IQ14: 0 | IR14: 0 | IS14: =IF($BI228=IS$11,$BK228,0) -> 0 | IT14: 0 | IU14: 0 | IV14: 0 | IW14: 0 | IX14: 0 | IY14: 0 | IZ14: 0 | JA14: 0 | JB14: 0 | JC14: 0 | JD14: 0 | JE14: 0 | JF14: 0 | JG14: 0 | JH14: 0 | JI14: 0 | JJ14: 0 | JK14: 0 | JL14: 0 | JM14: 0 | JN14: 0 | JO14: 0 | JP14: 0 | JQ14: 0 | JR14: 0 | JS14: 0 | JT14: 0 | JU14: 0 | JV14: 0 | JW14: 0 | JX14: 0 | JY14: 0 | JZ14: 0 | KA14: 0 | KB14: 0 | KC14: 0 | KD14: 0 | KE14: 0 | KF14: 0 | KG14: 0 | KH14: 0 | KI14: 0 | KJ14: 0 | KK14: 0 | KL14: 0 | KM14: 0 | KN14: 0 | KO14: 0 | KP14: 0 | KQ14: 0 | KR14: 0 | KS14: 0 | KT14: 0 | KU14: 0 | KV14: 0 | KW14: 0 | KX14: 0 | KY14: 0 | KZ14: 0 | LA14: 0 | LB14: 0 | LC14: 0 | LD14: 0 | LE14: =IF($BI228=LE$11,$BK228,0) -> 0 | LF14: 0 | LG14: 0 | LH14: 0 | LI14: 0 | LJ14: 0 | LK14: 0 | LL14: 0 | LM14: 0 | LN14: 0 | LO14: 0 | LP14: 0 | LQ14: 0 | LR14: 0 | LS14: 0 | LT14: 0 | LU14: 0 | LV14: 0 | LW14: 0 | LX14: 0 | LY14: 0 | LZ14: 0 | MA14: 0 | MB14: 0 | MC14: 0 | MD14: 0 | ME14: 0 | MF14: 0 | MG14: 0 | MH14: 0 | MI14: 0 | MJ14: 0 | MK14: 0 | ML14: 0 | MM14: 0 | MN14: 0 | MO14: 0 | MP14: 0 | MQ14: 0 | MR14: 0 | MS14: 0 | MT14: 0 | MU14: 0 | MV14: 0 | MW14: 0 | MX14: 0 | MY14: 0 | MZ14: 0 | NA14: 0 | NB14: 0 | NC14: 0 | ND14: 0 | NE14: 0 | NF14: 0 | NG14: 0 | NH14: 0 | NI14: 0 | NJ14: 0 | NK14: 0 | NL14: 0 | NM14: 0 | NN14: 0 | NO14: 0 | NP14: 0 | NQ14: =IF($BI228=NQ$11,$BK228,0) -> 0 | NR14: 0 | NS14: 0 | NT14: 0 | NU14: 0 | NV14: 0 | NW14: 0 | NX14: 0 | NY14: 0 | NZ14: 0 | OA14: 0 | OB14: 0 | OC14: 0 | OD14: 0 | OE14: 0 | OF14: 0 | OG14: 0 | OH14: 0 | OI14: 0 | OJ14: 0 | OK14: 0 | OL14: 0 | OM14: 0 | ON14: 0 | OO14: 0 | OP14: 0 | OQ14: 0 | OR14: 0 | OS14: 0 | OT14: 0 | OU14: 0 | OV14: 0 | OW14: 0 | OX14: 0 | OY14: 0 | OZ14: 0 | PA14: 0 | PB14: 0 | PC14: 0 | PD14: 0 | PE14: 0 | PF14: 0 | PG14: 0 | PH14: 0 | PI14: 0 | PJ14: 0 | PK14: 0 | PL14: 0 | PM14: 0 | PN14: 0 | PO14: 0 | PP14: 0 | PQ14: 0 | PR14: 0 | PS14: 0 | PT14: 0 | PU14: 0 | PV14: 0 | PW14: 0 | PX14: 0 | PY14: 0 | PZ14: 0 | QA14: 0 | QB14: 0 | QC14: =IF($BI228=QC$11,$BK228,0) -> 0 | QD14: 0 | QE14: 0 | QF14: 0 | QG14: 0 | QH14: 0 | QI14: 0 | QJ14: 0 | QK14: 0 | QL14: 0 | QM14: 0 | QN14: 0 | QO14: 0 | QP14: 0 | QQ14: 0 | QR14: 0 | QS14: 0 | QT14: 0 | QU14: 0 | QV14: 0 | QW14: 0 | QX14: 0 | QY14: 0 | QZ14: 0 | RA14: 0 | RB14: 0 | RC14: 0 | RD14: 0 | RE14: 0 | RF14: 0 | RG14: 0 | RH14: 0 | RI14: 0 | RJ14: 0 | RK14: 0 | RL14: 0 | RM14: 0 | RN14: 0 | RO14: 0 | RP14: 0 | RQ14: 0 | RR14: 0 | RS14: 0 | RT14: 0 | RU14: 0 | RV14: 0 | RW14: 0 | RX14: 0 | RY14: 0 | RZ14: 0 | SA14: 0 | SB14: 0 | SC14: 0 | SD14: 0 | SE14: 0 | SF14: 0 | SG14: 0 | SH14: 0 | SI14: 0 | SJ14: 0 | SK14: 0 | SL14: 0 | SM14: 0 | SN14: 0 | SO14: =IF($BI228=SO$11,$BK228,0) -> 0 | SP14: 0 | SQ14: 0 | SR14: 0 | SS14: 0 | ST14: 0 | SU14: 0 | SV14: 0 | SW14: 0 | SX14: 0 | SY14: 0 | SZ14: 0 | TA14: 0 | TB14: 0 | TC14: 0 | TD14: 0 | TE14: 0 | TF14: 0 | TG14: 0 | TH14: 0 | TI14: 0 | TJ14: 0 | TK14: 0 | TL14: 0 | TM14: 0 | TN14: 0 | TO14: 0 | TP14: 0 | TQ14: 0 | TR14: 0 | TS14: 0 | TT14: 0 | TU14: 0 | TV14: 0 | TW14: 0 | TX14: 0 | TY14: 0 | TZ14: 0 | UA14: 0 | UB14: 0 | UC14: 0 | UD14: 0 | UE14: 0 | UF14: 0 | UG14: 0 | UH14: 0 | UI14: 0 | UJ14: 0 | UK14: 0 | UL14: 0 | UM14: 0 | UN14: 0 | UO14: 0
A15: 15 | C15: Deck height | E15: =Data!E25 -> 0.7 | F15: mm | U15: 29.5 | V15: 0 | X15: 27.5 | Y15: 0 | Z15: 0 | AJ15: =E12 -> 54.5 | AK15: =IFERROR((ACOS(((E$12/2+E$13-AJ15)^2+(E$12/2)*(E$12/2)-E$13^2)/(2*(E$12/2)*(E$12/2+E$13-AJ15)))*180)/PI(),0) -> 180 | AL15: =180-AK15 -> 0 | AM15: 0 | AN15: =IF(AM16<>0,0.1,0) -> 0.1 | AO15: =TRANSPOSE(BI56:$UO$56) -> 5.335045853 | AP15: =IF(AO15=0,0,(AO15+AO16)/2*AN15*AL16*2) -> 6.550320837 | AQ15: 0 | AR15: =IF(AQ16<>0,0.1,0) -> 0.1 | AS15: =TRANSPOSE(BI105:UO105) -> 0 | AT15: =IF(AS15=0,0,(AS15+AS16)/2*AR15*AL16*2) -> 0 | AU15: =IF('Transfer New'!$BK$12>MAX(AM15,AQ15),0,AL15) -> 0 | AV15: =IF(AU15=0,0,AU15-$AW$518) -> 0 | AW15: =IF(AV15=0,0,AV15*(AO15+AO16)/2*AN15) -> 0 | AX15: =IF(AV15=0,0,AV15*(AS15+AS16)/2*AR15*2) -> 0 | AZ15: =TRANSPOSE(BI198:JA198) -> 0 | BA15: =TRANSPOSE(BI54:JA54) -> 6 | BB15: =IF($C$4=1,0,IF(AZ15=0,"",$E$29-AZ15-BA15/2)) ->  | BD15: =IF(AV15=0,0,AW15/AV15) -> 0 | BE15: =IF(AV15=0,0,AX15/AV15) -> 0 | BI15: =IF($BI229=BI$11,$BK229,0) -> 0 | BJ15: 0 | BK15: 0 | BL15: 0 | BM15: 0 | BN15: 0 | BO15: 0 | BP15: 0 | BQ15: 0 | BR15: 0 | BS15: 0 | BT15: 0 | BU15: 0 | BV15: 0 | BW15: 0 | BX15: 0 | BY15: 0 | BZ15: 0 | CA15: 0 | CB15: 0 | CC15: 0 | CD15: 0 | CE15: 0 | CF15: 0 | CG15: 0 | CH15: 0 | CI15: 0 | CJ15: 0 | CK15: 0 | CL15: 0 | CM15: 0 | CN15: 0 | CO15: 0 | CP15: 0 | CQ15: 0 | CR15: 0 | CS15: 0 | CT15: 0 | CU15: 0 | CV15: 0 | CW15: 0 | CX15: 0 | CY15: 0 | CZ15: 0 | DA15: 0 | DB15: 0 | DC15: 0 | DD15: 0 | DE15: 0 | DF15: 0 | DG15: 0 | DH15: 0 | DI15: 0 | DJ15: 0 | DK15: 0 | DL15: 0 | DM15: 0 | DN15: 0 | DO15: 0 | DP15: 0 | DQ15: 0 | DR15: 0 | DS15: 0 | DT15: 0 | DU15: =IF($BI229=DU$11,$BK229,0) -> 0 | DV15: 0 | DW15: 0 | DX15: 0 | DY15: 0 | DZ15: 0 | EA15: 0 | EB15: 0 | EC15: 0 | ED15: 0 | EE15: 0 | EF15: 0 | EG15: 0 | EH15: 0 | EI15: 0 | EJ15: 0 | EK15: 0 | EL15: 0 | EM15: 0 | EN15: 0 | EO15: 0 | EP15: 0 | EQ15: 0 | ER15: 0 | ES15: 0 | ET15: 0 | EU15: 0 | EV15: 0 | EW15: 0 | EX15: 0 | EY15: 0 | EZ15: 0 | FA15: 0 | FB15: 0 | FC15: 0 | FD15: 0 | FE15: 0 | FF15: 0 | FG15: 0 | FH15: 0 | FI15: 0 | FJ15: 0 | FK15: 0 | FL15: 0 | FM15: 0 | FN15: 0 | FO15: 0 | FP15: 0 | FQ15: 0 | FR15: 0 | FS15: 0 | FT15: 0 | FU15: 0 | FV15: 0 | FW15: 0 | FX15: 0 | FY15: 0 | FZ15: 0 | GA15: 0 | GB15: 0 | GC15: 0 | GD15: 0 | GE15: 0 | GF15: 0 | GG15: =IF($BI229=GG$11,$BK229,0) -> 0 | GH15: 0 | GI15: 0 | GJ15: 0 | GK15: 0 | GL15: 0 | GM15: 0 | GN15: 0 | GO15: 0 | GP15: 0 | GQ15: 0 | GR15: 0 | GS15: 0 | GT15: 0 | GU15: 0 | GV15: 0 | GW15: 0 | GX15: 0 | GY15: 0 | GZ15: 0 | HA15: 0 | HB15: 0 | HC15: 0 | HD15: 0 | HE15: 0 | HF15: 0 | HG15: 0 | HH15: 0 | HI15: 0 | HJ15: 0 | HK15: 0 | HL15: 0 | HM15: 0 | HN15: 0 | HO15: 0 | HP15: 0 | HQ15: 0 | HR15: 0 | HS15: 0 | HT15: 0 | HU15: 0 | HV15: 0 | HW15: 0 | HX15: 0 | HY15: 0 | HZ15: 0 | IA15: 0 | IB15: 0 | IC15: 0 | ID15: 0 | IE15: 0 | IF15: 0 | IG15: 0 | IH15: 0 | II15: 0 | IJ15: 0 | IK15: 0 | IL15: 0 | IM15: 0 | IN15: 0 | IO15: 0 | IP15: 0 | IQ15: 0 | IR15: 0 | IS15: =IF($BI229=IS$11,$BK229,0) -> 0 | IT15: 0 | IU15: 0 | IV15: 0 | IW15: 0 | IX15: 0 | IY15: 0 | IZ15: 0 | JA15: 0 | JB15: 0 | JC15: 0 | JD15: 0 | JE15: 0 | JF15: 0 | JG15: 0 | JH15: 0 | JI15: 0 | JJ15: 0 | JK15: 0 | JL15: 0 | JM15: 0 | JN15: 0 | JO15: 0 | JP15: 0 | JQ15: 0 | JR15: 0 | JS15: 0 | JT15: 0 | JU15: 0 | JV15: 0 | JW15: 0 | JX15: 0 | JY15: 0 | JZ15: 0 | KA15: 0 | KB15: 0 | KC15: 0 | KD15: 0 | KE15: 0 | KF15: 0 | KG15: 0 | KH15: 0 | KI15: 0 | KJ15: 0 | KK15: 0 | KL15: 0 | KM15: 0 | KN15: 0 | KO15: 0 | KP15: 0 | KQ15: 0 | KR15: 0 | KS15: 0 | KT15: 0 | KU15: 0 | KV15: 0 | KW15: 0 | KX15: 0 | KY15: 0 | KZ15: 0 | LA15: 0 | LB15: 0 | LC15: 0 | LD15: 0 | LE15: =IF($BI229=LE$11,$BK229,0) -> 0 | LF15: 0 | LG15: 0 | LH15: 0 | LI15: 0 | LJ15: 0 | LK15: 0 | LL15: 0 | LM15: 0 | LN15: 0 | LO15: 0 | LP15: 0 | LQ15: 0 | LR15: 0 | LS15: 0 | LT15: 0 | LU15: 0 | LV15: 0 | LW15: 0 | LX15: 0 | LY15: 0 | LZ15: 0 | MA15: 0 | MB15: 0 | MC15: 0 | MD15: 0 | ME15: 0 | MF15: 0 | MG15: 0 | MH15: 0 | MI15: 0 | MJ15: 0 | MK15: 0 | ML15: 0 | MM15: 0 | MN15: 0 | MO15: 0 | MP15: 0 | MQ15: 0 | MR15: 0 | MS15: 0 | MT15: 0 | MU15: 0 | MV15: 0 | MW15: 0 | MX15: 0 | MY15: 0 | MZ15: 0 | NA15: 0 | NB15: 0 | NC15: 0 | ND15: 0 | NE15: 0 | NF15: 0 | NG15: 0 | NH15: 0 | NI15: 0 | NJ15: 0 | NK15: 0 | NL15: 0 | NM15: 0 | NN15: 0 | NO15: 0 | NP15: 0 | NQ15: =IF($BI229=NQ$11,$BK229,0) -> 0 | NR15: 0 | NS15: 0 | NT15: 0 | NU15: 0 | NV15: 0 | NW15: 0 | NX15: 0 | NY15: 0 | NZ15: 0 | OA15: 0 | OB15: 0 | OC15: 0 | OD15: 0 | OE15: 0 | OF15: 0 | OG15: 0 | OH15: 0 | OI15: 0 | OJ15: 0 | OK15: 0 | OL15: 0 | OM15: 0 | ON15: 0 | OO15: 0 | OP15: 0 | OQ15: 0 | OR15: 0 | OS15: 0 | OT15: 0 | OU15: 0 | OV15: 0 | OW15: 0 | OX15: 0 | OY15: 0 | OZ15: 0 | PA15: 0 | PB15: 0 | PC15: 0 | PD15: 0 | PE15: 0 | PF15: 0 | PG15: 0 | PH15: 0 | PI15: 0 | PJ15: 0 | PK15: 0 | PL15: 0 | PM15: 0 | PN15: 0 | PO15: 0 | PP15: 0 | PQ15: 0 | PR15: 0 | PS15: 0 | PT15: 0 | PU15: 0 | PV15: 0 | PW15: 0 | PX15: 0 | PY15: 0 | PZ15: 0 | QA15: 0 | QB15: 0 | QC15: =IF($BI229=QC$11,$BK229,0) -> 0 | QD15: 0 | QE15: 0 | QF15: 0 | QG15: 0 | QH15: 0 | QI15: 0 | QJ15: 0 | QK15: 0 | QL15: 0 | QM15: 0 | QN15: 0 | QO15: 0 | QP15: 0 | QQ15: 0 | QR15: 0 | QS15: 0 | QT15: 0 | QU15: 0 | QV15: 0 | QW15: 0 | QX15: 0 | QY15: 0 | QZ15: 0 | RA15: 0 | RB15: 0 | RC15: 0 | RD15: 0 | RE15: 0 | RF15: 0 | RG15: 0 | RH15: 0 | RI15: 0 | RJ15: 0 | RK15: 0 | RL15: 0 | RM15: 0 | RN15: 0 | RO15: 0 | RP15: 0 | RQ15: 0 | RR15: 0 | RS15: 0 | RT15: 0 | RU15: 0 | RV15: 0 | RW15: 0 | RX15: 0 | RY15: 0 | RZ15: 0 | SA15: 0 | SB15: 0 | SC15: 0 | SD15: 0 | SE15: 0 | SF15: 0 | SG15: 0 | SH15: 0 | SI15: 0 | SJ15: 0 | SK15: 0 | SL15: 0 | SM15: 0 | SN15: 0 | SO15: =IF($BI229=SO$11,$BK229,0) -> 0 | SP15: 0 | SQ15: 0 | SR15: 0 | SS15: 0 | ST15: 0 | SU15: 0 | SV15: 0 | SW15: 0 | SX15: 0 | SY15: 0 | SZ15: 0 | TA15: 0 | TB15: 0 | TC15: 0 | TD15: 0 | TE15: 0 | TF15: 0 | TG15: 0 | TH15: 0 | TI15: 0 | TJ15: 0 | TK15: 0 | TL15: 0 | TM15: 0 | TN15: 0 | TO15: 0 | TP15: 0 | TQ15: 0 | TR15: 0 | TS15: 0 | TT15: 0 | TU15: 0 | TV15: 0 | TW15: 0 | TX15: 0 | TY15: 0 | TZ15: 0 | UA15: 0 | UB15: 0 | UC15: 0 | UD15: 0 | UE15: 0 | UF15: 0 | UG15: 0 | UH15: 0 | UI15: 0 | UJ15: 0 | UK15: 0 | UL15: 0 | UM15: 0 | UN15: 0 | UO15: 0
A16: 16 | C16: Cyl Base Gaskett | E16: =Data!E22 -> 0 | F16: mm | U16: 29.5 | V16: 0 | X16: 27.5 | Y16: 0 | Z16: 0 | AJ16: =AJ15-0.1 -> 54.4 | AK16: 174.4163733 | AL16: 5.583626671 | AM16: =IF(ROUND($AJ$15-AJ16,1)<=$AM$14,$AJ$15-AJ16,0) -> 0.1 | AN16: =IF(AM16<>0,0.1,0) -> 0.1 | AO16: 6.396255724 | AP16: 10.93773535 | AQ16: =IF(ROUND($AJ$15-AJ16,1)<=$AR$13,$AJ$15-AJ16,0) -> 0.1 | AR16: =IF(AQ16<>0,0.1,0) -> 0.1 | AS16: 0 | AT16: 0 | AU16: =IF('Transfer New'!$BK$12>MAX(AM16,AQ16),0,AL16) -> 0 | AV16: 0 | AW16: 0 | AX16: 0 | AZ16: 0 | BA16: 7.2 | BD16: =IF(AV16=0,0,AW16/AV16) -> 0 | BE16: =IF(AV16=0,0,AX16/AV16) -> 0 | BI16: =IF($BI230=BI$11,$BK230,0) -> 0 | BJ16: 0 | BK16: 0 | BL16: 0 | BM16: 0 | BN16: 0 | BO16: 0 | BP16: 0 | BQ16: 0 | BR16: 0 | BS16: 0 | BT16: 0 | BU16: 0 | BV16: 0 | BW16: 0 | BX16: 0 | BY16: 0 | BZ16: 0 | CA16: 0 | CB16: 0 | CC16: 0 | CD16: 0 | CE16: 0 | CF16: 0 | CG16: 0 | CH16: 0 | CI16: 0 | CJ16: 0 | CK16: 0 | CL16: 0 | CM16: 0 | CN16: 0 | CO16: 0 | CP16: 0 | CQ16: 0 | CR16: 0 | CS16: 0 | CT16: 0 | CU16: 0 | CV16: 0 | CW16: 0 | CX16: 0 | CY16: 0 | CZ16: 0 | DA16: 0 | DB16: 0 | DC16: 0 | DD16: 0 | DE16: 0 | DF16: 0 | DG16: 0 | DH16: 0 | DI16: 0 | DJ16: 0 | DK16: 0 | DL16: 0 | DM16: 0 | DN16: 0 | DO16: 0 | DP16: 0 | DQ16: 0 | DR16: 0 | DS16: 0 | DT16: 0 | DU16: =IF($BI230=DU$11,$BK230,0) -> 0 | DV16: 0 | DW16: 0 | DX16: 0 | DY16: 0 | DZ16: 0 | EA16: 0 | EB16: 0 | EC16: 0 | ED16: 0 | EE16: 0 | EF16: 0 | EG16: 0 | EH16: 0 | EI16: 0 | EJ16: 0 | EK16: 0 | EL16: 0 | EM16: 0 | EN16: 0 | EO16: 0 | EP16: 0 | EQ16: 0 | ER16: 0 | ES16: 0 | ET16: 0 | EU16: 0 | EV16: 0 | EW16: 0 | EX16: 0 | EY16: 0 | EZ16: 0 | FA16: 0 | FB16: 0 | FC16: 0 | FD16: 0 | FE16: 0 | FF16: 0 | FG16: 0 | FH16: 0 | FI16: 0 | FJ16: 0 | FK16: 0 | FL16: 0 | FM16: 0 | FN16: 0 | FO16: 0 | FP16: 0 | FQ16: 0 | FR16: 0 | FS16: 0 | FT16: 0 | FU16: 0 | FV16: 0 | FW16: 0 | FX16: 0 | FY16: 0 | FZ16: 0 | GA16: 0 | GB16: 0 | GC16: 0 | GD16: 0 | GE16: 0 | GF16: 0 | GG16: =IF($BI230=GG$11,$BK230,0) -> 0 | GH16: 0 | GI16: 0 | GJ16: 0 | GK16: 0 | GL16: 0 | GM16: 0 | GN16: 0 | GO16: 0 | GP16: 0 | GQ16: 0 | GR16: 0 | GS16: 0 | GT16: 0 | GU16: 0 | GV16: 0 | GW16: 0 | GX16: 0 | GY16: 0 | GZ16: 0 | HA16: 0 | HB16: 0 | HC16: 0 | HD16: 0 | HE16: 0 | HF16: 0 | HG16: 0 | HH16: 0 | HI16: 0 | HJ16: 0 | HK16: 0 | HL16: 0 | HM16: 0 | HN16: 0 | HO16: 0 | HP16: 0 | HQ16: 0 | HR16: 0 | HS16: 0 | HT16: 0 | HU16: 0 | HV16: 0 | HW16: 0 | HX16: 0 | HY16: 0 | HZ16: 0 | IA16: 0 | IB16: 0 | IC16: 0 | ID16: 0 | IE16: 0 | IF16: 0 | IG16: 0 | IH16: 0 | II16: 0 | IJ16: 0 | IK16: 0 | IL16: 0 | IM16: 0 | IN16: 0 | IO16: 0 | IP16: 0 | IQ16: 0 | IR16: 0 | IS16: =IF($BI230=IS$11,$BK230,0) -> 0 | IT16: 0 | IU16: 0 | IV16: 0 | IW16: 0 | IX16: 0 | IY16: 0 | IZ16: 0 | JA16: 0 | JB16: 0 | JC16: 0 | JD16: 0 | JE16: 0 | JF16: 0 | JG16: 0 | JH16: 0 | JI16: 0 | JJ16: 0 | JK16: 0 | JL16: 0 | JM16: 0 | JN16: 0 | JO16: 0 | JP16: 0 | JQ16: 0 | JR16: 0 | JS16: 0 | JT16: 0 | JU16: 0 | JV16: 0 | JW16: 0 | JX16: 0 | JY16: 0 | JZ16: 0 | KA16: 0 | KB16: 0 | KC16: 0 | KD16: 0 | KE16: 0 | KF16: 0 | KG16: 0 | KH16: 0 | KI16: 0 | KJ16: 0 | KK16: 0 | KL16: 0 | KM16: 0 | KN16: 0 | KO16: 0 | KP16: 0 | KQ16: 0 | KR16: 0 | KS16: 0 | KT16: 0 | KU16: 0 | KV16: 0 | KW16: 0 | KX16: 0 | KY16: 0 | KZ16: 0 | LA16: 0 | LB16: 0 | LC16: 0 | LD16: 0 | LE16: =IF($BI230=LE$11,$BK230,0) -> 0 | LF16: 0 | LG16: 0 | LH16: 0 | LI16: 0 | LJ16: 0 | LK16: 0 | LL16: 0 | LM16: 0 | LN16: 0 | LO16: 0 | LP16: 0 | LQ16: 0 | LR16: 0 | LS16: 0 | LT16: 0 | LU16: 0 | LV16: 0 | LW16: 0 | LX16: 0 | LY16: 0 | LZ16: 0 | MA16: 0 | MB16: 0 | MC16: 0 | MD16: 0 | ME16: 0 | MF16: 0 | MG16: 0 | MH16: 0 | MI16: 0 | MJ16: 0 | MK16: 0 | ML16: 0 | MM16: 0 | MN16: 0 | MO16: 0 | MP16: 0 | MQ16: 0 | MR16: 0 | MS16: 0 | MT16: 0 | MU16: 0 | MV16: 0 | MW16: 0 | MX16: 0 | MY16: 0 | MZ16: 0 | NA16: 0 | NB16: 0 | NC16: 0 | ND16: 0 | NE16: 0 | NF16: 0 | NG16: 0 | NH16: 0 | NI16: 0 | NJ16: 0 | NK16: 0 | NL16: 0 | NM16: 0 | NN16: 0 | NO16: 0 | NP16: 0 | NQ16: =IF($BI230=NQ$11,$BK230,0) -> 0 | NR16: 0 | NS16: 0 | NT16: 0 | NU16: 0 | NV16: 0 | NW16: 0 | NX16: 0 | NY16: 0 | NZ16: 0 | OA16: 0 | OB16: 0 | OC16: 0 | OD16: 0 | OE16: 0 | OF16: 0 | OG16: 0 | OH16: 0 | OI16: 0 | OJ16: 0 | OK16: 0 | OL16: 0 | OM16: 0 | ON16: 0 | OO16: 0 | OP16: 0 | OQ16: 0 | OR16: 0 | OS16: 0 | OT16: 0 | OU16: 0 | OV16: 0 | OW16: 0 | OX16: 0 | OY16: 0 | OZ16: 0 | PA16: 0 | PB16: 0 | PC16: 0 | PD16: 0 | PE16: 0 | PF16: 0 | PG16: 0 | PH16: 0 | PI16: 0 | PJ16: 0 | PK16: 0 | PL16: 0 | PM16: 0 | PN16: 0 | PO16: 0 | PP16: 0 | PQ16: 0 | PR16: 0 | PS16: 0 | PT16: 0 | PU16: 0 | PV16: 0 | PW16: 0 | PX16: 0 | PY16: 0 | PZ16: 0 | QA16: 0 | QB16: 0 | QC16: =IF($BI230=QC$11,$BK230,0) -> 0 | QD16: 0 | QE16: 0 | QF16: 0 | QG16: 0 | QH16: 0 | QI16: 0 | QJ16: 0 | QK16: 0 | QL16: 0 | QM16: 0 | QN16: 0 | QO16: 0 | QP16: 0 | QQ16: 0 | QR16: 0 | QS16: 0 | QT16: 0 | QU16: 0 | QV16: 0 | QW16: 0 | QX16: 0 | QY16: 0 | QZ16: 0 | RA16: 0 | RB16: 0 | RC16: 0 | RD16: 0 | RE16: 0 | RF16: 0 | RG16: 0 | RH16: 0 | RI16: 0 | RJ16: 0 | RK16: 0 | RL16: 0 | RM16: 0 | RN16: 0 | RO16: 0 | RP16: 0 | RQ16: 0 | RR16: 0 | RS16: 0 | RT16: 0 | RU16: 0 | RV16: 0 | RW16: 0 | RX16: 0 | RY16: 0 | RZ16: 0 | SA16: 0 | SB16: 0 | SC16: 0 | SD16: 0 | SE16: 0 | SF16: 0 | SG16: 0 | SH16: 0 | SI16: 0 | SJ16: 0 | SK16: 0 | SL16: 0 | SM16: 0 | SN16: 0 | SO16: =IF($BI230=SO$11,$BK230,0) -> 0 | SP16: 0 | SQ16: 0 | SR16: 0 | SS16: 0 | ST16: 0 | SU16: 0 | SV16: 0 | SW16: 0 | SX16: 0 | SY16: 0 | SZ16: 0 | TA16: 0 | TB16: 0 | TC16: 0 | TD16: 0 | TE16: 0 | TF16: 0 | TG16: 0 | TH16: 0 | TI16: 0 | TJ16: 0 | TK16: 0 | TL16: 0 | TM16: 0 | TN16: 0 | TO16: 0 | TP16: 0 | TQ16: 0 | TR16: 0 | TS16: 0 | TT16: 0 | TU16: 0 | TV16: 0 | TW16: 0 | TX16: 0 | TY16: 0 | TZ16: 0 | UA16: 0 | UB16: 0 | UC16: 0 | UD16: 0 | UE16: 0 | UF16: 0 | UG16: 0 | UH16: 0 | UI16: 0 | UJ16: 0 | UK16: 0 | UL16: 0 | UM16: 0 | UN16: 0 | UO16: 0
A17: 17 | C17: Spacer under Cyl | E17: =Data!E23 -> 0 | F17: mm | U17: 29.5 | V17: 0 | X17: 27.5 | Y17: 0 | Z17: 0 | AJ17: 54.3 | AK17: 172.1030391 | AL17: 7.896960939 | AM17: =IF(ROUND($AJ$15-AJ17,1)<=$AM$14,$AJ$15-AJ17,0) -> 0.2 | AN17: 0.1 | AO17: 7.45430708 | AP17: 15.440047 | AQ17: =IF(ROUND($AJ$15-AJ17,1)<=$AR$13,$AJ$15-AJ17,0) -> 0.2 | AR17: 0.1 | AS17: 0 | AT17: 0 | AU17: =IF('Transfer New'!$BK$12>MAX(AM17,AQ17),0,AL17) -> 0 | AV17: 0 | AW17: 0 | AX17: 0 | AZ17: 0 | BA17: 8.4 | BD17: 0 | BE17: 0 | BI17: =IF($BI231=BI$11,$BK231,0) -> 0 | BJ17: 0 | BK17: 0 | BL17: 0 | BM17: 0 | BN17: 0 | BO17: 0 | BP17: 0 | BQ17: 0 | BR17: 0 | BS17: 0 | BT17: 0 | BU17: 0 | BV17: 0 | BW17: 0 | BX17: 0 | BY17: 0 | BZ17: 0 | CA17: 0 | CB17: 0 | CC17: 0 | CD17: 0 | CE17: 0 | CF17: 0 | CG17: 0 | CH17: 0 | CI17: 0 | CJ17: 0 | CK17: 0 | CL17: 0 | CM17: 0 | CN17: 0 | CO17: 0 | CP17: 0 | CQ17: 0 | CR17: 0 | CS17: 0 | CT17: 0 | CU17: 0 | CV17: 0 | CW17: 0 | CX17: 0 | CY17: 0 | CZ17: 0 | DA17: 0 | DB17: 0 | DC17: 0 | DD17: 0 | DE17: 0 | DF17: 0 | DG17: 0 | DH17: 0 | DI17: 0 | DJ17: 0 | DK17: 0 | DL17: 0 | DM17: 0 | DN17: 0 | DO17: 0 | DP17: 0 | DQ17: 0 | DR17: 0 | DS17: 0 | DT17: 0 | DU17: =IF($BI231=DU$11,$BK231,0) -> 0 | DV17: 0 | DW17: 0 | DX17: 0 | DY17: 0 | DZ17: 0 | EA17: 0 | EB17: 0 | EC17: 0 | ED17: 0 | EE17: 0 | EF17: 0 | EG17: 0 | EH17: 0 | EI17: 0 | EJ17: 0 | EK17: 0 | EL17: 0 | EM17: 0 | EN17: 0 | EO17: 0 | EP17: 0 | EQ17: 0 | ER17: 0 | ES17: 0 | ET17: 0 | EU17: 0 | EV17: 0 | EW17: 0 | EX17: 0 | EY17: 0 | EZ17: 0 | FA17: 0 | FB17: 0 | FC17: 0 | FD17: 0 | FE17: 0 | FF17: 0 | FG17: 0 | FH17: 0 | FI17: 0 | FJ17: 0 | FK17: 0 | FL17: 0 | FM17: 0 | FN17: 0 | FO17: 0 | FP17: 0 | FQ17: 0 | FR17: 0 | FS17: 0 | FT17: 0 | FU17: 0 | FV17: 0 | FW17: 0 | FX17: 0 | FY17: 0 | FZ17: 0 | GA17: 0 | GB17: 0 | GC17: 0 | GD17: 0 | GE17: 0 | GF17: 0 | GG17: =IF($BI231=GG$11,$BK231,0) -> 0 | GH17: 0 | GI17: 0 | GJ17: 0 | GK17: 0 | GL17: 0 | GM17: 0 | GN17: 0 | GO17: 0 | GP17: 0 | GQ17: 0 | GR17: 0 | GS17: 0 | GT17: 0 | GU17: 0 | GV17: 0 | GW17: 0 | GX17: 0 | GY17: 0 | GZ17: 0 | HA17: 0 | HB17: 0 | HC17: 0 | HD17: 0 | HE17: 0 | HF17: 0 | HG17: 0 | HH17: 0 | HI17: 0 | HJ17: 0 | HK17: 0 | HL17: 0 | HM17: 0 | HN17: 0 | HO17: 0 | HP17: 0 | HQ17: 0 | HR17: 0 | HS17: 0 | HT17: 0 | HU17: 0 | HV17: 0 | HW17: 0 | HX17: 0 | HY17: 0 | HZ17: 0 | IA17: 0 | IB17: 0 | IC17: 0 | ID17: 0 | IE17: 0 | IF17: 0 | IG17: 0 | IH17: 0 | II17: 0 | IJ17: 0 | IK17: 0 | IL17: 0 | IM17: 0 | IN17: 0 | IO17: 0 | IP17: 0 | IQ17: 0 | IR17: 0 | IS17: =IF($BI231=IS$11,$BK231,0) -> 0 | IT17: 0 | IU17: 0 | IV17: 0 | IW17: 0 | IX17: 0 | IY17: 0 | IZ17: 0 | JA17: 0 | JB17: 0 | JC17: 0 | JD17: 0 | JE17: 0 | JF17: 0 | JG17: 0 | JH17: 0 | JI17: 0 | JJ17: 0 | JK17: 0 | JL17: 0 | JM17: 0 | JN17: 0 | JO17: 0 | JP17: 0 | JQ17: 0 | JR17: 0 | JS17: 0 | JT17: 0 | JU17: 0 | JV17: 0 | JW17: 0 | JX17: 0 | JY17: 0 | JZ17: 0 | KA17: 0 | KB17: 0 | KC17: 0 | KD17: 0 | KE17: 0 | KF17: 0 | KG17: 0 | KH17: 0 | KI17: 0 | KJ17: 0 | KK17: 0 | KL17: 0 | KM17: 0 | KN17: 0 | KO17: 0 | KP17: 0 | KQ17: 0 | KR17: 0 | KS17: 0 | KT17: 0 | KU17: 0 | KV17: 0 | KW17: 0 | KX17: 0 | KY17: 0 | KZ17: 0 | LA17: 0 | LB17: 0 | LC17: 0 | LD17: 0 | LE17: =IF($BI231=LE$11,$BK231,0) -> 0 | LF17: 0 | LG17: 0 | LH17: 0 | LI17: 0 | LJ17: 0 | LK17: 0 | LL17: 0 | LM17: 0 | LN17: 0 | LO17: 0 | LP17: 0 | LQ17: 0 | LR17: 0 | LS17: 0 | LT17: 0 | LU17: 0 | LV17: 0 | LW17: 0 | LX17: 0 | LY17: 0 | LZ17: 0 | MA17: 0 | MB17: 0 | MC17: 0 | MD17: 0 | ME17: 0 | MF17: 0 | MG17: 0 | MH17: 0 | MI17: 0 | MJ17: 0 | MK17: 0 | ML17: 0 | MM17: 0 | MN17: 0 | MO17: 0 | MP17: 0 | MQ17: 0 | MR17: 0 | MS17: 0 | MT17: 0 | MU17: 0 | MV17: 0 | MW17: 0 | MX17: 0 | MY17: 0 | MZ17: 0 | NA17: 0 | NB17: 0 | NC17: 0 | ND17: 0 | NE17: 0 | NF17: 0 | NG17: 0 | NH17: 0 | NI17: 0 | NJ17: 0 | NK17: 0 | NL17: 0 | NM17: 0 | NN17: 0 | NO17: 0 | NP17: 0 | NQ17: =IF($BI231=NQ$11,$BK231,0) -> 0 | NR17: 0 | NS17: 0 | NT17: 0 | NU17: 0 | NV17: 0 | NW17: 0 | NX17: 0 | NY17: 0 | NZ17: 0 | OA17: 0 | OB17: 0 | OC17: 0 | OD17: 0 | OE17: 0 | OF17: 0 | OG17: 0 | OH17: 0 | OI17: 0 | OJ17: 0 | OK17: 0 | OL17: 0 | OM17: 0 | ON17: 0 | OO17: 0 | OP17: 0 | OQ17: 0 | OR17: 0 | OS17: 0 | OT17: 0 | OU17: 0 | OV17: 0 | OW17: 0 | OX17: 0 | OY17: 0 | OZ17: 0 | PA17: 0 | PB17: 0 | PC17: 0 | PD17: 0 | PE17: 0 | PF17: 0 | PG17: 0 | PH17: 0 | PI17: 0 | PJ17: 0 | PK17: 0 | PL17: 0 | PM17: 0 | PN17: 0 | PO17: 0 | PP17: 0 | PQ17: 0 | PR17: 0 | PS17: 0 | PT17: 0 | PU17: 0 | PV17: 0 | PW17: 0 | PX17: 0 | PY17: 0 | PZ17: 0 | QA17: 0 | QB17: 0 | QC17: =IF($BI231=QC$11,$BK231,0) -> 0 | QD17: 0 | QE17: 0 | QF17: 0 | QG17: 0 | QH17: 0 | QI17: 0 | QJ17: 0 | QK17: 0 | QL17: 0 | QM17: 0 | QN17: 0 | QO17: 0 | QP17: 0 | QQ17: 0 | QR17: 0 | QS17: 0 | QT17: 0 | QU17: 0 | QV17: 0 | QW17: 0 | QX17: 0 | QY17: 0 | QZ17: 0 | RA17: 0 | RB17: 0 | RC17: 0 | RD17: 0 | RE17: 0 | RF17: 0 | RG17: 0 | RH17: 0 | RI17: 0 | RJ17: 0 | RK17: 0 | RL17: 0 | RM17: 0 | RN17: 0 | RO17: 0 | RP17: 0 | RQ17: 0 | RR17: 0 | RS17: 0 | RT17: 0 | RU17: 0 | RV17: 0 | RW17: 0 | RX17: 0 | RY17: 0 | RZ17: 0 | SA17: 0 | SB17: 0 | SC17: 0 | SD17: 0 | SE17: 0 | SF17: 0 | SG17: 0 | SH17: 0 | SI17: 0 | SJ17: 0 | SK17: 0 | SL17: 0 | SM17: 0 | SN17: 0 | SO17: =IF($BI231=SO$11,$BK231,0) -> 0 | SP17: 0 | SQ17: 0 | SR17: 0 | SS17: 0 | ST17: 0 | SU17: 0 | SV17: 0 | SW17: 0 | SX17: 0 | SY17: 0 | SZ17: 0 | TA17: 0 | TB17: 0 | TC17: 0 | TD17: 0 | TE17: 0 | TF17: 0 | TG17: 0 | TH17: 0 | TI17: 0 | TJ17: 0 | TK17: 0 | TL17: 0 | TM17: 0 | TN17: 0 | TO17: 0 | TP17: 0 | TQ17: 0 | TR17: 0 | TS17: 0 | TT17: 0 | TU17: 0 | TV17: 0 | TW17: 0 | TX17: 0 | TY17: 0 | TZ17: 0 | UA17: 0 | UB17: 0 | UC17: 0 | UD17: 0 | UE17: 0 | UF17: 0 | UG17: 0 | UH17: 0 | UI17: 0 | UJ17: 0 | UK17: 0 | UL17: 0 | UM17: 0 | UN17: 0 | UO17: 0
A18: 18 | C18: Spacer Gaskett | E18: =Data!E24 -> 0 | F18: mm | U18: 29.5 | V18: 0 | X18: 27.5 | Y18: 0 | Z18: 0 | AJ18: 54.2 | AK18: 170.3275938 | AL18: 9.672406168 | AM18: 0.3 | AN18: 0.1 | AO18: 8.508677449 | AP18: 20.18049051 | AQ18: 0.3 | AR18: 0.1 | AS18: 0 | AT18: 0 | AU18: =IF('Transfer New'!$BK$12>MAX(AM18,AQ18),0,AL18) -> 0 | AV18: 0 | AW18: 0 | AX18: 0 | AZ18: 0 | BA18: 9.6 | BD18: 0 | BE18: 0 | BI18: =IF($BI232=BI$11,$BK232,0) -> 6 | BJ18: 0 | BK18: 0 | BL18: 0 | BM18: 0 | BN18: 0 | BO18: 0 | BP18: 0 | BQ18: 0 | BR18: 0 | BS18: 0 | BT18: 0 | BU18: 0 | BV18: 0 | BW18: 0 | BX18: 0 | BY18: 0 | BZ18: 0 | CA18: 0 | CB18: 0 | CC18: 0 | CD18: 0 | CE18: 0 | CF18: 0 | CG18: 0 | CH18: 0 | CI18: 0 | CJ18: 0 | CK18: 0 | CL18: 0 | CM18: 0 | CN18: 0 | CO18: 0 | CP18: 0 | CQ18: 0 | CR18: 0 | CS18: 0 | CT18: 0 | CU18: 0 | CV18: 0 | CW18: 0 | CX18: 0 | CY18: 0 | CZ18: 0 | DA18: 0 | DB18: 0 | DC18: 0 | DD18: 0 | DE18: 0 | DF18: 0 | DG18: 0 | DH18: 0 | DI18: 0 | DJ18: 0 | DK18: 0 | DL18: 0 | DM18: 0 | DN18: 0 | DO18: 0 | DP18: 0 | DQ18: 0 | DR18: 0 | DS18: 0 | DT18: 0 | DU18: =IF($BI232=DU$11,$BK232,0) -> 0 | DV18: 0 | DW18: 0 | DX18: 0 | DY18: 0 | DZ18: 0 | EA18: 0 | EB18: 0 | EC18: 0 | ED18: 0 | EE18: 0 | EF18: 0 | EG18: 0 | EH18: 0 | EI18: 0 | EJ18: 0 | EK18: 0 | EL18: 0 | EM18: 0 | EN18: 0 | EO18: 0 | EP18: 0 | EQ18: 0 | ER18: 0 | ES18: 0 | ET18: 0 | EU18: 0 | EV18: 0 | EW18: 0 | EX18: 0 | EY18: 0 | EZ18: 0 | FA18: 0 | FB18: 0 | FC18: 0 | FD18: 0 | FE18: 0 | FF18: 0 | FG18: 0 | FH18: 0 | FI18: 0 | FJ18: 0 | FK18: 0 | FL18: 0 | FM18: 0 | FN18: 0 | FO18: 0 | FP18: 0 | FQ18: 0 | FR18: 0 | FS18: 0 | FT18: 0 | FU18: 0 | FV18: 0 | FW18: 0 | FX18: 0 | FY18: 0 | FZ18: 0 | GA18: 0 | GB18: 0 | GC18: 0 | GD18: 0 | GE18: 0 | GF18: 0 | GG18: =IF($BI232=GG$11,$BK232,0) -> 0 | GH18: 0 | GI18: 0 | GJ18: 0 | GK18: 0 | GL18: 0 | GM18: 0 | GN18: 0 | GO18: 0 | GP18: 0 | GQ18: 0 | GR18: 0 | GS18: 0 | GT18: 0 | GU18: 0 | GV18: 0 | GW18: 0 | GX18: 0 | GY18: 0 | GZ18: 0 | HA18: 0 | HB18: 0 | HC18: 0 | HD18: 0 | HE18: 0 | HF18: 0 | HG18: 0 | HH18: 0 | HI18: 0 | HJ18: 0 | HK18: 0 | HL18: 0 | HM18: 0 | HN18: 0 | HO18: 0 | HP18: 0 | HQ18: 0 | HR18: 0 | HS18: 0 | HT18: 0 | HU18: 0 | HV18: 0 | HW18: 0 | HX18: 0 | HY18: 0 | HZ18: 0 | IA18: 0 | IB18: 0 | IC18: 0 | ID18: 0 | IE18: 0 | IF18: 0 | IG18: 0 | IH18: 0 | II18: 0 | IJ18: 0 | IK18: 0 | IL18: 0 | IM18: 0 | IN18: 0 | IO18: 0 | IP18: 0 | IQ18: 0 | IR18: 0 | IS18: =IF($BI232=IS$11,$BK232,0) -> 0 | IT18: 0 | IU18: 0 | IV18: 0 | IW18: 0 | IX18: 0 | IY18: 0 | IZ18: 0 | JA18: 0 | JB18: 0 | JC18: 0 | JD18: 0 | JE18: 0 | JF18: 0 | JG18: 0 | JH18: 0 | JI18: 0 | JJ18: 0 | JK18: 0 | JL18: 0 | JM18: 0 | JN18: 0 | JO18: 0 | JP18: 0 | JQ18: 0 | JR18: 0 | JS18: 0 | JT18: 0 | JU18: 0 | JV18: 0 | JW18: 0 | JX18: 0 | JY18: 0 | JZ18: 0 | KA18: 0 | KB18: 0 | KC18: 0 | KD18: 0 | KE18: 0 | KF18: 0 | KG18: 0 | KH18: 0 | KI18: 0 | KJ18: 0 | KK18: 0 | KL18: 0 | KM18: 0 | KN18: 0 | KO18: 0 | KP18: 0 | KQ18: 0 | KR18: 0 | KS18: 0 | KT18: 0 | KU18: 0 | KV18: 0 | KW18: 0 | KX18: 0 | KY18: 0 | KZ18: 0 | LA18: 0 | LB18: 0 | LC18: 0 | LD18: 0 | LE18: =IF($BI232=LE$11,$BK232,0) -> 0 | LF18: 0 | LG18: 0 | LH18: 0 | LI18: 0 | LJ18: 0 | LK18: 0 | LL18: 0 | LM18: 0 | LN18: 0 | LO18: 0 | LP18: 0 | LQ18: 0 | LR18: 0 | LS18: 0 | LT18: 0 | LU18: 0 | LV18: 0 | LW18: 0 | LX18: 0 | LY18: 0 | LZ18: 0 | MA18: 0 | MB18: 0 | MC18: 0 | MD18: 0 | ME18: 0 | MF18: 0 | MG18: 0 | MH18: 0 | MI18: 0 | MJ18: 0 | MK18: 0 | ML18: 0 | MM18: 0 | MN18: 0 | MO18: 0 | MP18: 0 | MQ18: 0 | MR18: 0 | MS18: 0 | MT18: 0 | MU18: 0 | MV18: 0 | MW18: 0 | MX18: 0 | MY18: 0 | MZ18: 0 | NA18: 0 | NB18: 0 | NC18: 0 | ND18: 0 | NE18: 0 | NF18: 0 | NG18: 0 | NH18: 0 | NI18: 0 | NJ18: 0 | NK18: 0 | NL18: 0 | NM18: 0 | NN18: 0 | NO18: 0 | NP18: 0 | NQ18: =IF($BI232=NQ$11,$BK232,0) -> 0 | NR18: 0 | NS18: 0 | NT18: 0 | NU18: 0 | NV18: 0 | NW18: 0 | NX18: 0 | NY18: 0 | NZ18: 0 | OA18: 0 | OB18: 0 | OC18: 0 | OD18: 0 | OE18: 0 | OF18: 0 | OG18: 0 | OH18: 0 | OI18: 0 | OJ18: 0 | OK18: 0 | OL18: 0 | OM18: 0 | ON18: 0 | OO18: 0 | OP18: 0 | OQ18: 0 | OR18: 0 | OS18: 0 | OT18: 0 | OU18: 0 | OV18: 0 | OW18: 0 | OX18: 0 | OY18: 0 | OZ18: 0 | PA18: 0 | PB18: 0 | PC18: 0 | PD18: 0 | PE18: 0 | PF18: 0 | PG18: 0 | PH18: 0 | PI18: 0 | PJ18: 0 | PK18: 0 | PL18: 0 | PM18: 0 | PN18: 0 | PO18: 0 | PP18: 0 | PQ18: 0 | PR18: 0 | PS18: 0 | PT18: 0 | PU18: 0 | PV18: 0 | PW18: 0 | PX18: 0 | PY18: 0 | PZ18: 0 | QA18: 0 | QB18: 0 | QC18: =IF($BI232=QC$11,$BK232,0) -> 0 | QD18: 0 | QE18: 0 | QF18: 0 | QG18: 0 | QH18: 0 | QI18: 0 | QJ18: 0 | QK18: 0 | QL18: 0 | QM18: 0 | QN18: 0 | QO18: 0 | QP18: 0 | QQ18: 0 | QR18: 0 | QS18: 0 | QT18: 0 | QU18: 0 | QV18: 0 | QW18: 0 | QX18: 0 | QY18: 0 | QZ18: 0 | RA18: 0 | RB18: 0 | RC18: 0 | RD18: 0 | RE18: 0 | RF18: 0 | RG18: 0 | RH18: 0 | RI18: 0 | RJ18: 0 | RK18: 0 | RL18: 0 | RM18: 0 | RN18: 0 | RO18: 0 | RP18: 0 | RQ18: 0 | RR18: 0 | RS18: 0 | RT18: 0 | RU18: 0 | RV18: 0 | RW18: 0 | RX18: 0 | RY18: 0 | RZ18: 0 | SA18: 0 | SB18: 0 | SC18: 0 | SD18: 0 | SE18: 0 | SF18: 0 | SG18: 0 | SH18: 0 | SI18: 0 | SJ18: 0 | SK18: 0 | SL18: 0 | SM18: 0 | SN18: 0 | SO18: =IF($BI232=SO$11,$BK232,0) -> 0 | SP18: 0 | SQ18: 0 | SR18: 0 | SS18: 0 | ST18: 0 | SU18: 0 | SV18: 0 | SW18: 0 | SX18: 0 | SY18: 0 | SZ18: 0 | TA18: 0 | TB18: 0 | TC18: 0 | TD18: 0 | TE18: 0 | TF18: 0 | TG18: 0 | TH18: 0 | TI18: 0 | TJ18: 0 | TK18: 0 | TL18: 0 | TM18: 0 | TN18: 0 | TO18: 0 | TP18: 0 | TQ18: 0 | TR18: 0 | TS18: 0 | TT18: 0 | TU18: 0 | TV18: 0 | TW18: 0 | TX18: 0 | TY18: 0 | TZ18: 0 | UA18: 0 | UB18: 0 | UC18: 0 | UD18: 0 | UE18: 0 | UF18: 0 | UG18: 0 | UH18: 0 | UI18: 0 | UJ18: 0 | UK18: 0 | UL18: 0 | UM18: 0 | UN18: 0 | UO18: 0
A19: 19 | U19: 29.5 | V19: 0 | X19: 27.5 | Y19: 0 | Z19: 0 | AJ19: 54.1 | AK19: 168.8305166 | AL19: 11.16948339 | AM19: 0.4 | AN19: 0.1 | AO19: 9.558846174 | AP19: 25.18116146 | AQ19: 0.4 | AR19: 0.1 | AS19: 0 | AT19: 0 | AU19: =IF('Transfer New'!$BK$12>MAX(AM19,AQ19),0,AL19) -> 0 | AV19: 0 | AW19: 0 | AX19: 0 | AZ19: 0 | BA19: 10.8 | BD19: 0 | BE19: 0 | BI19: =IF($BI233=BI$11,$BK233,0) -> 0 | BJ19: 0 | BK19: 0 | BL19: 0 | BM19: 0 | BN19: 0 | BO19: 0 | BP19: 0 | BQ19: 0 | BR19: 0 | BS19: 18 | BT19: 0 | BU19: 0 | BV19: 0 | BW19: 0 | BX19: 0 | BY19: 0 | BZ19: 0 | CA19: 0 | CB19: 0 | CC19: 0 | CD19: 0 | CE19: 0 | CF19: 0 | CG19: 0 | CH19: 0 | CI19: 0 | CJ19: 0 | CK19: 0 | CL19: 0 | CM19: 0 | CN19: 0 | CO19: 0 | CP19: 0 | CQ19: 0 | CR19: 0 | CS19: 0 | CT19: 0 | CU19: 0 | CV19: 0 | CW19: 0 | CX19: 0 | CY19: 0 | CZ19: 0 | DA19: 0 | DB19: 0 | DC19: 0 | DD19: 0 | DE19: 0 | DF19: 0 | DG19: 0 | DH19: 0 | DI19: 0 | DJ19: 0 | DK19: 0 | DL19: 0 | DM19: 0 | DN19: 0 | DO19: 0 | DP19: 0 | DQ19: 0 | DR19: 0 | DS19: 0 | DT19: 0 | DU19: =IF($BI233=DU$11,$BK233,0) -> 0 | DV19: 0 | DW19: 0 | DX19: 0 | DY19: 0 | DZ19: 0 | EA19: 0 | EB19: 0 | EC19: 0 | ED19: 0 | EE19: 0 | EF19: 0 | EG19: 0 | EH19: 0 | EI19: 0 | EJ19: 0 | EK19: 0 | EL19: 0 | EM19: 0 | EN19: 0 | EO19: 0 | EP19: 0 | EQ19: 0 | ER19: 0 | ES19: 0 | ET19: 0 | EU19: 0 | EV19: 0 | EW19: 0 | EX19: 0 | EY19: 0 | EZ19: 0 | FA19: 0 | FB19: 0 | FC19: 0 | FD19: 0 | FE19: 0 | FF19: 0 | FG19: 0 | FH19: 0 | FI19: 0 | FJ19: 0 | FK19: 0 | FL19: 0 | FM19: 0 | FN19: 0 | FO19: 0 | FP19: 0 | FQ19: 0 | FR19: 0 | FS19: 0 | FT19: 0 | FU19: 0 | FV19: 0 | FW19: 0 | FX19: 0 | FY19: 0 | FZ19: 0 | GA19: 0 | GB19: 0 | GC19: 0 | GD19: 0 | GE19: 0 | GF19: 0 | GG19: =IF($BI233=GG$11,$BK233,0) -> 0 | GH19: 0 | GI19: 0 | GJ19: 0 | GK19: 0 | GL19: 0 | GM19: 0 | GN19: 0 | GO19: 0 | GP19: 0 | GQ19: 0 | GR19: 0 | GS19: 0 | GT19: 0 | GU19: 0 | GV19: 0 | GW19: 0 | GX19: 0 | GY19: 0 | GZ19: 0 | HA19: 0 | HB19: 0 | HC19: 0 | HD19: 0 | HE19: 0 | HF19: 0 | HG19: 0 | HH19: 0 | HI19: 0 | HJ19: 0 | HK19: 0 | HL19: 0 | HM19: 0 | HN19: 0 | HO19: 0 | HP19: 0 | HQ19: 0 | HR19: 0 | HS19: 0 | HT19: 0 | HU19: 0 | HV19: 0 | HW19: 0 | HX19: 0 | HY19: 0 | HZ19: 0 | IA19: 0 | IB19: 0 | IC19: 0 | ID19: 0 | IE19: 0 | IF19: 0 | IG19: 0 | IH19: 0 | II19: 0 | IJ19: 0 | IK19: 0 | IL19: 0 | IM19: 0 | IN19: 0 | IO19: 0 | IP19: 0 | IQ19: 0 | IR19: 0 | IS19: =IF($BI233=IS$11,$BK233,0) -> 0 | IT19: 0 | IU19: 0 | IV19: 0 | IW19: 0 | IX19: 0 | IY19: 0 | IZ19: 0 | JA19: 0 | JB19: 0 | JC19: 0 | JD19: 0 | JE19: 0 | JF19: 0 | JG19: 0 | JH19: 0 | JI19: 0 | JJ19: 0 | JK19: 0 | JL19: 0 | JM19: 0 | JN19: 0 | JO19: 0 | JP19: 0 | JQ19: 0 | JR19: 0 | JS19: 0 | JT19: 0 | JU19: 0 | JV19: 0 | JW19: 0 | JX19: 0 | JY19: 0 | JZ19: 0 | KA19: 0 | KB19: 0 | KC19: 0 | KD19: 0 | KE19: 0 | KF19: 0 | KG19: 0 | KH19: 0 | KI19: 0 | KJ19: 0 | KK19: 0 | KL19: 0 | KM19: 0 | KN19: 0 | KO19: 0 | KP19: 0 | KQ19: 0 | KR19: 0 | KS19: 0 | KT19: 0 | KU19: 0 | KV19: 0 | KW19: 0 | KX19: 0 | KY19: 0 | KZ19: 0 | LA19: 0 | LB19: 0 | LC19: 0 | LD19: 0 | LE19: =IF($BI233=LE$11,$BK233,0) -> 0 | LF19: 0 | LG19: 0 | LH19: 0 | LI19: 0 | LJ19: 0 | LK19: 0 | LL19: 0 | LM19: 0 | LN19: 0 | LO19: 0 | LP19: 0 | LQ19: 0 | LR19: 0 | LS19: 0 | LT19: 0 | LU19: 0 | LV19: 0 | LW19: 0 | LX19: 0 | LY19: 0 | LZ19: 0 | MA19: 0 | MB19: 0 | MC19: 0 | MD19: 0 | ME19: 0 | MF19: 0 | MG19: 0 | MH19: 0 | MI19: 0 | MJ19: 0 | MK19: 0 | ML19: 0 | MM19: 0 | MN19: 0 | MO19: 0 | MP19: 0 | MQ19: 0 | MR19: 0 | MS19: 0 | MT19: 0 | MU19: 0 | MV19: 0 | MW19: 0 | MX19: 0 | MY19: 0 | MZ19: 0 | NA19: 0 | NB19: 0 | NC19: 0 | ND19: 0 | NE19: 0 | NF19: 0 | NG19: 0 | NH19: 0 | NI19: 0 | NJ19: 0 | NK19: 0 | NL19: 0 | NM19: 0 | NN19: 0 | NO19: 0 | NP19: 0 | NQ19: =IF($BI233=NQ$11,$BK233,0) -> 0 | NR19: 0 | NS19: 0 | NT19: 0 | NU19: 0 | NV19: 0 | NW19: 0 | NX19: 0 | NY19: 0 | NZ19: 0 | OA19: 0 | OB19: 0 | OC19: 0 | OD19: 0 | OE19: 0 | OF19: 0 | OG19: 0 | OH19: 0 | OI19: 0 | OJ19: 0 | OK19: 0 | OL19: 0 | OM19: 0 | ON19: 0 | OO19: 0 | OP19: 0 | OQ19: 0 | OR19: 0 | OS19: 0 | OT19: 0 | OU19: 0 | OV19: 0 | OW19: 0 | OX19: 0 | OY19: 0 | OZ19: 0 | PA19: 0 | PB19: 0 | PC19: 0 | PD19: 0 | PE19: 0 | PF19: 0 | PG19: 0 | PH19: 0 | PI19: 0 | PJ19: 0 | PK19: 0 | PL19: 0 | PM19: 0 | PN19: 0 | PO19: 0 | PP19: 0 | PQ19: 0 | PR19: 0 | PS19: 0 | PT19: 0 | PU19: 0 | PV19: 0 | PW19: 0 | PX19: 0 | PY19: 0 | PZ19: 0 | QA19: 0 | QB19: 0 | QC19: =IF($BI233=QC$11,$BK233,0) -> 0 | QD19: 0 | QE19: 0 | QF19: 0 | QG19: 0 | QH19: 0 | QI19: 0 | QJ19: 0 | QK19: 0 | QL19: 0 | QM19: 0 | QN19: 0 | QO19: 0 | QP19: 0 | QQ19: 0 | QR19: 0 | QS19: 0 | QT19: 0 | QU19: 0 | QV19: 0 | QW19: 0 | QX19: 0 | QY19: 0 | QZ19: 0 | RA19: 0 | RB19: 0 | RC19: 0 | RD19: 0 | RE19: 0 | RF19: 0 | RG19: 0 | RH19: 0 | RI19: 0 | RJ19: 0 | RK19: 0 | RL19: 0 | RM19: 0 | RN19: 0 | RO19: 0 | RP19: 0 | RQ19: 0 | RR19: 0 | RS19: 0 | RT19: 0 | RU19: 0 | RV19: 0 | RW19: 0 | RX19: 0 | RY19: 0 | RZ19: 0 | SA19: 0 | SB19: 0 | SC19: 0 | SD19: 0 | SE19: 0 | SF19: 0 | SG19: 0 | SH19: 0 | SI19: 0 | SJ19: 0 | SK19: 0 | SL19: 0 | SM19: 0 | SN19: 0 | SO19: =IF($BI233=SO$11,$BK233,0) -> 0 | SP19: 0 | SQ19: 0 | SR19: 0 | SS19: 0 | ST19: 0 | SU19: 0 | SV19: 0 | SW19: 0 | SX19: 0 | SY19: 0 | SZ19: 0 | TA19: 0 | TB19: 0 | TC19: 0 | TD19: 0 | TE19: 0 | TF19: 0 | TG19: 0 | TH19: 0 | TI19: 0 | TJ19: 0 | TK19: 0 | TL19: 0 | TM19: 0 | TN19: 0 | TO19: 0 | TP19: 0 | TQ19: 0 | TR19: 0 | TS19: 0 | TT19: 0 | TU19: 0 | TV19: 0 | TW19: 0 | TX19: 0 | TY19: 0 | TZ19: 0 | UA19: 0 | UB19: 0 | UC19: 0 | UD19: 0 | UE19: 0 | UF19: 0 | UG19: 0 | UH19: 0 | UI19: 0 | UJ19: 0 | UK19: 0 | UL19: 0 | UM19: 0 | UN19: 0 | UO19: 0
A20: 20 | U20: 29.5 | V20: 6 | X20: 27.5 | Y20: 0 | Z20: 0 | AJ20: 54 | AK20: 167.5112902 | AL20: 12.48870979 | AM20: 0.5 | AN20: 0.1 | AO20: 10.60429468 | AP20: 30.4399955 | AQ20: 0.5 | AR20: 0.1 | AS20: 0 | AT20: 0 | AU20: =IF('Transfer New'!$BK$12>MAX(AM20,AQ20),0,AL20) -> 0 | AV20: 0 | AW20: 0 | AX20: 0 | AZ20: 0 | BA20: 12 | BD20: 0 | BE20: 0 | BI20: =IF($BI234=BI$11,$BK234,0) -> 0 | BJ20: 0 | BK20: 0 | BL20: 0 | BM20: 0 | BN20: 0 | BO20: 0 | BP20: 0 | BQ20: 0 | BR20: 0 | BS20: 0 | BT20: 0 | BU20: 0 | BV20: 0 | BW20: 0 | BX20: 0 | BY20: 0 | BZ20: 0 | CA20: 0 | CB20: 0 | CC20: 0 | CD20: 0 | CE20: 0 | CF20: 0 | CG20: 0 | CH20: 25.5 | CI20: 0 | CJ20: 0 | CK20: 0 | CL20: 0 | CM20: 0 | CN20: 0 | CO20: 0 | CP20: 0 | CQ20: 0 | CR20: 0 | CS20: 0 | CT20: 0 | CU20: 0 | CV20: 0 | CW20: 0 | CX20: 0 | CY20: 0 | CZ20: 0 | DA20: 0 | DB20: 0 | DC20: 0 | DD20: 0 | DE20: 0 | DF20: 0 | DG20: 0 | DH20: 0 | DI20: 0 | DJ20: 0 | DK20: 0 | DL20: 0 | DM20: 0 | DN20: 0 | DO20: 0 | DP20: 0 | DQ20: 0 | DR20: 0 | DS20: 0 | DT20: 0 | DU20: =IF($BI234=DU$11,$BK234,0) -> 0 | DV20: 0 | DW20: 0 | DX20: 0 | DY20: 0 | DZ20: 0 | EA20: 0 | EB20: 0 | EC20: 0 | ED20: 0 | EE20: 0 | EF20: 0 | EG20: 0 | EH20: 0 | EI20: 0 | EJ20: 0 | EK20: 0 | EL20: 0 | EM20: 0 | EN20: 0 | EO20: 0 | EP20: 0 | EQ20: 0 | ER20: 0 | ES20: 0 | ET20: 0 | EU20: 0 | EV20: 0 | EW20: 0 | EX20: 0 | EY20: 0 | EZ20: 0 | FA20: 0 | FB20: 0 | FC20: 0 | FD20: 0 | FE20: 0 | FF20: 0 | FG20: 0 | FH20: 0 | FI20: 0 | FJ20: 0 | FK20: 0 | FL20: 0 | FM20: 0 | FN20: 0 | FO20: 0 | FP20: 0 | FQ20: 0 | FR20: 0 | FS20: 0 | FT20: 0 | FU20: 0 | FV20: 0 | FW20: 0 | FX20: 0 | FY20: 0 | FZ20: 0 | GA20: 0 | GB20: 0 | GC20: 0 | GD20: 0 | GE20: 0 | GF20: 0 | GG20: =IF($BI234=GG$11,$BK234,0) -> 0 | GH20: 0 | GI20: 0 | GJ20: 0 | GK20: 0 | GL20: 0 | GM20: 0 | GN20: 0 | GO20: 0 | GP20: 0 | GQ20: 0 | GR20: 0 | GS20: 0 | GT20: 0 | GU20: 0 | GV20: 0 | GW20: 0 | GX20: 0 | GY20: 0 | GZ20: 0 | HA20: 0 | HB20: 0 | HC20: 0 | HD20: 0 | HE20: 0 | HF20: 0 | HG20: 0 | HH20: 0 | HI20: 0 | HJ20: 0 | HK20: 0 | HL20: 0 | HM20: 0 | HN20: 0 | HO20: 0 | HP20: 0 | HQ20: 0 | HR20: 0 | HS20: 0 | HT20: 0 | HU20: 0 | HV20: 0 | HW20: 0 | HX20: 0 | HY20: 0 | HZ20: 0 | IA20: 0 | IB20: 0 | IC20: 0 | ID20: 0 | IE20: 0 | IF20: 0 | IG20: 0 | IH20: 0 | II20: 0 | IJ20: 0 | IK20: 0 | IL20: 0 | IM20: 0 | IN20: 0 | IO20: 0 | IP20: 0 | IQ20: 0 | IR20: 0 | IS20: =IF($BI234=IS$11,$BK234,0) -> 0 | IT20: 0 | IU20: 0 | IV20: 0 | IW20: 0 | IX20: 0 | IY20: 0 | IZ20: 0 | JA20: 0 | JB20: 0 | JC20: 0 | JD20: 0 | JE20: 0 | JF20: 0 | JG20: 0 | JH20: 0 | JI20: 0 | JJ20: 0 | JK20: 0 | JL20: 0 | JM20: 0 | JN20: 0 | JO20: 0 | JP20: 0 | JQ20: 0 | JR20: 0 | JS20: 0 | JT20: 0 | JU20: 0 | JV20: 0 | JW20: 0 | JX20: 0 | JY20: 0 | JZ20: 0 | KA20: 0 | KB20: 0 | KC20: 0 | KD20: 0 | KE20: 0 | KF20: 0 | KG20: 0 | KH20: 0 | KI20: 0 | KJ20: 0 | KK20: 0 | KL20: 0 | KM20: 0 | KN20: 0 | KO20: 0 | KP20: 0 | KQ20: 0 | KR20: 0 | KS20: 0 | KT20: 0 | KU20: 0 | KV20: 0 | KW20: 0 | KX20: 0 | KY20: 0 | KZ20: 0 | LA20: 0 | LB20: 0 | LC20: 0 | LD20: 0 | LE20: =IF($BI234=LE$11,$BK234,0) -> 0 | LF20: 0 | LG20: 0 | LH20: 0 | LI20: 0 | LJ20: 0 | LK20: 0 | LL20: 0 | LM20: 0 | LN20: 0 | LO20: 0 | LP20: 0 | LQ20: 0 | LR20: 0 | LS20: 0 | LT20: 0 | LU20: 0 | LV20: 0 | LW20: 0 | LX20: 0 | LY20: 0 | LZ20: 0 | MA20: 0 | MB20: 0 | MC20: 0 | MD20: 0 | ME20: 0 | MF20: 0 | MG20: 0 | MH20: 0 | MI20: 0 | MJ20: 0 | MK20: 0 | ML20: 0 | MM20: 0 | MN20: 0 | MO20: 0 | MP20: 0 | MQ20: 0 | MR20: 0 | MS20: 0 | MT20: 0 | MU20: 0 | MV20: 0 | MW20: 0 | MX20: 0 | MY20: 0 | MZ20: 0 | NA20: 0 | NB20: 0 | NC20: 0 | ND20: 0 | NE20: 0 | NF20: 0 | NG20: 0 | NH20: 0 | NI20: 0 | NJ20: 0 | NK20: 0 | NL20: 0 | NM20: 0 | NN20: 0 | NO20: 0 | NP20: 0 | NQ20: =IF($BI234=NQ$11,$BK234,0) -> 0 | NR20: 0 | NS20: 0 | NT20: 0 | NU20: 0 | NV20: 0 | NW20: 0 | NX20: 0 | NY20: 0 | NZ20: 0 | OA20: 0 | OB20: 0 | OC20: 0 | OD20: 0 | OE20: 0 | OF20: 0 | OG20: 0 | OH20: 0 | OI20: 0 | OJ20: 0 | OK20: 0 | OL20: 0 | OM20: 0 | ON20: 0 | OO20: 0 | OP20: 0 | OQ20: 0 | OR20: 0 | OS20: 0 | OT20: 0 | OU20: 0 | OV20: 0 | OW20: 0 | OX20: 0 | OY20: 0 | OZ20: 0 | PA20: 0 | PB20: 0 | PC20: 0 | PD20: 0 | PE20: 0 | PF20: 0 | PG20: 0 | PH20: 0 | PI20: 0 | PJ20: 0 | PK20: 0 | PL20: 0 | PM20: 0 | PN20: 0 | PO20: 0 | PP20: 0 | PQ20: 0 | PR20: 0 | PS20: 0 | PT20: 0 | PU20: 0 | PV20: 0 | PW20: 0 | PX20: 0 | PY20: 0 | PZ20: 0 | QA20: 0 | QB20: 0 | QC20: =IF($BI234=QC$11,$BK234,0) -> 0 | QD20: 0 | QE20: 0 | QF20: 0 | QG20: 0 | QH20: 0 | QI20: 0 | QJ20: 0 | QK20: 0 | QL20: 0 | QM20: 0 | QN20: 0 | QO20: 0 | QP20: 0 | QQ20: 0 | QR20: 0 | QS20: 0 | QT20: 0 | QU20: 0 | QV20: 0 | QW20: 0 | QX20: 0 | QY20: 0 | QZ20: 0 | RA20: 0 | RB20: 0 | RC20: 0 | RD20: 0 | RE20: 0 | RF20: 0 | RG20: 0 | RH20: 0 | RI20: 0 | RJ20: 0 | RK20: 0 | RL20: 0 | RM20: 0 | RN20: 0 | RO20: 0 | RP20: 0 | RQ20: 0 | RR20: 0 | RS20: 0 | RT20: 0 | RU20: 0 | RV20: 0 | RW20: 0 | RX20: 0 | RY20: 0 | RZ20: 0 | SA20: 0 | SB20: 0 | SC20: 0 | SD20: 0 | SE20: 0 | SF20: 0 | SG20: 0 | SH20: 0 | SI20: 0 | SJ20: 0 | SK20: 0 | SL20: 0 | SM20: 0 | SN20: 0 | SO20: =IF($BI234=SO$11,$BK234,0) -> 0 | SP20: 0 | SQ20: 0 | SR20: 0 | SS20: 0 | ST20: 0 | SU20: 0 | SV20: 0 | SW20: 0 | SX20: 0 | SY20: 0 | SZ20: 0 | TA20: 0 | TB20: 0 | TC20: 0 | TD20: 0 | TE20: 0 | TF20: 0 | TG20: 0 | TH20: 0 | TI20: 0 | TJ20: 0 | TK20: 0 | TL20: 0 | TM20: 0 | TN20: 0 | TO20: 0 | TP20: 0 | TQ20: 0 | TR20: 0 | TS20: 0 | TT20: 0 | TU20: 0 | TV20: 0 | TW20: 0 | TX20: 0 | TY20: 0 | TZ20: 0 | UA20: 0 | UB20: 0 | UC20: 0 | UD20: 0 | UE20: 0 | UF20: 0 | UG20: 0 | UH20: 0 | UI20: 0 | UJ20: 0 | UK20: 0 | UL20: 0 | UM20: 0 | UN20: 0 | UO20: 0
A21: 21 | C21: Exhaust Timing | U21: 29 | V21: 15 | X21: 27.5 | Y21: 0 | Z21: 0 | AJ21: 53.9 | AK21: 166.3183661 | AL21: 13.68163389 | AM21: 0.6 | AN21: 0.1 | AO21: 11.6445067 | AP21: 35.9473634 | AQ21: 0.6 | AR21: 0.1 | AS21: 0 | AT21: 0 | AU21: =IF('Transfer New'!$BK$12>MAX(AM21,AQ21),0,AL21) -> 0 | AV21: 0 | AW21: 0 | AX21: 0 | AZ21: 0 | BA21: 13.2 | BD21: 0 | BE21: 0 | BI21: =IF($BI235=BI$11,$BK235,0) -> 0 | BJ21: 0 | BK21: 0 | BL21: 0 | BM21: 0 | BN21: 0 | BO21: 0 | BP21: 0 | BQ21: 0 | BR21: 0 | BS21: 0 | BT21: 0 | BU21: 0 | BV21: 0 | BW21: 0 | BX21: 0 | BY21: 0 | BZ21: 0 | CA21: 0 | CB21: 0 | CC21: 0 | CD21: 0 | CE21: 0 | CF21: 0 | CG21: 0 | CH21: 0 | CI21: 0 | CJ21: 0 | CK21: 0 | CL21: 0 | CM21: 0 | CN21: 0 | CO21: 0 | CP21: 0 | CQ21: 0 | CR21: 0 | CS21: 0 | CT21: 0 | CU21: 0 | CV21: 0 | CW21: 0 | CX21: 0 | CY21: 0 | CZ21: 0 | DA21: 0 | DB21: 31.5 | DC21: 0 | DD21: 0 | DE21: 0 | DF21: 0 | DG21: 0 | DH21: 0 | DI21: 0 | DJ21: 0 | DK21: 0 | DL21: 0 | DM21: 0 | DN21: 0 | DO21: 0 | DP21: 0 | DQ21: 0 | DR21: 0 | DS21: 0 | DT21: 0 | DU21: =IF($BI235=DU$11,$BK235,0) -> 0 | DV21: 0 | DW21: 0 | DX21: 0 | DY21: 0 | DZ21: 0 | EA21: 0 | EB21: 0 | EC21: 0 | ED21: 0 | EE21: 0 | EF21: 0 | EG21: 0 | EH21: 0 | EI21: 0 | EJ21: 0 | EK21: 0 | EL21: 0 | EM21: 0 | EN21: 0 | EO21: 0 | EP21: 0 | EQ21: 0 | ER21: 0 | ES21: 0 | ET21: 0 | EU21: 0 | EV21: 0 | EW21: 0 | EX21: 0 | EY21: 0 | EZ21: 0 | FA21: 0 | FB21: 0 | FC21: 0 | FD21: 0 | FE21: 0 | FF21: 0 | FG21: 0 | FH21: 0 | FI21: 0 | FJ21: 0 | FK21: 0 | FL21: 0 | FM21: 0 | FN21: 0 | FO21: 0 | FP21: 0 | FQ21: 0 | FR21: 0 | FS21: 0 | FT21: 0 | FU21: 0 | FV21: 0 | FW21: 0 | FX21: 0 | FY21: 0 | FZ21: 0 | GA21: 0 | GB21: 0 | GC21: 0 | GD21: 0 | GE21: 0 | GF21: 0 | GG21: =IF($BI235=GG$11,$BK235,0) -> 0 | GH21: 0 | GI21: 0 | GJ21: 0 | GK21: 0 | GL21: 0 | GM21: 0 | GN21: 0 | GO21: 0 | GP21: 0 | GQ21: 0 | GR21: 0 | GS21: 0 | GT21: 0 | GU21: 0 | GV21: 0 | GW21: 0 | GX21: 0 | GY21: 0 | GZ21: 0 | HA21: 0 | HB21: 0 | HC21: 0 | HD21: 0 | HE21: 0 | HF21: 0 | HG21: 0 | HH21: 0 | HI21: 0 | HJ21: 0 | HK21: 0 | HL21: 0 | HM21: 0 | HN21: 0 | HO21: 0 | HP21: 0 | HQ21: 0 | HR21: 0 | HS21: 0 | HT21: 0 | HU21: 0 | HV21: 0 | HW21: 0 | HX21: 0 | HY21: 0 | HZ21: 0 | IA21: 0 | IB21: 0 | IC21: 0 | ID21: 0 | IE21: 0 | IF21: 0 | IG21: 0 | IH21: 0 | II21: 0 | IJ21: 0 | IK21: 0 | IL21: 0 | IM21: 0 | IN21: 0 | IO21: 0 | IP21: 0 | IQ21: 0 | IR21: 0 | IS21: =IF($BI235=IS$11,$BK235,0) -> 0 | IT21: 0 | IU21: 0 | IV21: 0 | IW21: 0 | IX21: 0 | IY21: 0 | IZ21: 0 | JA21: 0 | JB21: 0 | JC21: 0 | JD21: 0 | JE21: 0 | JF21: 0 | JG21: 0 | JH21: 0 | JI21: 0 | JJ21: 0 | JK21: 0 | JL21: 0 | JM21: 0 | JN21: 0 | JO21: 0 | JP21: 0 | JQ21: 0 | JR21: 0 | JS21: 0 | JT21: 0 | JU21: 0 | JV21: 0 | JW21: 0 | JX21: 0 | JY21: 0 | JZ21: 0 | KA21: 0 | KB21: 0 | KC21: 0 | KD21: 0 | KE21: 0 | KF21: 0 | KG21: 0 | KH21: 0 | KI21: 0 | KJ21: 0 | KK21: 0 | KL21: 0 | KM21: 0 | KN21: 0 | KO21: 0 | KP21: 0 | KQ21: 0 | KR21: 0 | KS21: 0 | KT21: 0 | KU21: 0 | KV21: 0 | KW21: 0 | KX21: 0 | KY21: 0 | KZ21: 0 | LA21: 0 | LB21: 0 | LC21: 0 | LD21: 0 | LE21: =IF($BI235=LE$11,$BK235,0) -> 0 | LF21: 0 | LG21: 0 | LH21: 0 | LI21: 0 | LJ21: 0 | LK21: 0 | LL21: 0 | LM21: 0 | LN21: 0 | LO21: 0 | LP21: 0 | LQ21: 0 | LR21: 0 | LS21: 0 | LT21: 0 | LU21: 0 | LV21: 0 | LW21: 0 | LX21: 0 | LY21: 0 | LZ21: 0 | MA21: 0 | MB21: 0 | MC21: 0 | MD21: 0 | ME21: 0 | MF21: 0 | MG21: 0 | MH21: 0 | MI21: 0 | MJ21: 0 | MK21: 0 | ML21: 0 | MM21: 0 | MN21: 0 | MO21: 0 | MP21: 0 | MQ21: 0 | MR21: 0 | MS21: 0 | MT21: 0 | MU21: 0 | MV21: 0 | MW21: 0 | MX21: 0 | MY21: 0 | MZ21: 0 | NA21: 0 | NB21: 0 | NC21: 0 | ND21: 0 | NE21: 0 | NF21: 0 | NG21: 0 | NH21: 0 | NI21: 0 | NJ21: 0 | NK21: 0 | NL21: 0 | NM21: 0 | NN21: 0 | NO21: 0 | NP21: 0 | NQ21: =IF($BI235=NQ$11,$BK235,0) -> 0 | NR21: 0 | NS21: 0 | NT21: 0 | NU21: 0 | NV21: 0 | NW21: 0 | NX21: 0 | NY21: 0 | NZ21: 0 | OA21: 0 | OB21: 0 | OC21: 0 | OD21: 0 | OE21: 0 | OF21: 0 | OG21: 0 | OH21: 0 | OI21: 0 | OJ21: 0 | OK21: 0 | OL21: 0 | OM21: 0 | ON21: 0 | OO21: 0 | OP21: 0 | OQ21: 0 | OR21: 0 | OS21: 0 | OT21: 0 | OU21: 0 | OV21: 0 | OW21: 0 | OX21: 0 | OY21: 0 | OZ21: 0 | PA21: 0 | PB21: 0 | PC21: 0 | PD21: 0 | PE21: 0 | PF21: 0 | PG21: 0 | PH21: 0 | PI21: 0 | PJ21: 0 | PK21: 0 | PL21: 0 | PM21: 0 | PN21: 0 | PO21: 0 | PP21: 0 | PQ21: 0 | PR21: 0 | PS21: 0 | PT21: 0 | PU21: 0 | PV21: 0 | PW21: 0 | PX21: 0 | PY21: 0 | PZ21: 0 | QA21: 0 | QB21: 0 | QC21: =IF($BI235=QC$11,$BK235,0) -> 0 | QD21: 0 | QE21: 0 | QF21: 0 | QG21: 0 | QH21: 0 | QI21: 0 | QJ21: 0 | QK21: 0 | QL21: 0 | QM21: 0 | QN21: 0 | QO21: 0 | QP21: 0 | QQ21: 0 | QR21: 0 | QS21: 0 | QT21: 0 | QU21: 0 | QV21: 0 | QW21: 0 | QX21: 0 | QY21: 0 | QZ21: 0 | RA21: 0 | RB21: 0 | RC21: 0 | RD21: 0 | RE21: 0 | RF21: 0 | RG21: 0 | RH21: 0 | RI21: 0 | RJ21: 0 | RK21: 0 | RL21: 0 | RM21: 0 | RN21: 0 | RO21: 0 | RP21: 0 | RQ21: 0 | RR21: 0 | RS21: 0 | RT21: 0 | RU21: 0 | RV21: 0 | RW21: 0 | RX21: 0 | RY21: 0 | RZ21: 0 | SA21: 0 | SB21: 0 | SC21: 0 | SD21: 0 | SE21: 0 | SF21: 0 | SG21: 0 | SH21: 0 | SI21: 0 | SJ21: 0 | SK21: 0 | SL21: 0 | SM21: 0 | SN21: 0 | SO21: =IF($BI235=SO$11,$BK235,0) -> 0 | SP21: 0 | SQ21: 0 | SR21: 0 | SS21: 0 | ST21: 0 | SU21: 0 | SV21: 0 | SW21: 0 | SX21: 0 | SY21: 0 | SZ21: 0 | TA21: 0 | TB21: 0 | TC21: 0 | TD21: 0 | TE21: 0 | TF21: 0 | TG21: 0 | TH21: 0 | TI21: 0 | TJ21: 0 | TK21: 0 | TL21: 0 | TM21: 0 | TN21: 0 | TO21: 0 | TP21: 0 | TQ21: 0 | TR21: 0 | TS21: 0 | TT21: 0 | TU21: 0 | TV21: 0 | TW21: 0 | TX21: 0 | TY21: 0 | TZ21: 0 | UA21: 0 | UB21: 0 | UC21: 0 | UD21: 0 | UE21: 0 | UF21: 0 | UG21: 0 | UH21: 0 | UI21: 0 | UJ21: 0 | UK21: 0 | UL21: 0 | UM21: 0 | UN21: 0 | UO21: 0
A22: 22 | C22: Desired Exhaust Timing | E22: 200 | F22: ° | M22: =IF(B300=1," co p y r i g h t J a n B r o s","") ->  | U22: 28.5 | V22: 20.5 | X22: 27.5 | Y22: 0 | Z22: 0 | AJ22: 53.8 | AK22: 165.2211236 | AL22: 14.77887635 | AM22: 0.7 | AN22: 0.1 | AO22: 12.6789686 | AP22: 41.69112023 | AQ22: 0.7 | AR22: 0.1 | AS22: 0 | AT22: 0 | AU22: =IF('Transfer New'!$BK$12>MAX(AM22,AQ22),0,AL22) -> 0 | AV22: 0 | AW22: 0 | AX22: 0 | AZ22: 0 | BA22: 14.4 | BD22: 0 | BE22: 0 | BI22: =IF($BI236=BI$11,$BK236,0) -> 0 | BJ22: 0 | BK22: 0 | BL22: 0 | BM22: 0 | BN22: 0 | BO22: 0 | BP22: 0 | BQ22: 0 | BR22: 0 | BS22: 0 | BT22: 0 | BU22: 0 | BV22: 0 | BW22: 0 | BX22: 0 | BY22: 0 | BZ22: 0 | CA22: 0 | CB22: 0 | CC22: 0 | CD22: 0 | CE22: 0 | CF22: 0 | CG22: 0 | CH22: 0 | CI22: 0 | CJ22: 0 | CK22: 0 | CL22: 0 | CM22: 0 | CN22: 0 | CO22: 0 | CP22: 0 | CQ22: 0 | CR22: 0 | CS22: 0 | CT22: 0 | CU22: 0 | CV22: 0 | CW22: 0 | CX22: 0 | CY22: 0 | CZ22: 0 | DA22: 0 | DB22: 0 | DC22: 0 | DD22: 0 | DE22: 0 | DF22: 0 | DG22: 0 | DH22: 0 | DI22: 0 | DJ22: 0 | DK22: 0 | DL22: 0 | DM22: 0 | DN22: 0 | DO22: 0 | DP22: 0 | DQ22: 0 | DR22: 0 | DS22: 0 | DT22: 0 | DU22: =IF($BI236=DU$11,$BK236,0) -> 0 | DV22: 36.7 | DW22: 0 | DX22: 0 | DY22: 0 | DZ22: 0 | EA22: 0 | EB22: 0 | EC22: 0 | ED22: 0 | EE22: 0 | EF22: 0 | EG22: 0 | EH22: 0 | EI22: 0 | EJ22: 0 | EK22: 0 | EL22: 0 | EM22: 0 | EN22: 0 | EO22: 0 | EP22: 0 | EQ22: 0 | ER22: 0 | ES22: 0 | ET22: 0 | EU22: 0 | EV22: 0 | EW22: 0 | EX22: 0 | EY22: 0 | EZ22: 0 | FA22: 0 | FB22: 0 | FC22: 0 | FD22: 0 | FE22: 0 | FF22: 0 | FG22: 0 | FH22: 0 | FI22: 0 | FJ22: 0 | FK22: 0 | FL22: 0 | FM22: 0 | FN22: 0 | FO22: 0 | FP22: 0 | FQ22: 0 | FR22: 0 | FS22: 0 | FT22: 0 | FU22: 0 | FV22: 0 | FW22: 0 | FX22: 0 | FY22: 0 | FZ22: 0 | GA22: 0 | GB22: 0 | GC22: 0 | GD22: 0 | GE22: 0 | GF22: 0 | GG22: =IF($BI236=GG$11,$BK236,0) -> 0 | GH22: 0 | GI22: 0 | GJ22: 0 | GK22: 0 | GL22: 0 | GM22: 0 | GN22: 0 | GO22: 0 | GP22: 0 | GQ22: 0 | GR22: 0 | GS22: 0 | GT22: 0 | GU22: 0 | GV22: 0 | GW22: 0 | GX22: 0 | GY22: 0 | GZ22: 0 | HA22: 0 | HB22: 0 | HC22: 0 | HD22: 0 | HE22: 0 | HF22: 0 | HG22: 0 | HH22: 0 | HI22: 0 | HJ22: 0 | HK22: 0 | HL22: 0 | HM22: 0 | HN22: 0 | HO22: 0 | HP22: 0 | HQ22: 0 | HR22: 0 | HS22: 0 | HT22: 0 | HU22: 0 | HV22: 0 | HW22: 0 | HX22: 0 | HY22: 0 | HZ22: 0 | IA22: 0 | IB22: 0 | IC22: 0 | ID22: 0 | IE22: 0 | IF22: 0 | IG22: 0 | IH22: 0 | II22: 0 | IJ22: 0 | IK22: 0 | IL22: 0 | IM22: 0 | IN22: 0 | IO22: 0 | IP22: 0 | IQ22: 0 | IR22: 0 | IS22: =IF($BI236=IS$11,$BK236,0) -> 0 | IT22: 0 | IU22: 0 | IV22: 0 | IW22: 0 | IX22: 0 | IY22: 0 | IZ22: 0 | JA22: 0 | JB22: 0 | JC22: 0 | JD22: 0 | JE22: 0 | JF22: 0 | JG22: 0 | JH22: 0 | JI22: 0 | JJ22: 0 | JK22: 0 | JL22: 0 | JM22: 0 | JN22: 0 | JO22: 0 | JP22: 0 | JQ22: 0 | JR22: 0 | JS22: 0 | JT22: 0 | JU22: 0 | JV22: 0 | JW22: 0 | JX22: 0 | JY22: 0 | JZ22: 0 | KA22: 0 | KB22: 0 | KC22: 0 | KD22: 0 | KE22: 0 | KF22: 0 | KG22: 0 | KH22: 0 | KI22: 0 | KJ22: 0 | KK22: 0 | KL22: 0 | KM22: 0 | KN22: 0 | KO22: 0 | KP22: 0 | KQ22: 0 | KR22: 0 | KS22: 0 | KT22: 0 | KU22: 0 | KV22: 0 | KW22: 0 | KX22: 0 | KY22: 0 | KZ22: 0 | LA22: 0 | LB22: 0 | LC22: 0 | LD22: 0 | LE22: =IF($BI236=LE$11,$BK236,0) -> 0 | LF22: 0 | LG22: 0 | LH22: 0 | LI22: 0 | LJ22: 0 | LK22: 0 | LL22: 0 | LM22: 0 | LN22: 0 | LO22: 0 | LP22: 0 | LQ22: 0 | LR22: 0 | LS22: 0 | LT22: 0 | LU22: 0 | LV22: 0 | LW22: 0 | LX22: 0 | LY22: 0 | LZ22: 0 | MA22: 0 | MB22: 0 | MC22: 0 | MD22: 0 | ME22: 0 | MF22: 0 | MG22: 0 | MH22: 0 | MI22: 0 | MJ22: 0 | MK22: 0 | ML22: 0 | MM22: 0 | MN22: 0 | MO22: 0 | MP22: 0 | MQ22: 0 | MR22: 0 | MS22: 0 | MT22: 0 | MU22: 0 | MV22: 0 | MW22: 0 | MX22: 0 | MY22: 0 | MZ22: 0 | NA22: 0 | NB22: 0 | NC22: 0 | ND22: 0 | NE22: 0 | NF22: 0 | NG22: 0 | NH22: 0 | NI22: 0 | NJ22: 0 | NK22: 0 | NL22: 0 | NM22: 0 | NN22: 0 | NO22: 0 | NP22: 0 | NQ22: =IF($BI236=NQ$11,$BK236,0) -> 0 | NR22: 0 | NS22: 0 | NT22: 0 | NU22: 0 | NV22: 0 | NW22: 0 | NX22: 0 | NY22: 0 | NZ22: 0 | OA22: 0 | OB22: 0 | OC22: 0 | OD22: 0 | OE22: 0 | OF22: 0 | OG22: 0 | OH22: 0 | OI22: 0 | OJ22: 0 | OK22: 0 | OL22: 0 | OM22: 0 | ON22: 0 | OO22: 0 | OP22: 0 | OQ22: 0 | OR22: 0 | OS22: 0 | OT22: 0 | OU22: 0 | OV22: 0 | OW22: 0 | OX22: 0 | OY22: 0 | OZ22: 0 | PA22: 0 | PB22: 0 | PC22: 0 | PD22: 0 | PE22: 0 | PF22: 0 | PG22: 0 | PH22: 0 | PI22: 0 | PJ22: 0 | PK22: 0 | PL22: 0 | PM22: 0 | PN22: 0 | PO22: 0 | PP22: 0 | PQ22: 0 | PR22: 0 | PS22: 0 | PT22: 0 | PU22: 0 | PV22: 0 | PW22: 0 | PX22: 0 | PY22: 0 | PZ22: 0 | QA22: 0 | QB22: 0 | QC22: =IF($BI236=QC$11,$BK236,0) -> 0 | QD22: 0 | QE22: 0 | QF22: 0 | QG22: 0 | QH22: 0 | QI22: 0 | QJ22: 0 | QK22: 0 | QL22: 0 | QM22: 0 | QN22: 0 | QO22: 0 | QP22: 0 | QQ22: 0 | QR22: 0 | QS22: 0 | QT22: 0 | QU22: 0 | QV22: 0 | QW22: 0 | QX22: 0 | QY22: 0 | QZ22: 0 | RA22: 0 | RB22: 0 | RC22: 0 | RD22: 0 | RE22: 0 | RF22: 0 | RG22: 0 | RH22: 0 | RI22: 0 | RJ22: 0 | RK22: 0 | RL22: 0 | RM22: 0 | RN22: 0 | RO22: 0 | RP22: 0 | RQ22: 0 | RR22: 0 | RS22: 0 | RT22: 0 | RU22: 0 | RV22: 0 | RW22: 0 | RX22: 0 | RY22: 0 | RZ22: 0 | SA22: 0 | SB22: 0 | SC22: 0 | SD22: 0 | SE22: 0 | SF22: 0 | SG22: 0 | SH22: 0 | SI22: 0 | SJ22: 0 | SK22: 0 | SL22: 0 | SM22: 0 | SN22: 0 | SO22: =IF($BI236=SO$11,$BK236,0) -> 0 | SP22: 0 | SQ22: 0 | SR22: 0 | SS22: 0 | ST22: 0 | SU22: 0 | SV22: 0 | SW22: 0 | SX22: 0 | SY22: 0 | SZ22: 0 | TA22: 0 | TB22: 0 | TC22: 0 | TD22: 0 | TE22: 0 | TF22: 0 | TG22: 0 | TH22: 0 | TI22: 0 | TJ22: 0 | TK22: 0 | TL22: 0 | TM22: 0 | TN22: 0 | TO22: 0 | TP22: 0 | TQ22: 0 | TR22: 0 | TS22: 0 | TT22: 0 | TU22: 0 | TV22: 0 | TW22: 0 | TX22: 0 | TY22: 0 | TZ22: 0 | UA22: 0 | UB22: 0 | UC22: 0 | UD22: 0 | UE22: 0 | UF22: 0 | UG22: 0 | UH22: 0 | UI22: 0 | UJ22: 0 | UK22: 0 | UL22: 0 | UM22: 0 | UN22: 0 | UO22: 0
A23: 23 | C23: Main Timing from Port Map | E23: =IF($J$4=0,"",360-Data!J49*2) -> 202.2862979 | F23: ° | U23: 28 | V23: 24.8 | X23: 27.5 | Y23: 0 | Z23: 0 | AJ23: 53.7 | AK23: 164.1996127 | AL23: 15.80038732 | AM23: 0.8 | AN23: 0.1 | AO23: 13.70716953 | AP23: 47.65841989 | AQ23: 0.8 | AR23: 0.1 | AS23: 0 | AT23: 0 | AU23: =IF('Transfer New'!$BK$12>MAX(AM23,AQ23),0,AL23) -> 0 | AV23: 0 | AW23: 0 | AX23: 0 | AZ23: 0 | BA23: 15.6 | BD23: 0 | BE23: 0 | BI23: =IF($BI237=BI$11,$BK237,0) -> 0 | BJ23: 0 | BK23: 0 | BL23: 0 | BM23: 0 | BN23: 0 | BO23: 0 | BP23: 0 | BQ23: 0 | BR23: 0 | BS23: 0 | BT23: 0 | BU23: 0 | BV23: 0 | BW23: 0 | BX23: 0 | BY23: 0 | BZ23: 0 | CA23: 0 | CB23: 0 | CC23: 0 | CD23: 0 | CE23: 0 | CF23: 0 | CG23: 0 | CH23: 0 | CI23: 0 | CJ23: 0 | CK23: 0 | CL23: 0 | CM23: 0 | CN23: 0 | CO23: 0 | CP23: 0 | CQ23: 0 | CR23: 0 | CS23: 0 | CT23: 0 | CU23: 0 | CV23: 0 | CW23: 0 | CX23: 0 | CY23: 0 | CZ23: 0 | DA23: 0 | DB23: 0 | DC23: 0 | DD23: 0 | DE23: 0 | DF23: 0 | DG23: 0 | DH23: 0 | DI23: 0 | DJ23: 0 | DK23: 0 | DL23: 0 | DM23: 0 | DN23: 0 | DO23: 0 | DP23: 0 | DQ23: 0 | DR23: 0 | DS23: 0 | DT23: 0 | DU23: =IF($BI237=DU$11,$BK237,0) -> 0 | DV23: 0 | DW23: 0 | DX23: 0 | DY23: 0 | DZ23: 0 | EA23: 0 | EB23: 0 | EC23: 0 | ED23: 0 | EE23: 0 | EF23: 0 | EG23: 0 | EH23: 0 | EI23: 0 | EJ23: 0 | EK23: 0 | EL23: 0 | EM23: 0 | EN23: 0 | EO23: 0 | EP23: 39.6 | EQ23: 0 | ER23: 0 | ES23: 0 | ET23: 0 | EU23: 0 | EV23: 0 | EW23: 0 | EX23: 0 | EY23: 0 | EZ23: 0 | FA23: 0 | FB23: 0 | FC23: 0 | FD23: 0 | FE23: 0 | FF23: 0 | FG23: 0 | FH23: 0 | FI23: 0 | FJ23: 0 | FK23: 0 | FL23: 0 | FM23: 0 | FN23: 0 | FO23: 0 | FP23: 0 | FQ23: 0 | FR23: 0 | FS23: 0 | FT23: 0 | FU23: 0 | FV23: 0 | FW23: 0 | FX23: 0 | FY23: 0 | FZ23: 0 | GA23: 0 | GB23: 0 | GC23: 0 | GD23: 0 | GE23: 0 | GF23: 0 | GG23: =IF($BI237=GG$11,$BK237,0) -> 0 | GH23: 0 | GI23: 0 | GJ23: 0 | GK23: 0 | GL23: 0 | GM23: 0 | GN23: 0 | GO23: 0 | GP23: 0 | GQ23: 0 | GR23: 0 | GS23: 0 | GT23: 0 | GU23: 0 | GV23: 0 | GW23: 0 | GX23: 0 | GY23: 0 | GZ23: 0 | HA23: 0 | HB23: 0 | HC23: 0 | HD23: 0 | HE23: 0 | HF23: 0 | HG23: 0 | HH23: 0 | HI23: 0 | HJ23: 0 | HK23: 0 | HL23: 0 | HM23: 0 | HN23: 0 | HO23: 0 | HP23: 0 | HQ23: 0 | HR23: 0 | HS23: 0 | HT23: 0 | HU23: 0 | HV23: 0 | HW23: 0 | HX23: 0 | HY23: 0 | HZ23: 0 | IA23: 0 | IB23: 0 | IC23: 0 | ID23: 0 | IE23: 0 | IF23: 0 | IG23: 0 | IH23: 0 | II23: 0 | IJ23: 0 | IK23: 0 | IL23: 0 | IM23: 0 | IN23: 0 | IO23: 0 | IP23: 0 | IQ23: 0 | IR23: 0 | IS23: =IF($BI237=IS$11,$BK237,0) -> 0 | IT23: 0 | IU23: 0 | IV23: 0 | IW23: 0 | IX23: 0 | IY23: 0 | IZ23: 0 | JA23: 0 | JB23: 0 | JC23: 0 | JD23: 0 | JE23: 0 | JF23: 0 | JG23: 0 | JH23: 0 | JI23: 0 | JJ23: 0 | JK23: 0 | JL23: 0 | JM23: 0 | JN23: 0 | JO23: 0 | JP23: 0 | JQ23: 0 | JR23: 0 | JS23: 0 | JT23: 0 | JU23: 0 | JV23: 0 | JW23: 0 | JX23: 0 | JY23: 0 | JZ23: 0 | KA23: 0 | KB23: 0 | KC23: 0 | KD23: 0 | KE23: 0 | KF23: 0 | KG23: 0 | KH23: 0 | KI23: 0 | KJ23: 0 | KK23: 0 | KL23: 0 | KM23: 0 | KN23: 0 | KO23: 0 | KP23: 0 | KQ23: 0 | KR23: 0 | KS23: 0 | KT23: 0 | KU23: 0 | KV23: 0 | KW23: 0 | KX23: 0 | KY23: 0 | KZ23: 0 | LA23: 0 | LB23: 0 | LC23: 0 | LD23: 0 | LE23: =IF($BI237=LE$11,$BK237,0) -> 0 | LF23: 0 | LG23: 0 | LH23: 0 | LI23: 0 | LJ23: 0 | LK23: 0 | LL23: 0 | LM23: 0 | LN23: 0 | LO23: 0 | LP23: 0 | LQ23: 0 | LR23: 0 | LS23: 0 | LT23: 0 | LU23: 0 | LV23: 0 | LW23: 0 | LX23: 0 | LY23: 0 | LZ23: 0 | MA23: 0 | MB23: 0 | MC23: 0 | MD23: 0 | ME23: 0 | MF23: 0 | MG23: 0 | MH23: 0 | MI23: 0 | MJ23: 0 | MK23: 0 | ML23: 0 | MM23: 0 | MN23: 0 | MO23: 0 | MP23: 0 | MQ23: 0 | MR23: 0 | MS23: 0 | MT23: 0 | MU23: 0 | MV23: 0 | MW23: 0 | MX23: 0 | MY23: 0 | MZ23: 0 | NA23: 0 | NB23: 0 | NC23: 0 | ND23: 0 | NE23: 0 | NF23: 0 | NG23: 0 | NH23: 0 | NI23: 0 | NJ23: 0 | NK23: 0 | NL23: 0 | NM23: 0 | NN23: 0 | NO23: 0 | NP23: 0 | NQ23: =IF($BI237=NQ$11,$BK237,0) -> 0 | NR23: 0 | NS23: 0 | NT23: 0 | NU23: 0 | NV23: 0 | NW23: 0 | NX23: 0 | NY23: 0 | NZ23: 0 | OA23: 0 | OB23: 0 | OC23: 0 | OD23: 0 | OE23: 0 | OF23: 0 | OG23: 0 | OH23: 0 | OI23: 0 | OJ23: 0 | OK23: 0 | OL23: 0 | OM23: 0 | ON23: 0 | OO23: 0 | OP23: 0 | OQ23: 0 | OR23: 0 | OS23: 0 | OT23: 0 | OU23: 0 | OV23: 0 | OW23: 0 | OX23: 0 | OY23: 0 | OZ23: 0 | PA23: 0 | PB23: 0 | PC23: 0 | PD23: 0 | PE23: 0 | PF23: 0 | PG23: 0 | PH23: 0 | PI23: 0 | PJ23: 0 | PK23: 0 | PL23: 0 | PM23: 0 | PN23: 0 | PO23: 0 | PP23: 0 | PQ23: 0 | PR23: 0 | PS23: 0 | PT23: 0 | PU23: 0 | PV23: 0 | PW23: 0 | PX23: 0 | PY23: 0 | PZ23: 0 | QA23: 0 | QB23: 0 | QC23: =IF($BI237=QC$11,$BK237,0) -> 0 | QD23: 0 | QE23: 0 | QF23: 0 | QG23: 0 | QH23: 0 | QI23: 0 | QJ23: 0 | QK23: 0 | QL23: 0 | QM23: 0 | QN23: 0 | QO23: 0 | QP23: 0 | QQ23: 0 | QR23: 0 | QS23: 0 | QT23: 0 | QU23: 0 | QV23: 0 | QW23: 0 | QX23: 0 | QY23: 0 | QZ23: 0 | RA23: 0 | RB23: 0 | RC23: 0 | RD23: 0 | RE23: 0 | RF23: 0 | RG23: 0 | RH23: 0 | RI23: 0 | RJ23: 0 | RK23: 0 | RL23: 0 | RM23: 0 | RN23: 0 | RO23: 0 | RP23: 0 | RQ23: 0 | RR23: 0 | RS23: 0 | RT23: 0 | RU23: 0 | RV23: 0 | RW23: 0 | RX23: 0 | RY23: 0 | RZ23: 0 | SA23: 0 | SB23: 0 | SC23: 0 | SD23: 0 | SE23: 0 | SF23: 0 | SG23: 0 | SH23: 0 | SI23: 0 | SJ23: 0 | SK23: 0 | SL23: 0 | SM23: 0 | SN23: 0 | SO23: =IF($BI237=SO$11,$BK237,0) -> 0 | SP23: 0 | SQ23: 0 | SR23: 0 | SS23: 0 | ST23: 0 | SU23: 0 | SV23: 0 | SW23: 0 | SX23: 0 | SY23: 0 | SZ23: 0 | TA23: 0 | TB23: 0 | TC23: 0 | TD23: 0 | TE23: 0 | TF23: 0 | TG23: 0 | TH23: 0 | TI23: 0 | TJ23: 0 | TK23: 0 | TL23: 0 | TM23: 0 | TN23: 0 | TO23: 0 | TP23: 0 | TQ23: 0 | TR23: 0 | TS23: 0 | TT23: 0 | TU23: 0 | TV23: 0 | TW23: 0 | TX23: 0 | TY23: 0 | TZ23: 0 | UA23: 0 | UB23: 0 | UC23: 0 | UD23: 0 | UE23: 0 | UF23: 0 | UG23: 0 | UH23: 0 | UI23: 0 | UJ23: 0 | UK23: 0 | UL23: 0 | UM23: 0 | UN23: 0 | UO23: 0
A24: 24 | C24: Aux Timing from Port Map | E24: =IF($N$4=0,"",360-Data!J50*2) -> 194.0693945 | F24: ° | U24: 27.5 | V24: 28.2 | X24: 27.5 | Y24: 0 | Z24: 0 | AJ24: 53.6 | AK24: 163.2399764 | AL24: 16.76002364 | AM24: 0.9 | AN24: 0.1 | AO24: 14.72860176 | AP24: 53.83641959 | AQ24: 0.9 | AR24: 0.1 | AS24: 0 | AT24: 0 | AU24: =IF('Transfer New'!$BK$12>MAX(AM24,AQ24),0,AL24) -> 0 | AV24: 0 | AW24: 0 | AX24: 0 | AZ24: 0 | BA24: 16.8 | BD24: 0 | BE24: 0 | BI24: =IF($BI238=BI$11,$BK238,0) -> 0 | BJ24: 0 | BK24: 0 | BL24: 0 | BM24: 0 | BN24: 0 | BO24: 0 | BP24: 0 | BQ24: 0 | BR24: 0 | BS24: 0 | BT24: 0 | BU24: 0 | BV24: 0 | BW24: 0 | BX24: 0 | BY24: 0 | BZ24: 0 | CA24: 0 | CB24: 0 | CC24: 0 | CD24: 0 | CE24: 0 | CF24: 0 | CG24: 0 | CH24: 0 | CI24: 0 | CJ24: 0 | CK24: 0 | CL24: 0 | CM24: 0 | CN24: 0 | CO24: 0 | CP24: 0 | CQ24: 0 | CR24: 0 | CS24: 0 | CT24: 0 | CU24: 0 | CV24: 0 | CW24: 0 | CX24: 0 | CY24: 0 | CZ24: 0 | DA24: 0 | DB24: 0 | DC24: 0 | DD24: 0 | DE24: 0 | DF24: 0 | DG24: 0 | DH24: 0 | DI24: 0 | DJ24: 0 | DK24: 0 | DL24: 0 | DM24: 0 | DN24: 0 | DO24: 0 | DP24: 0 | DQ24: 0 | DR24: 0 | DS24: 0 | DT24: 0 | DU24: =IF($BI238=DU$11,$BK238,0) -> 0 | DV24: 0 | DW24: 0 | DX24: 0 | DY24: 0 | DZ24: 0 | EA24: 0 | EB24: 0 | EC24: 0 | ED24: 0 | EE24: 0 | EF24: 0 | EG24: 0 | EH24: 0 | EI24: 0 | EJ24: 0 | EK24: 0 | EL24: 0 | EM24: 0 | EN24: 0 | EO24: 0 | EP24: 0 | EQ24: 0 | ER24: 0 | ES24: 0 | ET24: 0 | EU24: 0 | EV24: 0 | EW24: 0 | EX24: 0 | EY24: 0 | EZ24: 0 | FA24: 0 | FB24: 0 | FC24: 0 | FD24: 0 | FE24: 41.2 | FF24: 0 | FG24: 0 | FH24: 0 | FI24: 0 | FJ24: 0 | FK24: 0 | FL24: 0 | FM24: 0 | FN24: 0 | FO24: 0 | FP24: 0 | FQ24: 0 | FR24: 0 | FS24: 0 | FT24: 0 | FU24: 0 | FV24: 0 | FW24: 0 | FX24: 0 | FY24: 0 | FZ24: 0 | GA24: 0 | GB24: 0 | GC24: 0 | GD24: 0 | GE24: 0 | GF24: 0 | GG24: =IF($BI238=GG$11,$BK238,0) -> 0 | GH24: 0 | GI24: 0 | GJ24: 0 | GK24: 0 | GL24: 0 | GM24: 0 | GN24: 0 | GO24: 0 | GP24: 0 | GQ24: 0 | GR24: 0 | GS24: 0 | GT24: 0 | GU24: 0 | GV24: 0 | GW24: 0 | GX24: 0 | GY24: 0 | GZ24: 0 | HA24: 0 | HB24: 0 | HC24: 0 | HD24: 0 | HE24: 0 | HF24: 0 | HG24: 0 | HH24: 0 | HI24: 0 | HJ24: 0 | HK24: 0 | HL24: 0 | HM24: 0 | HN24: 0 | HO24: 0 | HP24: 0 | HQ24: 0 | HR24: 0 | HS24: 0 | HT24: 0 | HU24: 0 | HV24: 0 | HW24: 0 | HX24: 0 | HY24: 0 | HZ24: 0 | IA24: 0 | IB24: 0 | IC24: 0 | ID24: 0 | IE24: 0 | IF24: 0 | IG24: 0 | IH24: 0 | II24: 0 | IJ24: 0 | IK24: 0 | IL24: 0 | IM24: 0 | IN24: 0 | IO24: 0 | IP24: 0 | IQ24: 0 | IR24: 0 | IS24: =IF($BI238=IS$11,$BK238,0) -> 0 | IT24: 0 | IU24: 0 | IV24: 0 | IW24: 0 | IX24: 0 | IY24: 0 | IZ24: 0 | JA24: 0 | JB24: 0 | JC24: 0 | JD24: 0 | JE24: 0 | JF24: 0 | JG24: 0 | JH24: 0 | JI24: 0 | JJ24: 0 | JK24: 0 | JL24: 0 | JM24: 0 | JN24: 0 | JO24: 0 | JP24: 0 | JQ24: 0 | JR24: 0 | JS24: 0 | JT24: 0 | JU24: 0 | JV24: 0 | JW24: 0 | JX24: 0 | JY24: 0 | JZ24: 0 | KA24: 0 | KB24: 0 | KC24: 0 | KD24: 0 | KE24: 0 | KF24: 0 | KG24: 0 | KH24: 0 | KI24: 0 | KJ24: 0 | KK24: 0 | KL24: 0 | KM24: 0 | KN24: 0 | KO24: 0 | KP24: 0 | KQ24: 0 | KR24: 0 | KS24: 0 | KT24: 0 | KU24: 0 | KV24: 0 | KW24: 0 | KX24: 0 | KY24: 0 | KZ24: 0 | LA24: 0 | LB24: 0 | LC24: 0 | LD24: 0 | LE24: =IF($BI238=LE$11,$BK238,0) -> 0 | LF24: 0 | LG24: 0 | LH24: 0 | LI24: 0 | LJ24: 0 | LK24: 0 | LL24: 0 | LM24: 0 | LN24: 0 | LO24: 0 | LP24: 0 | LQ24: 0 | LR24: 0 | LS24: 0 | LT24: 0 | LU24: 0 | LV24: 0 | LW24: 0 | LX24: 0 | LY24: 0 | LZ24: 0 | MA24: 0 | MB24: 0 | MC24: 0 | MD24: 0 | ME24: 0 | MF24: 0 | MG24: 0 | MH24: 0 | MI24: 0 | MJ24: 0 | MK24: 0 | ML24: 0 | MM24: 0 | MN24: 0 | MO24: 0 | MP24: 0 | MQ24: 0 | MR24: 0 | MS24: 0 | MT24: 0 | MU24: 0 | MV24: 0 | MW24: 0 | MX24: 0 | MY24: 0 | MZ24: 0 | NA24: 0 | NB24: 0 | NC24: 0 | ND24: 0 | NE24: 0 | NF24: 0 | NG24: 0 | NH24: 0 | NI24: 0 | NJ24: 0 | NK24: 0 | NL24: 0 | NM24: 0 | NN24: 0 | NO24: 0 | NP24: 0 | NQ24: =IF($BI238=NQ$11,$BK238,0) -> 0 | NR24: 0 | NS24: 0 | NT24: 0 | NU24: 0 | NV24: 0 | NW24: 0 | NX24: 0 | NY24: 0 | NZ24: 0 | OA24: 0 | OB24: 0 | OC24: 0 | OD24: 0 | OE24: 0 | OF24: 0 | OG24: 0 | OH24: 0 | OI24: 0 | OJ24: 0 | OK24: 0 | OL24: 0 | OM24: 0 | ON24: 0 | OO24: 0 | OP24: 0 | OQ24: 0 | OR24: 0 | OS24: 0 | OT24: 0 | OU24: 0 | OV24: 0 | OW24: 0 | OX24: 0 | OY24: 0 | OZ24: 0 | PA24: 0 | PB24: 0 | PC24: 0 | PD24: 0 | PE24: 0 | PF24: 0 | PG24: 0 | PH24: 0 | PI24: 0 | PJ24: 0 | PK24: 0 | PL24: 0 | PM24: 0 | PN24: 0 | PO24: 0 | PP24: 0 | PQ24: 0 | PR24: 0 | PS24: 0 | PT24: 0 | PU24: 0 | PV24: 0 | PW24: 0 | PX24: 0 | PY24: 0 | PZ24: 0 | QA24: 0 | QB24: 0 | QC24: =IF($BI238=QC$11,$BK238,0) -> 0 | QD24: 0 | QE24: 0 | QF24: 0 | QG24: 0 | QH24: 0 | QI24: 0 | QJ24: 0 | QK24: 0 | QL24: 0 | QM24: 0 | QN24: 0 | QO24: 0 | QP24: 0 | QQ24: 0 | QR24: 0 | QS24: 0 | QT24: 0 | QU24: 0 | QV24: 0 | QW24: 0 | QX24: 0 | QY24: 0 | QZ24: 0 | RA24: 0 | RB24: 0 | RC24: 0 | RD24: 0 | RE24: 0 | RF24: 0 | RG24: 0 | RH24: 0 | RI24: 0 | RJ24: 0 | RK24: 0 | RL24: 0 | RM24: 0 | RN24: 0 | RO24: 0 | RP24: 0 | RQ24: 0 | RR24: 0 | RS24: 0 | RT24: 0 | RU24: 0 | RV24: 0 | RW24: 0 | RX24: 0 | RY24: 0 | RZ24: 0 | SA24: 0 | SB24: 0 | SC24: 0 | SD24: 0 | SE24: 0 | SF24: 0 | SG24: 0 | SH24: 0 | SI24: 0 | SJ24: 0 | SK24: 0 | SL24: 0 | SM24: 0 | SN24: 0 | SO24: =IF($BI238=SO$11,$BK238,0) -> 0 | SP24: 0 | SQ24: 0 | SR24: 0 | SS24: 0 | ST24: 0 | SU24: 0 | SV24: 0 | SW24: 0 | SX24: 0 | SY24: 0 | SZ24: 0 | TA24: 0 | TB24: 0 | TC24: 0 | TD24: 0 | TE24: 0 | TF24: 0 | TG24: 0 | TH24: 0 | TI24: 0 | TJ24: 0 | TK24: 0 | TL24: 0 | TM24: 0 | TN24: 0 | TO24: 0 | TP24: 0 | TQ24: 0 | TR24: 0 | TS24: 0 | TT24: 0 | TU24: 0 | TV24: 0 | TW24: 0 | TX24: 0 | TY24: 0 | TZ24: 0 | UA24: 0 | UB24: 0 | UC24: 0 | UD24: 0 | UE24: 0 | UF24: 0 | UG24: 0 | UH24: 0 | UI24: 0 | UJ24: 0 | UK24: 0 | UL24: 0 | UM24: 0 | UN24: 0 | UO24: 0
A25: 25 | U25: 26.5 | V25: 33.3 | X25: 27.5 | Y25: 0 | Z25: 0 | AJ25: 53.5 | AK25: 162.332126 | AL25: 17.66787398 | AM25: 1 | AN25: 0.1 | AO25: 15.74276091 | AP25: 59.12644781 | AQ25: 1 | AR25: 0.1 | AS25: 0 | AT25: 0 | AU25: =IF('Transfer New'!$BK$12>MAX(AM25,AQ25),0,AL25) -> 0 | AV25: 0 | AW25: 0 | AX25: 0 | AZ25: 0 | BA25: 18 | BD25: 0 | BE25: 0 | BI25: =IF($BI239=BI$11,$BK239,0) -> 0 | BJ25: 0 | BK25: 0 | BL25: 0 | BM25: 0 | BN25: 0 | BO25: 0 | BP25: 0 | BQ25: 0 | BR25: 0 | BS25: 0 | BT25: 0 | BU25: 0 | BV25: 0 | BW25: 0 | BX25: 0 | BY25: 0 | BZ25: 0 | CA25: 0 | CB25: 0 | CC25: 0 | CD25: 0 | CE25: 0 | CF25: 0 | CG25: 0 | CH25: 0 | CI25: 0 | CJ25: 0 | CK25: 0 | CL25: 0 | CM25: 0 | CN25: 0 | CO25: 0 | CP25: 0 | CQ25: 0 | CR25: 0 | CS25: 0 | CT25: 0 | CU25: 0 | CV25: 0 | CW25: 0 | CX25: 0 | CY25: 0 | CZ25: 0 | DA25: 0 | DB25: 0 | DC25: 0 | DD25: 0 | DE25: 0 | DF25: 0 | DG25: 0 | DH25: 0 | DI25: 0 | DJ25: 0 | DK25: 0 | DL25: 0 | DM25: 0 | DN25: 0 | DO25: 0 | DP25: 0 | DQ25: 0 | DR25: 0 | DS25: 0 | DT25: 0 | DU25: =IF($BI239=DU$11,$BK239,0) -> 0 | DV25: 0 | DW25: 0 | DX25: 0 | DY25: 0 | DZ25: 0 | EA25: 0 | EB25: 0 | EC25: 0 | ED25: 0 | EE25: 0 | EF25: 0 | EG25: 0 | EH25: 0 | EI25: 0 | EJ25: 0 | EK25: 0 | EL25: 0 | EM25: 0 | EN25: 0 | EO25: 0 | EP25: 0 | EQ25: 0 | ER25: 0 | ES25: 0 | ET25: 0 | EU25: 0 | EV25: 0 | EW25: 0 | EX25: 0 | EY25: 0 | EZ25: 0 | FA25: 0 | FB25: 0 | FC25: 0 | FD25: 0 | FE25: 0 | FF25: 0 | FG25: 0 | FH25: 0 | FI25: 0 | FJ25: 0 | FK25: 0 | FL25: 0 | FM25: 0 | FN25: 0 | FO25: 42 | FP25: 0 | FQ25: 0 | FR25: 0 | FS25: 0 | FT25: 0 | FU25: 0 | FV25: 0 | FW25: 0 | FX25: 0 | FY25: 0 | FZ25: 0 | GA25: 0 | GB25: 0 | GC25: 0 | GD25: 0 | GE25: 0 | GF25: 0 | GG25: =IF($BI239=GG$11,$BK239,0) -> 0 | GH25: 0 | GI25: 0 | GJ25: 0 | GK25: 0 | GL25: 0 | GM25: 0 | GN25: 0 | GO25: 0 | GP25: 0 | GQ25: 0 | GR25: 0 | GS25: 0 | GT25: 0 | GU25: 0 | GV25: 0 | GW25: 0 | GX25: 0 | GY25: 0 | GZ25: 0 | HA25: 0 | HB25: 0 | HC25: 0 | HD25: 0 | HE25: 0 | HF25: 0 | HG25: 0 | HH25: 0 | HI25: 0 | HJ25: 0 | HK25: 0 | HL25: 0 | HM25: 0 | HN25: 0 | HO25: 0 | HP25: 0 | HQ25: 0 | HR25: 0 | HS25: 0 | HT25: 0 | HU25: 0 | HV25: 0 | HW25: 0 | HX25: 0 | HY25: 0 | HZ25: 0 | IA25: 0 | IB25: 0 | IC25: 0 | ID25: 0 | IE25: 0 | IF25: 0 | IG25: 0 | IH25: 0 | II25: 0 | IJ25: 0 | IK25: 0 | IL25: 0 | IM25: 0 | IN25: 0 | IO25: 0 | IP25: 0 | IQ25: 0 | IR25: 0 | IS25: =IF($BI239=IS$11,$BK239,0) -> 0 | IT25: 0 | IU25: 0 | IV25: 0 | IW25: 0 | IX25: 0 | IY25: 0 | IZ25: 0 | JA25: 0 | JB25: 0 | JC25: 0 | JD25: 0 | JE25: 0 | JF25: 0 | JG25: 0 | JH25: 0 | JI25: 0 | JJ25: 0 | JK25: 0 | JL25: 0 | JM25: 0 | JN25: 0 | JO25: 0 | JP25: 0 | JQ25: 0 | JR25: 0 | JS25: 0 | JT25: 0 | JU25: 0 | JV25: 0 | JW25: 0 | JX25: 0 | JY25: 0 | JZ25: 0 | KA25: 0 | KB25: 0 | KC25: 0 | KD25: 0 | KE25: 0 | KF25: 0 | KG25: 0 | KH25: 0 | KI25: 0 | KJ25: 0 | KK25: 0 | KL25: 0 | KM25: 0 | KN25: 0 | KO25: 0 | KP25: 0 | KQ25: 0 | KR25: 0 | KS25: 0 | KT25: 0 | KU25: 0 | KV25: 0 | KW25: 0 | KX25: 0 | KY25: 0 | KZ25: 0 | LA25: 0 | LB25: 0 | LC25: 0 | LD25: 0 | LE25: =IF($BI239=LE$11,$BK239,0) -> 0 | LF25: 0 | LG25: 0 | LH25: 0 | LI25: 0 | LJ25: 0 | LK25: 0 | LL25: 0 | LM25: 0 | LN25: 0 | LO25: 0 | LP25: 0 | LQ25: 0 | LR25: 0 | LS25: 0 | LT25: 0 | LU25: 0 | LV25: 0 | LW25: 0 | LX25: 0 | LY25: 0 | LZ25: 0 | MA25: 0 | MB25: 0 | MC25: 0 | MD25: 0 | ME25: 0 | MF25: 0 | MG25: 0 | MH25: 0 | MI25: 0 | MJ25: 0 | MK25: 0 | ML25: 0 | MM25: 0 | MN25: 0 | MO25: 0 | MP25: 0 | MQ25: 0 | MR25: 0 | MS25: 0 | MT25: 0 | MU25: 0 | MV25: 0 | MW25: 0 | MX25: 0 | MY25: 0 | MZ25: 0 | NA25: 0 | NB25: 0 | NC25: 0 | ND25: 0 | NE25: 0 | NF25: 0 | NG25: 0 | NH25: 0 | NI25: 0 | NJ25: 0 | NK25: 0 | NL25: 0 | NM25: 0 | NN25: 0 | NO25: 0 | NP25: 0 | NQ25: =IF($BI239=NQ$11,$BK239,0) -> 0 | NR25: 0 | NS25: 0 | NT25: 0 | NU25: 0 | NV25: 0 | NW25: 0 | NX25: 0 | NY25: 0 | NZ25: 0 | OA25: 0 | OB25: 0 | OC25: 0 | OD25: 0 | OE25: 0 | OF25: 0 | OG25: 0 | OH25: 0 | OI25: 0 | OJ25: 0 | OK25: 0 | OL25: 0 | OM25: 0 | ON25: 0 | OO25: 0 | OP25: 0 | OQ25: 0 | OR25: 0 | OS25: 0 | OT25: 0 | OU25: 0 | OV25: 0 | OW25: 0 | OX25: 0 | OY25: 0 | OZ25: 0 | PA25: 0 | PB25: 0 | PC25: 0 | PD25: 0 | PE25: 0 | PF25: 0 | PG25: 0 | PH25: 0 | PI25: 0 | PJ25: 0 | PK25: 0 | PL25: 0 | PM25: 0 | PN25: 0 | PO25: 0 | PP25: 0 | PQ25: 0 | PR25: 0 | PS25: 0 | PT25: 0 | PU25: 0 | PV25: 0 | PW25: 0 | PX25: 0 | PY25: 0 | PZ25: 0 | QA25: 0 | QB25: 0 | QC25: =IF($BI239=QC$11,$BK239,0) -> 0 | QD25: 0 | QE25: 0 | QF25: 0 | QG25: 0 | QH25: 0 | QI25: 0 | QJ25: 0 | QK25: 0 | QL25: 0 | QM25: 0 | QN25: 0 | QO25: 0 | QP25: 0 | QQ25: 0 | QR25: 0 | QS25: 0 | QT25: 0 | QU25: 0 | QV25: 0 | QW25: 0 | QX25: 0 | QY25: 0 | QZ25: 0 | RA25: 0 | RB25: 0 | RC25: 0 | RD25: 0 | RE25: 0 | RF25: 0 | RG25: 0 | RH25: 0 | RI25: 0 | RJ25: 0 | RK25: 0 | RL25: 0 | RM25: 0 | RN25: 0 | RO25: 0 | RP25: 0 | RQ25: 0 | RR25: 0 | RS25: 0 | RT25: 0 | RU25: 0 | RV25: 0 | RW25: 0 | RX25: 0 | RY25: 0 | RZ25: 0 | SA25: 0 | SB25: 0 | SC25: 0 | SD25: 0 | SE25: 0 | SF25: 0 | SG25: 0 | SH25: 0 | SI25: 0 | SJ25: 0 | SK25: 0 | SL25: 0 | SM25: 0 | SN25: 0 | SO25: =IF($BI239=SO$11,$BK239,0) -> 0 | SP25: 0 | SQ25: 0 | SR25: 0 | SS25: 0 | ST25: 0 | SU25: 0 | SV25: 0 | SW25: 0 | SX25: 0 | SY25: 0 | SZ25: 0 | TA25: 0 | TB25: 0 | TC25: 0 | TD25: 0 | TE25: 0 | TF25: 0 | TG25: 0 | TH25: 0 | TI25: 0 | TJ25: 0 | TK25: 0 | TL25: 0 | TM25: 0 | TN25: 0 | TO25: 0 | TP25: 0 | TQ25: 0 | TR25: 0 | TS25: 0 | TT25: 0 | TU25: 0 | TV25: 0 | TW25: 0 | TX25: 0 | TY25: 0 | TZ25: 0 | UA25: 0 | UB25: 0 | UC25: 0 | UD25: 0 | UE25: 0 | UF25: 0 | UG25: 0 | UH25: 0 | UI25: 0 | UJ25: 0 | UK25: 0 | UL25: 0 | UM25: 0 | UN25: 0 | UO25: 0
A26: 26 | U26: 25.5 | V26: 37 | X26: 27.5 | Y26: 0 | Z26: 0 | AJ26: 53.4 | AK26: 161.4684458 | AL26: 18.53155425 | AM26: 1.1 | AN26: 0.1 | AO26: 16.16306146 | AP26: 63.38450746 | AQ26: 1.1 | AR26: 0.1 | AS26: 0 | AT26: 0 | AU26: =IF('Transfer New'!$BK$12>MAX(AM26,AQ26),0,AL26) -> 0 | AV26: 0 | AW26: 0 | AX26: 0 | AZ26: 0 | BA26: 18.5 | BD26: 0 | BE26: 0 | BI26: =IF($BI240=BI$11,$BK240,0) -> 0 | BJ26: 0 | BK26: 0 | BL26: 0 | BM26: 0 | BN26: 0 | BO26: 0 | BP26: 0 | BQ26: 0 | BR26: 0 | BS26: 0 | BT26: 0 | BU26: 0 | BV26: 0 | BW26: 0 | BX26: 0 | BY26: 0 | BZ26: 0 | CA26: 0 | CB26: 0 | CC26: 0 | CD26: 0 | CE26: 0 | CF26: 0 | CG26: 0 | CH26: 0 | CI26: 0 | CJ26: 0 | CK26: 0 | CL26: 0 | CM26: 0 | CN26: 0 | CO26: 0 | CP26: 0 | CQ26: 0 | CR26: 0 | CS26: 0 | CT26: 0 | CU26: 0 | CV26: 0 | CW26: 0 | CX26: 0 | CY26: 0 | CZ26: 0 | DA26: 0 | DB26: 0 | DC26: 0 | DD26: 0 | DE26: 0 | DF26: 0 | DG26: 0 | DH26: 0 | DI26: 0 | DJ26: 0 | DK26: 0 | DL26: 0 | DM26: 0 | DN26: 0 | DO26: 0 | DP26: 0 | DQ26: 0 | DR26: 0 | DS26: 0 | DT26: 0 | DU26: =IF($BI240=DU$11,$BK240,0) -> 0 | DV26: 0 | DW26: 0 | DX26: 0 | DY26: 0 | DZ26: 0 | EA26: 0 | EB26: 0 | EC26: 0 | ED26: 0 | EE26: 0 | EF26: 0 | EG26: 0 | EH26: 0 | EI26: 0 | EJ26: 0 | EK26: 0 | EL26: 0 | EM26: 0 | EN26: 0 | EO26: 0 | EP26: 0 | EQ26: 0 | ER26: 0 | ES26: 0 | ET26: 0 | EU26: 0 | EV26: 0 | EW26: 0 | EX26: 0 | EY26: 0 | EZ26: 0 | FA26: 0 | FB26: 0 | FC26: 0 | FD26: 0 | FE26: 0 | FF26: 0 | FG26: 0 | FH26: 0 | FI26: 0 | FJ26: 0 | FK26: 0 | FL26: 0 | FM26: 0 | FN26: 0 | FO26: 0 | FP26: 0 | FQ26: 0 | FR26: 0 | FS26: 0 | FT26: 0 | FU26: 0 | FV26: 0 | FW26: 0 | FX26: 0 | FY26: 42.5 | FZ26: 0 | GA26: 0 | GB26: 0 | GC26: 0 | GD26: 0 | GE26: 0 | GF26: 0 | GG26: =IF($BI240=GG$11,$BK240,0) -> 0 | GH26: 0 | GI26: 0 | GJ26: 0 | GK26: 0 | GL26: 0 | GM26: 0 | GN26: 0 | GO26: 0 | GP26: 0 | GQ26: 0 | GR26: 0 | GS26: 0 | GT26: 0 | GU26: 0 | GV26: 0 | GW26: 0 | GX26: 0 | GY26: 0 | GZ26: 0 | HA26: 0 | HB26: 0 | HC26: 0 | HD26: 0 | HE26: 0 | HF26: 0 | HG26: 0 | HH26: 0 | HI26: 0 | HJ26: 0 | HK26: 0 | HL26: 0 | HM26: 0 | HN26: 0 | HO26: 0 | HP26: 0 | HQ26: 0 | HR26: 0 | HS26: 0 | HT26: 0 | HU26: 0 | HV26: 0 | HW26: 0 | HX26: 0 | HY26: 0 | HZ26: 0 | IA26: 0 | IB26: 0 | IC26: 0 | ID26: 0 | IE26: 0 | IF26: 0 | IG26: 0 | IH26: 0 | II26: 0 | IJ26: 0 | IK26: 0 | IL26: 0 | IM26: 0 | IN26: 0 | IO26: 0 | IP26: 0 | IQ26: 0 | IR26: 0 | IS26: =IF($BI240=IS$11,$BK240,0) -> 0 | IT26: 0 | IU26: 0 | IV26: 0 | IW26: 0 | IX26: 0 | IY26: 0 | IZ26: 0 | JA26: 0 | JB26: 0 | JC26: 0 | JD26: 0 | JE26: 0 | JF26: 0 | JG26: 0 | JH26: 0 | JI26: 0 | JJ26: 0 | JK26: 0 | JL26: 0 | JM26: 0 | JN26: 0 | JO26: 0 | JP26: 0 | JQ26: 0 | JR26: 0 | JS26: 0 | JT26: 0 | JU26: 0 | JV26: 0 | JW26: 0 | JX26: 0 | JY26: 0 | JZ26: 0 | KA26: 0 | KB26: 0 | KC26: 0 | KD26: 0 | KE26: 0 | KF26: 0 | KG26: 0 | KH26: 0 | KI26: 0 | KJ26: 0 | KK26: 0 | KL26: 0 | KM26: 0 | KN26: 0 | KO26: 0 | KP26: 0 | KQ26: 0 | KR26: 0 | KS26: 0 | KT26: 0 | KU26: 0 | KV26: 0 | KW26: 0 | KX26: 0 | KY26: 0 | KZ26: 0 | LA26: 0 | LB26: 0 | LC26: 0 | LD26: 0 | LE26: =IF($BI240=LE$11,$BK240,0) -> 0 | LF26: 0 | LG26: 0 | LH26: 0 | LI26: 0 | LJ26: 0 | LK26: 0 | LL26: 0 | LM26: 0 | LN26: 0 | LO26: 0 | LP26: 0 | LQ26: 0 | LR26: 0 | LS26: 0 | LT26: 0 | LU26: 0 | LV26: 0 | LW26: 0 | LX26: 0 | LY26: 0 | LZ26: 0 | MA26: 0 | MB26: 0 | MC26: 0 | MD26: 0 | ME26: 0 | MF26: 0 | MG26: 0 | MH26: 0 | MI26: 0 | MJ26: 0 | MK26: 0 | ML26: 0 | MM26: 0 | MN26: 0 | MO26: 0 | MP26: 0 | MQ26: 0 | MR26: 0 | MS26: 0 | MT26: 0 | MU26: 0 | MV26: 0 | MW26: 0 | MX26: 0 | MY26: 0 | MZ26: 0 | NA26: 0 | NB26: 0 | NC26: 0 | ND26: 0 | NE26: 0 | NF26: 0 | NG26: 0 | NH26: 0 | NI26: 0 | NJ26: 0 | NK26: 0 | NL26: 0 | NM26: 0 | NN26: 0 | NO26: 0 | NP26: 0 | NQ26: =IF($BI240=NQ$11,$BK240,0) -> 0 | NR26: 0 | NS26: 0 | NT26: 0 | NU26: 0 | NV26: 0 | NW26: 0 | NX26: 0 | NY26: 0 | NZ26: 0 | OA26: 0 | OB26: 0 | OC26: 0 | OD26: 0 | OE26: 0 | OF26: 0 | OG26: 0 | OH26: 0 | OI26: 0 | OJ26: 0 | OK26: 0 | OL26: 0 | OM26: 0 | ON26: 0 | OO26: 0 | OP26: 0 | OQ26: 0 | OR26: 0 | OS26: 0 | OT26: 0 | OU26: 0 | OV26: 0 | OW26: 0 | OX26: 0 | OY26: 0 | OZ26: 0 | PA26: 0 | PB26: 0 | PC26: 0 | PD26: 0 | PE26: 0 | PF26: 0 | PG26: 0 | PH26: 0 | PI26: 0 | PJ26: 0 | PK26: 0 | PL26: 0 | PM26: 0 | PN26: 0 | PO26: 0 | PP26: 0 | PQ26: 0 | PR26: 0 | PS26: 0 | PT26: 0 | PU26: 0 | PV26: 0 | PW26: 0 | PX26: 0 | PY26: 0 | PZ26: 0 | QA26: 0 | QB26: 0 | QC26: =IF($BI240=QC$11,$BK240,0) -> 0 | QD26: 0 | QE26: 0 | QF26: 0 | QG26: 0 | QH26: 0 | QI26: 0 | QJ26: 0 | QK26: 0 | QL26: 0 | QM26: 0 | QN26: 0 | QO26: 0 | QP26: 0 | QQ26: 0 | QR26: 0 | QS26: 0 | QT26: 0 | QU26: 0 | QV26: 0 | QW26: 0 | QX26: 0 | QY26: 0 | QZ26: 0 | RA26: 0 | RB26: 0 | RC26: 0 | RD26: 0 | RE26: 0 | RF26: 0 | RG26: 0 | RH26: 0 | RI26: 0 | RJ26: 0 | RK26: 0 | RL26: 0 | RM26: 0 | RN26: 0 | RO26: 0 | RP26: 0 | RQ26: 0 | RR26: 0 | RS26: 0 | RT26: 0 | RU26: 0 | RV26: 0 | RW26: 0 | RX26: 0 | RY26: 0 | RZ26: 0 | SA26: 0 | SB26: 0 | SC26: 0 | SD26: 0 | SE26: 0 | SF26: 0 | SG26: 0 | SH26: 0 | SI26: 0 | SJ26: 0 | SK26: 0 | SL26: 0 | SM26: 0 | SN26: 0 | SO26: =IF($BI240=SO$11,$BK240,0) -> 0 | SP26: 0 | SQ26: 0 | SR26: 0 | SS26: 0 | ST26: 0 | SU26: 0 | SV26: 0 | SW26: 0 | SX26: 0 | SY26: 0 | SZ26: 0 | TA26: 0 | TB26: 0 | TC26: 0 | TD26: 0 | TE26: 0 | TF26: 0 | TG26: 0 | TH26: 0 | TI26: 0 | TJ26: 0 | TK26: 0 | TL26: 0 | TM26: 0 | TN26: 0 | TO26: 0 | TP26: 0 | TQ26: 0 | TR26: 0 | TS26: 0 | TT26: 0 | TU26: 0 | TV26: 0 | TW26: 0 | TX26: 0 | TY26: 0 | TZ26: 0 | UA26: 0 | UB26: 0 | UC26: 0 | UD26: 0 | UE26: 0 | UF26: 0 | UG26: 0 | UH26: 0 | UI26: 0 | UJ26: 0 | UK26: 0 | UL26: 0 | UM26: 0 | UN26: 0 | UO26: 0
A27: 27 | C27: Ports | U27: 24.5 | V27: 39.6 | X27: 27.5 | Y27: 2.5 | Z27: 13.5 | AJ27: 53.3 | AK27: 160.643019 | AL27: 19.35698103 | AM27: 1.2 | AN27: 0.1 | AO27: 16.5819763 | AP27: 67.66278286 | AQ27: 1.2 | AR27: 0.1 | AS27: 0 | AT27: 0 | AU27: =IF('Transfer New'!$BK$12>MAX(AM27,AQ27),0,AL27) -> 0 | AV27: 0 | AW27: 0 | AX27: 0 | AZ27: 0 | BA27: 19 | BD27: 0 | BE27: 0 | BI27: =IF($BI241=BI$11,$BK241,0) -> 0 | BJ27: 0 | BK27: 0 | BL27: 0 | BM27: 0 | BN27: 0 | BO27: 0 | BP27: 0 | BQ27: 0 | BR27: 0 | BS27: 0 | BT27: 0 | BU27: 0 | BV27: 0 | BW27: 0 | BX27: 0 | BY27: 0 | BZ27: 0 | CA27: 0 | CB27: 0 | CC27: 0 | CD27: 0 | CE27: 0 | CF27: 0 | CG27: 0 | CH27: 0 | CI27: 0 | CJ27: 0 | CK27: 0 | CL27: 0 | CM27: 0 | CN27: 0 | CO27: 0 | CP27: 0 | CQ27: 0 | CR27: 0 | CS27: 0 | CT27: 0 | CU27: 0 | CV27: 0 | CW27: 0 | CX27: 0 | CY27: 0 | CZ27: 0 | DA27: 0 | DB27: 0 | DC27: 0 | DD27: 0 | DE27: 0 | DF27: 0 | DG27: 0 | DH27: 0 | DI27: 0 | DJ27: 0 | DK27: 0 | DL27: 0 | DM27: 0 | DN27: 0 | DO27: 0 | DP27: 0 | DQ27: 0 | DR27: 0 | DS27: 0 | DT27: 0 | DU27: =IF($BI241=DU$11,$BK241,0) -> 0 | DV27: 0 | DW27: 0 | DX27: 0 | DY27: 0 | DZ27: 0 | EA27: 0 | EB27: 0 | EC27: 0 | ED27: 0 | EE27: 0 | EF27: 0 | EG27: 0 | EH27: 0 | EI27: 0 | EJ27: 0 | EK27: 0 | EL27: 0 | EM27: 0 | EN27: 0 | EO27: 0 | EP27: 0 | EQ27: 0 | ER27: 0 | ES27: 0 | ET27: 0 | EU27: 0 | EV27: 0 | EW27: 0 | EX27: 0 | EY27: 0 | EZ27: 0 | FA27: 0 | FB27: 0 | FC27: 0 | FD27: 0 | FE27: 0 | FF27: 0 | FG27: 0 | FH27: 0 | FI27: 0 | FJ27: 0 | FK27: 0 | FL27: 0 | FM27: 0 | FN27: 0 | FO27: 0 | FP27: 0 | FQ27: 0 | FR27: 0 | FS27: 0 | FT27: 0 | FU27: 0 | FV27: 0 | FW27: 0 | FX27: 0 | FY27: 0 | FZ27: 0 | GA27: 0 | GB27: 0 | GC27: 0 | GD27: 0 | GE27: 0 | GF27: 0 | GG27: =IF($BI241=GG$11,$BK241,0) -> 0 | GH27: 0 | GI27: 42.7 | GJ27: 0 | GK27: 0 | GL27: 0 | GM27: 0 | GN27: 0 | GO27: 0 | GP27: 0 | GQ27: 0 | GR27: 0 | GS27: 0 | GT27: 0 | GU27: 0 | GV27: 0 | GW27: 0 | GX27: 0 | GY27: 0 | GZ27: 0 | HA27: 0 | HB27: 0 | HC27: 0 | HD27: 0 | HE27: 0 | HF27: 0 | HG27: 0 | HH27: 0 | HI27: 0 | HJ27: 0 | HK27: 0 | HL27: 0 | HM27: 0 | HN27: 0 | HO27: 0 | HP27: 0 | HQ27: 0 | HR27: 0 | HS27: 0 | HT27: 0 | HU27: 0 | HV27: 0 | HW27: 0 | HX27: 0 | HY27: 0 | HZ27: 0 | IA27: 0 | IB27: 0 | IC27: 0 | ID27: 0 | IE27: 0 | IF27: 0 | IG27: 0 | IH27: 0 | II27: 0 | IJ27: 0 | IK27: 0 | IL27: 0 | IM27: 0 | IN27: 0 | IO27: 0 | IP27: 0 | IQ27: 0 | IR27: 0 | IS27: =IF($BI241=IS$11,$BK241,0) -> 0 | IT27: 0 | IU27: 0 | IV27: 0 | IW27: 0 | IX27: 0 | IY27: 0 | IZ27: 0 | JA27: 0 | JB27: 0 | JC27: 0 | JD27: 0 | JE27: 0 | JF27: 0 | JG27: 0 | JH27: 0 | JI27: 0 | JJ27: 0 | JK27: 0 | JL27: 0 | JM27: 0 | JN27: 0 | JO27: 0 | JP27: 0 | JQ27: 0 | JR27: 0 | JS27: 0 | JT27: 0 | JU27: 0 | JV27: 0 | JW27: 0 | JX27: 0 | JY27: 0 | JZ27: 0 | KA27: 0 | KB27: 0 | KC27: 0 | KD27: 0 | KE27: 0 | KF27: 0 | KG27: 0 | KH27: 0 | KI27: 0 | KJ27: 0 | KK27: 0 | KL27: 0 | KM27: 0 | KN27: 0 | KO27: 0 | KP27: 0 | KQ27: 0 | KR27: 0 | KS27: 0 | KT27: 0 | KU27: 0 | KV27: 0 | KW27: 0 | KX27: 0 | KY27: 0 | KZ27: 0 | LA27: 0 | LB27: 0 | LC27: 0 | LD27: 0 | LE27: =IF($BI241=LE$11,$BK241,0) -> 0 | LF27: 0 | LG27: 0 | LH27: 0 | LI27: 0 | LJ27: 0 | LK27: 0 | LL27: 0 | LM27: 0 | LN27: 0 | LO27: 0 | LP27: 0 | LQ27: 0 | LR27: 0 | LS27: 0 | LT27: 0 | LU27: 0 | LV27: 0 | LW27: 0 | LX27: 0 | LY27: 0 | LZ27: 0 | MA27: 0 | MB27: 0 | MC27: 0 | MD27: 0 | ME27: 0 | MF27: 0 | MG27: 0 | MH27: 0 | MI27: 0 | MJ27: 0 | MK27: 0 | ML27: 0 | MM27: 0 | MN27: 0 | MO27: 0 | MP27: 0 | MQ27: 0 | MR27: 0 | MS27: 0 | MT27: 0 | MU27: 0 | MV27: 0 | MW27: 0 | MX27: 0 | MY27: 0 | MZ27: 0 | NA27: 0 | NB27: 0 | NC27: 0 | ND27: 0 | NE27: 0 | NF27: 0 | NG27: 0 | NH27: 0 | NI27: 0 | NJ27: 0 | NK27: 0 | NL27: 0 | NM27: 0 | NN27: 0 | NO27: 0 | NP27: 0 | NQ27: =IF($BI241=NQ$11,$BK241,0) -> 0 | NR27: 0 | NS27: 0 | NT27: 0 | NU27: 0 | NV27: 0 | NW27: 0 | NX27: 0 | NY27: 0 | NZ27: 0 | OA27: 0 | OB27: 0 | OC27: 0 | OD27: 0 | OE27: 0 | OF27: 0 | OG27: 0 | OH27: 0 | OI27: 0 | OJ27: 0 | OK27: 0 | OL27: 0 | OM27: 0 | ON27: 0 | OO27: 0 | OP27: 0 | OQ27: 0 | OR27: 0 | OS27: 0 | OT27: 0 | OU27: 0 | OV27: 0 | OW27: 0 | OX27: 0 | OY27: 0 | OZ27: 0 | PA27: 0 | PB27: 0 | PC27: 0 | PD27: 0 | PE27: 0 | PF27: 0 | PG27: 0 | PH27: 0 | PI27: 0 | PJ27: 0 | PK27: 0 | PL27: 0 | PM27: 0 | PN27: 0 | PO27: 0 | PP27: 0 | PQ27: 0 | PR27: 0 | PS27: 0 | PT27: 0 | PU27: 0 | PV27: 0 | PW27: 0 | PX27: 0 | PY27: 0 | PZ27: 0 | QA27: 0 | QB27: 0 | QC27: =IF($BI241=QC$11,$BK241,0) -> 0 | QD27: 0 | QE27: 0 | QF27: 0 | QG27: 0 | QH27: 0 | QI27: 0 | QJ27: 0 | QK27: 0 | QL27: 0 | QM27: 0 | QN27: 0 | QO27: 0 | QP27: 0 | QQ27: 0 | QR27: 0 | QS27: 0 | QT27: 0 | QU27: 0 | QV27: 0 | QW27: 0 | QX27: 0 | QY27: 0 | QZ27: 0 | RA27: 0 | RB27: 0 | RC27: 0 | RD27: 0 | RE27: 0 | RF27: 0 | RG27: 0 | RH27: 0 | RI27: 0 | RJ27: 0 | RK27: 0 | RL27: 0 | RM27: 0 | RN27: 0 | RO27: 0 | RP27: 0 | RQ27: 0 | RR27: 0 | RS27: 0 | RT27: 0 | RU27: 0 | RV27: 0 | RW27: 0 | RX27: 0 | RY27: 0 | RZ27: 0 | SA27: 0 | SB27: 0 | SC27: 0 | SD27: 0 | SE27: 0 | SF27: 0 | SG27: 0 | SH27: 0 | SI27: 0 | SJ27: 0 | SK27: 0 | SL27: 0 | SM27: 0 | SN27: 0 | SO27: =IF($BI241=SO$11,$BK241,0) -> 0 | SP27: 0 | SQ27: 0 | SR27: 0 | SS27: 0 | ST27: 0 | SU27: 0 | SV27: 0 | SW27: 0 | SX27: 0 | SY27: 0 | SZ27: 0 | TA27: 0 | TB27: 0 | TC27: 0 | TD27: 0 | TE27: 0 | TF27: 0 | TG27: 0 | TH27: 0 | TI27: 0 | TJ27: 0 | TK27: 0 | TL27: 0 | TM27: 0 | TN27: 0 | TO27: 0 | TP27: 0 | TQ27: 0 | TR27: 0 | TS27: 0 | TT27: 0 | TU27: 0 | TV27: 0 | TW27: 0 | TX27: 0 | TY27: 0 | TZ27: 0 | UA27: 0 | UB27: 0 | UC27: 0 | UD27: 0 | UE27: 0 | UF27: 0 | UG27: 0 | UH27: 0 | UI27: 0 | UJ27: 0 | UK27: 0 | UL27: 0 | UM27: 0 | UN27: 0 | UO27: 0
A28: 28 | C28: Main Vertical/Axial Flow | E28: 27 | F28: ° | U28: 24 | V28: 40.6 | X28: 27.2 | Y28: 3 | Z28: 14.3 | AJ28: 53.2 | AK28: 159.8511406 | AL28: 20.14885936 | AM28: 1.3 | AN28: 0.1 | AO28: 16.99946951 | AP28: 71.96516751 | AQ28: 1.3 | AR28: 0.1 | AS28: 0 | AT28: 0 | AU28: =IF('Transfer New'!$BK$12>MAX(AM28,AQ28),0,AL28) -> 0 | AV28: 0 | AW28: 0 | AX28: 0 | AZ28: 0 | BA28: 19.5 | BD28: 0 | BE28: 0 | BI28: =IF($BI242=BI$11,$BK242,0) -> 0 | BJ28: 0 | BK28: 0 | BL28: 0 | BM28: 0 | BN28: 0 | BO28: 0 | BP28: 0 | BQ28: 0 | BR28: 0 | BS28: 0 | BT28: 0 | BU28: 0 | BV28: 0 | BW28: 0 | BX28: 0 | BY28: 0 | BZ28: 0 | CA28: 0 | CB28: 0 | CC28: 0 | CD28: 0 | CE28: 0 | CF28: 0 | CG28: 0 | CH28: 0 | CI28: 0 | CJ28: 0 | CK28: 0 | CL28: 0 | CM28: 0 | CN28: 0 | CO28: 0 | CP28: 0 | CQ28: 0 | CR28: 0 | CS28: 0 | CT28: 0 | CU28: 0 | CV28: 0 | CW28: 0 | CX28: 0 | CY28: 0 | CZ28: 0 | DA28: 0 | DB28: 0 | DC28: 0 | DD28: 0 | DE28: 0 | DF28: 0 | DG28: 0 | DH28: 0 | DI28: 0 | DJ28: 0 | DK28: 0 | DL28: 0 | DM28: 0 | DN28: 0 | DO28: 0 | DP28: 0 | DQ28: 0 | DR28: 0 | DS28: 0 | DT28: 0 | DU28: =IF($BI242=DU$11,$BK242,0) -> 0 | DV28: 0 | DW28: 0 | DX28: 0 | DY28: 0 | DZ28: 0 | EA28: 0 | EB28: 0 | EC28: 0 | ED28: 0 | EE28: 0 | EF28: 0 | EG28: 0 | EH28: 0 | EI28: 0 | EJ28: 0 | EK28: 0 | EL28: 0 | EM28: 0 | EN28: 0 | EO28: 0 | EP28: 0 | EQ28: 0 | ER28: 0 | ES28: 0 | ET28: 0 | EU28: 0 | EV28: 0 | EW28: 0 | EX28: 0 | EY28: 0 | EZ28: 0 | FA28: 0 | FB28: 0 | FC28: 0 | FD28: 0 | FE28: 0 | FF28: 0 | FG28: 0 | FH28: 0 | FI28: 0 | FJ28: 0 | FK28: 0 | FL28: 0 | FM28: 0 | FN28: 0 | FO28: 0 | FP28: 0 | FQ28: 0 | FR28: 0 | FS28: 0 | FT28: 0 | FU28: 0 | FV28: 0 | FW28: 0 | FX28: 0 | FY28: 0 | FZ28: 0 | GA28: 0 | GB28: 0 | GC28: 0 | GD28: 0 | GE28: 0 | GF28: 0 | GG28: =IF($BI242=GG$11,$BK242,0) -> 0 | GH28: 0 | GI28: 0 | GJ28: 0 | GK28: 0 | GL28: 0 | GM28: 0 | GN28: 0 | GO28: 0 | GP28: 0 | GQ28: 0 | GR28: 0 | GS28: 0 | GT28: 0 | GU28: 0 | GV28: 0 | GW28: 0 | GX28: 0 | GY28: 0 | GZ28: 0 | HA28: 0 | HB28: 0 | HC28: 42.9 | HD28: 0 | HE28: 0 | HF28: 0 | HG28: 0 | HH28: 0 | HI28: 0 | HJ28: 0 | HK28: 0 | HL28: 0 | HM28: 0 | HN28: 0 | HO28: 0 | HP28: 0 | HQ28: 0 | HR28: 0 | HS28: 0 | HT28: 0 | HU28: 0 | HV28: 0 | HW28: 0 | HX28: 0 | HY28: 0 | HZ28: 0 | IA28: 0 | IB28: 0 | IC28: 0 | ID28: 0 | IE28: 0 | IF28: 0 | IG28: 0 | IH28: 0 | II28: 0 | IJ28: 0 | IK28: 0 | IL28: 0 | IM28: 0 | IN28: 0 | IO28: 0 | IP28: 0 | IQ28: 0 | IR28: 0 | IS28: =IF($BI242=IS$11,$BK242,0) -> 0 | IT28: 0 | IU28: 0 | IV28: 0 | IW28: 0 | IX28: 0 | IY28: 0 | IZ28: 0 | JA28: 0 | JB28: 0 | JC28: 0 | JD28: 0 | JE28: 0 | JF28: 0 | JG28: 0 | JH28: 0 | JI28: 0 | JJ28: 0 | JK28: 0 | JL28: 0 | JM28: 0 | JN28: 0 | JO28: 0 | JP28: 0 | JQ28: 0 | JR28: 0 | JS28: 0 | JT28: 0 | JU28: 0 | JV28: 0 | JW28: 0 | JX28: 0 | JY28: 0 | JZ28: 0 | KA28: 0 | KB28: 0 | KC28: 0 | KD28: 0 | KE28: 0 | KF28: 0 | KG28: 0 | KH28: 0 | KI28: 0 | KJ28: 0 | KK28: 0 | KL28: 0 | KM28: 0 | KN28: 0 | KO28: 0 | KP28: 0 | KQ28: 0 | KR28: 0 | KS28: 0 | KT28: 0 | KU28: 0 | KV28: 0 | KW28: 0 | KX28: 0 | KY28: 0 | KZ28: 0 | LA28: 0 | LB28: 0 | LC28: 0 | LD28: 0 | LE28: =IF($BI242=LE$11,$BK242,0) -> 0 | LF28: 0 | LG28: 0 | LH28: 0 | LI28: 0 | LJ28: 0 | LK28: 0 | LL28: 0 | LM28: 0 | LN28: 0 | LO28: 0 | LP28: 0 | LQ28: 0 | LR28: 0 | LS28: 0 | LT28: 0 | LU28: 0 | LV28: 0 | LW28: 0 | LX28: 0 | LY28: 0 | LZ28: 0 | MA28: 0 | MB28: 0 | MC28: 0 | MD28: 0 | ME28: 0 | MF28: 0 | MG28: 0 | MH28: 0 | MI28: 0 | MJ28: 0 | MK28: 0 | ML28: 0 | MM28: 0 | MN28: 0 | MO28: 0 | MP28: 0 | MQ28: 0 | MR28: 0 | MS28: 0 | MT28: 0 | MU28: 0 | MV28: 0 | MW28: 0 | MX28: 0 | MY28: 0 | MZ28: 0 | NA28: 0 | NB28: 0 | NC28: 0 | ND28: 0 | NE28: 0 | NF28: 0 | NG28: 0 | NH28: 0 | NI28: 0 | NJ28: 0 | NK28: 0 | NL28: 0 | NM28: 0 | NN28: 0 | NO28: 0 | NP28: 0 | NQ28: =IF($BI242=NQ$11,$BK242,0) -> 0 | NR28: 0 | NS28: 0 | NT28: 0 | NU28: 0 | NV28: 0 | NW28: 0 | NX28: 0 | NY28: 0 | NZ28: 0 | OA28: 0 | OB28: 0 | OC28: 0 | OD28: 0 | OE28: 0 | OF28: 0 | OG28: 0 | OH28: 0 | OI28: 0 | OJ28: 0 | OK28: 0 | OL28: 0 | OM28: 0 | ON28: 0 | OO28: 0 | OP28: 0 | OQ28: 0 | OR28: 0 | OS28: 0 | OT28: 0 | OU28: 0 | OV28: 0 | OW28: 0 | OX28: 0 | OY28: 0 | OZ28: 0 | PA28: 0 | PB28: 0 | PC28: 0 | PD28: 0 | PE28: 0 | PF28: 0 | PG28: 0 | PH28: 0 | PI28: 0 | PJ28: 0 | PK28: 0 | PL28: 0 | PM28: 0 | PN28: 0 | PO28: 0 | PP28: 0 | PQ28: 0 | PR28: 0 | PS28: 0 | PT28: 0 | PU28: 0 | PV28: 0 | PW28: 0 | PX28: 0 | PY28: 0 | PZ28: 0 | QA28: 0 | QB28: 0 | QC28: =IF($BI242=QC$11,$BK242,0) -> 0 | QD28: 0 | QE28: 0 | QF28: 0 | QG28: 0 | QH28: 0 | QI28: 0 | QJ28: 0 | QK28: 0 | QL28: 0 | QM28: 0 | QN28: 0 | QO28: 0 | QP28: 0 | QQ28: 0 | QR28: 0 | QS28: 0 | QT28: 0 | QU28: 0 | QV28: 0 | QW28: 0 | QX28: 0 | QY28: 0 | QZ28: 0 | RA28: 0 | RB28: 0 | RC28: 0 | RD28: 0 | RE28: 0 | RF28: 0 | RG28: 0 | RH28: 0 | RI28: 0 | RJ28: 0 | RK28: 0 | RL28: 0 | RM28: 0 | RN28: 0 | RO28: 0 | RP28: 0 | RQ28: 0 | RR28: 0 | RS28: 0 | RT28: 0 | RU28: 0 | RV28: 0 | RW28: 0 | RX28: 0 | RY28: 0 | RZ28: 0 | SA28: 0 | SB28: 0 | SC28: 0 | SD28: 0 | SE28: 0 | SF28: 0 | SG28: 0 | SH28: 0 | SI28: 0 | SJ28: 0 | SK28: 0 | SL28: 0 | SM28: 0 | SN28: 0 | SO28: =IF($BI242=SO$11,$BK242,0) -> 0 | SP28: 0 | SQ28: 0 | SR28: 0 | SS28: 0 | ST28: 0 | SU28: 0 | SV28: 0 | SW28: 0 | SX28: 0 | SY28: 0 | SZ28: 0 | TA28: 0 | TB28: 0 | TC28: 0 | TD28: 0 | TE28: 0 | TF28: 0 | TG28: 0 | TH28: 0 | TI28: 0 | TJ28: 0 | TK28: 0 | TL28: 0 | TM28: 0 | TN28: 0 | TO28: 0 | TP28: 0 | TQ28: 0 | TR28: 0 | TS28: 0 | TT28: 0 | TU28: 0 | TV28: 0 | TW28: 0 | TX28: 0 | TY28: 0 | TZ28: 0 | UA28: 0 | UB28: 0 | UC28: 0 | UD28: 0 | UE28: 0 | UF28: 0 | UG28: 0 | UH28: 0 | UI28: 0 | UJ28: 0 | UK28: 0 | UL28: 0 | UM28: 0 | UN28: 0 | UO28: 0
A29: 29 | C29: Aux divider location | E29: 27.3 | F29: mm | U29: 23 | V29: 42.2 | X29: 26.8 | Y29: 3.3 | Z29: 14.7 | AJ29: 53.1 | AK29: 159.088996 | AL29: 20.91100398 | AM29: 1.4 | AN29: 0.1 | AO29: 17.41550529 | AP29: 76.29449386 | AQ29: 1.4 | AR29: 0.1 | AS29: 0 | AT29: 0 | AU29: =IF('Transfer New'!$BK$12>MAX(AM29,AQ29),0,AL29) -> 0 | AV29: 0 | AW29: 0 | AX29: 0 | AZ29: 0 | BA29: 20 | BD29: 0 | BE29: 0 | BI29: =IF($BI243=BI$11,$BK243,0) -> 0 | BJ29: 0 | BK29: 0 | BL29: 0 | BM29: 0 | BN29: 0 | BO29: 0 | BP29: 0 | BQ29: 0 | BR29: 0 | BS29: 0 | BT29: 0 | BU29: 0 | BV29: 0 | BW29: 0 | BX29: 0 | BY29: 0 | BZ29: 0 | CA29: 0 | CB29: 0 | CC29: 0 | CD29: 0 | CE29: 0 | CF29: 0 | CG29: 0 | CH29: 0 | CI29: 0 | CJ29: 0 | CK29: 0 | CL29: 0 | CM29: 0 | CN29: 0 | CO29: 0 | CP29: 0 | CQ29: 0 | CR29: 0 | CS29: 0 | CT29: 0 | CU29: 0 | CV29: 0 | CW29: 0 | CX29: 0 | CY29: 0 | CZ29: 0 | DA29: 0 | DB29: 0 | DC29: 0 | DD29: 0 | DE29: 0 | DF29: 0 | DG29: 0 | DH29: 0 | DI29: 0 | DJ29: 0 | DK29: 0 | DL29: 0 | DM29: 0 | DN29: 0 | DO29: 0 | DP29: 0 | DQ29: 0 | DR29: 0 | DS29: 0 | DT29: 0 | DU29: =IF($BI243=DU$11,$BK243,0) -> 0 | DV29: 0 | DW29: 0 | DX29: 0 | DY29: 0 | DZ29: 0 | EA29: 0 | EB29: 0 | EC29: 0 | ED29: 0 | EE29: 0 | EF29: 0 | EG29: 0 | EH29: 0 | EI29: 0 | EJ29: 0 | EK29: 0 | EL29: 0 | EM29: 0 | EN29: 0 | EO29: 0 | EP29: 0 | EQ29: 0 | ER29: 0 | ES29: 0 | ET29: 0 | EU29: 0 | EV29: 0 | EW29: 0 | EX29: 0 | EY29: 0 | EZ29: 0 | FA29: 0 | FB29: 0 | FC29: 0 | FD29: 0 | FE29: 0 | FF29: 0 | FG29: 0 | FH29: 0 | FI29: 0 | FJ29: 0 | FK29: 0 | FL29: 0 | FM29: 0 | FN29: 0 | FO29: 0 | FP29: 0 | FQ29: 0 | FR29: 0 | FS29: 0 | FT29: 0 | FU29: 0 | FV29: 0 | FW29: 0 | FX29: 0 | FY29: 0 | FZ29: 0 | GA29: 0 | GB29: 0 | GC29: 0 | GD29: 0 | GE29: 0 | GF29: 0 | GG29: =IF($BI243=GG$11,$BK243,0) -> 0 | GH29: 0 | GI29: 0 | GJ29: 0 | GK29: 0 | GL29: 0 | GM29: 0 | GN29: 0 | GO29: 0 | GP29: 0 | GQ29: 0 | GR29: 0 | GS29: 0 | GT29: 0 | GU29: 0 | GV29: 0 | GW29: 0 | GX29: 0 | GY29: 0 | GZ29: 0 | HA29: 0 | HB29: 0 | HC29: 0 | HD29: 0 | HE29: 0 | HF29: 0 | HG29: 0 | HH29: 0 | HI29: 0 | HJ29: 0 | HK29: 0 | HL29: 0 | HM29: 0 | HN29: 0 | HO29: 0 | HP29: 0 | HQ29: 0 | HR29: 0 | HS29: 0 | HT29: 0 | HU29: 0 | HV29: 0 | HW29: 0 | HX29: 0 | HY29: 0 | HZ29: 0 | IA29: 0 | IB29: 0 | IC29: 0 | ID29: 0 | IE29: 0 | IF29: 0 | IG29: 42.9 | IH29: 0 | II29: 0 | IJ29: 0 | IK29: 0 | IL29: 0 | IM29: 0 | IN29: 0 | IO29: 0 | IP29: 0 | IQ29: 0 | IR29: 0 | IS29: =IF($BI243=IS$11,$BK243,0) -> 0 | IT29: 0 | IU29: 0 | IV29: 0 | IW29: 0 | IX29: 0 | IY29: 0 | IZ29: 0 | JA29: 0 | JB29: 0 | JC29: 0 | JD29: 0 | JE29: 0 | JF29: 0 | JG29: 0 | JH29: 0 | JI29: 0 | JJ29: 0 | JK29: 0 | JL29: 0 | JM29: 0 | JN29: 0 | JO29: 0 | JP29: 0 | JQ29: 0 | JR29: 0 | JS29: 0 | JT29: 0 | JU29: 0 | JV29: 0 | JW29: 0 | JX29: 0 | JY29: 0 | JZ29: 0 | KA29: 0 | KB29: 0 | KC29: 0 | KD29: 0 | KE29: 0 | KF29: 0 | KG29: 0 | KH29: 0 | KI29: 0 | KJ29: 0 | KK29: 0 | KL29: 0 | KM29: 0 | KN29: 0 | KO29: 0 | KP29: 0 | KQ29: 0 | KR29: 0 | KS29: 0 | KT29: 0 | KU29: 0 | KV29: 0 | KW29: 0 | KX29: 0 | KY29: 0 | KZ29: 0 | LA29: 0 | LB29: 0 | LC29: 0 | LD29: 0 | LE29: =IF($BI243=LE$11,$BK243,0) -> 0 | LF29: 0 | LG29: 0 | LH29: 0 | LI29: 0 | LJ29: 0 | LK29: 0 | LL29: 0 | LM29: 0 | LN29: 0 | LO29: 0 | LP29: 0 | LQ29: 0 | LR29: 0 | LS29: 0 | LT29: 0 | LU29: 0 | LV29: 0 | LW29: 0 | LX29: 0 | LY29: 0 | LZ29: 0 | MA29: 0 | MB29: 0 | MC29: 0 | MD29: 0 | ME29: 0 | MF29: 0 | MG29: 0 | MH29: 0 | MI29: 0 | MJ29: 0 | MK29: 0 | ML29: 0 | MM29: 0 | MN29: 0 | MO29: 0 | MP29: 0 | MQ29: 0 | MR29: 0 | MS29: 0 | MT29: 0 | MU29: 0 | MV29: 0 | MW29: 0 | MX29: 0 | MY29: 0 | MZ29: 0 | NA29: 0 | NB29: 0 | NC29: 0 | ND29: 0 | NE29: 0 | NF29: 0 | NG29: 0 | NH29: 0 | NI29: 0 | NJ29: 0 | NK29: 0 | NL29: 0 | NM29: 0 | NN29: 0 | NO29: 0 | NP29: 0 | NQ29: =IF($BI243=NQ$11,$BK243,0) -> 0 | NR29: 0 | NS29: 0 | NT29: 0 | NU29: 0 | NV29: 0 | NW29: 0 | NX29: 0 | NY29: 0 | NZ29: 0 | OA29: 0 | OB29: 0 | OC29: 0 | OD29: 0 | OE29: 0 | OF29: 0 | OG29: 0 | OH29: 0 | OI29: 0 | OJ29: 0 | OK29: 0 | OL29: 0 | OM29: 0 | ON29: 0 | OO29: 0 | OP29: 0 | OQ29: 0 | OR29: 0 | OS29: 0 | OT29: 0 | OU29: 0 | OV29: 0 | OW29: 0 | OX29: 0 | OY29: 0 | OZ29: 0 | PA29: 0 | PB29: 0 | PC29: 0 | PD29: 0 | PE29: 0 | PF29: 0 | PG29: 0 | PH29: 0 | PI29: 0 | PJ29: 0 | PK29: 0 | PL29: 0 | PM29: 0 | PN29: 0 | PO29: 0 | PP29: 0 | PQ29: 0 | PR29: 0 | PS29: 0 | PT29: 0 | PU29: 0 | PV29: 0 | PW29: 0 | PX29: 0 | PY29: 0 | PZ29: 0 | QA29: 0 | QB29: 0 | QC29: =IF($BI243=QC$11,$BK243,0) -> 0 | QD29: 0 | QE29: 0 | QF29: 0 | QG29: 0 | QH29: 0 | QI29: 0 | QJ29: 0 | QK29: 0 | QL29: 0 | QM29: 0 | QN29: 0 | QO29: 0 | QP29: 0 | QQ29: 0 | QR29: 0 | QS29: 0 | QT29: 0 | QU29: 0 | QV29: 0 | QW29: 0 | QX29: 0 | QY29: 0 | QZ29: 0 | RA29: 0 | RB29: 0 | RC29: 0 | RD29: 0 | RE29: 0 | RF29: 0 | RG29: 0 | RH29: 0 | RI29: 0 | RJ29: 0 | RK29: 0 | RL29: 0 | RM29: 0 | RN29: 0 | RO29: 0 | RP29: 0 | RQ29: 0 | RR29: 0 | RS29: 0 | RT29: 0 | RU29: 0 | RV29: 0 | RW29: 0 | RX29: 0 | RY29: 0 | RZ29: 0 | SA29: 0 | SB29: 0 | SC29: 0 | SD29: 0 | SE29: 0 | SF29: 0 | SG29: 0 | SH29: 0 | SI29: 0 | SJ29: 0 | SK29: 0 | SL29: 0 | SM29: 0 | SN29: 0 | SO29: =IF($BI243=SO$11,$BK243,0) -> 0 | SP29: 0 | SQ29: 0 | SR29: 0 | SS29: 0 | ST29: 0 | SU29: 0 | SV29: 0 | SW29: 0 | SX29: 0 | SY29: 0 | SZ29: 0 | TA29: 0 | TB29: 0 | TC29: 0 | TD29: 0 | TE29: 0 | TF29: 0 | TG29: 0 | TH29: 0 | TI29: 0 | TJ29: 0 | TK29: 0 | TL29: 0 | TM29: 0 | TN29: 0 | TO29: 0 | TP29: 0 | TQ29: 0 | TR29: 0 | TS29: 0 | TT29: 0 | TU29: 0 | TV29: 0 | TW29: 0 | TX29: 0 | TY29: 0 | TZ29: 0 | UA29: 0 | UB29: 0 | UC29: 0 | UD29: 0 | UE29: 0 | UF29: 0 | UG29: 0 | UH29: 0 | UI29: 0 | UJ29: 0 | UK29: 0 | UL29: 0 | UM29: 0 | UN29: 0 | UO29: 0
A30: 30 | C30: Aux Vertical/Axial Flow | E30: 27 | F30: ° | U30: 22 | V30: 42.7 | X30: 26.2 | Y30: 3.7 | Z30: 15 | AJ30: 53 | AK30: 158.3534413 | AL30: 21.64655871 | AM30: 1.5 | AN30: 0.1 | AO30: 17.83004799 | AP30: 80.6528038 | AQ30: 1.5 | AR30: 0.1 | AS30: 0 | AT30: 0 | AU30: =IF('Transfer New'!$BK$12>MAX(AM30,AQ30),0,AL30) -> 0 | AV30: 0 | AW30: 0 | AX30: 0 | AZ30: 0 | BA30: 20.5 | BD30: 0 | BE30: 0 | BI30: =IF($BI244=BI$11,$BK244,0) -> 0 | BJ30: 0 | BK30: 0 | BL30: 0 | BM30: 0 | BN30: 0 | BO30: 0 | BP30: 0 | BQ30: 0 | BR30: 0 | BS30: 0 | BT30: 0 | BU30: 0 | BV30: 0 | BW30: 0 | BX30: 0 | BY30: 0 | BZ30: 0 | CA30: 0 | CB30: 0 | CC30: 0 | CD30: 0 | CE30: 0 | CF30: 0 | CG30: 0 | CH30: 0 | CI30: 0 | CJ30: 0 | CK30: 0 | CL30: 0 | CM30: 0 | CN30: 0 | CO30: 0 | CP30: 0 | CQ30: 0 | CR30: 0 | CS30: 0 | CT30: 0 | CU30: 0 | CV30: 0 | CW30: 0 | CX30: 0 | CY30: 0 | CZ30: 0 | DA30: 0 | DB30: 0 | DC30: 0 | DD30: 0 | DE30: 0 | DF30: 0 | DG30: 0 | DH30: 0 | DI30: 0 | DJ30: 0 | DK30: 0 | DL30: 0 | DM30: 0 | DN30: 0 | DO30: 0 | DP30: 0 | DQ30: 0 | DR30: 0 | DS30: 0 | DT30: 0 | DU30: =IF($BI244=DU$11,$BK244,0) -> 0 | DV30: 0 | DW30: 0 | DX30: 0 | DY30: 0 | DZ30: 0 | EA30: 0 | EB30: 0 | EC30: 0 | ED30: 0 | EE30: 0 | EF30: 0 | EG30: 0 | EH30: 0 | EI30: 0 | EJ30: 0 | EK30: 0 | EL30: 0 | EM30: 0 | EN30: 0 | EO30: 0 | EP30: 0 | EQ30: 0 | ER30: 0 | ES30: 0 | ET30: 0 | EU30: 0 | EV30: 0 | EW30: 0 | EX30: 0 | EY30: 0 | EZ30: 0 | FA30: 0 | FB30: 0 | FC30: 0 | FD30: 0 | FE30: 0 | FF30: 0 | FG30: 0 | FH30: 0 | FI30: 0 | FJ30: 0 | FK30: 0 | FL30: 0 | FM30: 0 | FN30: 0 | FO30: 0 | FP30: 0 | FQ30: 0 | FR30: 0 | FS30: 0 | FT30: 0 | FU30: 0 | FV30: 0 | FW30: 0 | FX30: 0 | FY30: 0 | FZ30: 0 | GA30: 0 | GB30: 0 | GC30: 0 | GD30: 0 | GE30: 0 | GF30: 0 | GG30: =IF($BI244=GG$11,$BK244,0) -> 0 | GH30: 0 | GI30: 0 | GJ30: 0 | GK30: 0 | GL30: 0 | GM30: 0 | GN30: 0 | GO30: 0 | GP30: 0 | GQ30: 0 | GR30: 0 | GS30: 0 | GT30: 0 | GU30: 0 | GV30: 0 | GW30: 0 | GX30: 0 | GY30: 0 | GZ30: 0 | HA30: 0 | HB30: 0 | HC30: 0 | HD30: 0 | HE30: 0 | HF30: 0 | HG30: 0 | HH30: 0 | HI30: 0 | HJ30: 0 | HK30: 0 | HL30: 0 | HM30: 0 | HN30: 0 | HO30: 0 | HP30: 0 | HQ30: 0 | HR30: 0 | HS30: 0 | HT30: 0 | HU30: 0 | HV30: 0 | HW30: 0 | HX30: 0 | HY30: 0 | HZ30: 0 | IA30: 0 | IB30: 0 | IC30: 0 | ID30: 0 | IE30: 0 | IF30: 0 | IG30: 0 | IH30: 0 | II30: 0 | IJ30: 0 | IK30: 0 | IL30: 0 | IM30: 0 | IN30: 0 | IO30: 0 | IP30: 0 | IQ30: 0 | IR30: 0 | IS30: =IF($BI244=IS$11,$BK244,0) -> 0 | IT30: 0 | IU30: 0 | IV30: 0 | IW30: 0 | IX30: 0 | IY30: 0 | IZ30: 0 | JA30: 0 | JB30: 0 | JC30: 0 | JD30: 0 | JE30: 0 | JF30: 0 | JG30: 0 | JH30: 0 | JI30: 0 | JJ30: 0 | JK30: 42.9 | JL30: 0 | JM30: 0 | JN30: 0 | JO30: 0 | JP30: 0 | JQ30: 0 | JR30: 0 | JS30: 0 | JT30: 0 | JU30: 0 | JV30: 0 | JW30: 0 | JX30: 0 | JY30: 0 | JZ30: 0 | KA30: 0 | KB30: 0 | KC30: 0 | KD30: 0 | KE30: 0 | KF30: 0 | KG30: 0 | KH30: 0 | KI30: 0 | KJ30: 0 | KK30: 0 | KL30: 0 | KM30: 0 | KN30: 0 | KO30: 0 | KP30: 0 | KQ30: 0 | KR30: 0 | KS30: 0 | KT30: 0 | KU30: 0 | KV30: 0 | KW30: 0 | KX30: 0 | KY30: 0 | KZ30: 0 | LA30: 0 | LB30: 0 | LC30: 0 | LD30: 0 | LE30: =IF($BI244=LE$11,$BK244,0) -> 0 | LF30: 0 | LG30: 0 | LH30: 0 | LI30: 0 | LJ30: 0 | LK30: 0 | LL30: 0 | LM30: 0 | LN30: 0 | LO30: 0 | LP30: 0 | LQ30: 0 | LR30: 0 | LS30: 0 | LT30: 0 | LU30: 0 | LV30: 0 | LW30: 0 | LX30: 0 | LY30: 0 | LZ30: 0 | MA30: 0 | MB30: 0 | MC30: 0 | MD30: 0 | ME30: 0 | MF30: 0 | MG30: 0 | MH30: 0 | MI30: 0 | MJ30: 0 | MK30: 0 | ML30: 0 | MM30: 0 | MN30: 0 | MO30: 0 | MP30: 0 | MQ30: 0 | MR30: 0 | MS30: 0 | MT30: 0 | MU30: 0 | MV30: 0 | MW30: 0 | MX30: 0 | MY30: 0 | MZ30: 0 | NA30: 0 | NB30: 0 | NC30: 0 | ND30: 0 | NE30: 0 | NF30: 0 | NG30: 0 | NH30: 0 | NI30: 0 | NJ30: 0 | NK30: 0 | NL30: 0 | NM30: 0 | NN30: 0 | NO30: 0 | NP30: 0 | NQ30: =IF($BI244=NQ$11,$BK244,0) -> 0 | NR30: 0 | NS30: 0 | NT30: 0 | NU30: 0 | NV30: 0 | NW30: 0 | NX30: 0 | NY30: 0 | NZ30: 0 | OA30: 0 | OB30: 0 | OC30: 0 | OD30: 0 | OE30: 0 | OF30: 0 | OG30: 0 | OH30: 0 | OI30: 0 | OJ30: 0 | OK30: 0 | OL30: 0 | OM30: 0 | ON30: 0 | OO30: 0 | OP30: 0 | OQ30: 0 | OR30: 0 | OS30: 0 | OT30: 0 | OU30: 0 | OV30: 0 | OW30: 0 | OX30: 0 | OY30: 0 | OZ30: 0 | PA30: 0 | PB30: 0 | PC30: 0 | PD30: 0 | PE30: 0 | PF30: 0 | PG30: 0 | PH30: 0 | PI30: 0 | PJ30: 0 | PK30: 0 | PL30: 0 | PM30: 0 | PN30: 0 | PO30: 0 | PP30: 0 | PQ30: 0 | PR30: 0 | PS30: 0 | PT30: 0 | PU30: 0 | PV30: 0 | PW30: 0 | PX30: 0 | PY30: 0 | PZ30: 0 | QA30: 0 | QB30: 0 | QC30: =IF($BI244=QC$11,$BK244,0) -> 0 | QD30: 0 | QE30: 0 | QF30: 0 | QG30: 0 | QH30: 0 | QI30: 0 | QJ30: 0 | QK30: 0 | QL30: 0 | QM30: 0 | QN30: 0 | QO30: 0 | QP30: 0 | QQ30: 0 | QR30: 0 | QS30: 0 | QT30: 0 | QU30: 0 | QV30: 0 | QW30: 0 | QX30: 0 | QY30: 0 | QZ30: 0 | RA30: 0 | RB30: 0 | RC30: 0 | RD30: 0 | RE30: 0 | RF30: 0 | RG30: 0 | RH30: 0 | RI30: 0 | RJ30: 0 | RK30: 0 | RL30: 0 | RM30: 0 | RN30: 0 | RO30: 0 | RP30: 0 | RQ30: 0 | RR30: 0 | RS30: 0 | RT30: 0 | RU30: 0 | RV30: 0 | RW30: 0 | RX30: 0 | RY30: 0 | RZ30: 0 | SA30: 0 | SB30: 0 | SC30: 0 | SD30: 0 | SE30: 0 | SF30: 0 | SG30: 0 | SH30: 0 | SI30: 0 | SJ30: 0 | SK30: 0 | SL30: 0 | SM30: 0 | SN30: 0 | SO30: =IF($BI244=SO$11,$BK244,0) -> 0 | SP30: 0 | SQ30: 0 | SR30: 0 | SS30: 0 | ST30: 0 | SU30: 0 | SV30: 0 | SW30: 0 | SX30: 0 | SY30: 0 | SZ30: 0 | TA30: 0 | TB30: 0 | TC30: 0 | TD30: 0 | TE30: 0 | TF30: 0 | TG30: 0 | TH30: 0 | TI30: 0 | TJ30: 0 | TK30: 0 | TL30: 0 | TM30: 0 | TN30: 0 | TO30: 0 | TP30: 0 | TQ30: 0 | TR30: 0 | TS30: 0 | TT30: 0 | TU30: 0 | TV30: 0 | TW30: 0 | TX30: 0 | TY30: 0 | TZ30: 0 | UA30: 0 | UB30: 0 | UC30: 0 | UD30: 0 | UE30: 0 | UF30: 0 | UG30: 0 | UH30: 0 | UI30: 0 | UJ30: 0 | UK30: 0 | UL30: 0 | UM30: 0 | UN30: 0 | UO30: 0
A31: 31 | C31: Aux Horiz./Radial Flow | E31: 19 | F31: ° | U31: 21.5 | V31: 42.8 | X31: 25 | Y31: 3.6 | Z31: 15 | AJ31: 52.9 | AK31: 157.6418491 | AL31: 22.35815089 | AM31: 1.6 | AN31: 0.1 | AO31: 18.24306207 | AP31: 85.04153963 | AQ31: 1.6 | AR31: 0.1 | AS31: 0 | AT31: 0 | AU31: =IF('Transfer New'!$BK$12>MAX(AM31,AQ31),0,AL31) -> 0 | AV31: 0 | AW31: 0 | AX31: 0 | AZ31: 0 | BA31: 21 | BD31: 0 | BE31: 0 | BI31: =IF($BI245=BI$11,$BK245,0) -> 0 | BJ31: 0 | BK31: 0 | BL31: 0 | BM31: 0 | BN31: 0 | BO31: 0 | BP31: 0 | BQ31: 0 | BR31: 0 | BS31: 0 | BT31: 0 | BU31: 0 | BV31: 0 | BW31: 0 | BX31: 0 | BY31: 0 | BZ31: 0 | CA31: 0 | CB31: 0 | CC31: 0 | CD31: 0 | CE31: 0 | CF31: 0 | CG31: 0 | CH31: 0 | CI31: 0 | CJ31: 0 | CK31: 0 | CL31: 0 | CM31: 0 | CN31: 0 | CO31: 0 | CP31: 0 | CQ31: 0 | CR31: 0 | CS31: 0 | CT31: 0 | CU31: 0 | CV31: 0 | CW31: 0 | CX31: 0 | CY31: 0 | CZ31: 0 | DA31: 0 | DB31: 0 | DC31: 0 | DD31: 0 | DE31: 0 | DF31: 0 | DG31: 0 | DH31: 0 | DI31: 0 | DJ31: 0 | DK31: 0 | DL31: 0 | DM31: 0 | DN31: 0 | DO31: 0 | DP31: 0 | DQ31: 0 | DR31: 0 | DS31: 0 | DT31: 0 | DU31: =IF($BI245=DU$11,$BK245,0) -> 0 | DV31: 0 | DW31: 0 | DX31: 0 | DY31: 0 | DZ31: 0 | EA31: 0 | EB31: 0 | EC31: 0 | ED31: 0 | EE31: 0 | EF31: 0 | EG31: 0 | EH31: 0 | EI31: 0 | EJ31: 0 | EK31: 0 | EL31: 0 | EM31: 0 | EN31: 0 | EO31: 0 | EP31: 0 | EQ31: 0 | ER31: 0 | ES31: 0 | ET31: 0 | EU31: 0 | EV31: 0 | EW31: 0 | EX31: 0 | EY31: 0 | EZ31: 0 | FA31: 0 | FB31: 0 | FC31: 0 | FD31: 0 | FE31: 0 | FF31: 0 | FG31: 0 | FH31: 0 | FI31: 0 | FJ31: 0 | FK31: 0 | FL31: 0 | FM31: 0 | FN31: 0 | FO31: 0 | FP31: 0 | FQ31: 0 | FR31: 0 | FS31: 0 | FT31: 0 | FU31: 0 | FV31: 0 | FW31: 0 | FX31: 0 | FY31: 0 | FZ31: 0 | GA31: 0 | GB31: 0 | GC31: 0 | GD31: 0 | GE31: 0 | GF31: 0 | GG31: =IF($BI245=GG$11,$BK245,0) -> 0 | GH31: 0 | GI31: 0 | GJ31: 0 | GK31: 0 | GL31: 0 | GM31: 0 | GN31: 0 | GO31: 0 | GP31: 0 | GQ31: 0 | GR31: 0 | GS31: 0 | GT31: 0 | GU31: 0 | GV31: 0 | GW31: 0 | GX31: 0 | GY31: 0 | GZ31: 0 | HA31: 0 | HB31: 0 | HC31: 0 | HD31: 0 | HE31: 0 | HF31: 0 | HG31: 0 | HH31: 0 | HI31: 0 | HJ31: 0 | HK31: 0 | HL31: 0 | HM31: 0 | HN31: 0 | HO31: 0 | HP31: 0 | HQ31: 0 | HR31: 0 | HS31: 0 | HT31: 0 | HU31: 0 | HV31: 0 | HW31: 0 | HX31: 0 | HY31: 0 | HZ31: 0 | IA31: 0 | IB31: 0 | IC31: 0 | ID31: 0 | IE31: 0 | IF31: 0 | IG31: 0 | IH31: 0 | II31: 0 | IJ31: 0 | IK31: 0 | IL31: 0 | IM31: 0 | IN31: 0 | IO31: 0 | IP31: 0 | IQ31: 0 | IR31: 0 | IS31: =IF($BI245=IS$11,$BK245,0) -> 0 | IT31: 0 | IU31: 0 | IV31: 0 | IW31: 0 | IX31: 0 | IY31: 0 | IZ31: 0 | JA31: 0 | JB31: 0 | JC31: 0 | JD31: 0 | JE31: 0 | JF31: 0 | JG31: 0 | JH31: 0 | JI31: 0 | JJ31: 0 | JK31: 0 | JL31: 0 | JM31: 0 | JN31: 0 | JO31: 0 | JP31: 42.8 | JQ31: 0 | JR31: 0 | JS31: 0 | JT31: 0 | JU31: 0 | JV31: 0 | JW31: 0 | JX31: 0 | JY31: 0 | JZ31: 0 | KA31: 0 | KB31: 0 | KC31: 0 | KD31: 0 | KE31: 0 | KF31: 0 | KG31: 0 | KH31: 0 | KI31: 0 | KJ31: 0 | KK31: 0 | KL31: 0 | KM31: 0 | KN31: 0 | KO31: 0 | KP31: 0 | KQ31: 0 | KR31: 0 | KS31: 0 | KT31: 0 | KU31: 0 | KV31: 0 | KW31: 0 | KX31: 0 | KY31: 0 | KZ31: 0 | LA31: 0 | LB31: 0 | LC31: 0 | LD31: 0 | LE31: =IF($BI245=LE$11,$BK245,0) -> 0 | LF31: 0 | LG31: 0 | LH31: 0 | LI31: 0 | LJ31: 0 | LK31: 0 | LL31: 0 | LM31: 0 | LN31: 0 | LO31: 0 | LP31: 0 | LQ31: 0 | LR31: 0 | LS31: 0 | LT31: 0 | LU31: 0 | LV31: 0 | LW31: 0 | LX31: 0 | LY31: 0 | LZ31: 0 | MA31: 0 | MB31: 0 | MC31: 0 | MD31: 0 | ME31: 0 | MF31: 0 | MG31: 0 | MH31: 0 | MI31: 0 | MJ31: 0 | MK31: 0 | ML31: 0 | MM31: 0 | MN31: 0 | MO31: 0 | MP31: 0 | MQ31: 0 | MR31: 0 | MS31: 0 | MT31: 0 | MU31: 0 | MV31: 0 | MW31: 0 | MX31: 0 | MY31: 0 | MZ31: 0 | NA31: 0 | NB31: 0 | NC31: 0 | ND31: 0 | NE31: 0 | NF31: 0 | NG31: 0 | NH31: 0 | NI31: 0 | NJ31: 0 | NK31: 0 | NL31: 0 | NM31: 0 | NN31: 0 | NO31: 0 | NP31: 0 | NQ31: =IF($BI245=NQ$11,$BK245,0) -> 0 | NR31: 0 | NS31: 0 | NT31: 0 | NU31: 0 | NV31: 0 | NW31: 0 | NX31: 0 | NY31: 0 | NZ31: 0 | OA31: 0 | OB31: 0 | OC31: 0 | OD31: 0 | OE31: 0 | OF31: 0 | OG31: 0 | OH31: 0 | OI31: 0 | OJ31: 0 | OK31: 0 | OL31: 0 | OM31: 0 | ON31: 0 | OO31: 0 | OP31: 0 | OQ31: 0 | OR31: 0 | OS31: 0 | OT31: 0 | OU31: 0 | OV31: 0 | OW31: 0 | OX31: 0 | OY31: 0 | OZ31: 0 | PA31: 0 | PB31: 0 | PC31: 0 | PD31: 0 | PE31: 0 | PF31: 0 | PG31: 0 | PH31: 0 | PI31: 0 | PJ31: 0 | PK31: 0 | PL31: 0 | PM31: 0 | PN31: 0 | PO31: 0 | PP31: 0 | PQ31: 0 | PR31: 0 | PS31: 0 | PT31: 0 | PU31: 0 | PV31: 0 | PW31: 0 | PX31: 0 | PY31: 0 | PZ31: 0 | QA31: 0 | QB31: 0 | QC31: =IF($BI245=QC$11,$BK245,0) -> 0 | QD31: 0 | QE31: 0 | QF31: 0 | QG31: 0 | QH31: 0 | QI31: 0 | QJ31: 0 | QK31: 0 | QL31: 0 | QM31: 0 | QN31: 0 | QO31: 0 | QP31: 0 | QQ31: 0 | QR31: 0 | QS31: 0 | QT31: 0 | QU31: 0 | QV31: 0 | QW31: 0 | QX31: 0 | QY31: 0 | QZ31: 0 | RA31: 0 | RB31: 0 | RC31: 0 | RD31: 0 | RE31: 0 | RF31: 0 | RG31: 0 | RH31: 0 | RI31: 0 | RJ31: 0 | RK31: 0 | RL31: 0 | RM31: 0 | RN31: 0 | RO31: 0 | RP31: 0 | RQ31: 0 | RR31: 0 | RS31: 0 | RT31: 0 | RU31: 0 | RV31: 0 | RW31: 0 | RX31: 0 | RY31: 0 | RZ31: 0 | SA31: 0 | SB31: 0 | SC31: 0 | SD31: 0 | SE31: 0 | SF31: 0 | SG31: 0 | SH31: 0 | SI31: 0 | SJ31: 0 | SK31: 0 | SL31: 0 | SM31: 0 | SN31: 0 | SO31: =IF($BI245=SO$11,$BK245,0) -> 0 | SP31: 0 | SQ31: 0 | SR31: 0 | SS31: 0 | ST31: 0 | SU31: 0 | SV31: 0 | SW31: 0 | SX31: 0 | SY31: 0 | SZ31: 0 | TA31: 0 | TB31: 0 | TC31: 0 | TD31: 0 | TE31: 0 | TF31: 0 | TG31: 0 | TH31: 0 | TI31: 0 | TJ31: 0 | TK31: 0 | TL31: 0 | TM31: 0 | TN31: 0 | TO31: 0 | TP31: 0 | TQ31: 0 | TR31: 0 | TS31: 0 | TT31: 0 | TU31: 0 | TV31: 0 | TW31: 0 | TX31: 0 | TY31: 0 | TZ31: 0 | UA31: 0 | UB31: 0 | UC31: 0 | UD31: 0 | UE31: 0 | UF31: 0 | UG31: 0 | UH31: 0 | UI31: 0 | UJ31: 0 | UK31: 0 | UL31: 0 | UM31: 0 | UN31: 0 | UO31: 0
A32: 32 | C32: Aux Directional Flow | E32: =IF(N4=0,"",Data!J36-E31) -> 50.92207167 | F32: ° | U32: 21 | V32: 42.9 | X32: 24 | Y32: 3.4 | Z32: 15 | AJ32: 52.8 | AK32: 156.9519971 | AL32: 23.0480029 | AM32: 1.7 | AN32: 0.1 | AO32: 18.6545121 | AP32: 89.46168218 | AQ32: 1.7 | AR32: 0.1 | AS32: 0 | AT32: 0 | AU32: =IF('Transfer New'!$BK$12>MAX(AM32,AQ32),0,AL32) -> 0 | AV32: 0 | AW32: 0 | AX32: 0 | AZ32: 0 | BA32: 21.5 | BD32: 0 | BE32: 0 | BI32: =IF($BI246=BI$11,$BK246,0) -> 0 | BJ32: 0 | BK32: 0 | BL32: 0 | BM32: 0 | BN32: 0 | BO32: 0 | BP32: 0 | BQ32: 0 | BR32: 0 | BS32: 0 | BT32: 0 | BU32: 0 | BV32: 0 | BW32: 0 | BX32: 0 | BY32: 0 | BZ32: 0 | CA32: 0 | CB32: 0 | CC32: 0 | CD32: 0 | CE32: 0 | CF32: 0 | CG32: 0 | CH32: 0 | CI32: 0 | CJ32: 0 | CK32: 0 | CL32: 0 | CM32: 0 | CN32: 0 | CO32: 0 | CP32: 0 | CQ32: 0 | CR32: 0 | CS32: 0 | CT32: 0 | CU32: 0 | CV32: 0 | CW32: 0 | CX32: 0 | CY32: 0 | CZ32: 0 | DA32: 0 | DB32: 0 | DC32: 0 | DD32: 0 | DE32: 0 | DF32: 0 | DG32: 0 | DH32: 0 | DI32: 0 | DJ32: 0 | DK32: 0 | DL32: 0 | DM32: 0 | DN32: 0 | DO32: 0 | DP32: 0 | DQ32: 0 | DR32: 0 | DS32: 0 | DT32: 0 | DU32: =IF($BI246=DU$11,$BK246,0) -> 0 | DV32: 0 | DW32: 0 | DX32: 0 | DY32: 0 | DZ32: 0 | EA32: 0 | EB32: 0 | EC32: 0 | ED32: 0 | EE32: 0 | EF32: 0 | EG32: 0 | EH32: 0 | EI32: 0 | EJ32: 0 | EK32: 0 | EL32: 0 | EM32: 0 | EN32: 0 | EO32: 0 | EP32: 0 | EQ32: 0 | ER32: 0 | ES32: 0 | ET32: 0 | EU32: 0 | EV32: 0 | EW32: 0 | EX32: 0 | EY32: 0 | EZ32: 0 | FA32: 0 | FB32: 0 | FC32: 0 | FD32: 0 | FE32: 0 | FF32: 0 | FG32: 0 | FH32: 0 | FI32: 0 | FJ32: 0 | FK32: 0 | FL32: 0 | FM32: 0 | FN32: 0 | FO32: 0 | FP32: 0 | FQ32: 0 | FR32: 0 | FS32: 0 | FT32: 0 | FU32: 0 | FV32: 0 | FW32: 0 | FX32: 0 | FY32: 0 | FZ32: 0 | GA32: 0 | GB32: 0 | GC32: 0 | GD32: 0 | GE32: 0 | GF32: 0 | GG32: =IF($BI246=GG$11,$BK246,0) -> 0 | GH32: 0 | GI32: 0 | GJ32: 0 | GK32: 0 | GL32: 0 | GM32: 0 | GN32: 0 | GO32: 0 | GP32: 0 | GQ32: 0 | GR32: 0 | GS32: 0 | GT32: 0 | GU32: 0 | GV32: 0 | GW32: 0 | GX32: 0 | GY32: 0 | GZ32: 0 | HA32: 0 | HB32: 0 | HC32: 0 | HD32: 0 | HE32: 0 | HF32: 0 | HG32: 0 | HH32: 0 | HI32: 0 | HJ32: 0 | HK32: 0 | HL32: 0 | HM32: 0 | HN32: 0 | HO32: 0 | HP32: 0 | HQ32: 0 | HR32: 0 | HS32: 0 | HT32: 0 | HU32: 0 | HV32: 0 | HW32: 0 | HX32: 0 | HY32: 0 | HZ32: 0 | IA32: 0 | IB32: 0 | IC32: 0 | ID32: 0 | IE32: 0 | IF32: 0 | IG32: 0 | IH32: 0 | II32: 0 | IJ32: 0 | IK32: 0 | IL32: 0 | IM32: 0 | IN32: 0 | IO32: 0 | IP32: 0 | IQ32: 0 | IR32: 0 | IS32: =IF($BI246=IS$11,$BK246,0) -> 0 | IT32: 0 | IU32: 0 | IV32: 0 | IW32: 0 | IX32: 0 | IY32: 0 | IZ32: 0 | JA32: 0 | JB32: 0 | JC32: 0 | JD32: 0 | JE32: 0 | JF32: 0 | JG32: 0 | JH32: 0 | JI32: 0 | JJ32: 0 | JK32: 0 | JL32: 0 | JM32: 0 | JN32: 0 | JO32: 0 | JP32: 0 | JQ32: 0 | JR32: 0 | JS32: 0 | JT32: 0 | JU32: 42.7 | JV32: 0 | JW32: 0 | JX32: 0 | JY32: 0 | JZ32: 0 | KA32: 0 | KB32: 0 | KC32: 0 | KD32: 0 | KE32: 0 | KF32: 0 | KG32: 0 | KH32: 0 | KI32: 0 | KJ32: 0 | KK32: 0 | KL32: 0 | KM32: 0 | KN32: 0 | KO32: 0 | KP32: 0 | KQ32: 0 | KR32: 0 | KS32: 0 | KT32: 0 | KU32: 0 | KV32: 0 | KW32: 0 | KX32: 0 | KY32: 0 | KZ32: 0 | LA32: 0 | LB32: 0 | LC32: 0 | LD32: 0 | LE32: =IF($BI246=LE$11,$BK246,0) -> 0 | LF32: 0 | LG32: 0 | LH32: 0 | LI32: 0 | LJ32: 0 | LK32: 0 | LL32: 0 | LM32: 0 | LN32: 0 | LO32: 0 | LP32: 0 | LQ32: 0 | LR32: 0 | LS32: 0 | LT32: 0 | LU32: 0 | LV32: 0 | LW32: 0 | LX32: 0 | LY32: 0 | LZ32: 0 | MA32: 0 | MB32: 0 | MC32: 0 | MD32: 0 | ME32: 0 | MF32: 0 | MG32: 0 | MH32: 0 | MI32: 0 | MJ32: 0 | MK32: 0 | ML32: 0 | MM32: 0 | MN32: 0 | MO32: 0 | MP32: 0 | MQ32: 0 | MR32: 0 | MS32: 0 | MT32: 0 | MU32: 0 | MV32: 0 | MW32: 0 | MX32: 0 | MY32: 0 | MZ32: 0 | NA32: 0 | NB32: 0 | NC32: 0 | ND32: 0 | NE32: 0 | NF32: 0 | NG32: 0 | NH32: 0 | NI32: 0 | NJ32: 0 | NK32: 0 | NL32: 0 | NM32: 0 | NN32: 0 | NO32: 0 | NP32: 0 | NQ32: =IF($BI246=NQ$11,$BK246,0) -> 0 | NR32: 0 | NS32: 0 | NT32: 0 | NU32: 0 | NV32: 0 | NW32: 0 | NX32: 0 | NY32: 0 | NZ32: 0 | OA32: 0 | OB32: 0 | OC32: 0 | OD32: 0 | OE32: 0 | OF32: 0 | OG32: 0 | OH32: 0 | OI32: 0 | OJ32: 0 | OK32: 0 | OL32: 0 | OM32: 0 | ON32: 0 | OO32: 0 | OP32: 0 | OQ32: 0 | OR32: 0 | OS32: 0 | OT32: 0 | OU32: 0 | OV32: 0 | OW32: 0 | OX32: 0 | OY32: 0 | OZ32: 0 | PA32: 0 | PB32: 0 | PC32: 0 | PD32: 0 | PE32: 0 | PF32: 0 | PG32: 0 | PH32: 0 | PI32: 0 | PJ32: 0 | PK32: 0 | PL32: 0 | PM32: 0 | PN32: 0 | PO32: 0 | PP32: 0 | PQ32: 0 | PR32: 0 | PS32: 0 | PT32: 0 | PU32: 0 | PV32: 0 | PW32: 0 | PX32: 0 | PY32: 0 | PZ32: 0 | QA32: 0 | QB32: 0 | QC32: =IF($BI246=QC$11,$BK246,0) -> 0 | QD32: 0 | QE32: 0 | QF32: 0 | QG32: 0 | QH32: 0 | QI32: 0 | QJ32: 0 | QK32: 0 | QL32: 0 | QM32: 0 | QN32: 0 | QO32: 0 | QP32: 0 | QQ32: 0 | QR32: 0 | QS32: 0 | QT32: 0 | QU32: 0 | QV32: 0 | QW32: 0 | QX32: 0 | QY32: 0 | QZ32: 0 | RA32: 0 | RB32: 0 | RC32: 0 | RD32: 0 | RE32: 0 | RF32: 0 | RG32: 0 | RH32: 0 | RI32: 0 | RJ32: 0 | RK32: 0 | RL32: 0 | RM32: 0 | RN32: 0 | RO32: 0 | RP32: 0 | RQ32: 0 | RR32: 0 | RS32: 0 | RT32: 0 | RU32: 0 | RV32: 0 | RW32: 0 | RX32: 0 | RY32: 0 | RZ32: 0 | SA32: 0 | SB32: 0 | SC32: 0 | SD32: 0 | SE32: 0 | SF32: 0 | SG32: 0 | SH32: 0 | SI32: 0 | SJ32: 0 | SK32: 0 | SL32: 0 | SM32: 0 | SN32: 0 | SO32: =IF($BI246=SO$11,$BK246,0) -> 0 | SP32: 0 | SQ32: 0 | SR32: 0 | SS32: 0 | ST32: 0 | SU32: 0 | SV32: 0 | SW32: 0 | SX32: 0 | SY32: 0 | SZ32: 0 | TA32: 0 | TB32: 0 | TC32: 0 | TD32: 0 | TE32: 0 | TF32: 0 | TG32: 0 | TH32: 0 | TI32: 0 | TJ32: 0 | TK32: 0 | TL32: 0 | TM32: 0 | TN32: 0 | TO32: 0 | TP32: 0 | TQ32: 0 | TR32: 0 | TS32: 0 | TT32: 0 | TU32: 0 | TV32: 0 | TW32: 0 | TX32: 0 | TY32: 0 | TZ32: 0 | UA32: 0 | UB32: 0 | UC32: 0 | UD32: 0 | UE32: 0 | UF32: 0 | UG32: 0 | UH32: 0 | UI32: 0 | UJ32: 0 | UK32: 0 | UL32: 0 | UM32: 0 | UN32: 0 | UO32: 0
A33: 33 | U33: 18 | V33: 42.9 | X33: 21 | Y33: 3.1 | Z33: 15 | AJ33: 52.7 | AK33: 156.2819855 | AL33: 23.71801448 | AM33: 1.8 | AN33: 0.1 | AO33: 19.06436282 | AP33: 93.91385228 | AQ33: 1.8 | AR33: 0.1 | AS33: 0 | AT33: 0 | AU33: =IF('Transfer New'!$BK$12>MAX(AM33,AQ33),0,AL33) -> 0 | AV33: 0 | AW33: 0 | AX33: 0 | AZ33: 0 | BA33: 22 | BD33: 0 | BE33: 0 | BI33: =IF($BI247=BI$11,$BK247,0) -> 0 | BJ33: 0 | BK33: 0 | BL33: 0 | BM33: 0 | BN33: 0 | BO33: 0 | BP33: 0 | BQ33: 0 | BR33: 0 | BS33: 0 | BT33: 0 | BU33: 0 | BV33: 0 | BW33: 0 | BX33: 0 | BY33: 0 | BZ33: 0 | CA33: 0 | CB33: 0 | CC33: 0 | CD33: 0 | CE33: 0 | CF33: 0 | CG33: 0 | CH33: 0 | CI33: 0 | CJ33: 0 | CK33: 0 | CL33: 0 | CM33: 0 | CN33: 0 | CO33: 0 | CP33: 0 | CQ33: 0 | CR33: 0 | CS33: 0 | CT33: 0 | CU33: 0 | CV33: 0 | CW33: 0 | CX33: 0 | CY33: 0 | CZ33: 0 | DA33: 0 | DB33: 0 | DC33: 0 | DD33: 0 | DE33: 0 | DF33: 0 | DG33: 0 | DH33: 0 | DI33: 0 | DJ33: 0 | DK33: 0 | DL33: 0 | DM33: 0 | DN33: 0 | DO33: 0 | DP33: 0 | DQ33: 0 | DR33: 0 | DS33: 0 | DT33: 0 | DU33: =IF($BI247=DU$11,$BK247,0) -> 0 | DV33: 0 | DW33: 0 | DX33: 0 | DY33: 0 | DZ33: 0 | EA33: 0 | EB33: 0 | EC33: 0 | ED33: 0 | EE33: 0 | EF33: 0 | EG33: 0 | EH33: 0 | EI33: 0 | EJ33: 0 | EK33: 0 | EL33: 0 | EM33: 0 | EN33: 0 | EO33: 0 | EP33: 0 | EQ33: 0 | ER33: 0 | ES33: 0 | ET33: 0 | EU33: 0 | EV33: 0 | EW33: 0 | EX33: 0 | EY33: 0 | EZ33: 0 | FA33: 0 | FB33: 0 | FC33: 0 | FD33: 0 | FE33: 0 | FF33: 0 | FG33: 0 | FH33: 0 | FI33: 0 | FJ33: 0 | FK33: 0 | FL33: 0 | FM33: 0 | FN33: 0 | FO33: 0 | FP33: 0 | FQ33: 0 | FR33: 0 | FS33: 0 | FT33: 0 | FU33: 0 | FV33: 0 | FW33: 0 | FX33: 0 | FY33: 0 | FZ33: 0 | GA33: 0 | GB33: 0 | GC33: 0 | GD33: 0 | GE33: 0 | GF33: 0 | GG33: =IF($BI247=GG$11,$BK247,0) -> 0 | GH33: 0 | GI33: 0 | GJ33: 0 | GK33: 0 | GL33: 0 | GM33: 0 | GN33: 0 | GO33: 0 | GP33: 0 | GQ33: 0 | GR33: 0 | GS33: 0 | GT33: 0 | GU33: 0 | GV33: 0 | GW33: 0 | GX33: 0 | GY33: 0 | GZ33: 0 | HA33: 0 | HB33: 0 | HC33: 0 | HD33: 0 | HE33: 0 | HF33: 0 | HG33: 0 | HH33: 0 | HI33: 0 | HJ33: 0 | HK33: 0 | HL33: 0 | HM33: 0 | HN33: 0 | HO33: 0 | HP33: 0 | HQ33: 0 | HR33: 0 | HS33: 0 | HT33: 0 | HU33: 0 | HV33: 0 | HW33: 0 | HX33: 0 | HY33: 0 | HZ33: 0 | IA33: 0 | IB33: 0 | IC33: 0 | ID33: 0 | IE33: 0 | IF33: 0 | IG33: 0 | IH33: 0 | II33: 0 | IJ33: 0 | IK33: 0 | IL33: 0 | IM33: 0 | IN33: 0 | IO33: 0 | IP33: 0 | IQ33: 0 | IR33: 0 | IS33: =IF($BI247=IS$11,$BK247,0) -> 0 | IT33: 0 | IU33: 0 | IV33: 0 | IW33: 0 | IX33: 0 | IY33: 0 | IZ33: 0 | JA33: 0 | JB33: 0 | JC33: 0 | JD33: 0 | JE33: 0 | JF33: 0 | JG33: 0 | JH33: 0 | JI33: 0 | JJ33: 0 | JK33: 0 | JL33: 0 | JM33: 0 | JN33: 0 | JO33: 0 | JP33: 0 | JQ33: 0 | JR33: 0 | JS33: 0 | JT33: 0 | JU33: 0 | JV33: 0 | JW33: 0 | JX33: 0 | JY33: 0 | JZ33: 0 | KA33: 0 | KB33: 0 | KC33: 0 | KD33: 0 | KE33: 42.2 | KF33: 0 | KG33: 0 | KH33: 0 | KI33: 0 | KJ33: 0 | KK33: 0 | KL33: 0 | KM33: 0 | KN33: 0 | KO33: 0 | KP33: 0 | KQ33: 0 | KR33: 0 | KS33: 0 | KT33: 0 | KU33: 0 | KV33: 0 | KW33: 0 | KX33: 0 | KY33: 0 | KZ33: 0 | LA33: 0 | LB33: 0 | LC33: 0 | LD33: 0 | LE33: =IF($BI247=LE$11,$BK247,0) -> 0 | LF33: 0 | LG33: 0 | LH33: 0 | LI33: 0 | LJ33: 0 | LK33: 0 | LL33: 0 | LM33: 0 | LN33: 0 | LO33: 0 | LP33: 0 | LQ33: 0 | LR33: 0 | LS33: 0 | LT33: 0 | LU33: 0 | LV33: 0 | LW33: 0 | LX33: 0 | LY33: 0 | LZ33: 0 | MA33: 0 | MB33: 0 | MC33: 0 | MD33: 0 | ME33: 0 | MF33: 0 | MG33: 0 | MH33: 0 | MI33: 0 | MJ33: 0 | MK33: 0 | ML33: 0 | MM33: 0 | MN33: 0 | MO33: 0 | MP33: 0 | MQ33: 0 | MR33: 0 | MS33: 0 | MT33: 0 | MU33: 0 | MV33: 0 | MW33: 0 | MX33: 0 | MY33: 0 | MZ33: 0 | NA33: 0 | NB33: 0 | NC33: 0 | ND33: 0 | NE33: 0 | NF33: 0 | NG33: 0 | NH33: 0 | NI33: 0 | NJ33: 0 | NK33: 0 | NL33: 0 | NM33: 0 | NN33: 0 | NO33: 0 | NP33: 0 | NQ33: =IF($BI247=NQ$11,$BK247,0) -> 0 | NR33: 0 | NS33: 0 | NT33: 0 | NU33: 0 | NV33: 0 | NW33: 0 | NX33: 0 | NY33: 0 | NZ33: 0 | OA33: 0 | OB33: 0 | OC33: 0 | OD33: 0 | OE33: 0 | OF33: 0 | OG33: 0 | OH33: 0 | OI33: 0 | OJ33: 0 | OK33: 0 | OL33: 0 | OM33: 0 | ON33: 0 | OO33: 0 | OP33: 0 | OQ33: 0 | OR33: 0 | OS33: 0 | OT33: 0 | OU33: 0 | OV33: 0 | OW33: 0 | OX33: 0 | OY33: 0 | OZ33: 0 | PA33: 0 | PB33: 0 | PC33: 0 | PD33: 0 | PE33: 0 | PF33: 0 | PG33: 0 | PH33: 0 | PI33: 0 | PJ33: 0 | PK33: 0 | PL33: 0 | PM33: 0 | PN33: 0 | PO33: 0 | PP33: 0 | PQ33: 0 | PR33: 0 | PS33: 0 | PT33: 0 | PU33: 0 | PV33: 0 | PW33: 0 | PX33: 0 | PY33: 0 | PZ33: 0 | QA33: 0 | QB33: 0 | QC33: =IF($BI247=QC$11,$BK247,0) -> 0 | QD33: 0 | QE33: 0 | QF33: 0 | QG33: 0 | QH33: 0 | QI33: 0 | QJ33: 0 | QK33: 0 | QL33: 0 | QM33: 0 | QN33: 0 | QO33: 0 | QP33: 0 | QQ33: 0 | QR33: 0 | QS33: 0 | QT33: 0 | QU33: 0 | QV33: 0 | QW33: 0 | QX33: 0 | QY33: 0 | QZ33: 0 | RA33: 0 | RB33: 0 | RC33: 0 | RD33: 0 | RE33: 0 | RF33: 0 | RG33: 0 | RH33: 0 | RI33: 0 | RJ33: 0 | RK33: 0 | RL33: 0 | RM33: 0 | RN33: 0 | RO33: 0 | RP33: 0 | RQ33: 0 | RR33: 0 | RS33: 0 | RT33: 0 | RU33: 0 | RV33: 0 | RW33: 0 | RX33: 0 | RY33: 0 | RZ33: 0 | SA33: 0 | SB33: 0 | SC33: 0 | SD33: 0 | SE33: 0 | SF33: 0 | SG33: 0 | SH33: 0 | SI33: 0 | SJ33: 0 | SK33: 0 | SL33: 0 | SM33: 0 | SN33: 0 | SO33: =IF($BI247=SO$11,$BK247,0) -> 0 | SP33: 0 | SQ33: 0 | SR33: 0 | SS33: 0 | ST33: 0 | SU33: 0 | SV33: 0 | SW33: 0 | SX33: 0 | SY33: 0 | SZ33: 0 | TA33: 0 | TB33: 0 | TC33: 0 | TD33: 0 | TE33: 0 | TF33: 0 | TG33: 0 | TH33: 0 | TI33: 0 | TJ33: 0 | TK33: 0 | TL33: 0 | TM33: 0 | TN33: 0 | TO33: 0 | TP33: 0 | TQ33: 0 | TR33: 0 | TS33: 0 | TT33: 0 | TU33: 0 | TV33: 0 | TW33: 0 | TX33: 0 | TY33: 0 | TZ33: 0 | UA33: 0 | UB33: 0 | UC33: 0 | UD33: 0 | UE33: 0 | UF33: 0 | UG33: 0 | UH33: 0 | UI33: 0 | UJ33: 0 | UK33: 0 | UL33: 0 | UM33: 0 | UN33: 0 | UO33: 0
A34: 34 | U34: 15 | V34: 42.9 | X34: 20 | Y34: 3 | Z34: 15 | AJ34: 52.6 | AK34: 155.6301752 | AL34: 24.3698248 | AM34: 1.9 | AN34: 0.1 | AO34: 19.47257909 | AP34: 98.39838681 | AQ34: 1.9 | AR34: 0.1 | AS34: 0 | AT34: 0 | AU34: =IF('Transfer New'!$BK$12>MAX(AM34,AQ34),0,AL34) -> 0 | AV34: 0 | AW34: 0 | AX34: 0 | AZ34: 0 | BA34: 22.5 | BD34: 0 | BE34: 0 | BI34: =IF($BI248=BI$11,$BK248,0) -> 0 | BJ34: 0 | BK34: 0 | BL34: 0 | BM34: 0 | BN34: 0 | BO34: 0 | BP34: 0 | BQ34: 0 | BR34: 0 | BS34: 0 | BT34: 0 | BU34: 0 | BV34: 0 | BW34: 0 | BX34: 0 | BY34: 0 | BZ34: 0 | CA34: 0 | CB34: 0 | CC34: 0 | CD34: 0 | CE34: 0 | CF34: 0 | CG34: 0 | CH34: 0 | CI34: 0 | CJ34: 0 | CK34: 0 | CL34: 0 | CM34: 0 | CN34: 0 | CO34: 0 | CP34: 0 | CQ34: 0 | CR34: 0 | CS34: 0 | CT34: 0 | CU34: 0 | CV34: 0 | CW34: 0 | CX34: 0 | CY34: 0 | CZ34: 0 | DA34: 0 | DB34: 0 | DC34: 0 | DD34: 0 | DE34: 0 | DF34: 0 | DG34: 0 | DH34: 0 | DI34: 0 | DJ34: 0 | DK34: 0 | DL34: 0 | DM34: 0 | DN34: 0 | DO34: 0 | DP34: 0 | DQ34: 0 | DR34: 0 | DS34: 0 | DT34: 0 | DU34: =IF($BI248=DU$11,$BK248,0) -> 0 | DV34: 0 | DW34: 0 | DX34: 0 | DY34: 0 | DZ34: 0 | EA34: 0 | EB34: 0 | EC34: 0 | ED34: 0 | EE34: 0 | EF34: 0 | EG34: 0 | EH34: 0 | EI34: 0 | EJ34: 0 | EK34: 0 | EL34: 0 | EM34: 0 | EN34: 0 | EO34: 0 | EP34: 0 | EQ34: 0 | ER34: 0 | ES34: 0 | ET34: 0 | EU34: 0 | EV34: 0 | EW34: 0 | EX34: 0 | EY34: 0 | EZ34: 0 | FA34: 0 | FB34: 0 | FC34: 0 | FD34: 0 | FE34: 0 | FF34: 0 | FG34: 0 | FH34: 0 | FI34: 0 | FJ34: 0 | FK34: 0 | FL34: 0 | FM34: 0 | FN34: 0 | FO34: 0 | FP34: 0 | FQ34: 0 | FR34: 0 | FS34: 0 | FT34: 0 | FU34: 0 | FV34: 0 | FW34: 0 | FX34: 0 | FY34: 0 | FZ34: 0 | GA34: 0 | GB34: 0 | GC34: 0 | GD34: 0 | GE34: 0 | GF34: 0 | GG34: =IF($BI248=GG$11,$BK248,0) -> 0 | GH34: 0 | GI34: 0 | GJ34: 0 | GK34: 0 | GL34: 0 | GM34: 0 | GN34: 0 | GO34: 0 | GP34: 0 | GQ34: 0 | GR34: 0 | GS34: 0 | GT34: 0 | GU34: 0 | GV34: 0 | GW34: 0 | GX34: 0 | GY34: 0 | GZ34: 0 | HA34: 0 | HB34: 0 | HC34: 0 | HD34: 0 | HE34: 0 | HF34: 0 | HG34: 0 | HH34: 0 | HI34: 0 | HJ34: 0 | HK34: 0 | HL34: 0 | HM34: 0 | HN34: 0 | HO34: 0 | HP34: 0 | HQ34: 0 | HR34: 0 | HS34: 0 | HT34: 0 | HU34: 0 | HV34: 0 | HW34: 0 | HX34: 0 | HY34: 0 | HZ34: 0 | IA34: 0 | IB34: 0 | IC34: 0 | ID34: 0 | IE34: 0 | IF34: 0 | IG34: 0 | IH34: 0 | II34: 0 | IJ34: 0 | IK34: 0 | IL34: 0 | IM34: 0 | IN34: 0 | IO34: 0 | IP34: 0 | IQ34: 0 | IR34: 0 | IS34: =IF($BI248=IS$11,$BK248,0) -> 0 | IT34: 0 | IU34: 0 | IV34: 0 | IW34: 0 | IX34: 0 | IY34: 0 | IZ34: 0 | JA34: 0 | JB34: 0 | JC34: 0 | JD34: 0 | JE34: 0 | JF34: 0 | JG34: 0 | JH34: 0 | JI34: 0 | JJ34: 0 | JK34: 0 | JL34: 0 | JM34: 0 | JN34: 0 | JO34: 0 | JP34: 0 | JQ34: 0 | JR34: 0 | JS34: 0 | JT34: 0 | JU34: 0 | JV34: 0 | JW34: 0 | JX34: 0 | JY34: 0 | JZ34: 0 | KA34: 0 | KB34: 0 | KC34: 0 | KD34: 0 | KE34: 0 | KF34: 0 | KG34: 0 | KH34: 0 | KI34: 0 | KJ34: 0 | KK34: 0 | KL34: 0 | KM34: 0 | KN34: 0 | KO34: 40.6 | KP34: 0 | KQ34: 0 | KR34: 0 | KS34: 0 | KT34: 0 | KU34: 0 | KV34: 0 | KW34: 0 | KX34: 0 | KY34: 0 | KZ34: 0 | LA34: 0 | LB34: 0 | LC34: 0 | LD34: 0 | LE34: =IF($BI248=LE$11,$BK248,0) -> 0 | LF34: 0 | LG34: 0 | LH34: 0 | LI34: 0 | LJ34: 0 | LK34: 0 | LL34: 0 | LM34: 0 | LN34: 0 | LO34: 0 | LP34: 0 | LQ34: 0 | LR34: 0 | LS34: 0 | LT34: 0 | LU34: 0 | LV34: 0 | LW34: 0 | LX34: 0 | LY34: 0 | LZ34: 0 | MA34: 0 | MB34: 0 | MC34: 0 | MD34: 0 | ME34: 0 | MF34: 0 | MG34: 0 | MH34: 0 | MI34: 0 | MJ34: 0 | MK34: 0 | ML34: 0 | MM34: 0 | MN34: 0 | MO34: 0 | MP34: 0 | MQ34: 0 | MR34: 0 | MS34: 0 | MT34: 0 | MU34: 0 | MV34: 0 | MW34: 0 | MX34: 0 | MY34: 0 | MZ34: 0 | NA34: 0 | NB34: 0 | NC34: 0 | ND34: 0 | NE34: 0 | NF34: 0 | NG34: 0 | NH34: 0 | NI34: 0 | NJ34: 0 | NK34: 0 | NL34: 0 | NM34: 0 | NN34: 0 | NO34: 0 | NP34: 0 | NQ34: =IF($BI248=NQ$11,$BK248,0) -> 0 | NR34: 0 | NS34: 0 | NT34: 0 | NU34: 0 | NV34: 0 | NW34: 0 | NX34: 0 | NY34: 0 | NZ34: 0 | OA34: 0 | OB34: 0 | OC34: 0 | OD34: 0 | OE34: 0 | OF34: 0 | OG34: 0 | OH34: 0 | OI34: 0 | OJ34: 0 | OK34: 0 | OL34: 0 | OM34: 0 | ON34: 0 | OO34: 0 | OP34: 0 | OQ34: 0 | OR34: 0 | OS34: 0 | OT34: 0 | OU34: 0 | OV34: 0 | OW34: 0 | OX34: 0 | OY34: 0 | OZ34: 0 | PA34: 0 | PB34: 0 | PC34: 0 | PD34: 0 | PE34: 0 | PF34: 0 | PG34: 0 | PH34: 0 | PI34: 0 | PJ34: 0 | PK34: 0 | PL34: 0 | PM34: 0 | PN34: 0 | PO34: 0 | PP34: 0 | PQ34: 0 | PR34: 0 | PS34: 0 | PT34: 0 | PU34: 0 | PV34: 0 | PW34: 0 | PX34: 0 | PY34: 0 | PZ34: 0 | QA34: 0 | QB34: 0 | QC34: =IF($BI248=QC$11,$BK248,0) -> 0 | QD34: 0 | QE34: 0 | QF34: 0 | QG34: 0 | QH34: 0 | QI34: 0 | QJ34: 0 | QK34: 0 | QL34: 0 | QM34: 0 | QN34: 0 | QO34: 0 | QP34: 0 | QQ34: 0 | QR34: 0 | QS34: 0 | QT34: 0 | QU34: 0 | QV34: 0 | QW34: 0 | QX34: 0 | QY34: 0 | QZ34: 0 | RA34: 0 | RB34: 0 | RC34: 0 | RD34: 0 | RE34: 0 | RF34: 0 | RG34: 0 | RH34: 0 | RI34: 0 | RJ34: 0 | RK34: 0 | RL34: 0 | RM34: 0 | RN34: 0 | RO34: 0 | RP34: 0 | RQ34: 0 | RR34: 0 | RS34: 0 | RT34: 0 | RU34: 0 | RV34: 0 | RW34: 0 | RX34: 0 | RY34: 0 | RZ34: 0 | SA34: 0 | SB34: 0 | SC34: 0 | SD34: 0 | SE34: 0 | SF34: 0 | SG34: 0 | SH34: 0 | SI34: 0 | SJ34: 0 | SK34: 0 | SL34: 0 | SM34: 0 | SN34: 0 | SO34: =IF($BI248=SO$11,$BK248,0) -> 0 | SP34: 0 | SQ34: 0 | SR34: 0 | SS34: 0 | ST34: 0 | SU34: 0 | SV34: 0 | SW34: 0 | SX34: 0 | SY34: 0 | SZ34: 0 | TA34: 0 | TB34: 0 | TC34: 0 | TD34: 0 | TE34: 0 | TF34: 0 | TG34: 0 | TH34: 0 | TI34: 0 | TJ34: 0 | TK34: 0 | TL34: 0 | TM34: 0 | TN34: 0 | TO34: 0 | TP34: 0 | TQ34: 0 | TR34: 0 | TS34: 0 | TT34: 0 | TU34: 0 | TV34: 0 | TW34: 0 | TX34: 0 | TY34: 0 | TZ34: 0 | UA34: 0 | UB34: 0 | UC34: 0 | UD34: 0 | UE34: 0 | UF34: 0 | UG34: 0 | UH34: 0 | UI34: 0 | UJ34: 0 | UK34: 0 | UL34: 0 | UM34: 0 | UN34: 0 | UO34: 0
A35: 35 | C35: Power | U35: 13 | V35: 42.7 | X35: 19.5 | Y35: 2.9 | Z35: 14.6 | AJ35: 52.5 | AK35: 154.9951402 | AL35: 25.00485983 | AM35: 2 | AN35: 0.1 | AO35: 19.87912592 | AP35: 102.9153964 | AQ35: 2 | AR35: 0.1 | AS35: 0 | AT35: 0 | AU35: =IF('Transfer New'!$BK$12>MAX(AM35,AQ35),0,AL35) -> 0 | AV35: 0 | AW35: 0 | AX35: 0 | AZ35: 0 | BA35: 23 | BD35: 0 | BE35: 0 | BI35: =IF($BI249=BI$11,$BK249,0) -> 0 | BJ35: 0 | BK35: 0 | BL35: 0 | BM35: 0 | BN35: 0 | BO35: 0 | BP35: 0 | BQ35: 0 | BR35: 0 | BS35: 0 | BT35: 0 | BU35: 0 | BV35: 0 | BW35: 0 | BX35: 0 | BY35: 0 | BZ35: 0 | CA35: 0 | CB35: 0 | CC35: 0 | CD35: 0 | CE35: 0 | CF35: 0 | CG35: 0 | CH35: 0 | CI35: 0 | CJ35: 0 | CK35: 0 | CL35: 0 | CM35: 0 | CN35: 0 | CO35: 0 | CP35: 0 | CQ35: 0 | CR35: 0 | CS35: 0 | CT35: 0 | CU35: 0 | CV35: 0 | CW35: 0 | CX35: 0 | CY35: 0 | CZ35: 0 | DA35: 0 | DB35: 0 | DC35: 0 | DD35: 0 | DE35: 0 | DF35: 0 | DG35: 0 | DH35: 0 | DI35: 0 | DJ35: 0 | DK35: 0 | DL35: 0 | DM35: 0 | DN35: 0 | DO35: 0 | DP35: 0 | DQ35: 0 | DR35: 0 | DS35: 0 | DT35: 0 | DU35: =IF($BI249=DU$11,$BK249,0) -> 0 | DV35: 0 | DW35: 0 | DX35: 0 | DY35: 0 | DZ35: 0 | EA35: 0 | EB35: 0 | EC35: 0 | ED35: 0 | EE35: 0 | EF35: 0 | EG35: 0 | EH35: 0 | EI35: 0 | EJ35: 0 | EK35: 0 | EL35: 0 | EM35: 0 | EN35: 0 | EO35: 0 | EP35: 0 | EQ35: 0 | ER35: 0 | ES35: 0 | ET35: 0 | EU35: 0 | EV35: 0 | EW35: 0 | EX35: 0 | EY35: 0 | EZ35: 0 | FA35: 0 | FB35: 0 | FC35: 0 | FD35: 0 | FE35: 0 | FF35: 0 | FG35: 0 | FH35: 0 | FI35: 0 | FJ35: 0 | FK35: 0 | FL35: 0 | FM35: 0 | FN35: 0 | FO35: 0 | FP35: 0 | FQ35: 0 | FR35: 0 | FS35: 0 | FT35: 0 | FU35: 0 | FV35: 0 | FW35: 0 | FX35: 0 | FY35: 0 | FZ35: 0 | GA35: 0 | GB35: 0 | GC35: 0 | GD35: 0 | GE35: 0 | GF35: 0 | GG35: =IF($BI249=GG$11,$BK249,0) -> 0 | GH35: 0 | GI35: 0 | GJ35: 0 | GK35: 0 | GL35: 0 | GM35: 0 | GN35: 0 | GO35: 0 | GP35: 0 | GQ35: 0 | GR35: 0 | GS35: 0 | GT35: 0 | GU35: 0 | GV35: 0 | GW35: 0 | GX35: 0 | GY35: 0 | GZ35: 0 | HA35: 0 | HB35: 0 | HC35: 0 | HD35: 0 | HE35: 0 | HF35: 0 | HG35: 0 | HH35: 0 | HI35: 0 | HJ35: 0 | HK35: 0 | HL35: 0 | HM35: 0 | HN35: 0 | HO35: 0 | HP35: 0 | HQ35: 0 | HR35: 0 | HS35: 0 | HT35: 0 | HU35: 0 | HV35: 0 | HW35: 0 | HX35: 0 | HY35: 0 | HZ35: 0 | IA35: 0 | IB35: 0 | IC35: 0 | ID35: 0 | IE35: 0 | IF35: 0 | IG35: 0 | IH35: 0 | II35: 0 | IJ35: 0 | IK35: 0 | IL35: 0 | IM35: 0 | IN35: 0 | IO35: 0 | IP35: 0 | IQ35: 0 | IR35: 0 | IS35: =IF($BI249=IS$11,$BK249,0) -> 0 | IT35: 0 | IU35: 0 | IV35: 0 | IW35: 0 | IX35: 0 | IY35: 0 | IZ35: 0 | JA35: 0 | JB35: 0 | JC35: 0 | JD35: 0 | JE35: 0 | JF35: 0 | JG35: 0 | JH35: 0 | JI35: 0 | JJ35: 0 | JK35: 0 | JL35: 0 | JM35: 0 | JN35: 0 | JO35: 0 | JP35: 0 | JQ35: 0 | JR35: 0 | JS35: 0 | JT35: 0 | JU35: 0 | JV35: 0 | JW35: 0 | JX35: 0 | JY35: 0 | JZ35: 0 | KA35: 0 | KB35: 0 | KC35: 0 | KD35: 0 | KE35: 0 | KF35: 0 | KG35: 0 | KH35: 0 | KI35: 0 | KJ35: 0 | KK35: 0 | KL35: 0 | KM35: 0 | KN35: 0 | KO35: 0 | KP35: 0 | KQ35: 0 | KR35: 0 | KS35: 0 | KT35: 39.6 | KU35: 0 | KV35: 0 | KW35: 0 | KX35: 0 | KY35: 0 | KZ35: 0 | LA35: 0 | LB35: 0 | LC35: 0 | LD35: 0 | LE35: =IF($BI249=LE$11,$BK249,0) -> 0 | LF35: 0 | LG35: 0 | LH35: 0 | LI35: 0 | LJ35: 0 | LK35: 0 | LL35: 0 | LM35: 0 | LN35: 0 | LO35: 0 | LP35: 0 | LQ35: 0 | LR35: 0 | LS35: 0 | LT35: 0 | LU35: 0 | LV35: 0 | LW35: 0 | LX35: 0 | LY35: 0 | LZ35: 0 | MA35: 0 | MB35: 0 | MC35: 0 | MD35: 0 | ME35: 0 | MF35: 0 | MG35: 0 | MH35: 0 | MI35: 0 | MJ35: 0 | MK35: 0 | ML35: 0 | MM35: 0 | MN35: 0 | MO35: 0 | MP35: 0 | MQ35: 0 | MR35: 0 | MS35: 0 | MT35: 0 | MU35: 0 | MV35: 0 | MW35: 0 | MX35: 0 | MY35: 0 | MZ35: 0 | NA35: 0 | NB35: 0 | NC35: 0 | ND35: 0 | NE35: 0 | NF35: 0 | NG35: 0 | NH35: 0 | NI35: 0 | NJ35: 0 | NK35: 0 | NL35: 0 | NM35: 0 | NN35: 0 | NO35: 0 | NP35: 0 | NQ35: =IF($BI249=NQ$11,$BK249,0) -> 0 | NR35: 0 | NS35: 0 | NT35: 0 | NU35: 0 | NV35: 0 | NW35: 0 | NX35: 0 | NY35: 0 | NZ35: 0 | OA35: 0 | OB35: 0 | OC35: 0 | OD35: 0 | OE35: 0 | OF35: 0 | OG35: 0 | OH35: 0 | OI35: 0 | OJ35: 0 | OK35: 0 | OL35: 0 | OM35: 0 | ON35: 0 | OO35: 0 | OP35: 0 | OQ35: 0 | OR35: 0 | OS35: 0 | OT35: 0 | OU35: 0 | OV35: 0 | OW35: 0 | OX35: 0 | OY35: 0 | OZ35: 0 | PA35: 0 | PB35: 0 | PC35: 0 | PD35: 0 | PE35: 0 | PF35: 0 | PG35: 0 | PH35: 0 | PI35: 0 | PJ35: 0 | PK35: 0 | PL35: 0 | PM35: 0 | PN35: 0 | PO35: 0 | PP35: 0 | PQ35: 0 | PR35: 0 | PS35: 0 | PT35: 0 | PU35: 0 | PV35: 0 | PW35: 0 | PX35: 0 | PY35: 0 | PZ35: 0 | QA35: 0 | QB35: 0 | QC35: =IF($BI249=QC$11,$BK249,0) -> 0 | QD35: 0 | QE35: 0 | QF35: 0 | QG35: 0 | QH35: 0 | QI35: 0 | QJ35: 0 | QK35: 0 | QL35: 0 | QM35: 0 | QN35: 0 | QO35: 0 | QP35: 0 | QQ35: 0 | QR35: 0 | QS35: 0 | QT35: 0 | QU35: 0 | QV35: 0 | QW35: 0 | QX35: 0 | QY35: 0 | QZ35: 0 | RA35: 0 | RB35: 0 | RC35: 0 | RD35: 0 | RE35: 0 | RF35: 0 | RG35: 0 | RH35: 0 | RI35: 0 | RJ35: 0 | RK35: 0 | RL35: 0 | RM35: 0 | RN35: 0 | RO35: 0 | RP35: 0 | RQ35: 0 | RR35: 0 | RS35: 0 | RT35: 0 | RU35: 0 | RV35: 0 | RW35: 0 | RX35: 0 | RY35: 0 | RZ35: 0 | SA35: 0 | SB35: 0 | SC35: 0 | SD35: 0 | SE35: 0 | SF35: 0 | SG35: 0 | SH35: 0 | SI35: 0 | SJ35: 0 | SK35: 0 | SL35: 0 | SM35: 0 | SN35: 0 | SO35: =IF($BI249=SO$11,$BK249,0) -> 0 | SP35: 0 | SQ35: 0 | SR35: 0 | SS35: 0 | ST35: 0 | SU35: 0 | SV35: 0 | SW35: 0 | SX35: 0 | SY35: 0 | SZ35: 0 | TA35: 0 | TB35: 0 | TC35: 0 | TD35: 0 | TE35: 0 | TF35: 0 | TG35: 0 | TH35: 0 | TI35: 0 | TJ35: 0 | TK35: 0 | TL35: 0 | TM35: 0 | TN35: 0 | TO35: 0 | TP35: 0 | TQ35: 0 | TR35: 0 | TS35: 0 | TT35: 0 | TU35: 0 | TV35: 0 | TW35: 0 | TX35: 0 | TY35: 0 | TZ35: 0 | UA35: 0 | UB35: 0 | UC35: 0 | UD35: 0 | UE35: 0 | UF35: 0 | UG35: 0 | UH35: 0 | UI35: 0 | UJ35: 0 | UK35: 0 | UL35: 0 | UM35: 0 | UN35: 0 | UO35: 0
A36: 36 | U36: 12 | V36: 42.5 | X36: 19 | Y36: 2.8 | Z36: 13.9 | AJ36: 52.4 | AK36: 154.3756307 | AL36: 25.62436934 | AM36: 2.1 | AN36: 0.1 | AO36: 20.28396844 | AP36: 107.4648097 | AQ36: 2.1 | AR36: 0.1 | AS36: 0 | AT36: 0 | AU36: =IF('Transfer New'!$BK$12>MAX(AM36,AQ36),0,AL36) -> 0 | AV36: 0 | AW36: 0 | AX36: 0 | AZ36: 0 | BA36: 23.5 | BD36: 0 | BE36: 0 | BI36: =IF($BI250=BI$11,$BK250,0) -> 0 | BJ36: 0 | BK36: 0 | BL36: 0 | BM36: 0 | BN36: 0 | BO36: 0 | BP36: 0 | BQ36: 0 | BR36: 0 | BS36: 0 | BT36: 0 | BU36: 0 | BV36: 0 | BW36: 0 | BX36: 0 | BY36: 0 | BZ36: 0 | CA36: 0 | CB36: 0 | CC36: 0 | CD36: 0 | CE36: 0 | CF36: 0 | CG36: 0 | CH36: 0 | CI36: 0 | CJ36: 0 | CK36: 0 | CL36: 0 | CM36: 0 | CN36: 0 | CO36: 0 | CP36: 0 | CQ36: 0 | CR36: 0 | CS36: 0 | CT36: 0 | CU36: 0 | CV36: 0 | CW36: 0 | CX36: 0 | CY36: 0 | CZ36: 0 | DA36: 0 | DB36: 0 | DC36: 0 | DD36: 0 | DE36: 0 | DF36: 0 | DG36: 0 | DH36: 0 | DI36: 0 | DJ36: 0 | DK36: 0 | DL36: 0 | DM36: 0 | DN36: 0 | DO36: 0 | DP36: 0 | DQ36: 0 | DR36: 0 | DS36: 0 | DT36: 0 | DU36: =IF($BI250=DU$11,$BK250,0) -> 0 | DV36: 0 | DW36: 0 | DX36: 0 | DY36: 0 | DZ36: 0 | EA36: 0 | EB36: 0 | EC36: 0 | ED36: 0 | EE36: 0 | EF36: 0 | EG36: 0 | EH36: 0 | EI36: 0 | EJ36: 0 | EK36: 0 | EL36: 0 | EM36: 0 | EN36: 0 | EO36: 0 | EP36: 0 | EQ36: 0 | ER36: 0 | ES36: 0 | ET36: 0 | EU36: 0 | EV36: 0 | EW36: 0 | EX36: 0 | EY36: 0 | EZ36: 0 | FA36: 0 | FB36: 0 | FC36: 0 | FD36: 0 | FE36: 0 | FF36: 0 | FG36: 0 | FH36: 0 | FI36: 0 | FJ36: 0 | FK36: 0 | FL36: 0 | FM36: 0 | FN36: 0 | FO36: 0 | FP36: 0 | FQ36: 0 | FR36: 0 | FS36: 0 | FT36: 0 | FU36: 0 | FV36: 0 | FW36: 0 | FX36: 0 | FY36: 0 | FZ36: 0 | GA36: 0 | GB36: 0 | GC36: 0 | GD36: 0 | GE36: 0 | GF36: 0 | GG36: =IF($BI250=GG$11,$BK250,0) -> 0 | GH36: 0 | GI36: 0 | GJ36: 0 | GK36: 0 | GL36: 0 | GM36: 0 | GN36: 0 | GO36: 0 | GP36: 0 | GQ36: 0 | GR36: 0 | GS36: 0 | GT36: 0 | GU36: 0 | GV36: 0 | GW36: 0 | GX36: 0 | GY36: 0 | GZ36: 0 | HA36: 0 | HB36: 0 | HC36: 0 | HD36: 0 | HE36: 0 | HF36: 0 | HG36: 0 | HH36: 0 | HI36: 0 | HJ36: 0 | HK36: 0 | HL36: 0 | HM36: 0 | HN36: 0 | HO36: 0 | HP36: 0 | HQ36: 0 | HR36: 0 | HS36: 0 | HT36: 0 | HU36: 0 | HV36: 0 | HW36: 0 | HX36: 0 | HY36: 0 | HZ36: 0 | IA36: 0 | IB36: 0 | IC36: 0 | ID36: 0 | IE36: 0 | IF36: 0 | IG36: 0 | IH36: 0 | II36: 0 | IJ36: 0 | IK36: 0 | IL36: 0 | IM36: 0 | IN36: 0 | IO36: 0 | IP36: 0 | IQ36: 0 | IR36: 0 | IS36: =IF($BI250=IS$11,$BK250,0) -> 0 | IT36: 0 | IU36: 0 | IV36: 0 | IW36: 0 | IX36: 0 | IY36: 0 | IZ36: 0 | JA36: 0 | JB36: 0 | JC36: 0 | JD36: 0 | JE36: 0 | JF36: 0 | JG36: 0 | JH36: 0 | JI36: 0 | JJ36: 0 | JK36: 0 | JL36: 0 | JM36: 0 | JN36: 0 | JO36: 0 | JP36: 0 | JQ36: 0 | JR36: 0 | JS36: 0 | JT36: 0 | JU36: 0 | JV36: 0 | JW36: 0 | JX36: 0 | JY36: 0 | JZ36: 0 | KA36: 0 | KB36: 0 | KC36: 0 | KD36: 0 | KE36: 0 | KF36: 0 | KG36: 0 | KH36: 0 | KI36: 0 | KJ36: 0 | KK36: 0 | KL36: 0 | KM36: 0 | KN36: 0 | KO36: 0 | KP36: 0 | KQ36: 0 | KR36: 0 | KS36: 0 | KT36: 0 | KU36: 0 | KV36: 0 | KW36: 0 | KX36: 0 | KY36: 0 | KZ36: 0 | LA36: 0 | LB36: 0 | LC36: 0 | LD36: 37 | LE36: =IF($BI250=LE$11,$BK250,0) -> 0 | LF36: 0 | LG36: 0 | LH36: 0 | LI36: 0 | LJ36: 0 | LK36: 0 | LL36: 0 | LM36: 0 | LN36: 0 | LO36: 0 | LP36: 0 | LQ36: 0 | LR36: 0 | LS36: 0 | LT36: 0 | LU36: 0 | LV36: 0 | LW36: 0 | LX36: 0 | LY36: 0 | LZ36: 0 | MA36: 0 | MB36: 0 | MC36: 0 | MD36: 0 | ME36: 0 | MF36: 0 | MG36: 0 | MH36: 0 | MI36: 0 | MJ36: 0 | MK36: 0 | ML36: 0 | MM36: 0 | MN36: 0 | MO36: 0 | MP36: 0 | MQ36: 0 | MR36: 0 | MS36: 0 | MT36: 0 | MU36: 0 | MV36: 0 | MW36: 0 | MX36: 0 | MY36: 0 | MZ36: 0 | NA36: 0 | NB36: 0 | NC36: 0 | ND36: 0 | NE36: 0 | NF36: 0 | NG36: 0 | NH36: 0 | NI36: 0 | NJ36: 0 | NK36: 0 | NL36: 0 | NM36: 0 | NN36: 0 | NO36: 0 | NP36: 0 | NQ36: =IF($BI250=NQ$11,$BK250,0) -> 0 | NR36: 0 | NS36: 0 | NT36: 0 | NU36: 0 | NV36: 0 | NW36: 0 | NX36: 0 | NY36: 0 | NZ36: 0 | OA36: 0 | OB36: 0 | OC36: 0 | OD36: 0 | OE36: 0 | OF36: 0 | OG36: 0 | OH36: 0 | OI36: 0 | OJ36: 0 | OK36: 0 | OL36: 0 | OM36: 0 | ON36: 0 | OO36: 0 | OP36: 0 | OQ36: 0 | OR36: 0 | OS36: 0 | OT36: 0 | OU36: 0 | OV36: 0 | OW36: 0 | OX36: 0 | OY36: 0 | OZ36: 0 | PA36: 0 | PB36: 0 | PC36: 0 | PD36: 0 | PE36: 0 | PF36: 0 | PG36: 0 | PH36: 0 | PI36: 0 | PJ36: 0 | PK36: 0 | PL36: 0 | PM36: 0 | PN36: 0 | PO36: 0 | PP36: 0 | PQ36: 0 | PR36: 0 | PS36: 0 | PT36: 0 | PU36: 0 | PV36: 0 | PW36: 0 | PX36: 0 | PY36: 0 | PZ36: 0 | QA36: 0 | QB36: 0 | QC36: =IF($BI250=QC$11,$BK250,0) -> 0 | QD36: 0 | QE36: 0 | QF36: 0 | QG36: 0 | QH36: 0 | QI36: 0 | QJ36: 0 | QK36: 0 | QL36: 0 | QM36: 0 | QN36: 0 | QO36: 0 | QP36: 0 | QQ36: 0 | QR36: 0 | QS36: 0 | QT36: 0 | QU36: 0 | QV36: 0 | QW36: 0 | QX36: 0 | QY36: 0 | QZ36: 0 | RA36: 0 | RB36: 0 | RC36: 0 | RD36: 0 | RE36: 0 | RF36: 0 | RG36: 0 | RH36: 0 | RI36: 0 | RJ36: 0 | RK36: 0 | RL36: 0 | RM36: 0 | RN36: 0 | RO36: 0 | RP36: 0 | RQ36: 0 | RR36: 0 | RS36: 0 | RT36: 0 | RU36: 0 | RV36: 0 | RW36: 0 | RX36: 0 | RY36: 0 | RZ36: 0 | SA36: 0 | SB36: 0 | SC36: 0 | SD36: 0 | SE36: 0 | SF36: 0 | SG36: 0 | SH36: 0 | SI36: 0 | SJ36: 0 | SK36: 0 | SL36: 0 | SM36: 0 | SN36: 0 | SO36: =IF($BI250=SO$11,$BK250,0) -> 0 | SP36: 0 | SQ36: 0 | SR36: 0 | SS36: 0 | ST36: 0 | SU36: 0 | SV36: 0 | SW36: 0 | SX36: 0 | SY36: 0 | SZ36: 0 | TA36: 0 | TB36: 0 | TC36: 0 | TD36: 0 | TE36: 0 | TF36: 0 | TG36: 0 | TH36: 0 | TI36: 0 | TJ36: 0 | TK36: 0 | TL36: 0 | TM36: 0 | TN36: 0 | TO36: 0 | TP36: 0 | TQ36: 0 | TR36: 0 | TS36: 0 | TT36: 0 | TU36: 0 | TV36: 0 | TW36: 0 | TX36: 0 | TY36: 0 | TZ36: 0 | UA36: 0 | UB36: 0 | UC36: 0 | UD36: 0 | UE36: 0 | UF36: 0 | UG36: 0 | UH36: 0 | UI36: 0 | UJ36: 0 | UK36: 0 | UL36: 0 | UM36: 0 | UN36: 0 | UO36: 0
A37: 37 | D37: New | E37: Old | U37: 11 | V37: 42 | X37: 18.5 | Y37: 2.8 | Z37: 13.3 | AJ37: 52.3 | AK37: 153.7705441 | AL37: 26.2294559 | AM37: 2.2 | AN37: 0.1 | AO37: 20.68707195 | AP37: 112.0464082 | AQ37: 2.2 | AR37: 0.1 | AS37: 0 | AT37: 0 | AU37: =IF('Transfer New'!$BK$12>MAX(AM37,AQ37),0,AL37) -> 0 | AV37: 0 | AW37: 0 | AX37: 0 | AZ37: 0 | BA37: 24 | BD37: 0 | BE37: 0 | BI37: =IF($BI251=BI$11,$BK251,0) -> 0 | BJ37: 0 | BK37: 0 | BL37: 0 | BM37: 0 | BN37: 0 | BO37: 0 | BP37: 0 | BQ37: 0 | BR37: 0 | BS37: 0 | BT37: 0 | BU37: 0 | BV37: 0 | BW37: 0 | BX37: 0 | BY37: 0 | BZ37: 0 | CA37: 0 | CB37: 0 | CC37: 0 | CD37: 0 | CE37: 0 | CF37: 0 | CG37: 0 | CH37: 0 | CI37: 0 | CJ37: 0 | CK37: 0 | CL37: 0 | CM37: 0 | CN37: 0 | CO37: 0 | CP37: 0 | CQ37: 0 | CR37: 0 | CS37: 0 | CT37: 0 | CU37: 0 | CV37: 0 | CW37: 0 | CX37: 0 | CY37: 0 | CZ37: 0 | DA37: 0 | DB37: 0 | DC37: 0 | DD37: 0 | DE37: 0 | DF37: 0 | DG37: 0 | DH37: 0 | DI37: 0 | DJ37: 0 | DK37: 0 | DL37: 0 | DM37: 0 | DN37: 0 | DO37: 0 | DP37: 0 | DQ37: 0 | DR37: 0 | DS37: 0 | DT37: 0 | DU37: =IF($BI251=DU$11,$BK251,0) -> 0 | DV37: 0 | DW37: 0 | DX37: 0 | DY37: 0 | DZ37: 0 | EA37: 0 | EB37: 0 | EC37: 0 | ED37: 0 | EE37: 0 | EF37: 0 | EG37: 0 | EH37: 0 | EI37: 0 | EJ37: 0 | EK37: 0 | EL37: 0 | EM37: 0 | EN37: 0 | EO37: 0 | EP37: 0 | EQ37: 0 | ER37: 0 | ES37: 0 | ET37: 0 | EU37: 0 | EV37: 0 | EW37: 0 | EX37: 0 | EY37: 0 | EZ37: 0 | FA37: 0 | FB37: 0 | FC37: 0 | FD37: 0 | FE37: 0 | FF37: 0 | FG37: 0 | FH37: 0 | FI37: 0 | FJ37: 0 | FK37: 0 | FL37: 0 | FM37: 0 | FN37: 0 | FO37: 0 | FP37: 0 | FQ37: 0 | FR37: 0 | FS37: 0 | FT37: 0 | FU37: 0 | FV37: 0 | FW37: 0 | FX37: 0 | FY37: 0 | FZ37: 0 | GA37: 0 | GB37: 0 | GC37: 0 | GD37: 0 | GE37: 0 | GF37: 0 | GG37: =IF($BI251=GG$11,$BK251,0) -> 0 | GH37: 0 | GI37: 0 | GJ37: 0 | GK37: 0 | GL37: 0 | GM37: 0 | GN37: 0 | GO37: 0 | GP37: 0 | GQ37: 0 | GR37: 0 | GS37: 0 | GT37: 0 | GU37: 0 | GV37: 0 | GW37: 0 | GX37: 0 | GY37: 0 | GZ37: 0 | HA37: 0 | HB37: 0 | HC37: 0 | HD37: 0 | HE37: 0 | HF37: 0 | HG37: 0 | HH37: 0 | HI37: 0 | HJ37: 0 | HK37: 0 | HL37: 0 | HM37: 0 | HN37: 0 | HO37: 0 | HP37: 0 | HQ37: 0 | HR37: 0 | HS37: 0 | HT37: 0 | HU37: 0 | HV37: 0 | HW37: 0 | HX37: 0 | HY37: 0 | HZ37: 0 | IA37: 0 | IB37: 0 | IC37: 0 | ID37: 0 | IE37: 0 | IF37: 0 | IG37: 0 | IH37: 0 | II37: 0 | IJ37: 0 | IK37: 0 | IL37: 0 | IM37: 0 | IN37: 0 | IO37: 0 | IP37: 0 | IQ37: 0 | IR37: 0 | IS37: =IF($BI251=IS$11,$BK251,0) -> 0 | IT37: 0 | IU37: 0 | IV37: 0 | IW37: 0 | IX37: 0 | IY37: 0 | IZ37: 0 | JA37: 0 | JB37: 0 | JC37: 0 | JD37: 0 | JE37: 0 | JF37: 0 | JG37: 0 | JH37: 0 | JI37: 0 | JJ37: 0 | JK37: 0 | JL37: 0 | JM37: 0 | JN37: 0 | JO37: 0 | JP37: 0 | JQ37: 0 | JR37: 0 | JS37: 0 | JT37: 0 | JU37: 0 | JV37: 0 | JW37: 0 | JX37: 0 | JY37: 0 | JZ37: 0 | KA37: 0 | KB37: 0 | KC37: 0 | KD37: 0 | KE37: 0 | KF37: 0 | KG37: 0 | KH37: 0 | KI37: 0 | KJ37: 0 | KK37: 0 | KL37: 0 | KM37: 0 | KN37: 0 | KO37: 0 | KP37: 0 | KQ37: 0 | KR37: 0 | KS37: 0 | KT37: 0 | KU37: 0 | KV37: 0 | KW37: 0 | KX37: 0 | KY37: 0 | KZ37: 0 | LA37: 0 | LB37: 0 | LC37: 0 | LD37: 0 | LE37: =IF($BI251=LE$11,$BK251,0) -> 0 | LF37: 0 | LG37: 0 | LH37: 0 | LI37: 0 | LJ37: 0 | LK37: 0 | LL37: 0 | LM37: 0 | LN37: 33.3 | LO37: 0 | LP37: 0 | LQ37: 0 | LR37: 0 | LS37: 0 | LT37: 0 | LU37: 0 | LV37: 0 | LW37: 0 | LX37: 0 | LY37: 0 | LZ37: 0 | MA37: 0 | MB37: 0 | MC37: 0 | MD37: 0 | ME37: 0 | MF37: 0 | MG37: 0 | MH37: 0 | MI37: 0 | MJ37: 0 | MK37: 0 | ML37: 0 | MM37: 0 | MN37: 0 | MO37: 0 | MP37: 0 | MQ37: 0 | MR37: 0 | MS37: 0 | MT37: 0 | MU37: 0 | MV37: 0 | MW37: 0 | MX37: 0 | MY37: 0 | MZ37: 0 | NA37: 0 | NB37: 0 | NC37: 0 | ND37: 0 | NE37: 0 | NF37: 0 | NG37: 0 | NH37: 0 | NI37: 0 | NJ37: 0 | NK37: 0 | NL37: 0 | NM37: 0 | NN37: 0 | NO37: 0 | NP37: 0 | NQ37: =IF($BI251=NQ$11,$BK251,0) -> 0 | NR37: 0 | NS37: 0 | NT37: 0 | NU37: 0 | NV37: 0 | NW37: 0 | NX37: 0 | NY37: 0 | NZ37: 0 | OA37: 0 | OB37: 0 | OC37: 0 | OD37: 0 | OE37: 0 | OF37: 0 | OG37: 0 | OH37: 0 | OI37: 0 | OJ37: 0 | OK37: 0 | OL37: 0 | OM37: 0 | ON37: 0 | OO37: 0 | OP37: 0 | OQ37: 0 | OR37: 0 | OS37: 0 | OT37: 0 | OU37: 0 | OV37: 0 | OW37: 0 | OX37: 0 | OY37: 0 | OZ37: 0 | PA37: 0 | PB37: 0 | PC37: 0 | PD37: 0 | PE37: 0 | PF37: 0 | PG37: 0 | PH37: 0 | PI37: 0 | PJ37: 0 | PK37: 0 | PL37: 0 | PM37: 0 | PN37: 0 | PO37: 0 | PP37: 0 | PQ37: 0 | PR37: 0 | PS37: 0 | PT37: 0 | PU37: 0 | PV37: 0 | PW37: 0 | PX37: 0 | PY37: 0 | PZ37: 0 | QA37: 0 | QB37: 0 | QC37: =IF($BI251=QC$11,$BK251,0) -> 0 | QD37: 0 | QE37: 0 | QF37: 0 | QG37: 0 | QH37: 0 | QI37: 0 | QJ37: 0 | QK37: 0 | QL37: 0 | QM37: 0 | QN37: 0 | QO37: 0 | QP37: 0 | QQ37: 0 | QR37: 0 | QS37: 0 | QT37: 0 | QU37: 0 | QV37: 0 | QW37: 0 | QX37: 0 | QY37: 0 | QZ37: 0 | RA37: 0 | RB37: 0 | RC37: 0 | RD37: 0 | RE37: 0 | RF37: 0 | RG37: 0 | RH37: 0 | RI37: 0 | RJ37: 0 | RK37: 0 | RL37: 0 | RM37: 0 | RN37: 0 | RO37: 0 | RP37: 0 | RQ37: 0 | RR37: 0 | RS37: 0 | RT37: 0 | RU37: 0 | RV37: 0 | RW37: 0 | RX37: 0 | RY37: 0 | RZ37: 0 | SA37: 0 | SB37: 0 | SC37: 0 | SD37: 0 | SE37: 0 | SF37: 0 | SG37: 0 | SH37: 0 | SI37: 0 | SJ37: 0 | SK37: 0 | SL37: 0 | SM37: 0 | SN37: 0 | SO37: =IF($BI251=SO$11,$BK251,0) -> 0 | SP37: 0 | SQ37: 0 | SR37: 0 | SS37: 0 | ST37: 0 | SU37: 0 | SV37: 0 | SW37: 0 | SX37: 0 | SY37: 0 | SZ37: 0 | TA37: 0 | TB37: 0 | TC37: 0 | TD37: 0 | TE37: 0 | TF37: 0 | TG37: 0 | TH37: 0 | TI37: 0 | TJ37: 0 | TK37: 0 | TL37: 0 | TM37: 0 | TN37: 0 | TO37: 0 | TP37: 0 | TQ37: 0 | TR37: 0 | TS37: 0 | TT37: 0 | TU37: 0 | TV37: 0 | TW37: 0 | TX37: 0 | TY37: 0 | TZ37: 0 | UA37: 0 | UB37: 0 | UC37: 0 | UD37: 0 | UE37: 0 | UF37: 0 | UG37: 0 | UH37: 0 | UI37: 0 | UJ37: 0 | UK37: 0 | UL37: 0 | UM37: 0 | UN37: 0 | UO37: 0
A38: 38 | C38: BHP | D38: =D40*E14*Data!E14/448227 -> 54.89802238 | E38: ='Exhaust Old'!E38 -> 54.89802238 | U38: 10 | V38: 41.2 | X38: 16 | Y38: 2.8 | Z38: 8.5 | AJ38: 52.2 | AK38: 153.1789019 | AL38: 26.82109809 | AM38: 2.3 | AN38: 0.1 | AO38: 21.08840189 | AP38: 116.6598529 | AQ38: 2.3 | AR38: 0.1 | AS38: 0 | AT38: 0 | AU38: =IF('Transfer New'!$BK$12>MAX(AM38,AQ38),0,AL38) -> 0 | AV38: 0 | AW38: 0 | AX38: 0 | AZ38: 0 | BA38: 24.5 | BD38: 0 | BE38: 0 | BI38: =IF($BI252=BI$11,$BK252,0) -> 0 | BJ38: 0 | BK38: 0 | BL38: 0 | BM38: 0 | BN38: 0 | BO38: 0 | BP38: 0 | BQ38: 0 | BR38: 0 | BS38: 0 | BT38: 0 | BU38: 0 | BV38: 0 | BW38: 0 | BX38: 0 | BY38: 0 | BZ38: 0 | CA38: 0 | CB38: 0 | CC38: 0 | CD38: 0 | CE38: 0 | CF38: 0 | CG38: 0 | CH38: 0 | CI38: 0 | CJ38: 0 | CK38: 0 | CL38: 0 | CM38: 0 | CN38: 0 | CO38: 0 | CP38: 0 | CQ38: 0 | CR38: 0 | CS38: 0 | CT38: 0 | CU38: 0 | CV38: 0 | CW38: 0 | CX38: 0 | CY38: 0 | CZ38: 0 | DA38: 0 | DB38: 0 | DC38: 0 | DD38: 0 | DE38: 0 | DF38: 0 | DG38: 0 | DH38: 0 | DI38: 0 | DJ38: 0 | DK38: 0 | DL38: 0 | DM38: 0 | DN38: 0 | DO38: 0 | DP38: 0 | DQ38: 0 | DR38: 0 | DS38: 0 | DT38: 0 | DU38: =IF($BI252=DU$11,$BK252,0) -> 0 | DV38: 0 | DW38: 0 | DX38: 0 | DY38: 0 | DZ38: 0 | EA38: 0 | EB38: 0 | EC38: 0 | ED38: 0 | EE38: 0 | EF38: 0 | EG38: 0 | EH38: 0 | EI38: 0 | EJ38: 0 | EK38: 0 | EL38: 0 | EM38: 0 | EN38: 0 | EO38: 0 | EP38: 0 | EQ38: 0 | ER38: 0 | ES38: 0 | ET38: 0 | EU38: 0 | EV38: 0 | EW38: 0 | EX38: 0 | EY38: 0 | EZ38: 0 | FA38: 0 | FB38: 0 | FC38: 0 | FD38: 0 | FE38: 0 | FF38: 0 | FG38: 0 | FH38: 0 | FI38: 0 | FJ38: 0 | FK38: 0 | FL38: 0 | FM38: 0 | FN38: 0 | FO38: 0 | FP38: 0 | FQ38: 0 | FR38: 0 | FS38: 0 | FT38: 0 | FU38: 0 | FV38: 0 | FW38: 0 | FX38: 0 | FY38: 0 | FZ38: 0 | GA38: 0 | GB38: 0 | GC38: 0 | GD38: 0 | GE38: 0 | GF38: 0 | GG38: =IF($BI252=GG$11,$BK252,0) -> 0 | GH38: 0 | GI38: 0 | GJ38: 0 | GK38: 0 | GL38: 0 | GM38: 0 | GN38: 0 | GO38: 0 | GP38: 0 | GQ38: 0 | GR38: 0 | GS38: 0 | GT38: 0 | GU38: 0 | GV38: 0 | GW38: 0 | GX38: 0 | GY38: 0 | GZ38: 0 | HA38: 0 | HB38: 0 | HC38: 0 | HD38: 0 | HE38: 0 | HF38: 0 | HG38: 0 | HH38: 0 | HI38: 0 | HJ38: 0 | HK38: 0 | HL38: 0 | HM38: 0 | HN38: 0 | HO38: 0 | HP38: 0 | HQ38: 0 | HR38: 0 | HS38: 0 | HT38: 0 | HU38: 0 | HV38: 0 | HW38: 0 | HX38: 0 | HY38: 0 | HZ38: 0 | IA38: 0 | IB38: 0 | IC38: 0 | ID38: 0 | IE38: 0 | IF38: 0 | IG38: 0 | IH38: 0 | II38: 0 | IJ38: 0 | IK38: 0 | IL38: 0 | IM38: 0 | IN38: 0 | IO38: 0 | IP38: 0 | IQ38: 0 | IR38: 0 | IS38: =IF($BI252=IS$11,$BK252,0) -> 0 | IT38: 0 | IU38: 0 | IV38: 0 | IW38: 0 | IX38: 0 | IY38: 0 | IZ38: 0 | JA38: 0 | JB38: 0 | JC38: 0 | JD38: 0 | JE38: 0 | JF38: 0 | JG38: 0 | JH38: 0 | JI38: 0 | JJ38: 0 | JK38: 0 | JL38: 0 | JM38: 0 | JN38: 0 | JO38: 0 | JP38: 0 | JQ38: 0 | JR38: 0 | JS38: 0 | JT38: 0 | JU38: 0 | JV38: 0 | JW38: 0 | JX38: 0 | JY38: 0 | JZ38: 0 | KA38: 0 | KB38: 0 | KC38: 0 | KD38: 0 | KE38: 0 | KF38: 0 | KG38: 0 | KH38: 0 | KI38: 0 | KJ38: 0 | KK38: 0 | KL38: 0 | KM38: 0 | KN38: 0 | KO38: 0 | KP38: 0 | KQ38: 0 | KR38: 0 | KS38: 0 | KT38: 0 | KU38: 0 | KV38: 0 | KW38: 0 | KX38: 0 | KY38: 0 | KZ38: 0 | LA38: 0 | LB38: 0 | LC38: 0 | LD38: 0 | LE38: =IF($BI252=LE$11,$BK252,0) -> 0 | LF38: 0 | LG38: 0 | LH38: 0 | LI38: 0 | LJ38: 0 | LK38: 0 | LL38: 0 | LM38: 0 | LN38: 0 | LO38: 0 | LP38: 0 | LQ38: 0 | LR38: 0 | LS38: 0 | LT38: 0 | LU38: 0 | LV38: 0 | LW38: 0 | LX38: 28.2 | LY38: 0 | LZ38: 0 | MA38: 0 | MB38: 0 | MC38: 0 | MD38: 0 | ME38: 0 | MF38: 0 | MG38: 0 | MH38: 0 | MI38: 0 | MJ38: 0 | MK38: 0 | ML38: 0 | MM38: 0 | MN38: 0 | MO38: 0 | MP38: 0 | MQ38: 0 | MR38: 0 | MS38: 0 | MT38: 0 | MU38: 0 | MV38: 0 | MW38: 0 | MX38: 0 | MY38: 0 | MZ38: 0 | NA38: 0 | NB38: 0 | NC38: 0 | ND38: 0 | NE38: 0 | NF38: 0 | NG38: 0 | NH38: 0 | NI38: 0 | NJ38: 0 | NK38: 0 | NL38: 0 | NM38: 0 | NN38: 0 | NO38: 0 | NP38: 0 | NQ38: =IF($BI252=NQ$11,$BK252,0) -> 0 | NR38: 0 | NS38: 0 | NT38: 0 | NU38: 0 | NV38: 0 | NW38: 0 | NX38: 0 | NY38: 0 | NZ38: 0 | OA38: 0 | OB38: 0 | OC38: 0 | OD38: 0 | OE38: 0 | OF38: 0 | OG38: 0 | OH38: 0 | OI38: 0 | OJ38: 0 | OK38: 0 | OL38: 0 | OM38: 0 | ON38: 0 | OO38: 0 | OP38: 0 | OQ38: 0 | OR38: 0 | OS38: 0 | OT38: 0 | OU38: 0 | OV38: 0 | OW38: 0 | OX38: 0 | OY38: 0 | OZ38: 0 | PA38: 0 | PB38: 0 | PC38: 0 | PD38: 0 | PE38: 0 | PF38: 0 | PG38: 0 | PH38: 0 | PI38: 0 | PJ38: 0 | PK38: 0 | PL38: 0 | PM38: 0 | PN38: 0 | PO38: 0 | PP38: 0 | PQ38: 0 | PR38: 0 | PS38: 0 | PT38: 0 | PU38: 0 | PV38: 0 | PW38: 0 | PX38: 0 | PY38: 0 | PZ38: 0 | QA38: 0 | QB38: 0 | QC38: =IF($BI252=QC$11,$BK252,0) -> 0 | QD38: 0 | QE38: 0 | QF38: 0 | QG38: 0 | QH38: 0 | QI38: 0 | QJ38: 0 | QK38: 0 | QL38: 0 | QM38: 0 | QN38: 0 | QO38: 0 | QP38: 0 | QQ38: 0 | QR38: 0 | QS38: 0 | QT38: 0 | QU38: 0 | QV38: 0 | QW38: 0 | QX38: 0 | QY38: 0 | QZ38: 0 | RA38: 0 | RB38: 0 | RC38: 0 | RD38: 0 | RE38: 0 | RF38: 0 | RG38: 0 | RH38: 0 | RI38: 0 | RJ38: 0 | RK38: 0 | RL38: 0 | RM38: 0 | RN38: 0 | RO38: 0 | RP38: 0 | RQ38: 0 | RR38: 0 | RS38: 0 | RT38: 0 | RU38: 0 | RV38: 0 | RW38: 0 | RX38: 0 | RY38: 0 | RZ38: 0 | SA38: 0 | SB38: 0 | SC38: 0 | SD38: 0 | SE38: 0 | SF38: 0 | SG38: 0 | SH38: 0 | SI38: 0 | SJ38: 0 | SK38: 0 | SL38: 0 | SM38: 0 | SN38: 0 | SO38: =IF($BI252=SO$11,$BK252,0) -> 0 | SP38: 0 | SQ38: 0 | SR38: 0 | SS38: 0 | ST38: 0 | SU38: 0 | SV38: 0 | SW38: 0 | SX38: 0 | SY38: 0 | SZ38: 0 | TA38: 0 | TB38: 0 | TC38: 0 | TD38: 0 | TE38: 0 | TF38: 0 | TG38: 0 | TH38: 0 | TI38: 0 | TJ38: 0 | TK38: 0 | TL38: 0 | TM38: 0 | TN38: 0 | TO38: 0 | TP38: 0 | TQ38: 0 | TR38: 0 | TS38: 0 | TT38: 0 | TU38: 0 | TV38: 0 | TW38: 0 | TX38: 0 | TY38: 0 | TZ38: 0 | UA38: 0 | UB38: 0 | UC38: 0 | UD38: 0 | UE38: 0 | UF38: 0 | UG38: 0 | UH38: 0 | UI38: 0 | UJ38: 0 | UK38: 0 | UL38: 0 | UM38: 0 | UN38: 0 | UO38: 0
A39: 39 | C39: kW | D39: =D38/1.341 -> 40.93812258 | E39: ='Exhaust Old'!E39 -> 40.93812258 | U39: 8.5 | V39: 39.6 | X39: 15.5 | Y39: 2.8 | Z39: 7.3 | AJ39: 52.1 | AK39: 152.5998308 | AL39: 27.4001692 | AM39: 2.4 | AN39: 0.1 | AO39: 21.48792385 | AP39: 121.3047065 | AQ39: 2.4 | AR39: 0.1 | AS39: 0 | AT39: 0 | AU39: =IF('Transfer New'!$BK$12>MAX(AM39,AQ39),0,AL39) -> 0 | AV39: 0 | AW39: 0 | AX39: 0 | AZ39: 0 | BA39: 25 | BD39: 0 | BE39: 0 | BI39: =IF($BI253=BI$11,$BK253,0) -> 0 | BJ39: 0 | BK39: 0 | BL39: 0 | BM39: 0 | BN39: 0 | BO39: 0 | BP39: 0 | BQ39: 0 | BR39: 0 | BS39: 0 | BT39: 0 | BU39: 0 | BV39: 0 | BW39: 0 | BX39: 0 | BY39: 0 | BZ39: 0 | CA39: 0 | CB39: 0 | CC39: 0 | CD39: 0 | CE39: 0 | CF39: 0 | CG39: 0 | CH39: 0 | CI39: 0 | CJ39: 0 | CK39: 0 | CL39: 0 | CM39: 0 | CN39: 0 | CO39: 0 | CP39: 0 | CQ39: 0 | CR39: 0 | CS39: 0 | CT39: 0 | CU39: 0 | CV39: 0 | CW39: 0 | CX39: 0 | CY39: 0 | CZ39: 0 | DA39: 0 | DB39: 0 | DC39: 0 | DD39: 0 | DE39: 0 | DF39: 0 | DG39: 0 | DH39: 0 | DI39: 0 | DJ39: 0 | DK39: 0 | DL39: 0 | DM39: 0 | DN39: 0 | DO39: 0 | DP39: 0 | DQ39: 0 | DR39: 0 | DS39: 0 | DT39: 0 | DU39: =IF($BI253=DU$11,$BK253,0) -> 0 | DV39: 0 | DW39: 0 | DX39: 0 | DY39: 0 | DZ39: 0 | EA39: 0 | EB39: 0 | EC39: 0 | ED39: 0 | EE39: 0 | EF39: 0 | EG39: 0 | EH39: 0 | EI39: 0 | EJ39: 0 | EK39: 0 | EL39: 0 | EM39: 0 | EN39: 0 | EO39: 0 | EP39: 0 | EQ39: 0 | ER39: 0 | ES39: 0 | ET39: 0 | EU39: 0 | EV39: 0 | EW39: 0 | EX39: 0 | EY39: 0 | EZ39: 0 | FA39: 0 | FB39: 0 | FC39: 0 | FD39: 0 | FE39: 0 | FF39: 0 | FG39: 0 | FH39: 0 | FI39: 0 | FJ39: 0 | FK39: 0 | FL39: 0 | FM39: 0 | FN39: 0 | FO39: 0 | FP39: 0 | FQ39: 0 | FR39: 0 | FS39: 0 | FT39: 0 | FU39: 0 | FV39: 0 | FW39: 0 | FX39: 0 | FY39: 0 | FZ39: 0 | GA39: 0 | GB39: 0 | GC39: 0 | GD39: 0 | GE39: 0 | GF39: 0 | GG39: =IF($BI253=GG$11,$BK253,0) -> 0 | GH39: 0 | GI39: 0 | GJ39: 0 | GK39: 0 | GL39: 0 | GM39: 0 | GN39: 0 | GO39: 0 | GP39: 0 | GQ39: 0 | GR39: 0 | GS39: 0 | GT39: 0 | GU39: 0 | GV39: 0 | GW39: 0 | GX39: 0 | GY39: 0 | GZ39: 0 | HA39: 0 | HB39: 0 | HC39: 0 | HD39: 0 | HE39: 0 | HF39: 0 | HG39: 0 | HH39: 0 | HI39: 0 | HJ39: 0 | HK39: 0 | HL39: 0 | HM39: 0 | HN39: 0 | HO39: 0 | HP39: 0 | HQ39: 0 | HR39: 0 | HS39: 0 | HT39: 0 | HU39: 0 | HV39: 0 | HW39: 0 | HX39: 0 | HY39: 0 | HZ39: 0 | IA39: 0 | IB39: 0 | IC39: 0 | ID39: 0 | IE39: 0 | IF39: 0 | IG39: 0 | IH39: 0 | II39: 0 | IJ39: 0 | IK39: 0 | IL39: 0 | IM39: 0 | IN39: 0 | IO39: 0 | IP39: 0 | IQ39: 0 | IR39: 0 | IS39: =IF($BI253=IS$11,$BK253,0) -> 0 | IT39: 0 | IU39: 0 | IV39: 0 | IW39: 0 | IX39: 0 | IY39: 0 | IZ39: 0 | JA39: 0 | JB39: 0 | JC39: 0 | JD39: 0 | JE39: 0 | JF39: 0 | JG39: 0 | JH39: 0 | JI39: 0 | JJ39: 0 | JK39: 0 | JL39: 0 | JM39: 0 | JN39: 0 | JO39: 0 | JP39: 0 | JQ39: 0 | JR39: 0 | JS39: 0 | JT39: 0 | JU39: 0 | JV39: 0 | JW39: 0 | JX39: 0 | JY39: 0 | JZ39: 0 | KA39: 0 | KB39: 0 | KC39: 0 | KD39: 0 | KE39: 0 | KF39: 0 | KG39: 0 | KH39: 0 | KI39: 0 | KJ39: 0 | KK39: 0 | KL39: 0 | KM39: 0 | KN39: 0 | KO39: 0 | KP39: 0 | KQ39: 0 | KR39: 0 | KS39: 0 | KT39: 0 | KU39: 0 | KV39: 0 | KW39: 0 | KX39: 0 | KY39: 0 | KZ39: 0 | LA39: 0 | LB39: 0 | LC39: 0 | LD39: 0 | LE39: =IF($BI253=LE$11,$BK253,0) -> 0 | LF39: 0 | LG39: 0 | LH39: 0 | LI39: 0 | LJ39: 0 | LK39: 0 | LL39: 0 | LM39: 0 | LN39: 0 | LO39: 0 | LP39: 0 | LQ39: 0 | LR39: 0 | LS39: 0 | LT39: 0 | LU39: 0 | LV39: 0 | LW39: 0 | LX39: 0 | LY39: 0 | LZ39: 0 | MA39: 0 | MB39: 0 | MC39: 24.8 | MD39: 0 | ME39: 0 | MF39: 0 | MG39: 0 | MH39: 0 | MI39: 0 | MJ39: 0 | MK39: 0 | ML39: 0 | MM39: 0 | MN39: 0 | MO39: 0 | MP39: 0 | MQ39: 0 | MR39: 0 | MS39: 0 | MT39: 0 | MU39: 0 | MV39: 0 | MW39: 0 | MX39: 0 | MY39: 0 | MZ39: 0 | NA39: 0 | NB39: 0 | NC39: 0 | ND39: 0 | NE39: 0 | NF39: 0 | NG39: 0 | NH39: 0 | NI39: 0 | NJ39: 0 | NK39: 0 | NL39: 0 | NM39: 0 | NN39: 0 | NO39: 0 | NP39: 0 | NQ39: =IF($BI253=NQ$11,$BK253,0) -> 0 | NR39: 0 | NS39: 0 | NT39: 0 | NU39: 0 | NV39: 0 | NW39: 0 | NX39: 0 | NY39: 0 | NZ39: 0 | OA39: 0 | OB39: 0 | OC39: 0 | OD39: 0 | OE39: 0 | OF39: 0 | OG39: 0 | OH39: 0 | OI39: 0 | OJ39: 0 | OK39: 0 | OL39: 0 | OM39: 0 | ON39: 0 | OO39: 0 | OP39: 0 | OQ39: 0 | OR39: 0 | OS39: 0 | OT39: 0 | OU39: 0 | OV39: 0 | OW39: 0 | OX39: 0 | OY39: 0 | OZ39: 0 | PA39: 0 | PB39: 0 | PC39: 0 | PD39: 0 | PE39: 0 | PF39: 0 | PG39: 0 | PH39: 0 | PI39: 0 | PJ39: 0 | PK39: 0 | PL39: 0 | PM39: 0 | PN39: 0 | PO39: 0 | PP39: 0 | PQ39: 0 | PR39: 0 | PS39: 0 | PT39: 0 | PU39: 0 | PV39: 0 | PW39: 0 | PX39: 0 | PY39: 0 | PZ39: 0 | QA39: 0 | QB39: 0 | QC39: =IF($BI253=QC$11,$BK253,0) -> 0 | QD39: 0 | QE39: 0 | QF39: 0 | QG39: 0 | QH39: 0 | QI39: 0 | QJ39: 0 | QK39: 0 | QL39: 0 | QM39: 0 | QN39: 0 | QO39: 0 | QP39: 0 | QQ39: 0 | QR39: 0 | QS39: 0 | QT39: 0 | QU39: 0 | QV39: 0 | QW39: 0 | QX39: 0 | QY39: 0 | QZ39: 0 | RA39: 0 | RB39: 0 | RC39: 0 | RD39: 0 | RE39: 0 | RF39: 0 | RG39: 0 | RH39: 0 | RI39: 0 | RJ39: 0 | RK39: 0 | RL39: 0 | RM39: 0 | RN39: 0 | RO39: 0 | RP39: 0 | RQ39: 0 | RR39: 0 | RS39: 0 | RT39: 0 | RU39: 0 | RV39: 0 | RW39: 0 | RX39: 0 | RY39: 0 | RZ39: 0 | SA39: 0 | SB39: 0 | SC39: 0 | SD39: 0 | SE39: 0 | SF39: 0 | SG39: 0 | SH39: 0 | SI39: 0 | SJ39: 0 | SK39: 0 | SL39: 0 | SM39: 0 | SN39: 0 | SO39: =IF($BI253=SO$11,$BK253,0) -> 0 | SP39: 0 | SQ39: 0 | SR39: 0 | SS39: 0 | ST39: 0 | SU39: 0 | SV39: 0 | SW39: 0 | SX39: 0 | SY39: 0 | SZ39: 0 | TA39: 0 | TB39: 0 | TC39: 0 | TD39: 0 | TE39: 0 | TF39: 0 | TG39: 0 | TH39: 0 | TI39: 0 | TJ39: 0 | TK39: 0 | TL39: 0 | TM39: 0 | TN39: 0 | TO39: 0 | TP39: 0 | TQ39: 0 | TR39: 0 | TS39: 0 | TT39: 0 | TU39: 0 | TV39: 0 | TW39: 0 | TX39: 0 | TY39: 0 | TZ39: 0 | UA39: 0 | UB39: 0 | UC39: 0 | UD39: 0 | UE39: 0 | UF39: 0 | UG39: 0 | UH39: 0 | UI39: 0 | UJ39: 0 | UK39: 0 | UL39: 0 | UM39: 0 | UN39: 0 | UO39: 0
A40: 40 | C40: BMEP | D40: 15.75 | E40: ='Exhaust Old'!E40 -> 15.75 | U40: 6.5 | V40: 36.7 | X40: 14 | Y40: 2.5 | Z40: 3.7 | AJ40: 52 | AK40: 152.0325476 | AL40: 27.96745242 | AM40: 2.5 | AN40: 0.1 | AO40: 21.88560359 | AP40: 125.5295081 | AQ40: 2.5 | AR40: 0.1 | AS40: 0 | AT40: 0 | AU40: =IF('Transfer New'!$BK$12>MAX(AM40,AQ40),0,AL40) -> 0 | AV40: 0 | AW40: 0 | AX40: 0 | AZ40: 0 | BA40: 25.5 | BD40: 0 | BE40: 0 | BI40: =IF($BI254=BI$11,$BK254,0) -> 0 | BJ40: 0 | BK40: 0 | BL40: 0 | BM40: 0 | BN40: 0 | BO40: 0 | BP40: 0 | BQ40: 0 | BR40: 0 | BS40: 0 | BT40: 0 | BU40: 0 | BV40: 0 | BW40: 0 | BX40: 0 | BY40: 0 | BZ40: 0 | CA40: 0 | CB40: 0 | CC40: 0 | CD40: 0 | CE40: 0 | CF40: 0 | CG40: 0 | CH40: 0 | CI40: 0 | CJ40: 0 | CK40: 0 | CL40: 0 | CM40: 0 | CN40: 0 | CO40: 0 | CP40: 0 | CQ40: 0 | CR40: 0 | CS40: 0 | CT40: 0 | CU40: 0 | CV40: 0 | CW40: 0 | CX40: 0 | CY40: 0 | CZ40: 0 | DA40: 0 | DB40: 0 | DC40: 0 | DD40: 0 | DE40: 0 | DF40: 0 | DG40: 0 | DH40: 0 | DI40: 0 | DJ40: 0 | DK40: 0 | DL40: 0 | DM40: 0 | DN40: 0 | DO40: 0 | DP40: 0 | DQ40: 0 | DR40: 0 | DS40: 0 | DT40: 0 | DU40: =IF($BI254=DU$11,$BK254,0) -> 0 | DV40: 0 | DW40: 0 | DX40: 0 | DY40: 0 | DZ40: 0 | EA40: 0 | EB40: 0 | EC40: 0 | ED40: 0 | EE40: 0 | EF40: 0 | EG40: 0 | EH40: 0 | EI40: 0 | EJ40: 0 | EK40: 0 | EL40: 0 | EM40: 0 | EN40: 0 | EO40: 0 | EP40: 0 | EQ40: 0 | ER40: 0 | ES40: 0 | ET40: 0 | EU40: 0 | EV40: 0 | EW40: 0 | EX40: 0 | EY40: 0 | EZ40: 0 | FA40: 0 | FB40: 0 | FC40: 0 | FD40: 0 | FE40: 0 | FF40: 0 | FG40: 0 | FH40: 0 | FI40: 0 | FJ40: 0 | FK40: 0 | FL40: 0 | FM40: 0 | FN40: 0 | FO40: 0 | FP40: 0 | FQ40: 0 | FR40: 0 | FS40: 0 | FT40: 0 | FU40: 0 | FV40: 0 | FW40: 0 | FX40: 0 | FY40: 0 | FZ40: 0 | GA40: 0 | GB40: 0 | GC40: 0 | GD40: 0 | GE40: 0 | GF40: 0 | GG40: =IF($BI254=GG$11,$BK254,0) -> 0 | GH40: 0 | GI40: 0 | GJ40: 0 | GK40: 0 | GL40: 0 | GM40: 0 | GN40: 0 | GO40: 0 | GP40: 0 | GQ40: 0 | GR40: 0 | GS40: 0 | GT40: 0 | GU40: 0 | GV40: 0 | GW40: 0 | GX40: 0 | GY40: 0 | GZ40: 0 | HA40: 0 | HB40: 0 | HC40: 0 | HD40: 0 | HE40: 0 | HF40: 0 | HG40: 0 | HH40: 0 | HI40: 0 | HJ40: 0 | HK40: 0 | HL40: 0 | HM40: 0 | HN40: 0 | HO40: 0 | HP40: 0 | HQ40: 0 | HR40: 0 | HS40: 0 | HT40: 0 | HU40: 0 | HV40: 0 | HW40: 0 | HX40: 0 | HY40: 0 | HZ40: 0 | IA40: 0 | IB40: 0 | IC40: 0 | ID40: 0 | IE40: 0 | IF40: 0 | IG40: 0 | IH40: 0 | II40: 0 | IJ40: 0 | IK40: 0 | IL40: 0 | IM40: 0 | IN40: 0 | IO40: 0 | IP40: 0 | IQ40: 0 | IR40: 0 | IS40: =IF($BI254=IS$11,$BK254,0) -> 0 | IT40: 0 | IU40: 0 | IV40: 0 | IW40: 0 | IX40: 0 | IY40: 0 | IZ40: 0 | JA40: 0 | JB40: 0 | JC40: 0 | JD40: 0 | JE40: 0 | JF40: 0 | JG40: 0 | JH40: 0 | JI40: 0 | JJ40: 0 | JK40: 0 | JL40: 0 | JM40: 0 | JN40: 0 | JO40: 0 | JP40: 0 | JQ40: 0 | JR40: 0 | JS40: 0 | JT40: 0 | JU40: 0 | JV40: 0 | JW40: 0 | JX40: 0 | JY40: 0 | JZ40: 0 | KA40: 0 | KB40: 0 | KC40: 0 | KD40: 0 | KE40: 0 | KF40: 0 | KG40: 0 | KH40: 0 | KI40: 0 | KJ40: 0 | KK40: 0 | KL40: 0 | KM40: 0 | KN40: 0 | KO40: 0 | KP40: 0 | KQ40: 0 | KR40: 0 | KS40: 0 | KT40: 0 | KU40: 0 | KV40: 0 | KW40: 0 | KX40: 0 | KY40: 0 | KZ40: 0 | LA40: 0 | LB40: 0 | LC40: 0 | LD40: 0 | LE40: =IF($BI254=LE$11,$BK254,0) -> 0 | LF40: 0 | LG40: 0 | LH40: 0 | LI40: 0 | LJ40: 0 | LK40: 0 | LL40: 0 | LM40: 0 | LN40: 0 | LO40: 0 | LP40: 0 | LQ40: 0 | LR40: 0 | LS40: 0 | LT40: 0 | LU40: 0 | LV40: 0 | LW40: 0 | LX40: 0 | LY40: 0 | LZ40: 0 | MA40: 0 | MB40: 0 | MC40: 0 | MD40: 0 | ME40: 0 | MF40: 0 | MG40: 0 | MH40: 20.5 | MI40: 0 | MJ40: 0 | MK40: 0 | ML40: 0 | MM40: 0 | MN40: 0 | MO40: 0 | MP40: 0 | MQ40: 0 | MR40: 0 | MS40: 0 | MT40: 0 | MU40: 0 | MV40: 0 | MW40: 0 | MX40: 0 | MY40: 0 | MZ40: 0 | NA40: 0 | NB40: 0 | NC40: 0 | ND40: 0 | NE40: 0 | NF40: 0 | NG40: 0 | NH40: 0 | NI40: 0 | NJ40: 0 | NK40: 0 | NL40: 0 | NM40: 0 | NN40: 0 | NO40: 0 | NP40: 0 | NQ40: =IF($BI254=NQ$11,$BK254,0) -> 0 | NR40: 0 | NS40: 0 | NT40: 0 | NU40: 0 | NV40: 0 | NW40: 0 | NX40: 0 | NY40: 0 | NZ40: 0 | OA40: 0 | OB40: 0 | OC40: 0 | OD40: 0 | OE40: 0 | OF40: 0 | OG40: 0 | OH40: 0 | OI40: 0 | OJ40: 0 | OK40: 0 | OL40: 0 | OM40: 0 | ON40: 0 | OO40: 0 | OP40: 0 | OQ40: 0 | OR40: 0 | OS40: 0 | OT40: 0 | OU40: 0 | OV40: 0 | OW40: 0 | OX40: 0 | OY40: 0 | OZ40: 0 | PA40: 0 | PB40: 0 | PC40: 0 | PD40: 0 | PE40: 0 | PF40: 0 | PG40: 0 | PH40: 0 | PI40: 0 | PJ40: 0 | PK40: 0 | PL40: 0 | PM40: 0 | PN40: 0 | PO40: 0 | PP40: 0 | PQ40: 0 | PR40: 0 | PS40: 0 | PT40: 0 | PU40: 0 | PV40: 0 | PW40: 0 | PX40: 0 | PY40: 0 | PZ40: 0 | QA40: 0 | QB40: 0 | QC40: =IF($BI254=QC$11,$BK254,0) -> 0 | QD40: 0 | QE40: 0 | QF40: 0 | QG40: 0 | QH40: 0 | QI40: 0 | QJ40: 0 | QK40: 0 | QL40: 0 | QM40: 0 | QN40: 0 | QO40: 0 | QP40: 0 | QQ40: 0 | QR40: 0 | QS40: 0 | QT40: 0 | QU40: 0 | QV40: 0 | QW40: 0 | QX40: 0 | QY40: 0 | QZ40: 0 | RA40: 0 | RB40: 0 | RC40: 0 | RD40: 0 | RE40: 0 | RF40: 0 | RG40: 0 | RH40: 0 | RI40: 0 | RJ40: 0 | RK40: 0 | RL40: 0 | RM40: 0 | RN40: 0 | RO40: 0 | RP40: 0 | RQ40: 0 | RR40: 0 | RS40: 0 | RT40: 0 | RU40: 0 | RV40: 0 | RW40: 0 | RX40: 0 | RY40: 0 | RZ40: 0 | SA40: 0 | SB40: 0 | SC40: 0 | SD40: 0 | SE40: 0 | SF40: 0 | SG40: 0 | SH40: 0 | SI40: 0 | SJ40: 0 | SK40: 0 | SL40: 0 | SM40: 0 | SN40: 0 | SO40: =IF($BI254=SO$11,$BK254,0) -> 0 | SP40: 0 | SQ40: 0 | SR40: 0 | SS40: 0 | ST40: 0 | SU40: 0 | SV40: 0 | SW40: 0 | SX40: 0 | SY40: 0 | SZ40: 0 | TA40: 0 | TB40: 0 | TC40: 0 | TD40: 0 | TE40: 0 | TF40: 0 | TG40: 0 | TH40: 0 | TI40: 0 | TJ40: 0 | TK40: 0 | TL40: 0 | TM40: 0 | TN40: 0 | TO40: 0 | TP40: 0 | TQ40: 0 | TR40: 0 | TS40: 0 | TT40: 0 | TU40: 0 | TV40: 0 | TW40: 0 | TX40: 0 | TY40: 0 | TZ40: 0 | UA40: 0 | UB40: 0 | UC40: 0 | UD40: 0 | UE40: 0 | UF40: 0 | UG40: 0 | UH40: 0 | UI40: 0 | UJ40: 0 | UK40: 0 | UL40: 0 | UM40: 0 | UN40: 0 | UO40: 0
A41: 41 | U41: 4.5 | V41: 31.5 | X41: 13.5 | Y41: 2 | Z41: 2.5 | AJ41: 51.9 | AK41: 151.4763466 | AL41: 28.52365338 | AM41: 2.6 | AN41: 0.1 | AO41: 22.12331297 | AP41: 129.3113553 | AQ41: 2.6 | AR41: 0.1 | AS41: 0 | AT41: 0 | AU41: =IF('Transfer New'!$BK$12>MAX(AM41,AQ41),0,AL41) -> 0 | AV41: 0 | AW41: 0 | AX41: 0 | AZ41: 0 | BA41: 25.8 | BD41: 0 | BE41: 0 | BI41: =IF($BI255=BI$11,$BK255,0) -> 0 | BJ41: 0 | BK41: 0 | BL41: 0 | BM41: 0 | BN41: 0 | BO41: 0 | BP41: 0 | BQ41: 0 | BR41: 0 | BS41: 0 | BT41: 0 | BU41: 0 | BV41: 0 | BW41: 0 | BX41: 0 | BY41: 0 | BZ41: 0 | CA41: 0 | CB41: 0 | CC41: 0 | CD41: 0 | CE41: 0 | CF41: 0 | CG41: 0 | CH41: 0 | CI41: 0 | CJ41: 0 | CK41: 0 | CL41: 0 | CM41: 0 | CN41: 0 | CO41: 0 | CP41: 0 | CQ41: 0 | CR41: 0 | CS41: 0 | CT41: 0 | CU41: 0 | CV41: 0 | CW41: 0 | CX41: 0 | CY41: 0 | CZ41: 0 | DA41: 0 | DB41: 0 | DC41: 0 | DD41: 0 | DE41: 0 | DF41: 0 | DG41: 0 | DH41: 0 | DI41: 0 | DJ41: 0 | DK41: 0 | DL41: 0 | DM41: 0 | DN41: 0 | DO41: 0 | DP41: 0 | DQ41: 0 | DR41: 0 | DS41: 0 | DT41: 0 | DU41: =IF($BI255=DU$11,$BK255,0) -> 0 | DV41: 0 | DW41: 0 | DX41: 0 | DY41: 0 | DZ41: 0 | EA41: 0 | EB41: 0 | EC41: 0 | ED41: 0 | EE41: 0 | EF41: 0 | EG41: 0 | EH41: 0 | EI41: 0 | EJ41: 0 | EK41: 0 | EL41: 0 | EM41: 0 | EN41: 0 | EO41: 0 | EP41: 0 | EQ41: 0 | ER41: 0 | ES41: 0 | ET41: 0 | EU41: 0 | EV41: 0 | EW41: 0 | EX41: 0 | EY41: 0 | EZ41: 0 | FA41: 0 | FB41: 0 | FC41: 0 | FD41: 0 | FE41: 0 | FF41: 0 | FG41: 0 | FH41: 0 | FI41: 0 | FJ41: 0 | FK41: 0 | FL41: 0 | FM41: 0 | FN41: 0 | FO41: 0 | FP41: 0 | FQ41: 0 | FR41: 0 | FS41: 0 | FT41: 0 | FU41: 0 | FV41: 0 | FW41: 0 | FX41: 0 | FY41: 0 | FZ41: 0 | GA41: 0 | GB41: 0 | GC41: 0 | GD41: 0 | GE41: 0 | GF41: 0 | GG41: =IF($BI255=GG$11,$BK255,0) -> 0 | GH41: 0 | GI41: 0 | GJ41: 0 | GK41: 0 | GL41: 0 | GM41: 0 | GN41: 0 | GO41: 0 | GP41: 0 | GQ41: 0 | GR41: 0 | GS41: 0 | GT41: 0 | GU41: 0 | GV41: 0 | GW41: 0 | GX41: 0 | GY41: 0 | GZ41: 0 | HA41: 0 | HB41: 0 | HC41: 0 | HD41: 0 | HE41: 0 | HF41: 0 | HG41: 0 | HH41: 0 | HI41: 0 | HJ41: 0 | HK41: 0 | HL41: 0 | HM41: 0 | HN41: 0 | HO41: 0 | HP41: 0 | HQ41: 0 | HR41: 0 | HS41: 0 | HT41: 0 | HU41: 0 | HV41: 0 | HW41: 0 | HX41: 0 | HY41: 0 | HZ41: 0 | IA41: 0 | IB41: 0 | IC41: 0 | ID41: 0 | IE41: 0 | IF41: 0 | IG41: 0 | IH41: 0 | II41: 0 | IJ41: 0 | IK41: 0 | IL41: 0 | IM41: 0 | IN41: 0 | IO41: 0 | IP41: 0 | IQ41: 0 | IR41: 0 | IS41: =IF($BI255=IS$11,$BK255,0) -> 0 | IT41: 0 | IU41: 0 | IV41: 0 | IW41: 0 | IX41: 0 | IY41: 0 | IZ41: 0 | JA41: 0 | JB41: 0 | JC41: 0 | JD41: 0 | JE41: 0 | JF41: 0 | JG41: 0 | JH41: 0 | JI41: 0 | JJ41: 0 | JK41: 0 | JL41: 0 | JM41: 0 | JN41: 0 | JO41: 0 | JP41: 0 | JQ41: 0 | JR41: 0 | JS41: 0 | JT41: 0 | JU41: 0 | JV41: 0 | JW41: 0 | JX41: 0 | JY41: 0 | JZ41: 0 | KA41: 0 | KB41: 0 | KC41: 0 | KD41: 0 | KE41: 0 | KF41: 0 | KG41: 0 | KH41: 0 | KI41: 0 | KJ41: 0 | KK41: 0 | KL41: 0 | KM41: 0 | KN41: 0 | KO41: 0 | KP41: 0 | KQ41: 0 | KR41: 0 | KS41: 0 | KT41: 0 | KU41: 0 | KV41: 0 | KW41: 0 | KX41: 0 | KY41: 0 | KZ41: 0 | LA41: 0 | LB41: 0 | LC41: 0 | LD41: 0 | LE41: =IF($BI255=LE$11,$BK255,0) -> 0 | LF41: 0 | LG41: 0 | LH41: 0 | LI41: 0 | LJ41: 0 | LK41: 0 | LL41: 0 | LM41: 0 | LN41: 0 | LO41: 0 | LP41: 0 | LQ41: 0 | LR41: 0 | LS41: 0 | LT41: 0 | LU41: 0 | LV41: 0 | LW41: 0 | LX41: 0 | LY41: 0 | LZ41: 0 | MA41: 0 | MB41: 0 | MC41: 0 | MD41: 0 | ME41: 0 | MF41: 0 | MG41: 0 | MH41: 0 | MI41: 0 | MJ41: 0 | MK41: 0 | ML41: 0 | MM41: 15 | MN41: 0 | MO41: 0 | MP41: 0 | MQ41: 0 | MR41: 0 | MS41: 0 | MT41: 0 | MU41: 0 | MV41: 0 | MW41: 0 | MX41: 0 | MY41: 0 | MZ41: 0 | NA41: 0 | NB41: 0 | NC41: 0 | ND41: 0 | NE41: 0 | NF41: 0 | NG41: 0 | NH41: 0 | NI41: 0 | NJ41: 0 | NK41: 0 | NL41: 0 | NM41: 0 | NN41: 0 | NO41: 0 | NP41: 0 | NQ41: =IF($BI255=NQ$11,$BK255,0) -> 0 | NR41: 0 | NS41: 0 | NT41: 0 | NU41: 0 | NV41: 0 | NW41: 0 | NX41: 0 | NY41: 0 | NZ41: 0 | OA41: 0 | OB41: 0 | OC41: 0 | OD41: 0 | OE41: 0 | OF41: 0 | OG41: 0 | OH41: 0 | OI41: 0 | OJ41: 0 | OK41: 0 | OL41: 0 | OM41: 0 | ON41: 0 | OO41: 0 | OP41: 0 | OQ41: 0 | OR41: 0 | OS41: 0 | OT41: 0 | OU41: 0 | OV41: 0 | OW41: 0 | OX41: 0 | OY41: 0 | OZ41: 0 | PA41: 0 | PB41: 0 | PC41: 0 | PD41: 0 | PE41: 0 | PF41: 0 | PG41: 0 | PH41: 0 | PI41: 0 | PJ41: 0 | PK41: 0 | PL41: 0 | PM41: 0 | PN41: 0 | PO41: 0 | PP41: 0 | PQ41: 0 | PR41: 0 | PS41: 0 | PT41: 0 | PU41: 0 | PV41: 0 | PW41: 0 | PX41: 0 | PY41: 0 | PZ41: 0 | QA41: 0 | QB41: 0 | QC41: =IF($BI255=QC$11,$BK255,0) -> 0 | QD41: 0 | QE41: 0 | QF41: 0 | QG41: 0 | QH41: 0 | QI41: 0 | QJ41: 0 | QK41: 0 | QL41: 0 | QM41: 0 | QN41: 0 | QO41: 0 | QP41: 0 | QQ41: 0 | QR41: 0 | QS41: 0 | QT41: 0 | QU41: 0 | QV41: 0 | QW41: 0 | QX41: 0 | QY41: 0 | QZ41: 0 | RA41: 0 | RB41: 0 | RC41: 0 | RD41: 0 | RE41: 0 | RF41: 0 | RG41: 0 | RH41: 0 | RI41: 0 | RJ41: 0 | RK41: 0 | RL41: 0 | RM41: 0 | RN41: 0 | RO41: 0 | RP41: 0 | RQ41: 0 | RR41: 0 | RS41: 0 | RT41: 0 | RU41: 0 | RV41: 0 | RW41: 0 | RX41: 0 | RY41: 0 | RZ41: 0 | SA41: 0 | SB41: 0 | SC41: 0 | SD41: 0 | SE41: 0 | SF41: 0 | SG41: 0 | SH41: 0 | SI41: 0 | SJ41: 0 | SK41: 0 | SL41: 0 | SM41: 0 | SN41: 0 | SO41: =IF($BI255=SO$11,$BK255,0) -> 0 | SP41: 0 | SQ41: 0 | SR41: 0 | SS41: 0 | ST41: 0 | SU41: 0 | SV41: 0 | SW41: 0 | SX41: 0 | SY41: 0 | SZ41: 0 | TA41: 0 | TB41: 0 | TC41: 0 | TD41: 0 | TE41: 0 | TF41: 0 | TG41: 0 | TH41: 0 | TI41: 0 | TJ41: 0 | TK41: 0 | TL41: 0 | TM41: 0 | TN41: 0 | TO41: 0 | TP41: 0 | TQ41: 0 | TR41: 0 | TS41: 0 | TT41: 0 | TU41: 0 | TV41: 0 | TW41: 0 | TX41: 0 | TY41: 0 | TZ41: 0 | UA41: 0 | UB41: 0 | UC41: 0 | UD41: 0 | UE41: 0 | UF41: 0 | UG41: 0 | UH41: 0 | UI41: 0 | UJ41: 0 | UK41: 0 | UL41: 0 | UM41: 0 | UN41: 0 | UO41: 0
A42: 42 | U42: 2.5 | V42: 25.5 | X42: 13 | Y42: 1 | Z42: 0.5 | AJ42: 51.8 | AK42: 150.9305895 | AL42: 29.06941046 | AM42: 2.7 | AN42: 0.1 | AO42: 22.36033953 | AP42: 133.0966086 | AQ42: 2.7 | AR42: 0.1 | AS42: 0 | AT42: 0 | AU42: =IF('Transfer New'!$BK$12>MAX(AM42,AQ42),0,AL42) -> 0 | AV42: 0 | AW42: 0 | AX42: 0 | AZ42: 0 | BA42: 26.1 | BD42: 0 | BE42: 0 | BI42: =IF($BI256=BI$11,$BK256,0) -> 0 | BJ42: 0 | BK42: 0 | BL42: 0 | BM42: 0 | BN42: 0 | BO42: 0 | BP42: 0 | BQ42: 0 | BR42: 0 | BS42: 0 | BT42: 0 | BU42: 0 | BV42: 0 | BW42: 0 | BX42: 0 | BY42: 0 | BZ42: 0 | CA42: 0 | CB42: 0 | CC42: 0 | CD42: 0 | CE42: 0 | CF42: 0 | CG42: 0 | CH42: 0 | CI42: 0 | CJ42: 0 | CK42: 0 | CL42: 0 | CM42: 0 | CN42: 0 | CO42: 0 | CP42: 0 | CQ42: 0 | CR42: 0 | CS42: 0 | CT42: 0 | CU42: 0 | CV42: 0 | CW42: 0 | CX42: 0 | CY42: 0 | CZ42: 0 | DA42: 0 | DB42: 0 | DC42: 0 | DD42: 0 | DE42: 0 | DF42: 0 | DG42: 0 | DH42: 0 | DI42: 0 | DJ42: 0 | DK42: 0 | DL42: 0 | DM42: 0 | DN42: 0 | DO42: 0 | DP42: 0 | DQ42: 0 | DR42: 0 | DS42: 0 | DT42: 0 | DU42: =IF($BI256=DU$11,$BK256,0) -> 0 | DV42: 0 | DW42: 0 | DX42: 0 | DY42: 0 | DZ42: 0 | EA42: 0 | EB42: 0 | EC42: 0 | ED42: 0 | EE42: 0 | EF42: 0 | EG42: 0 | EH42: 0 | EI42: 0 | EJ42: 0 | EK42: 0 | EL42: 0 | EM42: 0 | EN42: 0 | EO42: 0 | EP42: 0 | EQ42: 0 | ER42: 0 | ES42: 0 | ET42: 0 | EU42: 0 | EV42: 0 | EW42: 0 | EX42: 0 | EY42: 0 | EZ42: 0 | FA42: 0 | FB42: 0 | FC42: 0 | FD42: 0 | FE42: 0 | FF42: 0 | FG42: 0 | FH42: 0 | FI42: 0 | FJ42: 0 | FK42: 0 | FL42: 0 | FM42: 0 | FN42: 0 | FO42: 0 | FP42: 0 | FQ42: 0 | FR42: 0 | FS42: 0 | FT42: 0 | FU42: 0 | FV42: 0 | FW42: 0 | FX42: 0 | FY42: 0 | FZ42: 0 | GA42: 0 | GB42: 0 | GC42: 0 | GD42: 0 | GE42: 0 | GF42: 0 | GG42: =IF($BI256=GG$11,$BK256,0) -> 0 | GH42: 0 | GI42: 0 | GJ42: 0 | GK42: 0 | GL42: 0 | GM42: 0 | GN42: 0 | GO42: 0 | GP42: 0 | GQ42: 0 | GR42: 0 | GS42: 0 | GT42: 0 | GU42: 0 | GV42: 0 | GW42: 0 | GX42: 0 | GY42: 0 | GZ42: 0 | HA42: 0 | HB42: 0 | HC42: 0 | HD42: 0 | HE42: 0 | HF42: 0 | HG42: 0 | HH42: 0 | HI42: 0 | HJ42: 0 | HK42: 0 | HL42: 0 | HM42: 0 | HN42: 0 | HO42: 0 | HP42: 0 | HQ42: 0 | HR42: 0 | HS42: 0 | HT42: 0 | HU42: 0 | HV42: 0 | HW42: 0 | HX42: 0 | HY42: 0 | HZ42: 0 | IA42: 0 | IB42: 0 | IC42: 0 | ID42: 0 | IE42: 0 | IF42: 0 | IG42: 0 | IH42: 0 | II42: 0 | IJ42: 0 | IK42: 0 | IL42: 0 | IM42: 0 | IN42: 0 | IO42: 0 | IP42: 0 | IQ42: 0 | IR42: 0 | IS42: =IF($BI256=IS$11,$BK256,0) -> 0 | IT42: 0 | IU42: 0 | IV42: 0 | IW42: 0 | IX42: 0 | IY42: 0 | IZ42: 0 | JA42: 0 | JB42: 0 | JC42: 0 | JD42: 0 | JE42: 0 | JF42: 0 | JG42: 0 | JH42: 0 | JI42: 0 | JJ42: 0 | JK42: 0 | JL42: 0 | JM42: 0 | JN42: 0 | JO42: 0 | JP42: 0 | JQ42: 0 | JR42: 0 | JS42: 0 | JT42: 0 | JU42: 0 | JV42: 0 | JW42: 0 | JX42: 0 | JY42: 0 | JZ42: 0 | KA42: 0 | KB42: 0 | KC42: 0 | KD42: 0 | KE42: 0 | KF42: 0 | KG42: 0 | KH42: 0 | KI42: 0 | KJ42: 0 | KK42: 0 | KL42: 0 | KM42: 0 | KN42: 0 | KO42: 0 | KP42: 0 | KQ42: 0 | KR42: 0 | KS42: 0 | KT42: 0 | KU42: 0 | KV42: 0 | KW42: 0 | KX42: 0 | KY42: 0 | KZ42: 0 | LA42: 0 | LB42: 0 | LC42: 0 | LD42: 0 | LE42: =IF($BI256=LE$11,$BK256,0) -> 0 | LF42: 0 | LG42: 0 | LH42: 0 | LI42: 0 | LJ42: 0 | LK42: 0 | LL42: 0 | LM42: 0 | LN42: 0 | LO42: 0 | LP42: 0 | LQ42: 0 | LR42: 0 | LS42: 0 | LT42: 0 | LU42: 0 | LV42: 0 | LW42: 0 | LX42: 0 | LY42: 0 | LZ42: 0 | MA42: 0 | MB42: 0 | MC42: 0 | MD42: 0 | ME42: 0 | MF42: 0 | MG42: 0 | MH42: 0 | MI42: 0 | MJ42: 0 | MK42: 0 | ML42: 0 | MM42: 0 | MN42: 0 | MO42: 0 | MP42: 0 | MQ42: 0 | MR42: 6 | MS42: 0 | MT42: 0 | MU42: 0 | MV42: 0 | MW42: 0 | MX42: 0 | MY42: 0 | MZ42: 0 | NA42: 0 | NB42: 0 | NC42: 0 | ND42: 0 | NE42: 0 | NF42: 0 | NG42: 0 | NH42: 0 | NI42: 0 | NJ42: 0 | NK42: 0 | NL42: 0 | NM42: 0 | NN42: 0 | NO42: 0 | NP42: 0 | NQ42: =IF($BI256=NQ$11,$BK256,0) -> 0 | NR42: 0 | NS42: 0 | NT42: 0 | NU42: 0 | NV42: 0 | NW42: 0 | NX42: 0 | NY42: 0 | NZ42: 0 | OA42: 0 | OB42: 0 | OC42: 0 | OD42: 0 | OE42: 0 | OF42: 0 | OG42: 0 | OH42: 0 | OI42: 0 | OJ42: 0 | OK42: 0 | OL42: 0 | OM42: 0 | ON42: 0 | OO42: 0 | OP42: 0 | OQ42: 0 | OR42: 0 | OS42: 0 | OT42: 0 | OU42: 0 | OV42: 0 | OW42: 0 | OX42: 0 | OY42: 0 | OZ42: 0 | PA42: 0 | PB42: 0 | PC42: 0 | PD42: 0 | PE42: 0 | PF42: 0 | PG42: 0 | PH42: 0 | PI42: 0 | PJ42: 0 | PK42: 0 | PL42: 0 | PM42: 0 | PN42: 0 | PO42: 0 | PP42: 0 | PQ42: 0 | PR42: 0 | PS42: 0 | PT42: 0 | PU42: 0 | PV42: 0 | PW42: 0 | PX42: 0 | PY42: 0 | PZ42: 0 | QA42: 0 | QB42: 0 | QC42: =IF($BI256=QC$11,$BK256,0) -> 0 | QD42: 0 | QE42: 0 | QF42: 0 | QG42: 0 | QH42: 0 | QI42: 0 | QJ42: 0 | QK42: 0 | QL42: 0 | QM42: 0 | QN42: 0 | QO42: 0 | QP42: 0 | QQ42: 0 | QR42: 0 | QS42: 0 | QT42: 0 | QU42: 0 | QV42: 0 | QW42: 0 | QX42: 0 | QY42: 0 | QZ42: 0 | RA42: 0 | RB42: 0 | RC42: 0 | RD42: 0 | RE42: 0 | RF42: 0 | RG42: 0 | RH42: 0 | RI42: 0 | RJ42: 0 | RK42: 0 | RL42: 0 | RM42: 0 | RN42: 0 | RO42: 0 | RP42: 0 | RQ42: 0 | RR42: 0 | RS42: 0 | RT42: 0 | RU42: 0 | RV42: 0 | RW42: 0 | RX42: 0 | RY42: 0 | RZ42: 0 | SA42: 0 | SB42: 0 | SC42: 0 | SD42: 0 | SE42: 0 | SF42: 0 | SG42: 0 | SH42: 0 | SI42: 0 | SJ42: 0 | SK42: 0 | SL42: 0 | SM42: 0 | SN42: 0 | SO42: =IF($BI256=SO$11,$BK256,0) -> 0 | SP42: 0 | SQ42: 0 | SR42: 0 | SS42: 0 | ST42: 0 | SU42: 0 | SV42: 0 | SW42: 0 | SX42: 0 | SY42: 0 | SZ42: 0 | TA42: 0 | TB42: 0 | TC42: 0 | TD42: 0 | TE42: 0 | TF42: 0 | TG42: 0 | TH42: 0 | TI42: 0 | TJ42: 0 | TK42: 0 | TL42: 0 | TM42: 0 | TN42: 0 | TO42: 0 | TP42: 0 | TQ42: 0 | TR42: 0 | TS42: 0 | TT42: 0 | TU42: 0 | TV42: 0 | TW42: 0 | TX42: 0 | TY42: 0 | TZ42: 0 | UA42: 0 | UB42: 0 | UC42: 0 | UD42: 0 | UE42: 0 | UF42: 0 | UG42: 0 | UH42: 0 | UI42: 0 | UJ42: 0 | UK42: 0 | UL42: 0 | UM42: 0 | UN42: 0 | UO42: 0
A43: 43 | U43: 1 | V43: 18 | X43: 13 | Y43: 0 | Z43: 0 | AJ43: 51.7 | AK43: 150.3946966 | AL43: 29.60530345 | AM43: 2.8 | AN43: 0.1 | AO43: 22.59667596 | AP43: 136.8860032 | AQ43: 2.8 | AR43: 0.1 | AS43: 0 | AT43: 0 | AU43: =IF('Transfer New'!$BK$12>MAX(AM43,AQ43),0,AL43) -> 0 | AV43: 0 | AW43: 0 | AX43: 0 | AZ43: 0 | BA43: 26.4 | BD43: 0 | BE43: 0 | BI43: =IF($BI257=BI$11,$BK257,0) -> 0 | BJ43: 0 | BK43: 0 | BL43: 0 | BM43: 0 | BN43: 0 | BO43: 0 | BP43: 0 | BQ43: 0 | BR43: 0 | BS43: 0 | BT43: 0 | BU43: 0 | BV43: 0 | BW43: 0 | BX43: 0 | BY43: 0 | BZ43: 0 | CA43: 0 | CB43: 0 | CC43: 0 | CD43: 0 | CE43: 0 | CF43: 0 | CG43: 0 | CH43: 0 | CI43: 0 | CJ43: 0 | CK43: 0 | CL43: 0 | CM43: 0 | CN43: 0 | CO43: 0 | CP43: 0 | CQ43: 0 | CR43: 0 | CS43: 0 | CT43: 0 | CU43: 0 | CV43: 0 | CW43: 0 | CX43: 0 | CY43: 0 | CZ43: 0 | DA43: 0 | DB43: 0 | DC43: 0 | DD43: 0 | DE43: 0 | DF43: 0 | DG43: 0 | DH43: 0 | DI43: 0 | DJ43: 0 | DK43: 0 | DL43: 0 | DM43: 0 | DN43: 0 | DO43: 0 | DP43: 0 | DQ43: 0 | DR43: 0 | DS43: 0 | DT43: 0 | DU43: =IF($BI257=DU$11,$BK257,0) -> 0 | DV43: 0 | DW43: 0 | DX43: 0 | DY43: 0 | DZ43: 0 | EA43: 0 | EB43: 0 | EC43: 0 | ED43: 0 | EE43: 0 | EF43: 0 | EG43: 0 | EH43: 0 | EI43: 0 | EJ43: 0 | EK43: 0 | EL43: 0 | EM43: 0 | EN43: 0 | EO43: 0 | EP43: 0 | EQ43: 0 | ER43: 0 | ES43: 0 | ET43: 0 | EU43: 0 | EV43: 0 | EW43: 0 | EX43: 0 | EY43: 0 | EZ43: 0 | FA43: 0 | FB43: 0 | FC43: 0 | FD43: 0 | FE43: 0 | FF43: 0 | FG43: 0 | FH43: 0 | FI43: 0 | FJ43: 0 | FK43: 0 | FL43: 0 | FM43: 0 | FN43: 0 | FO43: 0 | FP43: 0 | FQ43: 0 | FR43: 0 | FS43: 0 | FT43: 0 | FU43: 0 | FV43: 0 | FW43: 0 | FX43: 0 | FY43: 0 | FZ43: 0 | GA43: 0 | GB43: 0 | GC43: 0 | GD43: 0 | GE43: 0 | GF43: 0 | GG43: =IF($BI257=GG$11,$BK257,0) -> 0 | GH43: 0 | GI43: 0 | GJ43: 0 | GK43: 0 | GL43: 0 | GM43: 0 | GN43: 0 | GO43: 0 | GP43: 0 | GQ43: 0 | GR43: 0 | GS43: 0 | GT43: 0 | GU43: 0 | GV43: 0 | GW43: 0 | GX43: 0 | GY43: 0 | GZ43: 0 | HA43: 0 | HB43: 0 | HC43: 0 | HD43: 0 | HE43: 0 | HF43: 0 | HG43: 0 | HH43: 0 | HI43: 0 | HJ43: 0 | HK43: 0 | HL43: 0 | HM43: 0 | HN43: 0 | HO43: 0 | HP43: 0 | HQ43: 0 | HR43: 0 | HS43: 0 | HT43: 0 | HU43: 0 | HV43: 0 | HW43: 0 | HX43: 0 | HY43: 0 | HZ43: 0 | IA43: 0 | IB43: 0 | IC43: 0 | ID43: 0 | IE43: 0 | IF43: 0 | IG43: 0 | IH43: 0 | II43: 0 | IJ43: 0 | IK43: 0 | IL43: 0 | IM43: 0 | IN43: 0 | IO43: 0 | IP43: 0 | IQ43: 0 | IR43: 0 | IS43: =IF($BI257=IS$11,$BK257,0) -> 0 | IT43: 0 | IU43: 0 | IV43: 0 | IW43: 0 | IX43: 0 | IY43: 0 | IZ43: 0 | JA43: 0 | JB43: 0 | JC43: 0 | JD43: 0 | JE43: 0 | JF43: 0 | JG43: 0 | JH43: 0 | JI43: 0 | JJ43: 0 | JK43: 0 | JL43: 0 | JM43: 0 | JN43: 0 | JO43: 0 | JP43: 0 | JQ43: 0 | JR43: 0 | JS43: 0 | JT43: 0 | JU43: 0 | JV43: 0 | JW43: 0 | JX43: 0 | JY43: 0 | JZ43: 0 | KA43: 0 | KB43: 0 | KC43: 0 | KD43: 0 | KE43: 0 | KF43: 0 | KG43: 0 | KH43: 0 | KI43: 0 | KJ43: 0 | KK43: 0 | KL43: 0 | KM43: 0 | KN43: 0 | KO43: 0 | KP43: 0 | KQ43: 0 | KR43: 0 | KS43: 0 | KT43: 0 | KU43: 0 | KV43: 0 | KW43: 0 | KX43: 0 | KY43: 0 | KZ43: 0 | LA43: 0 | LB43: 0 | LC43: 0 | LD43: 0 | LE43: =IF($BI257=LE$11,$BK257,0) -> 0 | LF43: 0 | LG43: 0 | LH43: 0 | LI43: 0 | LJ43: 0 | LK43: 0 | LL43: 0 | LM43: 0 | LN43: 0 | LO43: 0 | LP43: 0 | LQ43: 0 | LR43: 0 | LS43: 0 | LT43: 0 | LU43: 0 | LV43: 0 | LW43: 0 | LX43: 0 | LY43: 0 | LZ43: 0 | MA43: 0 | MB43: 0 | MC43: 0 | MD43: 0 | ME43: 0 | MF43: 0 | MG43: 0 | MH43: 0 | MI43: 0 | MJ43: 0 | MK43: 0 | ML43: 0 | MM43: 0 | MN43: 0 | MO43: 0 | MP43: 0 | MQ43: 0 | MR43: 0 | MS43: 0 | MT43: 0 | MU43: 0 | MV43: 0 | MW43: 0 | MX43: 0 | MY43: 0 | MZ43: 0 | NA43: 0 | NB43: 0 | NC43: 0 | ND43: 0 | NE43: 0 | NF43: 0 | NG43: 0 | NH43: 0 | NI43: 0 | NJ43: 0 | NK43: 0 | NL43: 0 | NM43: 0 | NN43: 0 | NO43: 0 | NP43: 0 | NQ43: =IF($BI257=NQ$11,$BK257,0) -> 0 | NR43: 0 | NS43: 0 | NT43: 0 | NU43: 0 | NV43: 0 | NW43: 0 | NX43: 0 | NY43: 0 | NZ43: 0 | OA43: 0 | OB43: 0 | OC43: 0 | OD43: 0 | OE43: 0 | OF43: 0 | OG43: 0 | OH43: 0 | OI43: 0 | OJ43: 0 | OK43: 0 | OL43: 0 | OM43: 0 | ON43: 0 | OO43: 0 | OP43: 0 | OQ43: 0 | OR43: 0 | OS43: 0 | OT43: 0 | OU43: 0 | OV43: 0 | OW43: 0 | OX43: 0 | OY43: 0 | OZ43: 0 | PA43: 0 | PB43: 0 | PC43: 0 | PD43: 0 | PE43: 0 | PF43: 0 | PG43: 0 | PH43: 0 | PI43: 0 | PJ43: 0 | PK43: 0 | PL43: 0 | PM43: 0 | PN43: 0 | PO43: 0 | PP43: 0 | PQ43: 0 | PR43: 0 | PS43: 0 | PT43: 0 | PU43: 0 | PV43: 0 | PW43: 0 | PX43: 0 | PY43: 0 | PZ43: 0 | QA43: 0 | QB43: 0 | QC43: =IF($BI257=QC$11,$BK257,0) -> 0 | QD43: 0 | QE43: 0 | QF43: 0 | QG43: 0 | QH43: 0 | QI43: 0 | QJ43: 0 | QK43: 0 | QL43: 0 | QM43: 0 | QN43: 0 | QO43: 0 | QP43: 0 | QQ43: 0 | QR43: 0 | QS43: 0 | QT43: 0 | QU43: 0 | QV43: 0 | QW43: 0 | QX43: 0 | QY43: 0 | QZ43: 0 | RA43: 0 | RB43: 0 | RC43: 0 | RD43: 0 | RE43: 0 | RF43: 0 | RG43: 0 | RH43: 0 | RI43: 0 | RJ43: 0 | RK43: 0 | RL43: 0 | RM43: 0 | RN43: 0 | RO43: 0 | RP43: 0 | RQ43: 0 | RR43: 0 | RS43: 0 | RT43: 0 | RU43: 0 | RV43: 0 | RW43: 0 | RX43: 0 | RY43: 0 | RZ43: 0 | SA43: 0 | SB43: 0 | SC43: 0 | SD43: 0 | SE43: 0 | SF43: 0 | SG43: 0 | SH43: 0 | SI43: 0 | SJ43: 0 | SK43: 0 | SL43: 0 | SM43: 0 | SN43: 0 | SO43: =IF($BI257=SO$11,$BK257,0) -> 0 | SP43: 0 | SQ43: 0 | SR43: 0 | SS43: 0 | ST43: 0 | SU43: 0 | SV43: 0 | SW43: 0 | SX43: 0 | SY43: 0 | SZ43: 0 | TA43: 0 | TB43: 0 | TC43: 0 | TD43: 0 | TE43: 0 | TF43: 0 | TG43: 0 | TH43: 0 | TI43: 0 | TJ43: 0 | TK43: 0 | TL43: 0 | TM43: 0 | TN43: 0 | TO43: 0 | TP43: 0 | TQ43: 0 | TR43: 0 | TS43: 0 | TT43: 0 | TU43: 0 | TV43: 0 | TW43: 0 | TX43: 0 | TY43: 0 | TZ43: 0 | UA43: 0 | UB43: 0 | UC43: 0 | UD43: 0 | UE43: 0 | UF43: 0 | UG43: 0 | UH43: 0 | UI43: 0 | UJ43: 0 | UK43: 0 | UL43: 0 | UM43: 0 | UN43: 0 | UO43: 0
A44: 44 | U44: 0 | V44: 6 | X44: 13 | Y44: 0 | Z44: 0 | AJ44: 51.6 | AK44: 149.8681392 | AL44: 30.13186084 | AM44: 2.9 | AN44: 0.1 | AO44: 22.83231496 | AP44: 140.680172 | AQ44: 2.9 | AR44: 0.1 | AS44: 0 | AT44: 0 | AU44: =IF('Transfer New'!$BK$12>MAX(AM44,AQ44),0,AL44) -> 0 | AV44: 0 | AW44: 0 | AX44: 0 | AZ44: 0 | BA44: 26.7 | BD44: 0 | BE44: 0 | BI44: =IF($BI258=BI$11,$BK258,0) -> 0 | BJ44: 0 | BK44: 0 | BL44: 0 | BM44: 0 | BN44: 0 | BO44: 0 | BP44: 0 | BQ44: 0 | BR44: 0 | BS44: 0 | BT44: 0 | BU44: 0 | BV44: 0 | BW44: 0 | BX44: 0 | BY44: 0 | BZ44: 0 | CA44: 0 | CB44: 0 | CC44: 0 | CD44: 0 | CE44: 0 | CF44: 0 | CG44: 0 | CH44: 0 | CI44: 0 | CJ44: 0 | CK44: 0 | CL44: 0 | CM44: 0 | CN44: 0 | CO44: 0 | CP44: 0 | CQ44: 0 | CR44: 0 | CS44: 0 | CT44: 0 | CU44: 0 | CV44: 0 | CW44: 0 | CX44: 0 | CY44: 0 | CZ44: 0 | DA44: 0 | DB44: 0 | DC44: 0 | DD44: 0 | DE44: 0 | DF44: 0 | DG44: 0 | DH44: 0 | DI44: 0 | DJ44: 0 | DK44: 0 | DL44: 0 | DM44: 0 | DN44: 0 | DO44: 0 | DP44: 0 | DQ44: 0 | DR44: 0 | DS44: 0 | DT44: 0 | DU44: =IF($BI258=DU$11,$BK258,0) -> 0 | DV44: 0 | DW44: 0 | DX44: 0 | DY44: 0 | DZ44: 0 | EA44: 0 | EB44: 0 | EC44: 0 | ED44: 0 | EE44: 0 | EF44: 0 | EG44: 0 | EH44: 0 | EI44: 0 | EJ44: 0 | EK44: 0 | EL44: 0 | EM44: 0 | EN44: 0 | EO44: 0 | EP44: 0 | EQ44: 0 | ER44: 0 | ES44: 0 | ET44: 0 | EU44: 0 | EV44: 0 | EW44: 0 | EX44: 0 | EY44: 0 | EZ44: 0 | FA44: 0 | FB44: 0 | FC44: 0 | FD44: 0 | FE44: 0 | FF44: 0 | FG44: 0 | FH44: 0 | FI44: 0 | FJ44: 0 | FK44: 0 | FL44: 0 | FM44: 0 | FN44: 0 | FO44: 0 | FP44: 0 | FQ44: 0 | FR44: 0 | FS44: 0 | FT44: 0 | FU44: 0 | FV44: 0 | FW44: 0 | FX44: 0 | FY44: 0 | FZ44: 0 | GA44: 0 | GB44: 0 | GC44: 0 | GD44: 0 | GE44: 0 | GF44: 0 | GG44: =IF($BI258=GG$11,$BK258,0) -> 0 | GH44: 0 | GI44: 0 | GJ44: 0 | GK44: 0 | GL44: 0 | GM44: 0 | GN44: 0 | GO44: 0 | GP44: 0 | GQ44: 0 | GR44: 0 | GS44: 0 | GT44: 0 | GU44: 0 | GV44: 0 | GW44: 0 | GX44: 0 | GY44: 0 | GZ44: 0 | HA44: 0 | HB44: 0 | HC44: 0 | HD44: 0 | HE44: 0 | HF44: 0 | HG44: 0 | HH44: 0 | HI44: 0 | HJ44: 0 | HK44: 0 | HL44: 0 | HM44: 0 | HN44: 0 | HO44: 0 | HP44: 0 | HQ44: 0 | HR44: 0 | HS44: 0 | HT44: 0 | HU44: 0 | HV44: 0 | HW44: 0 | HX44: 0 | HY44: 0 | HZ44: 0 | IA44: 0 | IB44: 0 | IC44: 0 | ID44: 0 | IE44: 0 | IF44: 0 | IG44: 0 | IH44: 0 | II44: 0 | IJ44: 0 | IK44: 0 | IL44: 0 | IM44: 0 | IN44: 0 | IO44: 0 | IP44: 0 | IQ44: 0 | IR44: 0 | IS44: =IF($BI258=IS$11,$BK258,0) -> 0 | IT44: 0 | IU44: 0 | IV44: 0 | IW44: 0 | IX44: 0 | IY44: 0 | IZ44: 0 | JA44: 0 | JB44: 0 | JC44: 0 | JD44: 0 | JE44: 0 | JF44: 0 | JG44: 0 | JH44: 0 | JI44: 0 | JJ44: 0 | JK44: 0 | JL44: 0 | JM44: 0 | JN44: 0 | JO44: 0 | JP44: 0 | JQ44: 0 | JR44: 0 | JS44: 0 | JT44: 0 | JU44: 0 | JV44: 0 | JW44: 0 | JX44: 0 | JY44: 0 | JZ44: 0 | KA44: 0 | KB44: 0 | KC44: 0 | KD44: 0 | KE44: 0 | KF44: 0 | KG44: 0 | KH44: 0 | KI44: 0 | KJ44: 0 | KK44: 0 | KL44: 0 | KM44: 0 | KN44: 0 | KO44: 0 | KP44: 0 | KQ44: 0 | KR44: 0 | KS44: 0 | KT44: 0 | KU44: 0 | KV44: 0 | KW44: 0 | KX44: 0 | KY44: 0 | KZ44: 0 | LA44: 0 | LB44: 0 | LC44: 0 | LD44: 0 | LE44: =IF($BI258=LE$11,$BK258,0) -> 0 | LF44: 0 | LG44: 0 | LH44: 0 | LI44: 0 | LJ44: 0 | LK44: 0 | LL44: 0 | LM44: 0 | LN44: 0 | LO44: 0 | LP44: 0 | LQ44: 0 | LR44: 0 | LS44: 0 | LT44: 0 | LU44: 0 | LV44: 0 | LW44: 0 | LX44: 0 | LY44: 0 | LZ44: 0 | MA44: 0 | MB44: 0 | MC44: 0 | MD44: 0 | ME44: 0 | MF44: 0 | MG44: 0 | MH44: 0 | MI44: 0 | MJ44: 0 | MK44: 0 | ML44: 0 | MM44: 0 | MN44: 0 | MO44: 0 | MP44: 0 | MQ44: 0 | MR44: 0 | MS44: 0 | MT44: 0 | MU44: 0 | MV44: 0 | MW44: 0 | MX44: 0 | MY44: 0 | MZ44: 0 | NA44: 0 | NB44: 0 | NC44: 0 | ND44: 0 | NE44: 0 | NF44: 0 | NG44: 0 | NH44: 0 | NI44: 0 | NJ44: 0 | NK44: 0 | NL44: 0 | NM44: 0 | NN44: 0 | NO44: 0 | NP44: 0 | NQ44: =IF($BI258=NQ$11,$BK258,0) -> 0 | NR44: 0 | NS44: 0 | NT44: 0 | NU44: 0 | NV44: 0 | NW44: 0 | NX44: 0 | NY44: 0 | NZ44: 0 | OA44: 0 | OB44: 0 | OC44: 0 | OD44: 0 | OE44: 0 | OF44: 0 | OG44: 0 | OH44: 0 | OI44: 0 | OJ44: 0 | OK44: 0 | OL44: 0 | OM44: 0 | ON44: 0 | OO44: 0 | OP44: 0 | OQ44: 0 | OR44: 0 | OS44: 0 | OT44: 0 | OU44: 0 | OV44: 0 | OW44: 0 | OX44: 0 | OY44: 0 | OZ44: 0 | PA44: 0 | PB44: 0 | PC44: 0 | PD44: 0 | PE44: 0 | PF44: 0 | PG44: 0 | PH44: 0 | PI44: 0 | PJ44: 0 | PK44: 0 | PL44: 0 | PM44: 0 | PN44: 0 | PO44: 0 | PP44: 0 | PQ44: 0 | PR44: 0 | PS44: 0 | PT44: 0 | PU44: 0 | PV44: 0 | PW44: 0 | PX44: 0 | PY44: 0 | PZ44: 0 | QA44: 0 | QB44: 0 | QC44: =IF($BI258=QC$11,$BK258,0) -> 0 | QD44: 0 | QE44: 0 | QF44: 0 | QG44: 0 | QH44: 0 | QI44: 0 | QJ44: 0 | QK44: 0 | QL44: 0 | QM44: 0 | QN44: 0 | QO44: 0 | QP44: 0 | QQ44: 0 | QR44: 0 | QS44: 0 | QT44: 0 | QU44: 0 | QV44: 0 | QW44: 0 | QX44: 0 | QY44: 0 | QZ44: 0 | RA44: 0 | RB44: 0 | RC44: 0 | RD44: 0 | RE44: 0 | RF44: 0 | RG44: 0 | RH44: 0 | RI44: 0 | RJ44: 0 | RK44: 0 | RL44: 0 | RM44: 0 | RN44: 0 | RO44: 0 | RP44: 0 | RQ44: 0 | RR44: 0 | RS44: 0 | RT44: 0 | RU44: 0 | RV44: 0 | RW44: 0 | RX44: 0 | RY44: 0 | RZ44: 0 | SA44: 0 | SB44: 0 | SC44: 0 | SD44: 0 | SE44: 0 | SF44: 0 | SG44: 0 | SH44: 0 | SI44: 0 | SJ44: 0 | SK44: 0 | SL44: 0 | SM44: 0 | SN44: 0 | SO44: =IF($BI258=SO$11,$BK258,0) -> 0 | SP44: 0 | SQ44: 0 | SR44: 0 | SS44: 0 | ST44: 0 | SU44: 0 | SV44: 0 | SW44: 0 | SX44: 0 | SY44: 0 | SZ44: 0 | TA44: 0 | TB44: 0 | TC44: 0 | TD44: 0 | TE44: 0 | TF44: 0 | TG44: 0 | TH44: 0 | TI44: 0 | TJ44: 0 | TK44: 0 | TL44: 0 | TM44: 0 | TN44: 0 | TO44: 0 | TP44: 0 | TQ44: 0 | TR44: 0 | TS44: 0 | TT44: 0 | TU44: 0 | TV44: 0 | TW44: 0 | TX44: 0 | TY44: 0 | TZ44: 0 | UA44: 0 | UB44: 0 | UC44: 0 | UD44: 0 | UE44: 0 | UF44: 0 | UG44: 0 | UH44: 0 | UI44: 0 | UJ44: 0 | UK44: 0 | UL44: 0 | UM44: 0 | UN44: 0 | UO44: 0
A45: 45 | P45: STA | Q45: Target | R45: % | S45: Out of | U45: 0 | V45: 0 | X45: 13 | Y45: 0 | Z45: 0 | AJ45: 51.5 | AK45: 149.3504341 | AL45: 30.64956593 | AM45: 3 | AN45: 0.1 | AO45: 23.06724927 | AP45: 144.479658 | AQ45: 3 | AR45: 0.1 | AS45: 0 | AT45: 0 | AU45: =IF('Transfer New'!$BK$12>MAX(AM45,AQ45),0,AL45) -> 0 | AV45: 0 | AW45: 0 | AX45: 0 | AZ45: 0 | BA45: 27 | BD45: 0 | BE45: 0 | BI45: =IF($BI259=BI$11,$BK259,0) -> 0 | BJ45: 0 | BK45: 0 | BL45: 0 | BM45: 0 | BN45: 0 | BO45: 0 | BP45: 0 | BQ45: 0 | BR45: 0 | BS45: 0 | BT45: 0 | BU45: 0 | BV45: 0 | BW45: 0 | BX45: 0 | BY45: 0 | BZ45: 0 | CA45: 0 | CB45: 0 | CC45: 0 | CD45: 0 | CE45: 0 | CF45: 0 | CG45: 0 | CH45: 0 | CI45: 0 | CJ45: 0 | CK45: 0 | CL45: 0 | CM45: 0 | CN45: 0 | CO45: 0 | CP45: 0 | CQ45: 0 | CR45: 0 | CS45: 0 | CT45: 0 | CU45: 0 | CV45: 0 | CW45: 0 | CX45: 0 | CY45: 0 | CZ45: 0 | DA45: 0 | DB45: 0 | DC45: 0 | DD45: 0 | DE45: 0 | DF45: 0 | DG45: 0 | DH45: 0 | DI45: 0 | DJ45: 0 | DK45: 0 | DL45: 0 | DM45: 0 | DN45: 0 | DO45: 0 | DP45: 0 | DQ45: 0 | DR45: 0 | DS45: 0 | DT45: 0 | DU45: =IF($BI259=DU$11,$BK259,0) -> 0 | DV45: 0 | DW45: 0 | DX45: 0 | DY45: 0 | DZ45: 0 | EA45: 0 | EB45: 0 | EC45: 0 | ED45: 0 | EE45: 0 | EF45: 0 | EG45: 0 | EH45: 0 | EI45: 0 | EJ45: 0 | EK45: 0 | EL45: 0 | EM45: 0 | EN45: 0 | EO45: 0 | EP45: 0 | EQ45: 0 | ER45: 0 | ES45: 0 | ET45: 0 | EU45: 0 | EV45: 0 | EW45: 0 | EX45: 0 | EY45: 0 | EZ45: 0 | FA45: 0 | FB45: 0 | FC45: 0 | FD45: 0 | FE45: 0 | FF45: 0 | FG45: 0 | FH45: 0 | FI45: 0 | FJ45: 0 | FK45: 0 | FL45: 0 | FM45: 0 | FN45: 0 | FO45: 0 | FP45: 0 | FQ45: 0 | FR45: 0 | FS45: 0 | FT45: 0 | FU45: 0 | FV45: 0 | FW45: 0 | FX45: 0 | FY45: 0 | FZ45: 0 | GA45: 0 | GB45: 0 | GC45: 0 | GD45: 0 | GE45: 0 | GF45: 0 | GG45: =IF($BI259=GG$11,$BK259,0) -> 0 | GH45: 0 | GI45: 0 | GJ45: 0 | GK45: 0 | GL45: 0 | GM45: 0 | GN45: 0 | GO45: 0 | GP45: 0 | GQ45: 0 | GR45: 0 | GS45: 0 | GT45: 0 | GU45: 0 | GV45: 0 | GW45: 0 | GX45: 0 | GY45: 0 | GZ45: 0 | HA45: 0 | HB45: 0 | HC45: 0 | HD45: 0 | HE45: 0 | HF45: 0 | HG45: 0 | HH45: 0 | HI45: 0 | HJ45: 0 | HK45: 0 | HL45: 0 | HM45: 0 | HN45: 0 | HO45: 0 | HP45: 0 | HQ45: 0 | HR45: 0 | HS45: 0 | HT45: 0 | HU45: 0 | HV45: 0 | HW45: 0 | HX45: 0 | HY45: 0 | HZ45: 0 | IA45: 0 | IB45: 0 | IC45: 0 | ID45: 0 | IE45: 0 | IF45: 0 | IG45: 0 | IH45: 0 | II45: 0 | IJ45: 0 | IK45: 0 | IL45: 0 | IM45: 0 | IN45: 0 | IO45: 0 | IP45: 0 | IQ45: 0 | IR45: 0 | IS45: =IF($BI259=IS$11,$BK259,0) -> 0 | IT45: 0 | IU45: 0 | IV45: 0 | IW45: 0 | IX45: 0 | IY45: 0 | IZ45: 0 | JA45: 0 | JB45: 0 | JC45: 0 | JD45: 0 | JE45: 0 | JF45: 0 | JG45: 0 | JH45: 0 | JI45: 0 | JJ45: 0 | JK45: 0 | JL45: 0 | JM45: 0 | JN45: 0 | JO45: 0 | JP45: 0 | JQ45: 0 | JR45: 0 | JS45: 0 | JT45: 0 | JU45: 0 | JV45: 0 | JW45: 0 | JX45: 0 | JY45: 0 | JZ45: 0 | KA45: 0 | KB45: 0 | KC45: 0 | KD45: 0 | KE45: 0 | KF45: 0 | KG45: 0 | KH45: 0 | KI45: 0 | KJ45: 0 | KK45: 0 | KL45: 0 | KM45: 0 | KN45: 0 | KO45: 0 | KP45: 0 | KQ45: 0 | KR45: 0 | KS45: 0 | KT45: 0 | KU45: 0 | KV45: 0 | KW45: 0 | KX45: 0 | KY45: 0 | KZ45: 0 | LA45: 0 | LB45: 0 | LC45: 0 | LD45: 0 | LE45: =IF($BI259=LE$11,$BK259,0) -> 0 | LF45: 0 | LG45: 0 | LH45: 0 | LI45: 0 | LJ45: 0 | LK45: 0 | LL45: 0 | LM45: 0 | LN45: 0 | LO45: 0 | LP45: 0 | LQ45: 0 | LR45: 0 | LS45: 0 | LT45: 0 | LU45: 0 | LV45: 0 | LW45: 0 | LX45: 0 | LY45: 0 | LZ45: 0 | MA45: 0 | MB45: 0 | MC45: 0 | MD45: 0 | ME45: 0 | MF45: 0 | MG45: 0 | MH45: 0 | MI45: 0 | MJ45: 0 | MK45: 0 | ML45: 0 | MM45: 0 | MN45: 0 | MO45: 0 | MP45: 0 | MQ45: 0 | MR45: 0 | MS45: 0 | MT45: 0 | MU45: 0 | MV45: 0 | MW45: 0 | MX45: 0 | MY45: 0 | MZ45: 0 | NA45: 0 | NB45: 0 | NC45: 0 | ND45: 0 | NE45: 0 | NF45: 0 | NG45: 0 | NH45: 0 | NI45: 0 | NJ45: 0 | NK45: 0 | NL45: 0 | NM45: 0 | NN45: 0 | NO45: 0 | NP45: 0 | NQ45: =IF($BI259=NQ$11,$BK259,0) -> 0 | NR45: 0 | NS45: 0 | NT45: 0 | NU45: 0 | NV45: 0 | NW45: 0 | NX45: 0 | NY45: 0 | NZ45: 0 | OA45: 0 | OB45: 0 | OC45: 0 | OD45: 0 | OE45: 0 | OF45: 0 | OG45: 0 | OH45: 0 | OI45: 0 | OJ45: 0 | OK45: 0 | OL45: 0 | OM45: 0 | ON45: 0 | OO45: 0 | OP45: 0 | OQ45: 0 | OR45: 0 | OS45: 0 | OT45: 0 | OU45: 0 | OV45: 0 | OW45: 0 | OX45: 0 | OY45: 0 | OZ45: 0 | PA45: 0 | PB45: 0 | PC45: 0 | PD45: 0 | PE45: 0 | PF45: 0 | PG45: 0 | PH45: 0 | PI45: 0 | PJ45: 0 | PK45: 0 | PL45: 0 | PM45: 0 | PN45: 0 | PO45: 0 | PP45: 0 | PQ45: 0 | PR45: 0 | PS45: 0 | PT45: 0 | PU45: 0 | PV45: 0 | PW45: 0 | PX45: 0 | PY45: 0 | PZ45: 0 | QA45: 0 | QB45: 0 | QC45: =IF($BI259=QC$11,$BK259,0) -> 0 | QD45: 0 | QE45: 0 | QF45: 0 | QG45: 0 | QH45: 0 | QI45: 0 | QJ45: 0 | QK45: 0 | QL45: 0 | QM45: 0 | QN45: 0 | QO45: 0 | QP45: 0 | QQ45: 0 | QR45: 0 | QS45: 0 | QT45: 0 | QU45: 0 | QV45: 0 | QW45: 0 | QX45: 0 | QY45: 0 | QZ45: 0 | RA45: 0 | RB45: 0 | RC45: 0 | RD45: 0 | RE45: 0 | RF45: 0 | RG45: 0 | RH45: 0 | RI45: 0 | RJ45: 0 | RK45: 0 | RL45: 0 | RM45: 0 | RN45: 0 | RO45: 0 | RP45: 0 | RQ45: 0 | RR45: 0 | RS45: 0 | RT45: 0 | RU45: 0 | RV45: 0 | RW45: 0 | RX45: 0 | RY45: 0 | RZ45: 0 | SA45: 0 | SB45: 0 | SC45: 0 | SD45: 0 | SE45: 0 | SF45: 0 | SG45: 0 | SH45: 0 | SI45: 0 | SJ45: 0 | SK45: 0 | SL45: 0 | SM45: 0 | SN45: 0 | SO45: =IF($BI259=SO$11,$BK259,0) -> 0 | SP45: 0 | SQ45: 0 | SR45: 0 | SS45: 0 | ST45: 0 | SU45: 0 | SV45: 0 | SW45: 0 | SX45: 0 | SY45: 0 | SZ45: 0 | TA45: 0 | TB45: 0 | TC45: 0 | TD45: 0 | TE45: 0 | TF45: 0 | TG45: 0 | TH45: 0 | TI45: 0 | TJ45: 0 | TK45: 0 | TL45: 0 | TM45: 0 | TN45: 0 | TO45: 0 | TP45: 0 | TQ45: 0 | TR45: 0 | TS45: 0 | TT45: 0 | TU45: 0 | TV45: 0 | TW45: 0 | TX45: 0 | TY45: 0 | TZ45: 0 | UA45: 0 | UB45: 0 | UC45: 0 | UD45: 0 | UE45: 0 | UF45: 0 | UG45: 0 | UH45: 0 | UI45: 0 | UJ45: 0 | UK45: 0 | UL45: 0 | UM45: 0 | UN45: 0 | UO45: 0
A46: 46 | Q46: 0 | S46: breath RPM | U46: 0 | V46: 0 | X46: 13 | Y46: 0 | Z46: 0 | AJ46: 51.4 | AK46: 148.8411379 | AL46: 31.15886209 | AM46: 3.1 | AN46: 0.1 | AO46: 23.30147162 | AP46: 148.2849257 | AQ46: 3.1 | AR46: 0.1 | AS46: 0 | AT46: 0 | AU46: =IF('Transfer New'!$BK$12>MAX(AM46,AQ46),0,AL46) -> 0 | AV46: 0 | AW46: 0 | AX46: 0 | AZ46: 0 | BA46: 27.3 | BD46: 0 | BE46: 0 | BI46: =IF($BI260=BI$11,$BK260,0) -> 0 | BJ46: 0 | BK46: 0 | BL46: 0 | BM46: 0 | BN46: 0 | BO46: 0 | BP46: 0 | BQ46: 0 | BR46: 0 | BS46: 0 | BT46: 0 | BU46: 0 | BV46: 0 | BW46: 0 | BX46: 0 | BY46: 0 | BZ46: 0 | CA46: 0 | CB46: 0 | CC46: 0 | CD46: 0 | CE46: 0 | CF46: 0 | CG46: 0 | CH46: 0 | CI46: 0 | CJ46: 0 | CK46: 0 | CL46: 0 | CM46: 0 | CN46: 0 | CO46: 0 | CP46: 0 | CQ46: 0 | CR46: 0 | CS46: 0 | CT46: 0 | CU46: 0 | CV46: 0 | CW46: 0 | CX46: 0 | CY46: 0 | CZ46: 0 | DA46: 0 | DB46: 0 | DC46: 0 | DD46: 0 | DE46: 0 | DF46: 0 | DG46: 0 | DH46: 0 | DI46: 0 | DJ46: 0 | DK46: 0 | DL46: 0 | DM46: 0 | DN46: 0 | DO46: 0 | DP46: 0 | DQ46: 0 | DR46: 0 | DS46: 0 | DT46: 0 | DU46: =IF($BI260=DU$11,$BK260,0) -> 0 | DV46: 0 | DW46: 0 | DX46: 0 | DY46: 0 | DZ46: 0 | EA46: 0 | EB46: 0 | EC46: 0 | ED46: 0 | EE46: 0 | EF46: 0 | EG46: 0 | EH46: 0 | EI46: 0 | EJ46: 0 | EK46: 0 | EL46: 0 | EM46: 0 | EN46: 0 | EO46: 0 | EP46: 0 | EQ46: 0 | ER46: 0 | ES46: 0 | ET46: 0 | EU46: 0 | EV46: 0 | EW46: 0 | EX46: 0 | EY46: 0 | EZ46: 0 | FA46: 0 | FB46: 0 | FC46: 0 | FD46: 0 | FE46: 0 | FF46: 0 | FG46: 0 | FH46: 0 | FI46: 0 | FJ46: 0 | FK46: 0 | FL46: 0 | FM46: 0 | FN46: 0 | FO46: 0 | FP46: 0 | FQ46: 0 | FR46: 0 | FS46: 0 | FT46: 0 | FU46: 0 | FV46: 0 | FW46: 0 | FX46: 0 | FY46: 0 | FZ46: 0 | GA46: 0 | GB46: 0 | GC46: 0 | GD46: 0 | GE46: 0 | GF46: 0 | GG46: =IF($BI260=GG$11,$BK260,0) -> 0 | GH46: 0 | GI46: 0 | GJ46: 0 | GK46: 0 | GL46: 0 | GM46: 0 | GN46: 0 | GO46: 0 | GP46: 0 | GQ46: 0 | GR46: 0 | GS46: 0 | GT46: 0 | GU46: 0 | GV46: 0 | GW46: 0 | GX46: 0 | GY46: 0 | GZ46: 0 | HA46: 0 | HB46: 0 | HC46: 0 | HD46: 0 | HE46: 0 | HF46: 0 | HG46: 0 | HH46: 0 | HI46: 0 | HJ46: 0 | HK46: 0 | HL46: 0 | HM46: 0 | HN46: 0 | HO46: 0 | HP46: 0 | HQ46: 0 | HR46: 0 | HS46: 0 | HT46: 0 | HU46: 0 | HV46: 0 | HW46: 0 | HX46: 0 | HY46: 0 | HZ46: 0 | IA46: 0 | IB46: 0 | IC46: 0 | ID46: 0 | IE46: 0 | IF46: 0 | IG46: 0 | IH46: 0 | II46: 0 | IJ46: 0 | IK46: 0 | IL46: 0 | IM46: 0 | IN46: 0 | IO46: 0 | IP46: 0 | IQ46: 0 | IR46: 0 | IS46: =IF($BI260=IS$11,$BK260,0) -> 0 | IT46: 0 | IU46: 0 | IV46: 0 | IW46: 0 | IX46: 0 | IY46: 0 | IZ46: 0 | JA46: 0 | JB46: 0 | JC46: 0 | JD46: 0 | JE46: 0 | JF46: 0 | JG46: 0 | JH46: 0 | JI46: 0 | JJ46: 0 | JK46: 0 | JL46: 0 | JM46: 0 | JN46: 0 | JO46: 0 | JP46: 0 | JQ46: 0 | JR46: 0 | JS46: 0 | JT46: 0 | JU46: 0 | JV46: 0 | JW46: 0 | JX46: 0 | JY46: 0 | JZ46: 0 | KA46: 0 | KB46: 0 | KC46: 0 | KD46: 0 | KE46: 0 | KF46: 0 | KG46: 0 | KH46: 0 | KI46: 0 | KJ46: 0 | KK46: 0 | KL46: 0 | KM46: 0 | KN46: 0 | KO46: 0 | KP46: 0 | KQ46: 0 | KR46: 0 | KS46: 0 | KT46: 0 | KU46: 0 | KV46: 0 | KW46: 0 | KX46: 0 | KY46: 0 | KZ46: 0 | LA46: 0 | LB46: 0 | LC46: 0 | LD46: 0 | LE46: =IF($BI260=LE$11,$BK260,0) -> 0 | LF46: 0 | LG46: 0 | LH46: 0 | LI46: 0 | LJ46: 0 | LK46: 0 | LL46: 0 | LM46: 0 | LN46: 0 | LO46: 0 | LP46: 0 | LQ46: 0 | LR46: 0 | LS46: 0 | LT46: 0 | LU46: 0 | LV46: 0 | LW46: 0 | LX46: 0 | LY46: 0 | LZ46: 0 | MA46: 0 | MB46: 0 | MC46: 0 | MD46: 0 | ME46: 0 | MF46: 0 | MG46: 0 | MH46: 0 | MI46: 0 | MJ46: 0 | MK46: 0 | ML46: 0 | MM46: 0 | MN46: 0 | MO46: 0 | MP46: 0 | MQ46: 0 | MR46: 0 | MS46: 0 | MT46: 0 | MU46: 0 | MV46: 0 | MW46: 0 | MX46: 0 | MY46: 0 | MZ46: 0 | NA46: 0 | NB46: 0 | NC46: 0 | ND46: 0 | NE46: 0 | NF46: 0 | NG46: 0 | NH46: 0 | NI46: 0 | NJ46: 0 | NK46: 0 | NL46: 0 | NM46: 0 | NN46: 0 | NO46: 0 | NP46: 0 | NQ46: =IF($BI260=NQ$11,$BK260,0) -> 0 | NR46: 0 | NS46: 0 | NT46: 0 | NU46: 0 | NV46: 0 | NW46: 0 | NX46: 0 | NY46: 0 | NZ46: 0 | OA46: 0 | OB46: 0 | OC46: 0 | OD46: 0 | OE46: 0 | OF46: 0 | OG46: 0 | OH46: 0 | OI46: 0 | OJ46: 0 | OK46: 0 | OL46: 0 | OM46: 0 | ON46: 0 | OO46: 0 | OP46: 0 | OQ46: 0 | OR46: 0 | OS46: 0 | OT46: 0 | OU46: 0 | OV46: 0 | OW46: 0 | OX46: 0 | OY46: 0 | OZ46: 0 | PA46: 0 | PB46: 0 | PC46: 0 | PD46: 0 | PE46: 0 | PF46: 0 | PG46: 0 | PH46: 0 | PI46: 0 | PJ46: 0 | PK46: 0 | PL46: 0 | PM46: 0 | PN46: 0 | PO46: 0 | PP46: 0 | PQ46: 0 | PR46: 0 | PS46: 0 | PT46: 0 | PU46: 0 | PV46: 0 | PW46: 0 | PX46: 0 | PY46: 0 | PZ46: 0 | QA46: 0 | QB46: 0 | QC46: =IF($BI260=QC$11,$BK260,0) -> 0 | QD46: 0 | QE46: 0 | QF46: 0 | QG46: 0 | QH46: 0 | QI46: 0 | QJ46: 0 | QK46: 0 | QL46: 0 | QM46: 0 | QN46: 0 | QO46: 0 | QP46: 0 | QQ46: 0 | QR46: 0 | QS46: 0 | QT46: 0 | QU46: 0 | QV46: 0 | QW46: 0 | QX46: 0 | QY46: 0 | QZ46: 0 | RA46: 0 | RB46: 0 | RC46: 0 | RD46: 0 | RE46: 0 | RF46: 0 | RG46: 0 | RH46: 0 | RI46: 0 | RJ46: 0 | RK46: 0 | RL46: 0 | RM46: 0 | RN46: 0 | RO46: 0 | RP46: 0 | RQ46: 0 | RR46: 0 | RS46: 0 | RT46: 0 | RU46: 0 | RV46: 0 | RW46: 0 | RX46: 0 | RY46: 0 | RZ46: 0 | SA46: 0 | SB46: 0 | SC46: 0 | SD46: 0 | SE46: 0 | SF46: 0 | SG46: 0 | SH46: 0 | SI46: 0 | SJ46: 0 | SK46: 0 | SL46: 0 | SM46: 0 | SN46: 0 | SO46: =IF($BI260=SO$11,$BK260,0) -> 0 | SP46: 0 | SQ46: 0 | SR46: 0 | SS46: 0 | ST46: 0 | SU46: 0 | SV46: 0 | SW46: 0 | SX46: 0 | SY46: 0 | SZ46: 0 | TA46: 0 | TB46: 0 | TC46: 0 | TD46: 0 | TE46: 0 | TF46: 0 | TG46: 0 | TH46: 0 | TI46: 0 | TJ46: 0 | TK46: 0 | TL46: 0 | TM46: 0 | TN46: 0 | TO46: 0 | TP46: 0 | TQ46: 0 | TR46: 0 | TS46: 0 | TT46: 0 | TU46: 0 | TV46: 0 | TW46: 0 | TX46: 0 | TY46: 0 | TZ46: 0 | UA46: 0 | UB46: 0 | UC46: 0 | UD46: 0 | UE46: 0 | UF46: 0 | UG46: 0 | UH46: 0 | UI46: 0 | UJ46: 0 | UK46: 0 | UL46: 0 | UM46: 0 | UN46: 0 | UO46: 0 | UP46: for calc | UQ46: adres 1st | UR46: adres last
A47: 47 | M47: BLOWDOWN | O47: NEW | P47: =Data!T18 -> 8.721194833 | Q47: =Data!AN44 -> 8.719533165 | R47: =IF(P47="","",'Transfer New'!W28) -> 0.01905683998 | S47: =IF(P47="","",'Transfer New'!X28) -> 12519.38534 | U47: 0 | V47: 0 | X47: 13 | Y47: 0 | Z47: 0 | AJ47: 51.3 | AK47: 148.3398428 | AL47: 31.66015721 | AM47: 3.2 | AN47: 0.1 | AO47: 23.5349748 | AP47: 152.0963708 | AQ47: 3.2 | AR47: 0.1 | AS47: 0 | AT47: 0 | AU47: =IF('Transfer New'!$BK$12>MAX(AM47,AQ47),0,AL47) -> 0 | AV47: 0 | AW47: 0 | AX47: 0 | AZ47: 0 | BA47: 27.6 | BD47: 0 | BE47: 0 | BI47: =IF($BI261=BI$11,$BK261,0) -> 0 | BJ47: 0 | BK47: 0 | BL47: 0 | BM47: 0 | BN47: 0 | BO47: 0 | BP47: 0 | BQ47: 0 | BR47: 0 | BS47: 0 | BT47: 0 | BU47: 0 | BV47: 0 | BW47: 0 | BX47: 0 | BY47: 0 | BZ47: 0 | CA47: 0 | CB47: 0 | CC47: 0 | CD47: 0 | CE47: 0 | CF47: 0 | CG47: 0 | CH47: 0 | CI47: 0 | CJ47: 0 | CK47: 0 | CL47: 0 | CM47: 0 | CN47: 0 | CO47: 0 | CP47: 0 | CQ47: 0 | CR47: 0 | CS47: 0 | CT47: 0 | CU47: 0 | CV47: 0 | CW47: 0 | CX47: 0 | CY47: 0 | CZ47: 0 | DA47: 0 | DB47: 0 | DC47: 0 | DD47: 0 | DE47: 0 | DF47: 0 | DG47: 0 | DH47: 0 | DI47: 0 | DJ47: 0 | DK47: 0 | DL47: 0 | DM47: 0 | DN47: 0 | DO47: 0 | DP47: 0 | DQ47: 0 | DR47: 0 | DS47: 0 | DT47: 0 | DU47: =IF($BI261=DU$11,$BK261,0) -> 0 | DV47: 0 | DW47: 0 | DX47: 0 | DY47: 0 | DZ47: 0 | EA47: 0 | EB47: 0 | EC47: 0 | ED47: 0 | EE47: 0 | EF47: 0 | EG47: 0 | EH47: 0 | EI47: 0 | EJ47: 0 | EK47: 0 | EL47: 0 | EM47: 0 | EN47: 0 | EO47: 0 | EP47: 0 | EQ47: 0 | ER47: 0 | ES47: 0 | ET47: 0 | EU47: 0 | EV47: 0 | EW47: 0 | EX47: 0 | EY47: 0 | EZ47: 0 | FA47: 0 | FB47: 0 | FC47: 0 | FD47: 0 | FE47: 0 | FF47: 0 | FG47: 0 | FH47: 0 | FI47: 0 | FJ47: 0 | FK47: 0 | FL47: 0 | FM47: 0 | FN47: 0 | FO47: 0 | FP47: 0 | FQ47: 0 | FR47: 0 | FS47: 0 | FT47: 0 | FU47: 0 | FV47: 0 | FW47: 0 | FX47: 0 | FY47: 0 | FZ47: 0 | GA47: 0 | GB47: 0 | GC47: 0 | GD47: 0 | GE47: 0 | GF47: 0 | GG47: =IF($BI261=GG$11,$BK261,0) -> 0 | GH47: 0 | GI47: 0 | GJ47: 0 | GK47: 0 | GL47: 0 | GM47: 0 | GN47: 0 | GO47: 0 | GP47: 0 | GQ47: 0 | GR47: 0 | GS47: 0 | GT47: 0 | GU47: 0 | GV47: 0 | GW47: 0 | GX47: 0 | GY47: 0 | GZ47: 0 | HA47: 0 | HB47: 0 | HC47: 0 | HD47: 0 | HE47: 0 | HF47: 0 | HG47: 0 | HH47: 0 | HI47: 0 | HJ47: 0 | HK47: 0 | HL47: 0 | HM47: 0 | HN47: 0 | HO47: 0 | HP47: 0 | HQ47: 0 | HR47: 0 | HS47: 0 | HT47: 0 | HU47: 0 | HV47: 0 | HW47: 0 | HX47: 0 | HY47: 0 | HZ47: 0 | IA47: 0 | IB47: 0 | IC47: 0 | ID47: 0 | IE47: 0 | IF47: 0 | IG47: 0 | IH47: 0 | II47: 0 | IJ47: 0 | IK47: 0 | IL47: 0 | IM47: 0 | IN47: 0 | IO47: 0 | IP47: 0 | IQ47: 0 | IR47: 0 | IS47: =IF($BI261=IS$11,$BK261,0) -> 0 | IT47: 0 | IU47: 0 | IV47: 0 | IW47: 0 | IX47: 0 | IY47: 0 | IZ47: 0 | JA47: 0 | JB47: 0 | JC47: 0 | JD47: 0 | JE47: 0 | JF47: 0 | JG47: 0 | JH47: 0 | JI47: 0 | JJ47: 0 | JK47: 0 | JL47: 0 | JM47: 0 | JN47: 0 | JO47: 0 | JP47: 0 | JQ47: 0 | JR47: 0 | JS47: 0 | JT47: 0 | JU47: 0 | JV47: 0 | JW47: 0 | JX47: 0 | JY47: 0 | JZ47: 0 | KA47: 0 | KB47: 0 | KC47: 0 | KD47: 0 | KE47: 0 | KF47: 0 | KG47: 0 | KH47: 0 | KI47: 0 | KJ47: 0 | KK47: 0 | KL47: 0 | KM47: 0 | KN47: 0 | KO47: 0 | KP47: 0 | KQ47: 0 | KR47: 0 | KS47: 0 | KT47: 0 | KU47: 0 | KV47: 0 | KW47: 0 | KX47: 0 | KY47: 0 | KZ47: 0 | LA47: 0 | LB47: 0 | LC47: 0 | LD47: 0 | LE47: =IF($BI261=LE$11,$BK261,0) -> 0 | LF47: 0 | LG47: 0 | LH47: 0 | LI47: 0 | LJ47: 0 | LK47: 0 | LL47: 0 | LM47: 0 | LN47: 0 | LO47: 0 | LP47: 0 | LQ47: 0 | LR47: 0 | LS47: 0 | LT47: 0 | LU47: 0 | LV47: 0 | LW47: 0 | LX47: 0 | LY47: 0 | LZ47: 0 | MA47: 0 | MB47: 0 | MC47: 0 | MD47: 0 | ME47: 0 | MF47: 0 | MG47: 0 | MH47: 0 | MI47: 0 | MJ47: 0 | MK47: 0 | ML47: 0 | MM47: 0 | MN47: 0 | MO47: 0 | MP47: 0 | MQ47: 0 | MR47: 0 | MS47: 0 | MT47: 0 | MU47: 0 | MV47: 0 | MW47: 0 | MX47: 0 | MY47: 0 | MZ47: 0 | NA47: 0 | NB47: 0 | NC47: 0 | ND47: 0 | NE47: 0 | NF47: 0 | NG47: 0 | NH47: 0 | NI47: 0 | NJ47: 0 | NK47: 0 | NL47: 0 | NM47: 0 | NN47: 0 | NO47: 0 | NP47: 0 | NQ47: =IF($BI261=NQ$11,$BK261,0) -> 0 | NR47: 0 | NS47: 0 | NT47: 0 | NU47: 0 | NV47: 0 | NW47: 0 | NX47: 0 | NY47: 0 | NZ47: 0 | OA47: 0 | OB47: 0 | OC47: 0 | OD47: 0 | OE47: 0 | OF47: 0 | OG47: 0 | OH47: 0 | OI47: 0 | OJ47: 0 | OK47: 0 | OL47: 0 | OM47: 0 | ON47: 0 | OO47: 0 | OP47: 0 | OQ47: 0 | OR47: 0 | OS47: 0 | OT47: 0 | OU47: 0 | OV47: 0 | OW47: 0 | OX47: 0 | OY47: 0 | OZ47: 0 | PA47: 0 | PB47: 0 | PC47: 0 | PD47: 0 | PE47: 0 | PF47: 0 | PG47: 0 | PH47: 0 | PI47: 0 | PJ47: 0 | PK47: 0 | PL47: 0 | PM47: 0 | PN47: 0 | PO47: 0 | PP47: 0 | PQ47: 0 | PR47: 0 | PS47: 0 | PT47: 0 | PU47: 0 | PV47: 0 | PW47: 0 | PX47: 0 | PY47: 0 | PZ47: 0 | QA47: 0 | QB47: 0 | QC47: =IF($BI261=QC$11,$BK261,0) -> 0 | QD47: 0 | QE47: 0 | QF47: 0 | QG47: 0 | QH47: 0 | QI47: 0 | QJ47: 0 | QK47: 0 | QL47: 0 | QM47: 0 | QN47: 0 | QO47: 0 | QP47: 0 | QQ47: 0 | QR47: 0 | QS47: 0 | QT47: 0 | QU47: 0 | QV47: 0 | QW47: 0 | QX47: 0 | QY47: 0 | QZ47: 0 | RA47: 0 | RB47: 0 | RC47: 0 | RD47: 0 | RE47: 0 | RF47: 0 | RG47: 0 | RH47: 0 | RI47: 0 | RJ47: 0 | RK47: 0 | RL47: 0 | RM47: 0 | RN47: 0 | RO47: 0 | RP47: 0 | RQ47: 0 | RR47: 0 | RS47: 0 | RT47: 0 | RU47: 0 | RV47: 0 | RW47: 0 | RX47: 0 | RY47: 0 | RZ47: 0 | SA47: 0 | SB47: 0 | SC47: 0 | SD47: 0 | SE47: 0 | SF47: 0 | SG47: 0 | SH47: 0 | SI47: 0 | SJ47: 0 | SK47: 0 | SL47: 0 | SM47: 0 | SN47: 0 | SO47: =IF($BI261=SO$11,$BK261,0) -> 0 | SP47: 0 | SQ47: 0 | SR47: 0 | SS47: 0 | ST47: 0 | SU47: 0 | SV47: 0 | SW47: 0 | SX47: 0 | SY47: 0 | SZ47: 0 | TA47: 0 | TB47: 0 | TC47: 0 | TD47: 0 | TE47: 0 | TF47: 0 | TG47: 0 | TH47: 0 | TI47: 0 | TJ47: 0 | TK47: 0 | TL47: 0 | TM47: 0 | TN47: 0 | TO47: 0 | TP47: 0 | TQ47: 0 | TR47: 0 | TS47: 0 | TT47: 0 | TU47: 0 | TV47: 0 | TW47: 0 | TX47: 0 | TY47: 0 | TZ47: 0 | UA47: 0 | UB47: 0 | UC47: 0 | UD47: 0 | UE47: 0 | UF47: 0 | UG47: 0 | UH47: 0 | UI47: 0 | UJ47: 0 | UK47: 0 | UL47: 0 | UM47: 0 | UN47: 0 | UO47: 0 | UP47: purpose | UQ47: non zero | UR47: non zero
A48: 48 | C48: Bridge Width | G48: Main Exhaust | Q48: 0 | U48: 0 | V48: 0 | X48: 13 | Y48: 0 | Z48: 0 | AJ48: 51.2 | AK48: 147.8461724 | AL48: 32.15382758 | AM48: 3.3 | AN48: 0.1 | AO48: 23.76775159 | AP48: 155.914328 | AQ48: 3.3 | AR48: 0.1 | AS48: 0 | AT48: 0 | AU48: =IF('Transfer New'!$BK$12>MAX(AM48,AQ48),0,AL48) -> 0 | AV48: 0 | AW48: 0 | AX48: 0 | AZ48: 0 | BA48: 27.9 | BD48: 0 | BE48: 0 | BG48: max | BI48: =MAX(BI13:BI47) -> 6 | BJ48: 0 | BK48: 0 | BL48: 0 | BM48: 0 | BN48: 0 | BO48: 0 | BP48: 0 | BQ48: 0 | BR48: 0 | BS48: 18 | BT48: 0 | BU48: 0 | BV48: 0 | BW48: 0 | BX48: 0 | BY48: 0 | BZ48: 0 | CA48: 0 | CB48: 0 | CC48: 0 | CD48: 0 | CE48: 0 | CF48: 0 | CG48: 0 | CH48: 25.5 | CI48: 0 | CJ48: 0 | CK48: 0 | CL48: 0 | CM48: 0 | CN48: 0 | CO48: 0 | CP48: 0 | CQ48: 0 | CR48: 0 | CS48: 0 | CT48: 0 | CU48: 0 | CV48: 0 | CW48: 0 | CX48: 0 | CY48: 0 | CZ48: 0 | DA48: 0 | DB48: 31.5 | DC48: 0 | DD48: 0 | DE48: 0 | DF48: 0 | DG48: 0 | DH48: 0 | DI48: 0 | DJ48: 0 | DK48: 0 | DL48: 0 | DM48: 0 | DN48: 0 | DO48: 0 | DP48: 0 | DQ48: 0 | DR48: 0 | DS48: 0 | DT48: 0 | DU48: =MAX(DU13:DU47) -> 0 | DV48: 36.7 | DW48: 0 | DX48: 0 | DY48: 0 | DZ48: 0 | EA48: 0 | EB48: 0 | EC48: 0 | ED48: 0 | EE48: 0 | EF48: 0 | EG48: 0 | EH48: 0 | EI48: 0 | EJ48: 0 | EK48: 0 | EL48: 0 | EM48: 0 | EN48: 0 | EO48: 0 | EP48: 39.6 | EQ48: 0 | ER48: 0 | ES48: 0 | ET48: 0 | EU48: 0 | EV48: 0 | EW48: 0 | EX48: 0 | EY48: 0 | EZ48: 0 | FA48: 0 | FB48: 0 | FC48: 0 | FD48: 0 | FE48: 41.2 | FF48: 0 | FG48: 0 | FH48: 0 | FI48: 0 | FJ48: 0 | FK48: 0 | FL48: 0 | FM48: 0 | FN48: 0 | FO48: 42 | FP48: 0 | FQ48: 0 | FR48: 0 | FS48: 0 | FT48: 0 | FU48: 0 | FV48: 0 | FW48: 0 | FX48: 0 | FY48: 42.5 | FZ48: 0 | GA48: 0 | GB48: 0 | GC48: 0 | GD48: 0 | GE48: 0 | GF48: 0 | GG48: =MAX(GG13:GG47) -> 0 | GH48: 0 | GI48: 42.7 | GJ48: 0 | GK48: 0 | GL48: 0 | GM48: 0 | GN48: 0 | GO48: 0 | GP48: 0 | GQ48: 0 | GR48: 0 | GS48: 0 | GT48: 0 | GU48: 0 | GV48: 0 | GW48: 0 | GX48: 0 | GY48: 0 | GZ48: 0 | HA48: 0 | HB48: 0 | HC48: 42.9 | HD48: 0 | HE48: 0 | HF48: 0 | HG48: 0 | HH48: 0 | HI48: 0 | HJ48: 0 | HK48: 0 | HL48: 0 | HM48: 0 | HN48: 0 | HO48: 0 | HP48: 0 | HQ48: 0 | HR48: 0 | HS48: 0 | HT48: 0 | HU48: 0 | HV48: 0 | HW48: 0 | HX48: 0 | HY48: 0 | HZ48: 0 | IA48: 0 | IB48: 0 | IC48: 0 | ID48: 0 | IE48: 0 | IF48: 0 | IG48: 42.9 | IH48: 0 | II48: 0 | IJ48: 0 | IK48: 0 | IL48: 0 | IM48: 0 | IN48: 0 | IO48: 0 | IP48: 0 | IQ48: 0 | IR48: 0 | IS48: =MAX(IS13:IS47) -> 0 | IT48: 0 | IU48: 0 | IV48: 0 | IW48: 0 | IX48: 0 | IY48: 0 | IZ48: 0 | JA48: 0 | JB48: 0 | JC48: 0 | JD48: 0 | JE48: 0 | JF48: 0 | JG48: 0 | JH48: 0 | JI48: 0 | JJ48: 0 | JK48: 42.9 | JL48: 0 | JM48: 0 | JN48: 0 | JO48: 0 | JP48: 42.8 | JQ48: 0 | JR48: 0 | JS48: 0 | JT48: 0 | JU48: 42.7 | JV48: 0 | JW48: 0 | JX48: 0 | JY48: 0 | JZ48: 0 | KA48: 0 | KB48: 0 | KC48: 0 | KD48: 0 | KE48: 42.2 | KF48: 0 | KG48: 0 | KH48: 0 | KI48: 0 | KJ48: 0 | KK48: 0 | KL48: 0 | KM48: 0 | KN48: 0 | KO48: 40.6 | KP48: 0 | KQ48: 0 | KR48: 0 | KS48: 0 | KT48: 39.6 | KU48: 0 | KV48: 0 | KW48: 0 | KX48: 0 | KY48: 0 | KZ48: 0 | LA48: 0 | LB48: 0 | LC48: 0 | LD48: 37 | LE48: =MAX(LE13:LE47) -> 0 | LF48: 0 | LG48: 0 | LH48: 0 | LI48: 0 | LJ48: 0 | LK48: 0 | LL48: 0 | LM48: 0 | LN48: 33.3 | LO48: 0 | LP48: 0 | LQ48: 0 | LR48: 0 | LS48: 0 | LT48: 0 | LU48: 0 | LV48: 0 | LW48: 0 | LX48: 28.2 | LY48: 0 | LZ48: 0 | MA48: 0 | MB48: 0 | MC48: 24.8 | MD48: 0 | ME48: 0 | MF48: 0 | MG48: 0 | MH48: 20.5 | MI48: 0 | MJ48: 0 | MK48: 0 | ML48: 0 | MM48: 15 | MN48: 0 | MO48: 0 | MP48: 0 | MQ48: 0 | MR48: 6 | MS48: 0 | MT48: 0 | MU48: 0 | MV48: 0 | MW48: 0 | MX48: 0 | MY48: 0 | MZ48: 0 | NA48: 0 | NB48: 0 | NC48: 0 | ND48: 0 | NE48: 0 | NF48: 0 | NG48: 0 | NH48: 0 | NI48: 0 | NJ48: 0 | NK48: 0 | NL48: 0 | NM48: 0 | NN48: 0 | NO48: 0 | NP48: 0 | NQ48: =MAX(NQ13:NQ47) -> 0 | NR48: 0 | NS48: 0 | NT48: 0 | NU48: 0 | NV48: 0 | NW48: 0 | NX48: 0 | NY48: 0 | NZ48: 0 | OA48: 0 | OB48: 0 | OC48: 0 | OD48: 0 | OE48: 0 | OF48: 0 | OG48: 0 | OH48: 0 | OI48: 0 | OJ48: 0 | OK48: 0 | OL48: 0 | OM48: 0 | ON48: 0 | OO48: 0 | OP48: 0 | OQ48: 0 | OR48: 0 | OS48: 0 | OT48: 0 | OU48: 0 | OV48: 0 | OW48: 0 | OX48: 0 | OY48: 0 | OZ48: 0 | PA48: 0 | PB48: 0 | PC48: 0 | PD48: 0 | PE48: 0 | PF48: 0 | PG48: 0 | PH48: 0 | PI48: 0 | PJ48: 0 | PK48: 0 | PL48: 0 | PM48: 0 | PN48: 0 | PO48: 0 | PP48: 0 | PQ48: 0 | PR48: 0 | PS48: 0 | PT48: 0 | PU48: 0 | PV48: 0 | PW48: 0 | PX48: 0 | PY48: 0 | PZ48: 0 | QA48: 0 | QB48: 0 | QC48: =MAX(QC13:QC47) -> 0 | QD48: 0 | QE48: 0 | QF48: 0 | QG48: 0 | QH48: 0 | QI48: 0 | QJ48: 0 | QK48: 0 | QL48: 0 | QM48: 0 | QN48: 0 | QO48: 0 | QP48: 0 | QQ48: 0 | QR48: 0 | QS48: 0 | QT48: 0 | QU48: 0 | QV48: 0 | QW48: 0 | QX48: 0 | QY48: 0 | QZ48: 0 | RA48: 0 | RB48: 0 | RC48: 0 | RD48: 0 | RE48: 0 | RF48: 0 | RG48: 0 | RH48: 0 | RI48: 0 | RJ48: 0 | RK48: 0 | RL48: 0 | RM48: 0 | RN48: 0 | RO48: 0 | RP48: 0 | RQ48: 0 | RR48: 0 | RS48: 0 | RT48: 0 | RU48: 0 | RV48: 0 | RW48: 0 | RX48: 0 | RY48: 0 | RZ48: 0 | SA48: 0 | SB48: 0 | SC48: 0 | SD48: 0 | SE48: 0 | SF48: 0 | SG48: 0 | SH48: 0 | SI48: 0 | SJ48: 0 | SK48: 0 | SL48: 0 | SM48: 0 | SN48: 0 | SO48: =MAX(SO13:SO47) -> 0 | SP48: 0 | SQ48: 0 | SR48: 0 | SS48: 0 | ST48: 0 | SU48: 0 | SV48: 0 | SW48: 0 | SX48: 0 | SY48: 0 | SZ48: 0 | TA48: 0 | TB48: 0 | TC48: 0 | TD48: 0 | TE48: 0 | TF48: 0 | TG48: 0 | TH48: 0 | TI48: 0 | TJ48: 0 | TK48: 0 | TL48: 0 | TM48: 0 | TN48: 0 | TO48: 0 | TP48: 0 | TQ48: 0 | TR48: 0 | TS48: 0 | TT48: 0 | TU48: 0 | TV48: 0 | TW48: 0 | TX48: 0 | TY48: 0 | TZ48: 0 | UA48: 0 | UB48: 0 | UC48: 0 | UD48: 0 | UE48: 0 | UF48: 0 | UG48: 0 | UH48: 0 | UI48: 0 | UJ48: 0 | UK48: 0 | UL48: 0 | UM48: 0 | UN48: 0 | UO48: 0 | UP48: 0 | UQ48: =ADDRESS(48,INDEX(COLUMN(BI48:UP48),MATCH(TRUE,INDEX((BI48:UP48<>0),0),0))) -> $BI$48 | UR48: =ADDRESS(48,LOOKUP(2,1/(BI48:UO48<>0),COLUMN(BI48:UO48))) -> $MR$48
A49: 49 | C49: Tripple | D49: =IF(C4=3,ROUND(BB216,1),"") -> 2.9 | E49: mm | G49: Port Width | O49: Old | P49: =Data!U18 -> 8.721194833 | R49: ='Exhaust Old'!R44 -> 0.01905683998 | S49: ='Exhaust Old'!S44 -> 12519.38534 | U49: 0 | V49: 0 | X49: 13 | Y49: 0 | Z49: 0 | AJ49: 51.1 | AK49: 147.3597788 | AL49: 32.64022119 | AM49: 3.4 | AN49: 0.1 | AO49: 23.99979481 | AP49: 159.739078 | AQ49: 3.4 | AR49: 0.1 | AS49: 0 | AT49: 0 | AU49: =IF('Transfer New'!$BK$12>MAX(AM49,AQ49),0,AL49) -> 0 | AV49: 0 | AW49: 0 | AX49: 0 | AZ49: 0 | BA49: 28.2 | BD49: 0 | BE49: 0 | BG49: cells to next non zero | BI49: =MATCH(1,--(BI$48:$UP$48<>0),0) -> 1 | BJ49: =MATCH(1,--(BJ$48:$UP$48<>0),0) -> 10 | BK49: =MATCH(1,--(BK$48:$UP$48<>0),0) -> 9 | BL49: =MATCH(1,--(BL$48:$UP$48<>0),0) -> 8 | BM49: =MATCH(1,--(BM$48:$UP$48<>0),0) -> 7 | BN49: =MATCH(1,--(BN$48:$UP$48<>0),0) -> 6 | BO49: =MATCH(1,--(BO$48:$UP$48<>0),0) -> 5 | BP49: =MATCH(1,--(BP$48:$UP$48<>0),0) -> 4 | BQ49: =MATCH(1,--(BQ$48:$UP$48<>0),0) -> 3 | BR49: =MATCH(1,--(BR$48:$UP$48<>0),0) -> 2 | BS49: =MATCH(1,--(BS$48:$UP$48<>0),0) -> 1 | BT49: =MATCH(1,--(BT$48:$UP$48<>0),0) -> 15 | BU49: =MATCH(1,--(BU$48:$UP$48<>0),0) -> 14 | BV49: =MATCH(1,--(BV$48:$UP$48<>0),0) -> 13 | BW49: =MATCH(1,--(BW$48:$UP$48<>0),0) -> 12 | BX49: =MATCH(1,--(BX$48:$UP$48<>0),0) -> 11 | BY49: =MATCH(1,--(BY$48:$UP$48<>0),0) -> 10 | BZ49: =MATCH(1,--(BZ$48:$UP$48<>0),0) -> 9 | CA49: =MATCH(1,--(CA$48:$UP$48<>0),0) -> 8 | CB49: =MATCH(1,--(CB$48:$UP$48<>0),0) -> 7 | CC49: =MATCH(1,--(CC$48:$UP$48<>0),0) -> 6 | CD49: =MATCH(1,--(CD$48:$UP$48<>0),0) -> 5 | CE49: =MATCH(1,--(CE$48:$UP$48<>0),0) -> 4 | CF49: =MATCH(1,--(CF$48:$UP$48<>0),0) -> 3 | CG49: =MATCH(1,--(CG$48:$UP$48<>0),0) -> 2 | CH49: =MATCH(1,--(CH$48:$UP$48<>0),0) -> 1 | CI49: =MATCH(1,--(CI$48:$UP$48<>0),0) -> 20 | CJ49: =MATCH(1,--(CJ$48:$UP$48<>0),0) -> 19 | CK49: =MATCH(1,--(CK$48:$UP$48<>0),0) -> 18 | CL49: =MATCH(1,--(CL$48:$UP$48<>0),0) -> 17 | CM49: =MATCH(1,--(CM$48:$UP$48<>0),0) -> 16 | CN49: =MATCH(1,--(CN$48:$UP$48<>0),0) -> 15 | CO49: =MATCH(1,--(CO$48:$UP$48<>0),0) -> 14 | CP49: =MATCH(1,--(CP$48:$UP$48<>0),0) -> 13 | CQ49: =MATCH(1,--(CQ$48:$UP$48<>0),0) -> 12 | CR49: =MATCH(1,--(CR$48:$UP$48<>0),0) -> 11 | CS49: =MATCH(1,--(CS$48:$UP$48<>0),0) -> 10 | CT49: =MATCH(1,--(CT$48:$UP$48<>0),0) -> 9 | CU49: =MATCH(1,--(CU$48:$UP$48<>0),0) -> 8 | CV49: =MATCH(1,--(CV$48:$UP$48<>0),0) -> 7 | CW49: =MATCH(1,--(CW$48:$UP$48<>0),0) -> 6 | CX49: =MATCH(1,--(CX$48:$UP$48<>0),0) -> 5 | CY49: =MATCH(1,--(CY$48:$UP$48<>0),0) -> 4 | CZ49: =MATCH(1,--(CZ$48:$UP$48<>0),0) -> 3 | DA49: =MATCH(1,--(DA$48:$UP$48<>0),0) -> 2 | DB49: =MATCH(1,--(DB$48:$UP$48<>0),0) -> 1 | DC49: =MATCH(1,--(DC$48:$UP$48<>0),0) -> 20 | DD49: =MATCH(1,--(DD$48:$UP$48<>0),0) -> 19 | DE49: =MATCH(1,--(DE$48:$UP$48<>0),0) -> 18 | DF49: =MATCH(1,--(DF$48:$UP$48<>0),0) -> 17 | DG49: =MATCH(1,--(DG$48:$UP$48<>0),0) -> 16 | DH49: =MATCH(1,--(DH$48:$UP$48<>0),0) -> 15 | DI49: =MATCH(1,--(DI$48:$UP$48<>0),0) -> 14 | DJ49: =MATCH(1,--(DJ$48:$UP$48<>0),0) -> 13 | DK49: =MATCH(1,--(DK$48:$UP$48<>0),0) -> 12 | DL49: =MATCH(1,--(DL$48:$UP$48<>0),0) -> 11 | DM49: =MATCH(1,--(DM$48:$UP$48<>0),0) -> 10 | DN49: =MATCH(1,--(DN$48:$UP$48<>0),0) -> 9 | DO49: =MATCH(1,--(DO$48:$UP$48<>0),0) -> 8 | DP49: =MATCH(1,--(DP$48:$UP$48<>0),0) -> 7 | DQ49: =MATCH(1,--(DQ$48:$UP$48<>0),0) -> 6 | DR49: =MATCH(1,--(DR$48:$UP$48<>0),0) -> 5 | DS49: =MATCH(1,--(DS$48:$UP$48<>0),0) -> 4 | DT49: =MATCH(1,--(DT$48:$UP$48<>0),0) -> 3 | DU49: =MATCH(1,--(DU$48:$UP$48<>0),0) -> 2 | DV49: =MATCH(1,--(DV$48:$UP$48<>0),0) -> 1 | DW49: =MATCH(1,--(DW$48:$UP$48<>0),0) -> 20 | DX49: =MATCH(1,--(DX$48:$UP$48<>0),0) -> 19 | DY49: =MATCH(1,--(DY$48:$UP$48<>0),0) -> 18 | DZ49: =MATCH(1,--(DZ$48:$UP$48<>0),0) -> 17 | EA49: =MATCH(1,--(EA$48:$UP$48<>0),0) -> 16 | EB49: =MATCH(1,--(EB$48:$UP$48<>0),0) -> 15 | EC49: =MATCH(1,--(EC$48:$UP$48<>0),0) -> 14 | ED49: =MATCH(1,--(ED$48:$UP$48<>0),0) -> 13 | EE49: =MATCH(1,--(EE$48:$UP$48<>0),0) -> 12 | EF49: =MATCH(1,--(EF$48:$UP$48<>0),0) -> 11 | EG49: =MATCH(1,--(EG$48:$UP$48<>0),0) -> 10 | EH49: =MATCH(1,--(EH$48:$UP$48<>0),0) -> 9 | EI49: =MATCH(1,--(EI$48:$UP$48<>0),0) -> 8 | EJ49: =MATCH(1,--(EJ$48:$UP$48<>0),0) -> 7 | EK49: =MATCH(1,--(EK$48:$UP$48<>0),0) -> 6 | EL49: =MATCH(1,--(EL$48:$UP$48<>0),0) -> 5 | EM49: =MATCH(1,--(EM$48:$UP$48<>0),0) -> 4 | EN49: =MATCH(1,--(EN$48:$UP$48<>0),0) -> 3 | EO49: =MATCH(1,--(EO$48:$UP$48<>0),0) -> 2 | EP49: =MATCH(1,--(EP$48:$UP$48<>0),0) -> 1 | EQ49: =MATCH(1,--(EQ$48:$UP$48<>0),0) -> 15 | ER49: =MATCH(1,--(ER$48:$UP$48<>0),0) -> 14 | ES49: =MATCH(1,--(ES$48:$UP$48<>0),0) -> 13 | ET49: =MATCH(1,--(ET$48:$UP$48<>0),0) -> 12 | EU49: =MATCH(1,--(EU$48:$UP$48<>0),0) -> 11 | EV49: =MATCH(1,--(EV$48:$UP$48<>0),0) -> 10 | EW49: =MATCH(1,--(EW$48:$UP$48<>0),0) -> 9 | EX49: =MATCH(1,--(EX$48:$UP$48<>0),0) -> 8 | EY49: =MATCH(1,--(EY$48:$UP$48<>0),0) -> 7 | EZ49: =MATCH(1,--(EZ$48:$UP$48<>0),0) -> 6 | FA49: =MATCH(1,--(FA$48:$UP$48<>0),0) -> 5 | FB49: =MATCH(1,--(FB$48:$UP$48<>0),0) -> 4 | FC49: =MATCH(1,--(FC$48:$UP$48<>0),0) -> 3 | FD49: =MATCH(1,--(FD$48:$UP$48<>0),0) -> 2 | FE49: =MATCH(1,--(FE$48:$UP$48<>0),0) -> 1 | FF49: =MATCH(1,--(FF$48:$UP$48<>0),0) -> 10 | FG49: =MATCH(1,--(FG$48:$UP$48<>0),0) -> 9 | FH49: =MATCH(1,--(FH$48:$UP$48<>0),0) -> 8 | FI49: =MATCH(1,--(FI$48:$UP$48<>0),0) -> 7 | FJ49: =MATCH(1,--(FJ$48:$UP$48<>0),0) -> 6 | FK49: =MATCH(1,--(FK$48:$UP$48<>0),0) -> 5 | FL49: =MATCH(1,--(FL$48:$UP$48<>0),0) -> 4 | FM49: =MATCH(1,--(FM$48:$UP$48<>0),0) -> 3 | FN49: =MATCH(1,--(FN$48:$UP$48<>0),0) -> 2 | FO49: =MATCH(1,--(FO$48:$UP$48<>0),0) -> 1 | FP49: =MATCH(1,--(FP$48:$UP$48<>0),0) -> 10 | FQ49: =MATCH(1,--(FQ$48:$UP$48<>0),0) -> 9 | FR49: =MATCH(1,--(FR$48:$UP$48<>0),0) -> 8 | FS49: =MATCH(1,--(FS$48:$UP$48<>0),0) -> 7 | FT49: =MATCH(1,--(FT$48:$UP$48<>0),0) -> 6 | FU49: =MATCH(1,--(FU$48:$UP$48<>0),0) -> 5 | FV49: =MATCH(1,--(FV$48:$UP$48<>0),0) -> 4 | FW49: =MATCH(1,--(FW$48:$UP$48<>0),0) -> 3 | FX49: =MATCH(1,--(FX$48:$UP$48<>0),0) -> 2 | FY49: =MATCH(1,--(FY$48:$UP$48<>0),0) -> 1 | FZ49: =MATCH(1,--(FZ$48:$UP$48<>0),0) -> 10 | GA49: =MATCH(1,--(GA$48:$UP$48<>0),0) -> 9 | GB49: =MATCH(1,--(GB$48:$UP$48<>0),0) -> 8 | GC49: =MATCH(1,--(GC$48:$UP$48<>0),0) -> 7 | GD49: =MATCH(1,--(GD$48:$UP$48<>0),0) -> 6 | GE49: =MATCH(1,--(GE$48:$UP$48<>0),0) -> 5 | GF49: =MATCH(1,--(GF$48:$UP$48<>0),0) -> 4 | GG49: =MATCH(1,--(GG$48:$UP$48<>0),0) -> 3 | GH49: =MATCH(1,--(GH$48:$UP$48<>0),0) -> 2 | GI49: =MATCH(1,--(GI$48:$UP$48<>0),0) -> 1 | GJ49: =MATCH(1,--(GJ$48:$UP$48<>0),0) -> 20 | GK49: =MATCH(1,--(GK$48:$UP$48<>0),0) -> 19 | GL49: =MATCH(1,--(GL$48:$UP$48<>0),0) -> 18 | GM49: =MATCH(1,--(GM$48:$UP$48<>0),0) -> 17 | GN49: =MATCH(1,--(GN$48:$UP$48<>0),0) -> 16 | GO49: =MATCH(1,--(GO$48:$UP$48<>0),0) -> 15 | GP49: =MATCH(1,--(GP$48:$UP$48<>0),0) -> 14 | GQ49: =MATCH(1,--(GQ$48:$UP$48<>0),0) -> 13 | GR49: =MATCH(1,--(GR$48:$UP$48<>0),0) -> 12 | GS49: =MATCH(1,--(GS$48:$UP$48<>0),0) -> 11 | GT49: =MATCH(1,--(GT$48:$UP$48<>0),0) -> 10 | GU49: =MATCH(1,--(GU$48:$UP$48<>0),0) -> 9 | GV49: =MATCH(1,--(GV$48:$UP$48<>0),0) -> 8 | GW49: =MATCH(1,--(GW$48:$UP$48<>0),0) -> 7 | GX49: =MATCH(1,--(GX$48:$UP$48<>0),0) -> 6 | GY49: =MATCH(1,--(GY$48:$UP$48<>0),0) -> 5 | GZ49: =MATCH(1,--(GZ$48:$UP$48<>0),0) -> 4 | HA49: =MATCH(1,--(HA$48:$UP$48<>0),0) -> 3 | HB49: =MATCH(1,--(HB$48:$UP$48<>0),0) -> 2 | HC49: =MATCH(1,--(HC$48:$UP$48<>0),0) -> 1 | HD49: =MATCH(1,--(HD$48:$UP$48<>0),0) -> 30 | HE49: =MATCH(1,--(HE$48:$UP$48<>0),0) -> 29 | HF49: =MATCH(1,--(HF$48:$UP$48<>0),0) -> 28 | HG49: =MATCH(1,--(HG$48:$UP$48<>0),0) -> 27 | HH49: =MATCH(1,--(HH$48:$UP$48<>0),0) -> 26 | HI49: =MATCH(1,--(HI$48:$UP$48<>0),0) -> 25 | HJ49: =MATCH(1,--(HJ$48:$UP$48<>0),0) -> 24 | HK49: =MATCH(1,--(HK$48:$UP$48<>0),0) -> 23 | HL49: =MATCH(1,--(HL$48:$UP$48<>0),0) -> 22 | HM49: =MATCH(1,--(HM$48:$UP$48<>0),0) -> 21 | HN49: =MATCH(1,--(HN$48:$UP$48<>0),0) -> 20 | HO49: =MATCH(1,--(HO$48:$UP$48<>0),0) -> 19 | HP49: =MATCH(1,--(HP$48:$UP$48<>0),0) -> 18 | HQ49: =MATCH(1,--(HQ$48:$UP$48<>0),0) -> 17 | HR49: =MATCH(1,--(HR$48:$UP$48<>0),0) -> 16 | HS49: =MATCH(1,--(HS$48:$UP$48<>0),0) -> 15 | HT49: =MATCH(1,--(HT$48:$UP$48<>0),0) -> 14 | HU49: =MATCH(1,--(HU$48:$UP$48<>0),0) -> 13 | HV49: =MATCH(1,--(HV$48:$UP$48<>0),0) -> 12 | HW49: =MATCH(1,--(HW$48:$UP$48<>0),0) -> 11 | HX49: =MATCH(1,--(HX$48:$UP$48<>0),0) -> 10 | HY49: =MATCH(1,--(HY$48:$UP$48<>0),0) -> 9 | HZ49: =MATCH(1,--(HZ$48:$UP$48<>0),0) -> 8 | IA49: =MATCH(1,--(IA$48:$UP$48<>0),0) -> 7 | IB49: =MATCH(1,--(IB$48:$UP$48<>0),0) -> 6 | IC49: =MATCH(1,--(IC$48:$UP$48<>0),0) -> 5 | ID49: =MATCH(1,--(ID$48:$UP$48<>0),0) -> 4 | IE49: =MATCH(1,--(IE$48:$UP$48<>0),0) -> 3 | IF49: =MATCH(1,--(IF$48:$UP$48<>0),0) -> 2 | IG49: =MATCH(1,--(IG$48:$UP$48<>0),0) -> 1 | IH49: =MATCH(1,--(IH$48:$UP$48<>0),0) -> 30 | II49: =MATCH(1,--(II$48:$UP$48<>0),0) -> 29 | IJ49: =MATCH(1,--(IJ$48:$UP$48<>0),0) -> 28 | IK49: =MATCH(1,--(IK$48:$UP$48<>0),0) -> 27 | IL49: =MATCH(1,--(IL$48:$UP$48<>0),0) -> 26 | IM49: =MATCH(1,--(IM$48:$UP$48<>0),0) -> 25 | IN49: =MATCH(1,--(IN$48:$UP$48<>0),0) -> 24 | IO49: =MATCH(1,--(IO$48:$UP$48<>0),0) -> 23 | IP49: =MATCH(1,--(IP$48:$UP$48<>0),0) -> 22 | IQ49: =MATCH(1,--(IQ$48:$UP$48<>0),0) -> 21 | IR49: =MATCH(1,--(IR$48:$UP$48<>0),0) -> 20 | IS49: =MATCH(1,--(IS$48:$UP$48<>0),0) -> 19 | IT49: =MATCH(1,--(IT$48:$UP$48<>0),0) -> 18 | IU49: =MATCH(1,--(IU$48:$UP$48<>0),0) -> 17 | IV49: =MATCH(1,--(IV$48:$UP$48<>0),0) -> 16 | IW49: =MATCH(1,--(IW$48:$UP$48<>0),0) -> 15 | IX49: =MATCH(1,--(IX$48:$UP$48<>0),0) -> 14 | IY49: =MATCH(1,--(IY$48:$UP$48<>0),0) -> 13 | IZ49: =MATCH(1,--(IZ$48:$UP$48<>0),0) -> 12 | JA49: =MATCH(1,--(JA$48:$UP$48<>0),0) -> 11 | JB49: =MATCH(1,--(JB$48:$UP$48<>0),0) -> 10 | JC49: =MATCH(1,--(JC$48:$UP$48<>0),0) -> 9 | JD49: =MATCH(1,--(JD$48:$UP$48<>0),0) -> 8 | JE49: =MATCH(1,--(JE$48:$UP$48<>0),0) -> 7 | JF49: =MATCH(1,--(JF$48:$UP$48<>0),0) -> 6 | JG49: =MATCH(1,--(JG$48:$UP$48<>0),0) -> 5 | JH49: =MATCH(1,--(JH$48:$UP$48<>0),0) -> 4 | JI49: =MATCH(1,--(JI$48:$UP$48<>0),0) -> 3 | JJ49: =MATCH(1,--(JJ$48:$UP$48<>0),0) -> 2 | JK49: =MATCH(1,--(JK$48:$UP$48<>0),0) -> 1 | JL49: =MATCH(1,--(JL$48:$UP$48<>0),0) -> 5 | JM49: =MATCH(1,--(JM$48:$UP$48<>0),0) -> 4 | JN49: =MATCH(1,--(JN$48:$UP$48<>0),0) -> 3 | JO49: =MATCH(1,--(JO$48:$UP$48<>0),0) -> 2 | JP49: =MATCH(1,--(JP$48:$UP$48<>0),0) -> 1 | JQ49: =MATCH(1,--(JQ$48:$UP$48<>0),0) -> 5 | JR49: =MATCH(1,--(JR$48:$UP$48<>0),0) -> 4 | JS49: =MATCH(1,--(JS$48:$UP$48<>0),0) -> 3 | JT49: =MATCH(1,--(JT$48:$UP$48<>0),0) -> 2 | JU49: =MATCH(1,--(JU$48:$UP$48<>0),0) -> 1 | JV49: =MATCH(1,--(JV$48:$UP$48<>0),0) -> 10 | JW49: =MATCH(1,--(JW$48:$UP$48<>0),0) -> 9 | JX49: =MATCH(1,--(JX$48:$UP$48<>0),0) -> 8 | JY49: =MATCH(1,--(JY$48:$UP$48<>0),0) -> 7 | JZ49: =MATCH(1,--(JZ$48:$UP$48<>0),0) -> 6 | KA49: =MATCH(1,--(KA$48:$UP$48<>0),0) -> 5 | KB49: =MATCH(1,--(KB$48:$UP$48<>0),0) -> 4 | KC49: =MATCH(1,--(KC$48:$UP$48<>0),0) -> 3 | KD49: =MATCH(1,--(KD$48:$UP$48<>0),0) -> 2 | KE49: =MATCH(1,--(KE$48:$UP$48<>0),0) -> 1 | KF49: =MATCH(1,--(KF$48:$UP$48<>0),0) -> 10 | KG49: =MATCH(1,--(KG$48:$UP$48<>0),0) -> 9 | KH49: =MATCH(1,--(KH$48:$UP$48<>0),0) -> 8 | KI49: =MATCH(1,--(KI$48:$UP$48<>0),0) -> 7 | KJ49: =MATCH(1,--(KJ$48:$UP$48<>0),0) -> 6 | KK49: =MATCH(1,--(KK$48:$UP$48<>0),0) -> 5 | KL49: =MATCH(1,--(KL$48:$UP$48<>0),0) -> 4 | KM49: =MATCH(1,--(KM$48:$UP$48<>0),0) -> 3 | KN49: =MATCH(1,--(KN$48:$UP$48<>0),0) -> 2 | KO49: =MATCH(1,--(KO$48:$UP$48<>0),0) -> 1 | KP49: =MATCH(1,--(KP$48:$UP$48<>0),0) -> 5 | KQ49: =MATCH(1,--(KQ$48:$UP$48<>0),0) -> 4 | KR49: =MATCH(1,--(KR$48:$UP$48<>0),0) -> 3 | KS49: =MATCH(1,--(KS$48:$UP$48<>0),0) -> 2 | KT49: =MATCH(1,--(KT$48:$UP$48<>0),0) -> 1 | KU49: =MATCH(1,--(KU$48:$UP$48<>0),0) -> 10 | KV49: =MATCH(1,--(KV$48:$UP$48<>0),0) -> 9 | KW49: =MATCH(1,--(KW$48:$UP$48<>0),0) -> 8 | KX49: =MATCH(1,--(KX$48:$UP$48<>0),0) -> 7 | KY49: =MATCH(1,--(KY$48:$UP$48<>0),0) -> 6 | KZ49: =MATCH(1,--(KZ$48:$UP$48<>0),0) -> 5 | LA49: =MATCH(1,--(LA$48:$UP$48<>0),0) -> 4 | LB49: =MATCH(1,--(LB$48:$UP$48<>0),0) -> 3 | LC49: =MATCH(1,--(LC$48:$UP$48<>0),0) -> 2 | LD49: =MATCH(1,--(LD$48:$UP$48<>0),0) -> 1 | LE49: =MATCH(1,--(LE$48:$UP$48<>0),0) -> 10 | LF49: =MATCH(1,--(LF$48:$UP$48<>0),0) -> 9 | LG49: =MATCH(1,--(LG$48:$UP$48<>0),0) -> 8 | LH49: =MATCH(1,--(LH$48:$UP$48<>0),0) -> 7 | LI49: =MATCH(1,--(LI$48:$UP$48<>0),0) -> 6 | LJ49: =MATCH(1,--(LJ$48:$UP$48<>0),0) -> 5 | LK49: =MATCH(1,--(LK$48:$UP$48<>0),0) -> 4 | LL49: =MATCH(1,--(LL$48:$UP$48<>0),0) -> 3 | LM49: =MATCH(1,--(LM$48:$UP$48<>0),0) -> 2 | LN49: =MATCH(1,--(LN$48:$UP$48<>0),0) -> 1 | LO49: =MATCH(1,--(LO$48:$UP$48<>0),0) -> 10 | LP49: =MATCH(1,--(LP$48:$UP$48<>0),0) -> 9 | LQ49: =MATCH(1,--(LQ$48:$UP$48<>0),0) -> 8 | LR49: =MATCH(1,--(LR$48:$UP$48<>0),0) -> 7 | LS49: =MATCH(1,--(LS$48:$UP$48<>0),0) -> 6 | LT49: =MATCH(1,--(LT$48:$UP$48<>0),0) -> 5 | LU49: =MATCH(1,--(LU$48:$UP$48<>0),0) -> 4 | LV49: =MATCH(1,--(LV$48:$UP$48<>0),0) -> 3 | LW49: =MATCH(1,--(LW$48:$UP$48<>0),0) -> 2 | LX49: =MATCH(1,--(LX$48:$UP$48<>0),0) -> 1 | LY49: =MATCH(1,--(LY$48:$UP$48<>0),0) -> 5 | LZ49: =MATCH(1,--(LZ$48:$UP$48<>0),0) -> 4 | MA49: =MATCH(1,--(MA$48:$UP$48<>0),0) -> 3 | MB49: =MATCH(1,--(MB$48:$UP$48<>0),0) -> 2 | MC49: =MATCH(1,--(MC$48:$UP$48<>0),0) -> 1 | MD49: =MATCH(1,--(MD$48:$UP$48<>0),0) -> 5 | ME49: =MATCH(1,--(ME$48:$UP$48<>0),0) -> 4 | MF49: =MATCH(1,--(MF$48:$UP$48<>0),0) -> 3 | MG49: =MATCH(1,--(MG$48:$UP$48<>0),0) -> 2 | MH49: =MATCH(1,--(MH$48:$UP$48<>0),0) -> 1 | MI49: =MATCH(1,--(MI$48:$UP$48<>0),0) -> 5 | MJ49: =MATCH(1,--(MJ$48:$UP$48<>0),0) -> 4 | MK49: =MATCH(1,--(MK$48:$UP$48<>0),0) -> 3 | ML49: =MATCH(1,--(ML$48:$UP$48<>0),0) -> 2 | MM49: =MATCH(1,--(MM$48:$UP$48<>0),0) -> 1 | MN49: =MATCH(1,--(MN$48:$UP$48<>0),0) -> 5 | MO49: =MATCH(1,--(MO$48:$UP$48<>0),0) -> 4 | MP49: =MATCH(1,--(MP$48:$UP$48<>0),0) -> 3 | MQ49: =MATCH(1,--(MQ$48:$UP$48<>0),0) -> 2 | MR49: =MATCH(1,--(MR$48:$UP$48<>0),0) -> 1 | MS49: =MATCH(1,--(MS$48:$UP$48<>0),0) ->  | MT49: =MATCH(1,--(MT$48:$UP$48<>0),0) ->  | MU49: =MATCH(1,--(MU$48:$UP$48<>0),0) ->  | MV49: =MATCH(1,--(MV$48:$UP$48<>0),0) ->  | MW49: =MATCH(1,--(MW$48:$UP$48<>0),0) ->  | MX49: =MATCH(1,--(MX$48:$UP$48<>0),0) ->  | MY49: =MATCH(1,--(MY$48:$UP$48<>0),0) ->  | MZ49: =MATCH(1,--(MZ$48:$UP$48<>0),0) ->  | NA49: =MATCH(1,--(NA$48:$UP$48<>0),0) ->  | NB49: =MATCH(1,--(NB$48:$UP$48<>0),0) ->  | NC49: =MATCH(1,--(NC$48:$UP$48<>0),0) ->  | ND49: =MATCH(1,--(ND$48:$UP$48<>0),0) ->  | NE49: =MATCH(1,--(NE$48:$UP$48<>0),0) ->  | NF49: =MATCH(1,--(NF$48:$UP$48<>0),0) ->  | NG49: =MATCH(1,--(NG$48:$UP$48<>0),0) ->  | NH49: =MATCH(1,--(NH$48:$UP$48<>0),0) ->  | NI49: =MATCH(1,--(NI$48:$UP$48<>0),0) ->  | NJ49: =MATCH(1,--(NJ$48:$UP$48<>0),0) ->  | NK49: =MATCH(1,--(NK$48:$UP$48<>0),0) ->  | NL49: =MATCH(1,--(NL$48:$UP$48<>0),0) ->  | NM49: =MATCH(1,--(NM$48:$UP$48<>0),0) ->  | NN49: =MATCH(1,--(NN$48:$UP$48<>0),0) ->  | NO49: =MATCH(1,--(NO$48:$UP$48<>0),0) ->  | NP49: =MATCH(1,--(NP$48:$UP$48<>0),0) ->  | NQ49: =MATCH(1,--(NQ$48:$UP$48<>0),0) ->  | NR49: =MATCH(1,--(NR$48:$UP$48<>0),0) ->  | NS49: =MATCH(1,--(NS$48:$UP$48<>0),0) ->  | NT49: =MATCH(1,--(NT$48:$UP$48<>0),0) ->  | NU49: =MATCH(1,--(NU$48:$UP$48<>0),0) ->  | NV49: =MATCH(1,--(NV$48:$UP$48<>0),0) ->  | NW49: =MATCH(1,--(NW$48:$UP$48<>0),0) ->  | NX49: =MATCH(1,--(NX$48:$UP$48<>0),0) ->  | NY49: =MATCH(1,--(NY$48:$UP$48<>0),0) ->  | NZ49: =MATCH(1,--(NZ$48:$UP$48<>0),0) ->  | OA49: =MATCH(1,--(OA$48:$UP$48<>0),0) ->  | OB49: =MATCH(1,--(OB$48:$UP$48<>0),0) ->  | OC49: =MATCH(1,--(OC$48:$UP$48<>0),0) ->  | OD49: =MATCH(1,--(OD$48:$UP$48<>0),0) ->  | OE49: =MATCH(1,--(OE$48:$UP$48<>0),0) ->  | OF49: =MATCH(1,--(OF$48:$UP$48<>0),0) ->  | OG49: =MATCH(1,--(OG$48:$UP$48<>0),0) ->  | OH49: =MATCH(1,--(OH$48:$UP$48<>0),0) ->  | OI49: =MATCH(1,--(OI$48:$UP$48<>0),0) ->  | OJ49: =MATCH(1,--(OJ$48:$UP$48<>0),0) ->  | OK49: =MATCH(1,--(OK$48:$UP$48<>0),0) ->  | OL49: =MATCH(1,--(OL$48:$UP$48<>0),0) ->  | OM49: =MATCH(1,--(OM$48:$UP$48<>0),0) ->  | ON49: =MATCH(1,--(ON$48:$UP$48<>0),0) ->  | OO49: =MATCH(1,--(OO$48:$UP$48<>0),0) ->  | OP49: =MATCH(1,--(OP$48:$UP$48<>0),0) ->  | OQ49: =MATCH(1,--(OQ$48:$UP$48<>0),0) ->  | OR49: =MATCH(1,--(OR$48:$UP$48<>0),0) ->  | OS49: =MATCH(1,--(OS$48:$UP$48<>0),0) ->  | OT49: =MATCH(1,--(OT$48:$UP$48<>0),0) ->  | OU49: =MATCH(1,--(OU$48:$UP$48<>0),0) ->  | OV49: =MATCH(1,--(OV$48:$UP$48<>0),0) ->  | OW49: =MATCH(1,--(OW$48:$UP$48<>0),0) ->  | OX49: =MATCH(1,--(OX$48:$UP$48<>0),0) ->  | OY49: =MATCH(1,--(OY$48:$UP$48<>0),0) ->  | OZ49: =MATCH(1,--(OZ$48:$UP$48<>0),0) ->  | PA49: =MATCH(1,--(PA$48:$UP$48<>0),0) ->  | PB49: =MATCH(1,--(PB$48:$UP$48<>0),0) ->  | PC49: =MATCH(1,--(PC$48:$UP$48<>0),0) ->  | PD49: =MATCH(1,--(PD$48:$UP$48<>0),0) ->  | PE49: =MATCH(1,--(PE$48:$UP$48<>0),0) ->  | PF49: =MATCH(1,--(PF$48:$UP$48<>0),0) ->  | PG49: =MATCH(1,--(PG$48:$UP$48<>0),0) ->  | PH49: =MATCH(1,--(PH$48:$UP$48<>0),0) ->  | PI49: =MATCH(1,--(PI$48:$UP$48<>0),0) ->  | PJ49: =MATCH(1,--(PJ$48:$UP$48<>0),0) ->  | PK49: =MATCH(1,--(PK$48:$UP$48<>0),0) ->  | PL49: =MATCH(1,--(PL$48:$UP$48<>0),0) ->  | PM49: =MATCH(1,--(PM$48:$UP$48<>0),0) ->  | PN49: =MATCH(1,--(PN$48:$UP$48<>0),0) ->  | PO49: =MATCH(1,--(PO$48:$UP$48<>0),0) ->  | PP49: =MATCH(1,--(PP$48:$UP$48<>0),0) ->  | PQ49: =MATCH(1,--(PQ$48:$UP$48<>0),0) ->  | PR49: =MATCH(1,--(PR$48:$UP$48<>0),0) ->  | PS49: =MATCH(1,--(PS$48:$UP$48<>0),0) ->  | PT49: =MATCH(1,--(PT$48:$UP$48<>0),0) ->  | PU49: =MATCH(1,--(PU$48:$UP$48<>0),0) ->  | PV49: =MATCH(1,--(PV$48:$UP$48<>0),0) ->  | PW49: =MATCH(1,--(PW$48:$UP$48<>0),0) ->  | PX49: =MATCH(1,--(PX$48:$UP$48<>0),0) ->  | PY49: =MATCH(1,--(PY$48:$UP$48<>0),0) ->  | PZ49: =MATCH(1,--(PZ$48:$UP$48<>0),0) ->  | QA49: =MATCH(1,--(QA$48:$UP$48<>0),0) ->  | QB49: =MATCH(1,--(QB$48:$UP$48<>0),0) ->  | QC49: =MATCH(1,--(QC$48:$UP$48<>0),0) ->  | QD49: =MATCH(1,--(QD$48:$UP$48<>0),0) ->  | QE49: =MATCH(1,--(QE$48:$UP$48<>0),0) ->  | QF49: =MATCH(1,--(QF$48:$UP$48<>0),0) ->  | QG49: =MATCH(1,--(QG$48:$UP$48<>0),0) ->  | QH49: =MATCH(1,--(QH$48:$UP$48<>0),0) ->  | QI49: =MATCH(1,--(QI$48:$UP$48<>0),0) ->  | QJ49: =MATCH(1,--(QJ$48:$UP$48<>0),0) ->  | QK49: =MATCH(1,--(QK$48:$UP$48<>0),0) ->  | QL49: =MATCH(1,--(QL$48:$UP$48<>0),0) ->  | QM49: =MATCH(1,--(QM$48:$UP$48<>0),0) ->  | QN49: =MATCH(1,--(QN$48:$UP$48<>0),0) ->  | QO49: =MATCH(1,--(QO$48:$UP$48<>0),0) ->  | QP49: =MATCH(1,--(QP$48:$UP$48<>0),0) ->  | QQ49: =MATCH(1,--(QQ$48:$UP$48<>0),0) ->  | QR49: =MATCH(1,--(QR$48:$UP$48<>0),0) ->  | QS49: =MATCH(1,--(QS$48:$UP$48<>0),0) ->  | QT49: =MATCH(1,--(QT$48:$UP$48<>0),0) ->  | QU49: =MATCH(1,--(QU$48:$UP$48<>0),0) ->  | QV49: =MATCH(1,--(QV$48:$UP$48<>0),0) ->  | QW49: =MATCH(1,--(QW$48:$UP$48<>0),0) ->  | QX49: =MATCH(1,--(QX$48:$UP$48<>0),0) ->  | QY49: =MATCH(1,--(QY$48:$UP$48<>0),0) ->  | QZ49: =MATCH(1,--(QZ$48:$UP$48<>0),0) ->  | RA49: =MATCH(1,--(RA$48:$UP$48<>0),0) ->  | RB49: =MATCH(1,--(RB$48:$UP$48<>0),0) ->  | RC49: =MATCH(1,--(RC$48:$UP$48<>0),0) ->  | RD49: =MATCH(1,--(RD$48:$UP$48<>0),0) ->  | RE49: =MATCH(1,--(RE$48:$UP$48<>0),0) ->  | RF49: =MATCH(1,--(RF$48:$UP$48<>0),0) ->  | RG49: =MATCH(1,--(RG$48:$UP$48<>0),0) ->  | RH49: =MATCH(1,--(RH$48:$UP$48<>0),0) ->  | RI49: =MATCH(1,--(RI$48:$UP$48<>0),0) ->  | RJ49: =MATCH(1,--(RJ$48:$UP$48<>0),0) ->  | RK49: =MATCH(1,--(RK$48:$UP$48<>0),0) ->  | RL49: =MATCH(1,--(RL$48:$UP$48<>0),0) ->  | RM49: =MATCH(1,--(RM$48:$UP$48<>0),0) ->  | RN49: =MATCH(1,--(RN$48:$UP$48<>0),0) ->  | RO49: =MATCH(1,--(RO$48:$UP$48<>0),0) ->  | RP49: =MATCH(1,--(RP$48:$UP$48<>0),0) ->  | RQ49: =MATCH(1,--(RQ$48:$UP$48<>0),0) ->  | RR49: =MATCH(1,--(RR$48:$UP$48<>0),0) ->  | RS49: =MATCH(1,--(RS$48:$UP$48<>0),0) ->  | RT49: =MATCH(1,--(RT$48:$UP$48<>0),0) ->  | RU49: =MATCH(1,--(RU$48:$UP$48<>0),0) ->  | RV49: =MATCH(1,--(RV$48:$UP$48<>0),0) ->  | RW49: =MATCH(1,--(RW$48:$UP$48<>0),0) ->  | RX49: =MATCH(1,--(RX$48:$UP$48<>0),0) ->  | RY49: =MATCH(1,--(RY$48:$UP$48<>0),0) ->  | RZ49: =MATCH(1,--(RZ$48:$UP$48<>0),0) ->  | SA49: =MATCH(1,--(SA$48:$UP$48<>0),0) ->  | SB49: =MATCH(1,--(SB$48:$UP$48<>0),0) ->  | SC49: =MATCH(1,--(SC$48:$UP$48<>0),0) ->  | SD49: =MATCH(1,--(SD$48:$UP$48<>0),0) ->  | SE49: =MATCH(1,--(SE$48:$UP$48<>0),0) ->  | SF49: =MATCH(1,--(SF$48:$UP$48<>0),0) ->  | SG49: =MATCH(1,--(SG$48:$UP$48<>0),0) ->  | SH49: =MATCH(1,--(SH$48:$UP$48<>0),0) ->  | SI49: =MATCH(1,--(SI$48:$UP$48<>0),0) ->  | SJ49: =MATCH(1,--(SJ$48:$UP$48<>0),0) ->  | SK49: =MATCH(1,--(SK$48:$UP$48<>0),0) ->  | SL49: =MATCH(1,--(SL$48:$UP$48<>0),0) ->  | SM49: =MATCH(1,--(SM$48:$UP$48<>0),0) ->  | SN49: =MATCH(1,--(SN$48:$UP$48<>0),0) ->  | SO49: =MATCH(1,--(SO$48:$UP$48<>0),0) ->  | SP49: =MATCH(1,--(SP$48:$UP$48<>0),0) ->  | SQ49: =MATCH(1,--(SQ$48:$UP$48<>0),0) ->  | SR49: =MATCH(1,--(SR$48:$UP$48<>0),0) ->  | SS49: =MATCH(1,--(SS$48:$UP$48<>0),0) ->  | ST49: =MATCH(1,--(ST$48:$UP$48<>0),0) ->  | SU49: =MATCH(1,--(SU$48:$UP$48<>0),0) ->  | SV49: =MATCH(1,--(SV$48:$UP$48<>0),0) ->  | SW49: =MATCH(1,--(SW$48:$UP$48<>0),0) ->  | SX49: =MATCH(1,--(SX$48:$UP$48<>0),0) ->  | SY49: =MATCH(1,--(SY$48:$UP$48<>0),0) ->  | SZ49: =MATCH(1,--(SZ$48:$UP$48<>0),0) ->  | TA49: =MATCH(1,--(TA$48:$UP$48<>0),0) ->  | TB49: =MATCH(1,--(TB$48:$UP$48<>0),0) ->  | TC49: =MATCH(1,--(TC$48:$UP$48<>0),0) ->  | TD49: =MATCH(1,--(TD$48:$UP$48<>0),0) ->  | TE49: =MATCH(1,--(TE$48:$UP$48<>0),0) ->  | TF49: =MATCH(1,--(TF$48:$UP$48<>0),0) ->  | TG49: =MATCH(1,--(TG$48:$UP$48<>0),0) ->  | TH49: =MATCH(1,--(TH$48:$UP$48<>0),0) ->  | TI49: =MATCH(1,--(TI$48:$UP$48<>0),0) ->  | TJ49: =MATCH(1,--(TJ$48:$UP$48<>0),0) ->  | TK49: =MATCH(1,--(TK$48:$UP$48<>0),0) ->  | TL49: =MATCH(1,--(TL$48:$UP$48<>0),0) ->  | TM49: =MATCH(1,--(TM$48:$UP$48<>0),0) ->  | TN49: =MATCH(1,--(TN$48:$UP$48<>0),0) ->  | TO49: =MATCH(1,--(TO$48:$UP$48<>0),0) ->  | TP49: =MATCH(1,--(TP$48:$UP$48<>0),0) ->  | TQ49: =MATCH(1,--(TQ$48:$UP$48<>0),0) ->  | TR49: =MATCH(1,--(TR$48:$UP$48<>0),0) ->  | TS49: =MATCH(1,--(TS$48:$UP$48<>0),0) ->  | TT49: =MATCH(1,--(TT$48:$UP$48<>0),0) ->  | TU49: =MATCH(1,--(TU$48:$UP$48<>0),0) ->  | TV49: =MATCH(1,--(TV$48:$UP$48<>0),0) ->  | TW49: =MATCH(1,--(TW$48:$UP$48<>0),0) ->  | TX49: =MATCH(1,--(TX$48:$UP$48<>0),0) ->  | TY49: =MATCH(1,--(TY$48:$UP$48<>0),0) ->  | TZ49: =MATCH(1,--(TZ$48:$UP$48<>0),0) ->  | UA49: =MATCH(1,--(UA$48:$UP$48<>0),0) ->  | UB49: =MATCH(1,--(UB$48:$UP$48<>0),0) ->  | UC49: =MATCH(1,--(UC$48:$UP$48<>0),0) ->  | UD49: =MATCH(1,--(UD$48:$UP$48<>0),0) ->  | UE49: =MATCH(1,--(UE$48:$UP$48<>0),0) ->  | UF49: =MATCH(1,--(UF$48:$UP$48<>0),0) ->  | UG49: =MATCH(1,--(UG$48:$UP$48<>0),0) ->  | UH49: =MATCH(1,--(UH$48:$UP$48<>0),0) ->  | UI49: =MATCH(1,--(UI$48:$UP$48<>0),0) ->  | UJ49: =MATCH(1,--(UJ$48:$UP$48<>0),0) ->  | UK49: =MATCH(1,--(UK$48:$UP$48<>0),0) ->  | UL49: =MATCH(1,--(UL$48:$UP$48<>0),0) ->  | UM49: =MATCH(1,--(UM$48:$UP$48<>0),0) ->  | UN49: =MATCH(1,--(UN$48:$UP$48<>0),0) ->  | UO49: =MATCH(1,--(UO$48:$UP$48<>0),0) ->  | UQ49: =INDEX(COLUMN(BI48:UO48),MATCH(TRUE,INDEX((BI48:UO48<>0),0),0)) -> 61 | UR49: =LOOKUP(2,1/(BI48:UO48<>0),COLUMN(BI48:UO48)) -> 356
A50: 50 | C50: Double | D50: =IF($N$4=0,"",IF(J4=0,2*E29-2*MAX(Y15:Y49),"")) ->  | E50: mm | G50: % of Bore | M50: TRANSFER | O50: NEW | P50: =Data!T24 -> 66.15695489 | Q50: =Data!AN45 -> 66.16425189 | R50: =IF(P50="","",'Transfer New'!W31) -> -0.01102861269 | S50: =IF(P50="","",'Transfer New'!X31) -> 12515.61955 | AJ50: 51 | AK50: 146.8803393 | AL50: 33.11966066 | AM50: 3.5 | AN50: 0.1 | AO50: 24.23109729 | AP50: 163.5708535 | AQ50: 3.5 | AR50: 0.1 | AS50: 0 | AT50: 0 | AU50: =IF('Transfer New'!$BK$12>MAX(AM50,AQ50),0,AL50) -> 0 | AV50: 0 | AW50: 0 | AX50: 0 | AZ50: 0 | BA50: 28.5 | BD50: 0 | BE50: 0 | BG50: zero's | BI50: =IF(BI48=0,1,0) -> 0 | BJ50: 1 | BK50: 1 | BL50: 1 | BM50: 1 | BN50: 1 | BO50: 1 | BP50: 1 | BQ50: 1 | BR50: 1 | BS50: 0 | BT50: 1 | BU50: 1 | BV50: 1 | BW50: 1 | BX50: 1 | BY50: 1 | BZ50: 1 | CA50: 1 | CB50: 1 | CC50: 1 | CD50: 1 | CE50: 1 | CF50: 1 | CG50: 1 | CH50: 0 | CI50: 1 | CJ50: 1 | CK50: 1 | CL50: 1 | CM50: 1 | CN50: 1 | CO50: 1 | CP50: 1 | CQ50: 1 | CR50: 1 | CS50: 1 | CT50: 1 | CU50: 1 | CV50: 1 | CW50: 1 | CX50: 1 | CY50: 1 | CZ50: 1 | DA50: 1 | DB50: 0 | DC50: 1 | DD50: 1 | DE50: 1 | DF50: 1 | DG50: 1 | DH50: 1 | DI50: 1 | DJ50: 1 | DK50: 1 | DL50: 1 | DM50: 1 | DN50: 1 | DO50: 1 | DP50: 1 | DQ50: 1 | DR50: 1 | DS50: 1 | DT50: 1 | DU50: =IF(DU48=0,1,0) -> 1 | DV50: 0 | DW50: 1 | DX50: 1 | DY50: 1 | DZ50: 1 | EA50: 1 | EB50: 1 | EC50: 1 | ED50: 1 | EE50: 1 | EF50: 1 | EG50: 1 | EH50: 1 | EI50: 1 | EJ50: 1 | EK50: 1 | EL50: 1 | EM50: 1 | EN50: 1 | EO50: 1 | EP50: 0 | EQ50: 1 | ER50: 1 | ES50: 1 | ET50: 1 | EU50: 1 | EV50: 1 | EW50: 1 | EX50: 1 | EY50: 1 | EZ50: 1 | FA50: 1 | FB50: 1 | FC50: 1 | FD50: 1 | FE50: 0 | FF50: 1 | FG50: 1 | FH50: 1 | FI50: 1 | FJ50: 1 | FK50: 1 | FL50: 1 | FM50: 1 | FN50: 1 | FO50: 0 | FP50: 1 | FQ50: 1 | FR50: 1 | FS50: 1 | FT50: 1 | FU50: 1 | FV50: 1 | FW50: 1 | FX50: 1 | FY50: 0 | FZ50: 1 | GA50: 1 | GB50: 1 | GC50: 1 | GD50: 1 | GE50: 1 | GF50: 1 | GG50: =IF(GG48=0,1,0) -> 1 | GH50: 1 | GI50: 0 | GJ50: 1 | GK50: 1 | GL50: 1 | GM50: 1 | GN50: 1 | GO50: 1 | GP50: 1 | GQ50: 1 | GR50: 1 | GS50: 1 | GT50: 1 | GU50: 1 | GV50: 1 | GW50: 1 | GX50: 1 | GY50: 1 | GZ50: 1 | HA50: 1 | HB50: 1 | HC50: 0 | HD50: 1 | HE50: 1 | HF50: 1 | HG50: 1 | HH50: 1 | HI50: 1 | HJ50: 1 | HK50: 1 | HL50: 1 | HM50: 1 | HN50: 1 | HO50: 1 | HP50: 1 | HQ50: 1 | HR50: 1 | HS50: 1 | HT50: 1 | HU50: 1 | HV50: 1 | HW50: 1 | HX50: 1 | HY50: 1 | HZ50: 1 | IA50: 1 | IB50: 1 | IC50: 1 | ID50: 1 | IE50: 1 | IF50: 1 | IG50: 0 | IH50: 1 | II50: 1 | IJ50: 1 | IK50: 1 | IL50: 1 | IM50: 1 | IN50: 1 | IO50: 1 | IP50: 1 | IQ50: 1 | IR50: 1 | IS50: =IF(IS48=0,1,0) -> 1 | IT50: 1 | IU50: 1 | IV50: 1 | IW50: 1 | IX50: 1 | IY50: 1 | IZ50: 1 | JA50: 1 | JB50: 1 | JC50: 1 | JD50: 1 | JE50: 1 | JF50: 1 | JG50: 1 | JH50: 1 | JI50: 1 | JJ50: 1 | JK50: 0 | JL50: 1 | JM50: 1 | JN50: 1 | JO50: 1 | JP50: 0 | JQ50: 1 | JR50: 1 | JS50: 1 | JT50: 1 | JU50: 0 | JV50: 1 | JW50: 1 | JX50: 1 | JY50: 1 | JZ50: 1 | KA50: 1 | KB50: 1 | KC50: 1 | KD50: 1 | KE50: 0 | KF50: 1 | KG50: 1 | KH50: 1 | KI50: 1 | KJ50: 1 | KK50: 1 | KL50: 1 | KM50: 1 | KN50: 1 | KO50: 0 | KP50: 1 | KQ50: 1 | KR50: 1 | KS50: 1 | KT50: 0 | KU50: 1 | KV50: 1 | KW50: 1 | KX50: 1 | KY50: 1 | KZ50: 1 | LA50: 1 | LB50: 1 | LC50: 1 | LD50: 0 | LE50: =IF(LE48=0,1,0) -> 1 | LF50: 1 | LG50: 1 | LH50: 1 | LI50: 1 | LJ50: 1 | LK50: 1 | LL50: 1 | LM50: 1 | LN50: 0 | LO50: 1 | LP50: 1 | LQ50: 1 | LR50: 1 | LS50: 1 | LT50: 1 | LU50: 1 | LV50: 1 | LW50: 1 | LX50: 0 | LY50: 1 | LZ50: 1 | MA50: 1 | MB50: 1 | MC50: 0 | MD50: 1 | ME50: 1 | MF50: 1 | MG50: 1 | MH50: 0 | MI50: 1 | MJ50: 1 | MK50: 1 | ML50: 1 | MM50: 0 | MN50: 1 | MO50: 1 | MP50: 1 | MQ50: 1 | MR50: 0 | MS50: 1 | MT50: 1 | MU50: 1 | MV50: 1 | MW50: 1 | MX50: 1 | MY50: 1 | MZ50: 1 | NA50: 1 | NB50: 1 | NC50: 1 | ND50: 1 | NE50: 1 | NF50: 1 | NG50: 1 | NH50: 1 | NI50: 1 | NJ50: 1 | NK50: 1 | NL50: 1 | NM50: 1 | NN50: 1 | NO50: 1 | NP50: 1 | NQ50: =IF(NQ48=0,1,0) -> 1 | NR50: 1 | NS50: 1 | NT50: 1 | NU50: 1 | NV50: 1 | NW50: 1 | NX50: 1 | NY50: 1 | NZ50: 1 | OA50: 1 | OB50: 1 | OC50: 1 | OD50: 1 | OE50: 1 | OF50: 1 | OG50: 1 | OH50: 1 | OI50: 1 | OJ50: 1 | OK50: 1 | OL50: 1 | OM50: 1 | ON50: 1 | OO50: 1 | OP50: 1 | OQ50: 1 | OR50: 1 | OS50: 1 | OT50: 1 | OU50: 1 | OV50: 1 | OW50: 1 | OX50: 1 | OY50: 1 | OZ50: 1 | PA50: 1 | PB50: 1 | PC50: 1 | PD50: 1 | PE50: 1 | PF50: 1 | PG50: 1 | PH50: 1 | PI50: 1 | PJ50: 1 | PK50: 1 | PL50: 1 | PM50: 1 | PN50: 1 | PO50: 1 | PP50: 1 | PQ50: 1 | PR50: 1 | PS50: 1 | PT50: 1 | PU50: 1 | PV50: 1 | PW50: 1 | PX50: 1 | PY50: 1 | PZ50: 1 | QA50: 1 | QB50: 1 | QC50: =IF(QC48=0,1,0) -> 1 | QD50: 1 | QE50: 1 | QF50: 1 | QG50: 1 | QH50: 1 | QI50: 1 | QJ50: 1 | QK50: 1 | QL50: 1 | QM50: 1 | QN50: 1 | QO50: 1 | QP50: 1 | QQ50: 1 | QR50: 1 | QS50: 1 | QT50: 1 | QU50: 1 | QV50: 1 | QW50: 1 | QX50: 1 | QY50: 1 | QZ50: 1 | RA50: 1 | RB50: 1 | RC50: 1 | RD50: 1 | RE50: 1 | RF50: 1 | RG50: 1 | RH50: 1 | RI50: 1 | RJ50: 1 | RK50: 1 | RL50: 1 | RM50: 1 | RN50: 1 | RO50: 1 | RP50: 1 | RQ50: 1 | RR50: 1 | RS50: 1 | RT50: 1 | RU50: 1 | RV50: 1 | RW50: 1 | RX50: 1 | RY50: 1 | RZ50: 1 | SA50: 1 | SB50: 1 | SC50: 1 | SD50: 1 | SE50: 1 | SF50: 1 | SG50: 1 | SH50: 1 | SI50: 1 | SJ50: 1 | SK50: 1 | SL50: 1 | SM50: 1 | SN50: 1 | SO50: =IF(SO48=0,1,0) -> 1 | SP50: 1 | SQ50: 1 | SR50: 1 | SS50: 1 | ST50: 1 | SU50: 1 | SV50: 1 | SW50: 1 | SX50: 1 | SY50: 1 | SZ50: 1 | TA50: 1 | TB50: 1 | TC50: 1 | TD50: 1 | TE50: 1 | TF50: 1 | TG50: 1 | TH50: 1 | TI50: 1 | TJ50: 1 | TK50: 1 | TL50: 1 | TM50: 1 | TN50: 1 | TO50: 1 | TP50: 1 | TQ50: 1 | TR50: 1 | TS50: 1 | TT50: 1 | TU50: 1 | TV50: 1 | TW50: 1 | TX50: 1 | TY50: 1 | TZ50: 1 | UA50: 1 | UB50: 1 | UC50: 1 | UD50: 1 | UE50: 1 | UF50: 1 | UG50: 1 | UH50: 1 | UI50: 1 | UJ50: 1 | UK50: 1 | UL50: 1 | UM50: 1 | UN50: 1 | UO50: 1
A51: 51 | C51: =IF(J4=0,"",'Transfer New'!AB50) -> Main - A | D51: =IF(J4=0,"",IF('Transfer New'!$AB$51>500,"",'Transfer New'!$AB$51)) -> 3.15 | E51: mm | G51: =IF($J$4=0,"",(MAX(BI55:UO55)/E11)*100) -> 71.34744477 | Q51: 0 | U51: 0 | V51: 0 | X51: 0 | Y51: 0 | Z51: 0 | AJ51: 50.9 | AK51: 146.4075543 | AL51: 33.59244573 | AM51: 3.6 | AN51: 0.1 | AO51: 24.46165191 | AP51: 167.4098446 | AQ51: 3.6 | AR51: 0.1 | AS51: 0 | AT51: 0 | AU51: =IF('Transfer New'!$BK$12>MAX(AM51,AQ51),0,AL51) -> 0 | AV51: 0 | AW51: 0 | AX51: 0 | AZ51: 0 | BA51: 28.8 | BD51: 0 | BE51: 0 | BG51: reverse sequences | BI51: =IF(OR(AND(BH50=1,BI50=1),AND(BI50=1,BJ50=1),AND(BH49=1,BI49=2,BJ49=1)),BI50+BH51,0) -> 0 | BJ51: 1 | BK51: 2 | BL51: 3 | BM51: 4 | BN51: 5 | BO51: 6 | BP51: 7 | BQ51: 8 | BR51: 9 | BS51: 0 | BT51: 1 | BU51: 2 | BV51: 3 | BW51: 4 | BX51: 5 | BY51: 6 | BZ51: 7 | CA51: 8 | CB51: 9 | CC51: 10 | CD51: 11 | CE51: 12 | CF51: 13 | CG51: 14 | CH51: 0 | CI51: 1 | CJ51: 2 | CK51: 3 | CL51: 4 | CM51: 5 | CN51: 6 | CO51: 7 | CP51: 8 | CQ51: 9 | CR51: 10 | CS51: 11 | CT51: 12 | CU51: 13 | CV51: 14 | CW51: 15 | CX51: 16 | CY51: 17 | CZ51: 18 | DA51: 19 | DB51: 0 | DC51: 1 | DD51: 2 | DE51: 3 | DF51: 4 | DG51: 5 | DH51: 6 | DI51: 7 | DJ51: 8 | DK51: 9 | DL51: 10 | DM51: 11 | DN51: 12 | DO51: 13 | DP51: 14 | DQ51: 15 | DR51: 16 | DS51: 17 | DT51: 18 | DU51: =IF(OR(AND(DT50=1,DU50=1),AND(DU50=1,DV50=1),AND(DT49=1,DU49=2,DV49=1)),DU50+DT51,0) -> 19 | DV51: 0 | DW51: 1 | DX51: 2 | DY51: 3 | DZ51: 4 | EA51: 5 | EB51: 6 | EC51: 7 | ED51: 8 | EE51: 9 | EF51: 10 | EG51: 11 | EH51: 12 | EI51: 13 | EJ51: 14 | EK51: 15 | EL51: 16 | EM51: 17 | EN51: 18 | EO51: 19 | EP51: 0 | EQ51: 1 | ER51: 2 | ES51: 3 | ET51: 4 | EU51: 5 | EV51: 6 | EW51: 7 | EX51: 8 | EY51: 9 | EZ51: 10 | FA51: 11 | FB51: 12 | FC51: 13 | FD51: 14 | FE51: 0 | FF51: 1 | FG51: 2 | FH51: 3 | FI51: 4 | FJ51: 5 | FK51: 6 | FL51: 7 | FM51: 8 | FN51: 9 | FO51: 0 | FP51: 1 | FQ51: 2 | FR51: 3 | FS51: 4 | FT51: 5 | FU51: 6 | FV51: 7 | FW51: 8 | FX51: 9 | FY51: 0 | FZ51: 1 | GA51: 2 | GB51: 3 | GC51: 4 | GD51: 5 | GE51: 6 | GF51: 7 | GG51: =IF(OR(AND(GF50=1,GG50=1),AND(GG50=1,GH50=1),AND(GF49=1,GG49=2,GH49=1)),GG50+GF51,0) -> 8 | GH51: 9 | GI51: 0 | GJ51: 1 | GK51: 2 | GL51: 3 | GM51: 4 | GN51: 5 | GO51: 6 | GP51: 7 | GQ51: 8 | GR51: 9 | GS51: 10 | GT51: 11 | GU51: 12 | GV51: 13 | GW51: 14 | GX51: 15 | GY51: 16 | GZ51: 17 | HA51: 18 | HB51: 19 | HC51: 0 | HD51: 1 | HE51: 2 | HF51: 3 | HG51: 4 | HH51: 5 | HI51: 6 | HJ51: 7 | HK51: 8 | HL51: 9 | HM51: 10 | HN51: 11 | HO51: 12 | HP51: 13 | HQ51: 14 | HR51: 15 | HS51: 16 | HT51: 17 | HU51: 18 | HV51: 19 | HW51: 20 | HX51: 21 | HY51: 22 | HZ51: 23 | IA51: 24 | IB51: 25 | IC51: 26 | ID51: 27 | IE51: 28 | IF51: 29 | IG51: 0 | IH51: 1 | II51: 2 | IJ51: 3 | IK51: 4 | IL51: 5 | IM51: 6 | IN51: 7 | IO51: 8 | IP51: 9 | IQ51: 10 | IR51: 11 | IS51: =IF(OR(AND(IR50=1,IS50=1),AND(IS50=1,IT50=1),AND(IR49=1,IS49=2,IT49=1)),IS50+IR51,0) -> 12 | IT51: 13 | IU51: 14 | IV51: 15 | IW51: 16 | IX51: 17 | IY51: 18 | IZ51: 19 | JA51: 20 | JB51: 21 | JC51: 22 | JD51: 23 | JE51: 24 | JF51: 25 | JG51: 26 | JH51: 27 | JI51: 28 | JJ51: 29 | JK51: 0 | JL51: 1 | JM51: 2 | JN51: 3 | JO51: 4 | JP51: 0 | JQ51: 1 | JR51: 2 | JS51: 3 | JT51: 4 | JU51: 0 | JV51: 1 | JW51: 2 | JX51: 3 | JY51: 4 | JZ51: 5 | KA51: 6 | KB51: 7 | KC51: 8 | KD51: 9 | KE51: 0 | KF51: 1 | KG51: 2 | KH51: 3 | KI51: 4 | KJ51: 5 | KK51: 6 | KL51: 7 | KM51: 8 | KN51: 9 | KO51: 0 | KP51: 1 | KQ51: 2 | KR51: 3 | KS51: 4 | KT51: 0 | KU51: 1 | KV51: 2 | KW51: 3 | KX51: 4 | KY51: 5 | KZ51: 6 | LA51: 7 | LB51: 8 | LC51: 9 | LD51: 0 | LE51: =IF(OR(AND(LD50=1,LE50=1),AND(LE50=1,LF50=1),AND(LD49=1,LE49=2,LF49=1)),LE50+LD51,0) -> 1 | LF51: 2 | LG51: 3 | LH51: 4 | LI51: 5 | LJ51: 6 | LK51: 7 | LL51: 8 | LM51: 9 | LN51: 0 | LO51: 1 | LP51: 2 | LQ51: 3 | LR51: 4 | LS51: 5 | LT51: 6 | LU51: 7 | LV51: 8 | LW51: 9 | LX51: 0 | LY51: 1 | LZ51: 2 | MA51: 3 | MB51: 4 | MC51: 0 | MD51: 1 | ME51: 2 | MF51: 3 | MG51: 4 | MH51: 0 | MI51: 1 | MJ51: 2 | MK51: 3 | ML51: 4 | MM51: 0 | MN51: 1 | MO51: 2 | MP51: 3 | MQ51: 4 | NQ51: =IF(OR(AND(NP50=1,NQ50=1),AND(NQ50=1,NR50=1),AND(NP49=1,NQ49=2,NR49=1)),NQ50+NP51,0) ->  | QC51: =IF(OR(AND(QB50=1,QC50=1),AND(QC50=1,QD50=1),AND(QB49=1,QC49=2,QD49=1)),QC50+QB51,0) ->  | SO51: =IF(OR(AND(SN50=1,SO50=1),AND(SO50=1,SP50=1),AND(SN49=1,SO49=2,SP49=1)),SO50+SN51,0) -> 
A52: 52 | C52: =IF(N4=0,"",'Transfer New'!AC50) -> Aux - A | D52: =IF(N4=0,"",IF('Transfer New'!$AC$51>500,"",'Transfer New'!AC51)) -> 6.166666667 | E52: mm | O52: Old | P52: =Data!U24 -> 66.15695489 | R52: ='Exhaust Old'!R47 -> -0.01102861269 | S52: ='Exhaust Old'!S47 -> 12515.61955 | U52: =IF(ABS($U$51)>0,"Offset used","") ->  | V52: =IF(ABS($V$51)>0,"Offset used","") ->  | W52: Offset | X52: =IF(ABS($X$51)>0,"Offset used","") ->  | Y52: =IF(ABS($Y$51)>0,"Offset used","") ->  | Z52: =IF(ABS(Z51)>0,"Offset used","") ->  | AJ52: 50.8 | AK52: 145.9411445 | AL52: 34.05885547 | AM52: 3.7 | AN52: 0.1 | AO52: 24.69145153 | AP52: 171.2562032 | AQ52: 3.7 | AR52: 0.1 | AS52: 0 | AT52: 0 | AU52: =IF('Transfer New'!$BK$12>MAX(AM52,AQ52),0,AL52) -> 0 | AV52: 0 | AW52: 0 | AX52: 0 | AZ52: 0 | BA52: 29.1 | BD52: 0 | BE52: 0 | BG52: non-zero -1 | BI52: =IF(BI49>1,BI49-1,"") ->  | BJ52: 9 | BK52: 8 | BL52: 7 | BM52: 6 | BN52: 5 | BO52: 4 | BP52: 3 | BQ52: 2 | BR52: 1 | BT52: 14 | BU52: 13 | BV52: 12 | BW52: 11 | BX52: 10 | BY52: 9 | BZ52: 8 | CA52: 7 | CB52: 6 | CC52: 5 | CD52: 4 | CE52: 3 | CF52: 2 | CG52: 1 | CI52: 19 | CJ52: 18 | CK52: 17 | CL52: 16 | CM52: 15 | CN52: 14 | CO52: 13 | CP52: 12 | CQ52: 11 | CR52: 10 | CS52: 9 | CT52: 8 | CU52: 7 | CV52: 6 | CW52: 5 | CX52: 4 | CY52: 3 | CZ52: 2 | DA52: 1 | DC52: 19 | DD52: 18 | DE52: 17 | DF52: 16 | DG52: 15 | DH52: 14 | DI52: 13 | DJ52: 12 | DK52: 11 | DL52: 10 | DM52: 9 | DN52: 8 | DO52: 7 | DP52: 6 | DQ52: 5 | DR52: 4 | DS52: 3 | DT52: 2 | DU52: =IF(DU49>1,DU49-1,"") -> 1 | DW52: 19 | DX52: 18 | DY52: 17 | DZ52: 16 | EA52: 15 | EB52: 14 | EC52: 13 | ED52: 12 | EE52: 11 | EF52: 10 | EG52: 9 | EH52: 8 | EI52: 7 | EJ52: 6 | EK52: 5 | EL52: 4 | EM52: 3 | EN52: 2 | EO52: 1 | EQ52: 14 | ER52: 13 | ES52: 12 | ET52: 11 | EU52: 10 | EV52: 9 | EW52: 8 | EX52: 7 | EY52: 6 | EZ52: 5 | FA52: 4 | FB52: 3 | FC52: 2 | FD52: 1 | FF52: 9 | FG52: 8 | FH52: 7 | FI52: 6 | FJ52: 5 | FK52: 4 | FL52: 3 | FM52: 2 | FN52: 1 | FP52: 9 | FQ52: 8 | FR52: 7 | FS52: 6 | FT52: 5 | FU52: 4 | FV52: 3 | FW52: 2 | FX52: 1 | FZ52: 9 | GA52: 8 | GB52: 7 | GC52: 6 | GD52: 5 | GE52: 4 | GF52: 3 | GG52: =IF(GG49>1,GG49-1,"") -> 2 | GH52: 1 | GJ52: 19 | GK52: 18 | GL52: 17 | GM52: 16 | GN52: 15 | GO52: 14 | GP52: 13 | GQ52: 12 | GR52: 11 | GS52: 10 | GT52: 9 | GU52: 8 | GV52: 7 | GW52: 6 | GX52: 5 | GY52: 4 | GZ52: 3 | HA52: 2 | HB52: 1 | HD52: 29 | HE52: 28 | HF52: 27 | HG52: 26 | HH52: 25 | HI52: 24 | HJ52: 23 | HK52: 22 | HL52: 21 | HM52: 20 | HN52: 19 | HO52: 18 | HP52: 17 | HQ52: 16 | HR52: 15 | HS52: 14 | HT52: 13 | HU52: 12 | HV52: 11 | HW52: 10 | HX52: 9 | HY52: 8 | HZ52: 7 | IA52: 6 | IB52: 5 | IC52: 4 | ID52: 3 | IE52: 2 | IF52: 1 | IH52: 29 | II52: 28 | IJ52: 27 | IK52: 26 | IL52: 25 | IM52: 24 | IN52: 23 | IO52: 22 | IP52: 21 | IQ52: 20 | IR52: 19 | IS52: =IF(IS49>1,IS49-1,"") -> 18 | IT52: 17 | IU52: 16 | IV52: 15 | IW52: 14 | IX52: 13 | IY52: 12 | IZ52: 11 | JA52: 10 | JB52: 9 | JC52: 8 | JD52: 7 | JE52: 6 | JF52: 5 | JG52: 4 | JH52: 3 | JI52: 2 | JJ52: 1 | JL52: 4 | JM52: 3 | JN52: 2 | JO52: 1 | JQ52: 4 | JR52: 3 | JS52: 2 | JT52: 1 | JV52: 9 | JW52: 8 | JX52: 7 | JY52: 6 | JZ52: 5 | KA52: 4 | KB52: 3 | KC52: 2 | KD52: 1 | KF52: 9 | KG52: 8 | KH52: 7 | KI52: 6 | KJ52: 5 | KK52: 4 | KL52: 3 | KM52: 2 | KN52: 1 | KP52: 4 | KQ52: 3 | KR52: 2 | KS52: 1 | KU52: 9 | KV52: 8 | KW52: 7 | KX52: 6 | KY52: 5 | KZ52: 4 | LA52: 3 | LB52: 2 | LC52: 1 | LE52: =IF(LE49>1,LE49-1,"") -> 9 | LF52: 8 | LG52: 7 | LH52: 6 | LI52: 5 | LJ52: 4 | LK52: 3 | LL52: 2 | LM52: 1 | LO52: 9 | LP52: 8 | LQ52: 7 | LR52: 6 | LS52: 5 | LT52: 4 | LU52: 3 | LV52: 2 | LW52: 1 | LY52: 4 | LZ52: 3 | MA52: 2 | MB52: 1 | MD52: 4 | ME52: 3 | MF52: 2 | MG52: 1 | MI52: 4 | MJ52: 3 | MK52: 2 | ML52: 1 | MN52: 4 | MO52: 3 | MP52: 2 | MQ52: 1 | NQ52: =IF(NQ49>1,NQ49-1,"") ->  | QC52: =IF(QC49>1,QC49-1,"") ->  | SO52: =IF(SO49>1,SO49-1,"") -> 
A53: 53 | AJ53: 50.7 | AK53: 145.4808497 | AL53: 34.51915026 | AM53: 3.8 | AN53: 0.1 | AO53: 24.92048908 | AP53: 175.1100472 | AQ53: 3.8 | AR53: 0.1 | AS53: 0 | AT53: 0 | AU53: =IF('Transfer New'!$BK$12>MAX(AM53,AQ53),0,AL53) -> 0 | AV53: 0 | AW53: 0 | AX53: 0 | AZ53: 0 | BA53: 29.4 | BD53: 0 | BE53: 0 | BG53: averages | BI53: =IF(OR(BI1<$UQ$49,BI1>$UR$49),0,IF(AND(BI49>1,BI52<>0),(INDIRECT(ADDRESS($A$48,BI1+BI52))*BI51+INDIRECT(ADDRESS($A$48,BI1-BI51))*BI52)/(BI52+BI51),0)) -> 0 | BJ53: =IF(OR(BJ1<$UQ$49,BJ1>$UR$49),0,IF(AND(BJ49>1,BJ52<>0),(INDIRECT(ADDRESS($A$48,BJ1+BJ52))*BJ51+INDIRECT(ADDRESS($A$48,BJ1-BJ51))*BJ52)/(BJ52+BJ51),0)) -> 7.2 | BK53: 8.4 | BL53: 9.6 | BM53: 10.8 | BN53: 12 | BO53: 13.2 | BP53: 14.4 | BQ53: 15.6 | BR53: 16.8 | BS53: 0 | BT53: 18.5 | BU53: 19 | BV53: 19.5 | BW53: 20 | BX53: 20.5 | BY53: 21 | BZ53: 21.5 | CA53: 22 | CB53: 22.5 | CC53: 23 | CD53: 23.5 | CE53: 24 | CF53: 24.5 | CG53: 25 | CH53: 0 | CI53: 25.8 | CJ53: 26.1 | CK53: 26.4 | CL53: 26.7 | CM53: 27 | CN53: 27.3 | CO53: 27.6 | CP53: 27.9 | CQ53: 28.2 | CR53: 28.5 | CS53: 28.8 | CT53: 29.1 | CU53: 29.4 | CV53: 29.7 | CW53: 30 | CX53: 30.3 | CY53: 30.6 | CZ53: 30.9 | DA53: 31.2 | DB53: 0 | DC53: 31.76 | DD53: 32.02 | DE53: 32.28 | DF53: 32.54 | DG53: 32.8 | DH53: 33.06 | DI53: 33.32 | DJ53: 33.58 | DK53: 33.84 | DL53: 34.1 | DM53: 34.36 | DN53: 34.62 | DO53: 34.88 | DP53: 35.14 | DQ53: 35.4 | DR53: 35.66 | DS53: 35.92 | DT53: 36.18 | DU53: =IF(OR(DU1<$UQ$49,DU1>$UR$49),0,IF(AND(DU49>1,DU52<>0),(INDIRECT(ADDRESS($A$48,DU1+DU52))*DU51+INDIRECT(ADDRESS($A$48,DU1-DU51))*DU52)/(DU52+DU51),0)) -> 36.44 | DV53: 0 | DW53: 36.845 | DX53: 36.99 | DY53: 37.135 | DZ53: 37.28 | EA53: 37.425 | EB53: 37.57 | EC53: 37.715 | ED53: 37.86 | EE53: 38.005 | EF53: 38.15 | EG53: 38.295 | EH53: 38.44 | EI53: 38.585 | EJ53: 38.73 | EK53: 38.875 | EL53: 39.02 | EM53: 39.165 | EN53: 39.31 | EO53: 39.455 | EP53: 0 | EQ53: 39.70666667 | ER53: 39.81333333 | ES53: 39.92 | ET53: 40.02666667 | EU53: 40.13333333 | EV53: 40.24 | EW53: 40.34666667 | EX53: 40.45333333 | EY53: 40.56 | EZ53: 40.66666667 | FA53: 40.77333333 | FB53: 40.88 | FC53: 40.98666667 | FD53: 41.09333333 | FE53: 0 | FF53: 41.28 | FG53: 41.36 | FH53: 41.44 | FI53: 41.52 | FJ53: 41.6 | FK53: 41.68 | FL53: 41.76 | FM53: 41.84 | FN53: 41.92 | FO53: 0 | FP53: 42.05 | FQ53: 42.1 | FR53: 42.15 | FS53: 42.2 | FT53: 42.25 | FU53: 42.3 | FV53: 42.35 | FW53: 42.4 | FX53: 42.45 | FY53: 0 | FZ53: 42.52 | GA53: 42.54 | GB53: 42.56 | GC53: 42.58 | GD53: 42.6 | GE53: 42.62 | GF53: 42.64 | GG53: =IF(OR(GG1<$UQ$49,GG1>$UR$49),0,IF(AND(GG49>1,GG52<>0),(INDIRECT(ADDRESS($A$48,GG1+GG52))*GG51+INDIRECT(ADDRESS($A$48,GG1-GG51))*GG52)/(GG52+GG51),0)) -> 42.66 | GH53: 42.68 | GI53: 0 | GJ53: 42.71 | GK53: 42.72 | GL53: 42.73 | GM53: 42.74 | GN53: 42.75 | GO53: 42.76 | GP53: 42.77 | GQ53: 42.78 | GR53: 42.79 | GS53: 42.8 | GT53: 42.81 | GU53: 42.82 | GV53: 42.83 | GW53: 42.84 | GX53: 42.85 | GY53: 42.86 | GZ53: 42.87 | HA53: 42.88 | HB53: 42.89 | HC53: 0 | HD53: 42.9 | HE53: 42.9 | HF53: 42.9 | HG53: 42.9 | HH53: 42.9 | HI53: 42.9 | HJ53: 42.9 | HK53: 42.9 | HL53: 42.9 | HM53: 42.9 | HN53: 42.9 | HO53: 42.9 | HP53: 42.9 | HQ53: 42.9 | HR53: 42.9 | HS53: 42.9 | HT53: 42.9 | HU53: 42.9 | HV53: 42.9 | HW53: 42.9 | HX53: 42.9 | HY53: 42.9 | HZ53: 42.9 | IA53: 42.9 | IB53: 42.9 | IC53: 42.9 | ID53: 42.9 | IE53: 42.9 | IF53: 42.9 | IG53: 0 | IH53: 42.9 | II53: 42.9 | IJ53: 42.9 | IK53: 42.9 | IL53: 42.9 | IM53: 42.9 | IN53: 42.9 | IO53: 42.9 | IP53: 42.9 | IQ53: 42.9 | IR53: 42.9 | IS53: =IF(OR(IS1<$UQ$49,IS1>$UR$49),0,IF(AND(IS49>1,IS52<>0),(INDIRECT(ADDRESS($A$48,IS1+IS52))*IS51+INDIRECT(ADDRESS($A$48,IS1-IS51))*IS52)/(IS52+IS51),0)) -> 42.9 | IT53: 42.9 | IU53: 42.9 | IV53: 42.9 | IW53: 42.9 | IX53: 42.9 | IY53: 42.9 | IZ53: 42.9 | JA53: 42.9 | JB53: 42.9 | JC53: 42.9 | JD53: 42.9 | JE53: 42.9 | JF53: 42.9 | JG53: 42.9 | JH53: 42.9 | JI53: 42.9 | JJ53: 42.9 | JK53: 0 | JL53: 42.88 | JM53: 42.86 | JN53: 42.84 | JO53: 42.82 | JP53: 0 | JQ53: 42.78 | JR53: 42.76 | JS53: 42.74 | JT53: 42.72 | JU53: 0 | JV53: 42.65 | JW53: 42.6 | JX53: 42.55 | JY53: 42.5 | JZ53: 42.45 | KA53: 42.4 | KB53: 42.35 | KC53: 42.3 | KD53: 42.25 | KE53: 0 | KF53: 42.04 | KG53: 41.88 | KH53: 41.72 | KI53: 41.56 | KJ53: 41.4 | KK53: 41.24 | KL53: 41.08 | KM53: 40.92 | KN53: 40.76 | KO53: 0 | KP53: 40.4 | KQ53: 40.2 | KR53: 40 | KS53: 39.8 | KT53: 0 | KU53: 39.34 | KV53: 39.08 | KW53: 38.82 | KX53: 38.56 | KY53: 38.3 | KZ53: 38.04 | LA53: 37.78 | LB53: 37.52 | LC53: 37.26 | LD53: 0 | LE53: =IF(OR(LE1<$UQ$49,LE1>$UR$49),0,IF(AND(LE49>1,LE52<>0),(INDIRECT(ADDRESS($A$48,LE1+LE52))*LE51+INDIRECT(ADDRESS($A$48,LE1-LE51))*LE52)/(LE52+LE51),0)) -> 36.63 | LF53: 36.26 | LG53: 35.89 | LH53: 35.52 | LI53: 35.15 | LJ53: 34.78 | LK53: 34.41 | LL53: 34.04 | LM53: 33.67 | LN53: 0 | LO53: 32.79 | LP53: 32.28 | LQ53: 31.77 | LR53: 31.26 | LS53: 30.75 | LT53: 30.24 | LU53: 29.73 | LV53: 29.22 | LW53: 28.71 | LX53: 0 | LY53: 27.52 | LZ53: 26.84 | MA53: 26.16 | MB53: 25.48 | MC53: 0 | MD53: 23.94 | ME53: 23.08 | MF53: 22.22 | MG53: 21.36 | MH53: 0 | MI53: 19.4 | MJ53: 18.3 | MK53: 17.2 | ML53: 16.1 | MM53: 0 | MN53: 13.2 | MO53: 11.4 | MP53: 9.6 | MQ53: 7.8 | MR53: 0 | MS53: 0 | MT53: 0 | MU53: 0 | MV53: 0 | MW53: 0 | MX53: 0 | MY53: 0 | MZ53: 0 | NA53: 0 | NB53: 0 | NC53: 0 | ND53: 0 | NE53: 0 | NF53: 0 | NG53: 0 | NH53: 0 | NI53: 0 | NJ53: 0 | NK53: 0 | NL53: 0 | NM53: 0 | NN53: 0 | NO53: 0 | NP53: 0 | NQ53: =IF(OR(NQ1<$UQ$49,NQ1>$UR$49),0,IF(AND(NQ49>1,NQ52<>0),(INDIRECT(ADDRESS($A$48,NQ1+NQ52))*NQ51+INDIRECT(ADDRESS($A$48,NQ1-NQ51))*NQ52)/(NQ52+NQ51),0)) -> 0 | NR53: 0 | NS53: 0 | NT53: 0 | NU53: 0 | NV53: 0 | NW53: 0 | NX53: 0 | NY53: 0 | NZ53: 0 | OA53: 0 | OB53: 0 | OC53: 0 | OD53: 0 | OE53: 0 | OF53: 0 | OG53: 0 | OH53: 0 | OI53: 0 | OJ53: 0 | OK53: 0 | OL53: 0 | OM53: 0 | ON53: 0 | OO53: 0 | OP53: 0 | OQ53: 0 | OR53: 0 | OS53: 0 | OT53: 0 | OU53: 0 | OV53: 0 | OW53: 0 | OX53: 0 | OY53: 0 | OZ53: 0 | PA53: 0 | PB53: 0 | PC53: 0 | PD53: 0 | PE53: 0 | PF53: 0 | PG53: 0 | PH53: 0 | PI53: 0 | PJ53: 0 | PK53: 0 | PL53: 0 | PM53: 0 | PN53: 0 | PO53: 0 | PP53: 0 | PQ53: 0 | PR53: 0 | PS53: 0 | PT53: 0 | PU53: 0 | PV53: 0 | PW53: 0 | PX53: 0 | PY53: 0 | PZ53: 0 | QA53: 0 | QB53: 0 | QC53: =IF(OR(QC1<$UQ$49,QC1>$UR$49),0,IF(AND(QC49>1,QC52<>0),(INDIRECT(ADDRESS($A$48,QC1+QC52))*QC51+INDIRECT(ADDRESS($A$48,QC1-QC51))*QC52)/(QC52+QC51),0)) -> 0 | QD53: 0 | QE53: 0 | QF53: 0 | QG53: 0 | QH53: 0 | QI53: 0 | QJ53: 0 | QK53: 0 | QL53: 0 | QM53: 0 | QN53: 0 | QO53: 0 | QP53: 0 | QQ53: 0 | QR53: 0 | QS53: 0 | QT53: 0 | QU53: 0 | QV53: 0 | QW53: 0 | QX53: 0 | QY53: 0 | QZ53: 0 | RA53: 0 | RB53: 0 | RC53: 0 | RD53: 0 | RE53: 0 | RF53: 0 | RG53: 0 | RH53: 0 | RI53: 0 | RJ53: 0 | RK53: 0 | RL53: 0 | RM53: 0 | RN53: 0 | RO53: 0 | RP53: 0 | RQ53: 0 | RR53: 0 | RS53: 0 | RT53: 0 | RU53: 0 | RV53: 0 | RW53: 0 | RX53: 0 | RY53: 0 | RZ53: 0 | SA53: 0 | SB53: 0 | SC53: 0 | SD53: 0 | SE53: 0 | SF53: 0 | SG53: 0 | SH53: 0 | SI53: 0 | SJ53: 0 | SK53: 0 | SL53: 0 | SM53: 0 | SN53: 0 | SO53: =IF(OR(SO1<$UQ$49,SO1>$UR$49),0,IF(AND(SO49>1,SO52<>0),(INDIRECT(ADDRESS($A$48,SO1+SO52))*SO51+INDIRECT(ADDRESS($A$48,SO1-SO51))*SO52)/(SO52+SO51),0)) -> 0 | SP53: 0 | SQ53: 0 | SR53: 0 | SS53: 0 | ST53: 0 | SU53: 0 | SV53: 0 | SW53: 0 | SX53: 0 | SY53: 0 | SZ53: 0 | TA53: 0 | TB53: 0 | TC53: 0 | TD53: 0 | TE53: 0 | TF53: 0 | TG53: 0 | TH53: 0 | TI53: 0 | TJ53: 0 | TK53: 0 | TL53: 0 | TM53: 0 | TN53: 0 | TO53: 0 | TP53: 0 | TQ53: 0 | TR53: 0 | TS53: 0 | TT53: 0 | TU53: 0 | TV53: 0 | TW53: 0 | TX53: 0 | TY53: 0 | TZ53: 0 | UA53: 0 | UB53: 0 | UC53: 0 | UD53: 0 | UE53: 0 | UF53: 0 | UG53: 0 | UH53: 0 | UI53: 0 | UJ53: 0 | UK53: 0 | UL53: 0 | UM53: 0 | UN53: 0 | UO53: 0
A54: 54 | AJ54: 50.6 | AK54: 145.0264266 | AL54: 34.97357344 | AM54: 3.9 | AN54: 0.1 | AO54: 25.14875748 | AP54: 178.9714634 | AQ54: 3.9 | AR54: 0.1 | AS54: 0 | AT54: 0 | AU54: =IF('Transfer New'!$BK$12>MAX(AM54,AQ54),0,AL54) -> 0 | AV54: 0 | AW54: 0 | AX54: 0 | AZ54: 0 | BA54: 29.7 | BD54: 0 | BE54: 0 | BG54: Main W | BI54: =MAX(BI48,BI53) -> 6 | BJ54: 7.2 | BK54: 8.4 | BL54: 9.6 | BM54: 10.8 | BN54: 12 | BO54: 13.2 | BP54: 14.4 | BQ54: 15.6 | BR54: 16.8 | BS54: 18 | BT54: 18.5 | BU54: 19 | BV54: 19.5 | BW54: 20 | BX54: 20.5 | BY54: 21 | BZ54: 21.5 | CA54: 22 | CB54: 22.5 | CC54: 23 | CD54: 23.5 | CE54: 24 | CF54: 24.5 | CG54: 25 | CH54: 25.5 | CI54: 25.8 | CJ54: 26.1 | CK54: 26.4 | CL54: 26.7 | CM54: 27 | CN54: 27.3 | CO54: 27.6 | CP54: 27.9 | CQ54: 28.2 | CR54: 28.5 | CS54: 28.8 | CT54: 29.1 | CU54: 29.4 | CV54: 29.7 | CW54: 30 | CX54: 30.3 | CY54: 30.6 | CZ54: 30.9 | DA54: 31.2 | DB54: 31.5 | DC54: 31.76 | DD54: 32.02 | DE54: 32.28 | DF54: 32.54 | DG54: 32.8 | DH54: 33.06 | DI54: 33.32 | DJ54: 33.58 | DK54: 33.84 | DL54: 34.1 | DM54: 34.36 | DN54: 34.62 | DO54: 34.88 | DP54: 35.14 | DQ54: 35.4 | DR54: 35.66 | DS54: 35.92 | DT54: 36.18 | DU54: =MAX(DU48,DU53) -> 36.44 | DV54: 36.7 | DW54: 36.845 | DX54: 36.99 | DY54: 37.135 | DZ54: 37.28 | EA54: 37.425 | EB54: 37.57 | EC54: 37.715 | ED54: 37.86 | EE54: 38.005 | EF54: 38.15 | EG54: 38.295 | EH54: 38.44 | EI54: 38.585 | EJ54: 38.73 | EK54: 38.875 | EL54: 39.02 | EM54: 39.165 | EN54: 39.31 | EO54: 39.455 | EP54: 39.6 | EQ54: 39.70666667 | ER54: 39.81333333 | ES54: 39.92 | ET54: 40.02666667 | EU54: 40.13333333 | EV54: 40.24 | EW54: 40.34666667 | EX54: 40.45333333 | EY54: 40.56 | EZ54: 40.66666667 | FA54: 40.77333333 | FB54: 40.88 | FC54: 40.98666667 | FD54: 41.09333333 | FE54: 41.2 | FF54: 41.28 | FG54: 41.36 | FH54: 41.44 | FI54: 41.52 | FJ54: 41.6 | FK54: 41.68 | FL54: 41.76 | FM54: 41.84 | FN54: 41.92 | FO54: 42 | FP54: 42.05 | FQ54: 42.1 | FR54: 42.15 | FS54: 42.2 | FT54: 42.25 | FU54: 42.3 | FV54: 42.35 | FW54: 42.4 | FX54: 42.45 | FY54: 42.5 | FZ54: 42.52 | GA54: 42.54 | GB54: 42.56 | GC54: 42.58 | GD54: 42.6 | GE54: 42.62 | GF54: 42.64 | GG54: =MAX(GG48,GG53) -> 42.66 | GH54: 42.68 | GI54: 42.7 | GJ54: 42.71 | GK54: 42.72 | GL54: 42.73 | GM54: 42.74 | GN54: 42.75 | GO54: 42.76 | GP54: 42.77 | GQ54: 42.78 | GR54: 42.79 | GS54: 42.8 | GT54: 42.81 | GU54: 42.82 | GV54: 42.83 | GW54: 42.84 | GX54: 42.85 | GY54: 42.86 | GZ54: 42.87 | HA54: 42.88 | HB54: 42.89 | HC54: 42.9 | HD54: 42.9 | HE54: 42.9 | HF54: 42.9 | HG54: 42.9 | HH54: 42.9 | HI54: 42.9 | HJ54: 42.9 | HK54: 42.9 | HL54: 42.9 | HM54: 42.9 | HN54: 42.9 | HO54: 42.9 | HP54: 42.9 | HQ54: 42.9 | HR54: 42.9 | HS54: 42.9 | HT54: 42.9 | HU54: 42.9 | HV54: 42.9 | HW54: 42.9 | HX54: 42.9 | HY54: 42.9 | HZ54: 42.9 | IA54: 42.9 | IB54: 42.9 | IC54: 42.9 | ID54: 42.9 | IE54: 42.9 | IF54: 42.9 | IG54: 42.9 | IH54: 42.9 | II54: 42.9 | IJ54: 42.9 | IK54: 42.9 | IL54: 42.9 | IM54: 42.9 | IN54: 42.9 | IO54: 42.9 | IP54: 42.9 | IQ54: 42.9 | IR54: 42.9 | IS54: =MAX(IS48,IS53) -> 42.9 | IT54: 42.9 | IU54: 42.9 | IV54: 42.9 | IW54: 42.9 | IX54: 42.9 | IY54: 42.9 | IZ54: 42.9 | JA54: 42.9 | JB54: 42.9 | JC54: 42.9 | JD54: 42.9 | JE54: 42.9 | JF54: 42.9 | JG54: 42.9 | JH54: 42.9 | JI54: 42.9 | JJ54: 42.9 | JK54: 42.9 | JL54: 42.88 | JM54: 42.86 | JN54: 42.84 | JO54: 42.82 | JP54: 42.8 | JQ54: 42.78 | JR54: 42.76 | JS54: 42.74 | JT54: 42.72 | JU54: 42.7 | JV54: 42.65 | JW54: 42.6 | JX54: 42.55 | JY54: 42.5 | JZ54: 42.45 | KA54: 42.4 | KB54: 42.35 | KC54: 42.3 | KD54: 42.25 | KE54: 42.2 | KF54: 42.04 | KG54: 41.88 | KH54: 41.72 | KI54: 41.56 | KJ54: 41.4 | KK54: 41.24 | KL54: 41.08 | KM54: 40.92 | KN54: 40.76 | KO54: 40.6 | KP54: 40.4 | KQ54: 40.2 | KR54: 40 | KS54: 39.8 | KT54: 39.6 | KU54: 39.34 | KV54: 39.08 | KW54: 38.82 | KX54: 38.56 | KY54: 38.3 | KZ54: 38.04 | LA54: 37.78 | LB54: 37.52 | LC54: 37.26 | LD54: 37 | LE54: =MAX(LE48,LE53) -> 36.63 | LF54: 36.26 | LG54: 35.89 | LH54: 35.52 | LI54: 35.15 | LJ54: 34.78 | LK54: 34.41 | LL54: 34.04 | LM54: 33.67 | LN54: 33.3 | LO54: 32.79 | LP54: 32.28 | LQ54: 31.77 | LR54: 31.26 | LS54: 30.75 | LT54: 30.24 | LU54: 29.73 | LV54: 29.22 | LW54: 28.71 | LX54: 28.2 | LY54: 27.52 | LZ54: 26.84 | MA54: 26.16 | MB54: 25.48 | MC54: 24.8 | MD54: 23.94 | ME54: 23.08 | MF54: 22.22 | MG54: 21.36 | MH54: 20.5 | MI54: 19.4 | MJ54: 18.3 | MK54: 17.2 | ML54: 16.1 | MM54: 15 | MN54: 13.2 | MO54: 11.4 | MP54: 9.6 | MQ54: 7.8 | MR54: 6 | MS54: 0 | MT54: 0 | MU54: 0 | MV54: 0 | MW54: 0 | MX54: 0 | MY54: 0 | MZ54: 0 | NA54: 0 | NB54: 0 | NC54: 0 | ND54: 0 | NE54: 0 | NF54: 0 | NG54: 0 | NH54: 0 | NI54: 0 | NJ54: 0 | NK54: 0 | NL54: 0 | NM54: 0 | NN54: 0 | NO54: 0 | NP54: 0 | NQ54: =MAX(NQ48,NQ53) -> 0 | NR54: 0 | NS54: 0 | NT54: 0 | NU54: 0 | NV54: 0 | NW54: 0 | NX54: 0 | NY54: 0 | NZ54: 0 | OA54: 0 | OB54: 0 | OC54: 0 | OD54: 0 | OE54: 0 | OF54: 0 | OG54: 0 | OH54: 0 | OI54: 0 | OJ54: 0 | OK54: 0 | OL54: 0 | OM54: 0 | ON54: 0 | OO54: 0 | OP54: 0 | OQ54: 0 | OR54: 0 | OS54: 0 | OT54: 0 | OU54: 0 | OV54: 0 | OW54: 0 | OX54: 0 | OY54: 0 | OZ54: 0 | PA54: 0 | PB54: 0 | PC54: 0 | PD54: 0 | PE54: 0 | PF54: 0 | PG54: 0 | PH54: 0 | PI54: 0 | PJ54: 0 | PK54: 0 | PL54: 0 | PM54: 0 | PN54: 0 | PO54: 0 | PP54: 0 | PQ54: 0 | PR54: 0 | PS54: 0 | PT54: 0 | PU54: 0 | PV54: 0 | PW54: 0 | PX54: 0 | PY54: 0 | PZ54: 0 | QA54: 0 | QB54: 0 | QC54: =MAX(QC48,QC53) -> 0 | QD54: 0 | QE54: 0 | QF54: 0 | QG54: 0 | QH54: 0 | QI54: 0 | QJ54: 0 | QK54: 0 | QL54: 0 | QM54: 0 | QN54: 0 | QO54: 0 | QP54: 0 | QQ54: 0 | QR54: 0 | QS54: 0 | QT54: 0 | QU54: 0 | QV54: 0 | QW54: 0 | QX54: 0 | QY54: 0 | QZ54: 0 | RA54: 0 | RB54: 0 | RC54: 0 | RD54: 0 | RE54: 0 | RF54: 0 | RG54: 0 | RH54: 0 | RI54: 0 | RJ54: 0 | RK54: 0 | RL54: 0 | RM54: 0 | RN54: 0 | RO54: 0 | RP54: 0 | RQ54: 0 | RR54: 0 | RS54: 0 | RT54: 0 | RU54: 0 | RV54: 0 | RW54: 0 | RX54: 0 | RY54: 0 | RZ54: 0 | SA54: 0 | SB54: 0 | SC54: 0 | SD54: 0 | SE54: 0 | SF54: 0 | SG54: 0 | SH54: 0 | SI54: 0 | SJ54: 0 | SK54: 0 | SL54: 0 | SM54: 0 | SN54: 0 | SO54: =MAX(SO48,SO53) -> 0 | SP54: 0 | SQ54: 0 | SR54: 0 | SS54: 0 | ST54: 0 | SU54: 0 | SV54: 0 | SW54: 0 | SX54: 0 | SY54: 0 | SZ54: 0 | TA54: 0 | TB54: 0 | TC54: 0 | TD54: 0 | TE54: 0 | TF54: 0 | TG54: 0 | TH54: 0 | TI54: 0 | TJ54: 0 | TK54: 0 | TL54: 0 | TM54: 0 | TN54: 0 | TO54: 0 | TP54: 0 | TQ54: 0 | TR54: 0 | TS54: 0 | TT54: 0 | TU54: 0 | TV54: 0 | TW54: 0 | TX54: 0 | TY54: 0 | TZ54: 0 | UA54: 0 | UB54: 0 | UC54: 0 | UD54: 0 | UE54: 0 | UF54: 0 | UG54: 0 | UH54: 0 | UI54: 0 | UJ54: 0 | UK54: 0 | UL54: 0 | UM54: 0 | UN54: 0 | UO54: 0
